Workbook

Sheet REPORTE001
A2: =IFERROR("Distrito de "&MID(L5,SEARCH(".",L5)+1,LEN(L5)-SEARCH(".",L5)+1),IFERROR(("Provincia de "&MID(H5,SEARCH(".",H5)+1,LEN(H5)-SEARCH(".",H5)+1)),IFERROR(("Región de "&MID(D5,SEARCH(".",D5)+1,LEN(D5)-SEARCH(".",D5)+1)),"Perú: Información Nacional"))) -> Perú: Información Nacional
B4: Ubigeo | D4: Departamento | H4: Provincia | L4: Distrito
B5: =+IF(D5="","00",LEFT(D5,2))&IF(H5="","00",LEFT(H5,2))&IF(L5="","00",LEFT(L5,2)) -> 000000
A11: 1. Información General
A13: 1.1. Características del territorio | K13: 1.2. Población | T13: Pirámide | V13: Edad | W13: Mujer | X13: Hombre | Y13: Mujer (label) | Z13: Hombre (label)
N14: Población | O14: (%) | T14: 7 | U14: 26 | V14: 0-5 | W14: =+VLOOKUP($B$5,POBLACIÓN_2017,T14,0) -> 1600118.264 | X14: =+VLOOKUP($B$5,POBLACIÓN_2017,U14,0)*-1 -> -1654462.458 | Y14: =+(W14/(W14-X14))*100 -> 49.16511222 | Z14: =+(X14/(W14-X14))*-100 -> 50.83488778
A15: Capital legal | B15: Superficie (Km2) | C15: Densidad | D15: Altitud (msnm) | E15: N° de provincias | F15: N° de distritos | G15: N° de Centros Poblados | H15: FRONTERA | K15: Población proyectada 2022 a/ | N15: =+IF(RIGHT(_ubigeo_,4)="0000",VLOOKUP(_ubigeo_,'1. Información General'!$CC$8:$CH$2104,6,0),VLOOKUP(_ubigeo_,'1. Información General'!$CC$8:$CH$2104,5,0)) -> 33396698 | T15: =1+T14 -> 8 | U15: =1+U14 -> 27 | V15: 6-10 | W15: 1383097.242 | X15: -1417371.187 | Y15: 49.38806766 | Z15: 50.61193234
I16: País | K16: Población censada 2017 b/ | L16: Total | N16: =+VLOOKUP(REPORTE001!$B$5,POBLACIÓN_2017,2,0) -> 31237384.64 | T16: 9 | U16: 28 | V16: 11-15 | W16: 1345887.895 | X16: -1383555.893 | Y16: 49.30996935 | Z16: 50.69003065
A17: =+VLOOKUP($B$5,TERRITORIO,10,0) -> Lima Metropolitana | B17: =+VLOOKUP($B$5,TERRITORIO,2,0) -> 1280172.28 | C17: =+VLOOKUP($B$5,TERRITORIO,3,0) -> 24.40092259 | D17: =+VLOOKUP($B$5,TERRITORIO,4,0) -> 0 | E17: =+VLOOKUP($B$5,TERRITORIO,5,0) -> 196 | F17: =+VLOOKUP($B$5,TERRITORIO,6,0) -> 1874 | G17: =+VLOOKUP($B$5,TERRITORIO,7,0) -> 94922 | H17: =+VLOOKUP($B$5,TERRITORIO,8,0) -> SÍ | I17: =IF(H17="No","-",+VLOOKUP($B$5,TERRITORIO,9,0)) -> Ecu-Col-Bra-Bol-Chi | L17: Urbano | N17: =+VLOOKUP(REPORTE001!$B$5,POBLACIÓN_2017,3,0) -> 25579026.92 | O17: =(N17/N16)*100 -> 81.8859428 | T17: 10 | U17: 29 | V17: 16-20 | W17: 1293965.898 | X17: -1305363.963 | Y17: 49.78074994 | Z17: 50.21925006
L18: Rural | N18: =+VLOOKUP(REPORTE001!$B$5,POBLACIÓN_2017,4,0) -> 5658357.722 | O18: =(N18/N16)*100 -> 18.1140572 | T18: 11 | U18: 30 | V18: 21-25 | W18: 1373936.561 | X18: -1350027.211 | Y18: 50.43887056 | Z18: 49.56112944
L19: Mujeres | N19: =+SUM(REPORTE001!W14:W32) -> 15769439.19 | O19: =(N19/$N$16)*100 -> 50.4825848 | T19: 12 | U19: 31 | V19: 26-30 | W19: 1288281.223 | X19: -1258202.827 | Y19: 50.59058679 | Z19: 49.40941321
A20: Fuente:Instituto Nacional de Estadística e Informática - INEI (Publicación:"Perú: Proyecciones de Población Total, según Departamento, Provincia y Distrito, 2018-2022 - Boletín Especial Nº 27"). Plataforma de Datos abiertos - PCM (Ministerio de Salud - Dataset: "Codigos equivalentes de UBIGEO del Peru") | L20: Hombres | N20: =+SUM(REPORTE001!X14:X32)*-1 -> 15467945.52 | O20: =(N20/$N$16)*100 -> 49.51741543 | T20: 13 | U20: 32 | V20: 31-35 | W20: 1206188.054 | X20: -1187125.939 | Y20: 50.3982368 | Z20: 49.6017632
L21: Principales grupos de edad | T21: 14 | U21: 33 | V21: 36-40 | W21: 1124835.523 | X21: -1083707.649 | Y21: 50.93110867 | Z21: 49.06889133
L22: Niños menores de un año | N22: =+VLOOKUP(REPORTE001!$B$5,POBLACIÓN_2017,5,0) -> 493494.979 | O22: =(N22/$N$16)*100 -> 1.579821694 | T22: 15 | U22: 34 | V22: 41-45 | W22: =+VLOOKUP($B$5,POBLACIÓN_2017,T22,0) -> 1025029.405 | X22: =+VLOOKUP($B$5,POBLACIÓN_2017,U22,0)*-1 -> -983992.0422 | Y22: 51.02132714 | Z22: 48.97867286
L23: En edad de trabajar (PET) | N23: =+VLOOKUP(REPORTE001!$B$5,POBLACIÓN_2017,6,0) -> 23495640.52 | O23: =(N23/$N$16)*100 -> 75.2164139 | T23: 16 | U23: 35 | V23: 46-50 | W23: 896744.4559 | X23: -846459.3508 | Y23: 51.44231859 | Z23: 48.55768141
K24: a/ La estimación sobre población proyectada proviene de la publicación "Perú: Proyecciones de Población Total, según Departamento, Provincia y Distrito, 2018-2022 - Boletín Especial Nº 27" (INEI) b/ La fuente de información sobre población censada proviende de los Censos Nacionales 2017: XII de Población, VII de Vivienda y III de Comunidades Indígenas. Nota: Para el caso peruano, el PET está conformada por la población de 14 a más años de edad | T24: 17 | U24: 36 | V24: 51-55 | W24: 782734.0431 | X24: -749579.7985 | Y24: 51.08183597 | Z24: 48.91816403
T25: 18 | U25: 37 | V25: 56-60 | W25: 653239.0256 | X25: -627852.4395 | Y25: 50.99081864 | Z25: 49.00918136
T26: 19 | U26: 38 | V26: 61-65 | W26: 540026.8786 | X26: -506503.3095 | Y26: 51.60165323 | Z26: 48.39834677
T27: 20 | U27: 39 | V27: 66-70 | W27: 415118.5004 | X27: -388928.1599 | Y27: 51.628658 | Z27: 48.371342
T28: 21 | U28: 40 | V28: 71-75 | W28: 316371.6002 | X28: -292265.5223 | Y28: 51.98033253 | Z28: 48.01966747
K29: 1.3. Pobreza | T29: 22 | U29: 41 | V29: 76-80 | W29: 230813.142 | X29: -205067.0286 | Y29: 52.95334763 | Z29: 47.04665237
T30: 23 | U30: 42 | V30: 81-85 | W30: 162138.9862 | X30: -134022.9222 | Y30: 54.74673872 | Z30: 45.25326128
M31: Pobreza | T31: =1+T30 -> 24 | U31: =1+U30 -> 43 | V31: 80-86 | W31: 87392.99105 | X31: -65889.78639 | Y31: 57.01422724 | Z31: 42.98577276
K32: Nivel | M32: Población | N32: (%) | T32: 25 | U32: 44 | V32: 80-87 | W32: 43519.50253 | X32: -27568.03678 | Y32: 61.21959341 | Z32: 38.78040659
K33: Monetaria total | M33: =IFERROR((N33*REPORTE001!N15)/100,"-") -> 8649744.782 | N33: =+IF(RIGHT(_ubigeo_,4)="0000",VLOOKUP(_ubigeo_,POBREZA,4,0),VLOOKUP(_ubigeo_,POBREZA,6,0)) -> 25.9
K34: Monetaria Extrema | M34: =IFERROR((N34*REPORTE001!N15)/100,"-") -> 1369264.618 | N34: =+IF(RIGHT(_ubigeo_,4)="0000",VLOOKUP(_ubigeo_,POBREZA,5,0),VLOOKUP(_ubigeo_,POBREZA,7,0)) -> 4.1
K35: Nota: Los porcentajes de pobreza nacional y departamental corresponden al año 2021 y provienen de la publicación "Informe Técnico: Evolución de la pobreza monetaria 2007 - 2021" (INEI). A nivel provincial y distrital, los porcentajes de pobreza monetaria y pobreza extrema se han tomado del Mapa de Pobreza 2018 y 2013 (INEI) respectivamente. Son calculados como el promedio simple de los límites de los intervalo inferior y superior.
A40: 1.4. Recursos Presupuestales per cápita | K40: 1.5. Principales actividades económicas
B42: Presupuesto Asignado (S/) | D42: Presupuesto ejecutado (S/) | K42: 1° | L42: =+VLOOKUP(LARGE($S$264:$S$273,1),$S$264:$T$273,2,0) -> Transporte y comunicaciones
A43: Total | B43: =IFERROR(VLOOKUP(_ubigeo_,'1. Información General'!$CR$8:$CX$2104,2,FALSE)/$N$15,"-") -> 6824.991885 | D43: =IFERROR(VLOOKUP(_ubigeo_,'1. Información General'!$CR$8:$CX$2104,5,FALSE)/$N$15,"-") -> 5957.157041 | K43: 2° | L43: =+VLOOKUP(LARGE($S$264:$S$273,2),$S$264:$T$273,2,0) -> Comercio
A44: Actividad | B44: =IFERROR(VLOOKUP(_ubigeo_,'1. Información General'!$CR$8:$CX$2104,3,FALSE)/$N$15,"-") -> 5163.181684 | D44: =IFERROR(VLOOKUP(_ubigeo_,'1. Información General'!$CR$8:$CX$2104,6,FALSE)/$N$15,"-") -> 4807.74199 | K44: 3° | L44: =+VLOOKUP(LARGE($S$264:$S$273,3),$S$264:$T$273,2,0) -> Agropecuario
A45: Proyectos | B45: =IFERROR(VLOOKUP(_ubigeo_,'1. Información General'!$CR$8:$CX$2104,4,FALSE)/$N$15,"-") -> 1661.810201 | D45: =IFERROR(VLOOKUP(_ubigeo_,'1. Información General'!$CR$8:$CX$2104,7,FALSE)/$N$15,"-") -> 1149.415051 | K45: 4° | L45: =+VLOOKUP(LARGE($S$264:$S$273,4),$S$264:$T$273,2,0) -> Otros servicios
A46: Fuente: Ministerio de Economía y Finanzas - MEF | K46: Fuente: INEI, Censos Nacionales 2017: XII de Población, VII de Vivienda y III de Comunidades Indígenas
A47: Nota: Las cifras son calculados con el Presupuesto Institucional Modificado (PIM) y devengado del 2021 actualizado a abril del 2022. Ademas, para la valoración per capita se considera la población proyectada 2021 para el nivel nacional y departamental, y la población proyectada 2020 para el nivel provincial y distrital. | K47: Nota: Se consideran las 4 actividades económicas com mayor PEA ocupada.
A49: 2. Servicios Básicos: Saneamiento y electricidad
A51: 2.1. Cobertura de servicios básicos
H52: Total de viviendas censadas 2017: | K52: =+VLOOKUP($B$5,VIVIENDAS,3,0) -> 7698900
N53: Brecha de cobertura
H54: Viviendas según acceso a servicios básicos, 2017 | L54: Total | M54: Cobertura | N54: Total | O54: Porcentaje
H55: Viviendas con acceso a agua por red pública a/ | L55: =+VLOOKUP($B$5,SANEAMIENTO,2,0) -> 6392282 | M55: =+L55/$K$52 -> 0.8302851057 | N55: =+$K$52-L55 -> 1306618 | O55: =1-M55 -> 0.1697148943
H56: Viviendas con acceso a saneamiento por red pública b/ | L56: =+VLOOKUP($B$5,SANEAMIENTO,12,0) -> 5130862 | M56: =+L56/$K$52 -> 0.6664409201 | N56: =+$K$52-L56 -> 2568038 | O56: =1-M56 -> 0.3335590799
H57: Viviendas con alumbrado eléctrico c/ | L57: =+VLOOKUP($B$5,Alumbrado,2,0) -> 6750790 | M57: =+L57/$K$52 -> 0.8768512385 | N57: =+$K$52-L57 -> 948110 | O57: =1-M57 -> 0.1231487615
H58: Viviendas con acceso a los tres servicios básicos d/ | L58: =+VLOOKUP($B$5,tres_serv,2,0) -> 4929535 | M58: =+L58/$K$52 -> 0.6402908208 | N58: =+$K$52-L58 -> 2769365 | O58: =1-M58 -> 0.3597091792
H59: Fuente: INEI, Censos Nacionales 2017: XII de Población, VII de Vivienda y III de Comunidades Indígenas. Nota: a/ Considera a viviendas censadas con acceso a agua por red pública (dentro o fuera de la vivienda) o por pilón o pileta pública. b/ Considera a viviendas censadas con acceso a red pública de desagüe dentro o fuera de la vivienda. c/ Considera a viviendas censadas con acceso a electricidad. d/ Considera viviendas censadas que cuentan con los tres servicios básicos: agua por res pública, acceso a red de alcantarillado y alumbrado por red eléctrica.
A65: 2.2. Cobertura del servicio de agua
N66: Fuente: Censos Nacionales 2017: XII de Población, VII de Viviendas y III de Comunidades Indígenas. a/ Se consideran el agua subterránea. b/ Las fuentes naturales de agua se encuentran en el manantial o puquio, río, acequia, lago y/o laguna
A67: Viviendas con acceso a agua | D67: N° de viviendas | E67: Porcentaje | T67: Viviendas con acceso a agua | U67: N° de viviendas | V67: Porcentaje
A68: Viviendas con el servicio de agua a/ | D68: =+VLOOKUP($B$5,SANEAMIENTO,2,0) -> 6392282 | E68: =+D68/$K$52 -> 0.8302851057
A69: Por red pública dentro de la vivienda | D69: =+VLOOKUP($B$5,SANEAMIENTO,3,0) -> 5162821 | E69: =+D69/$K$52 -> 0.6705920326 | T69: Viviendas con acceso a agua por otras fuentes (*) | U69: =K52-D68 -> 1306618 | V69: =+U69/$K$52 -> 0.1697148943
A70: Por red pública fuera de la vivienda | D70: =+VLOOKUP($B$5,SANEAMIENTO,4,0) -> 867340 | E70: =+D70/$K$52 -> 0.1126576524 | T70: Cisterna u otro similar | U70: =VLOOKUP(_ubigeo_,SANEAMIENTO,6,0) -> 324832 | V70: =U70/$U$69 -> 0.2486051776
A71: Por pilón o pileta de uso público | D71: =+VLOOKUP($B$5,SANEAMIENTO,5,0) -> 362121 | E71: =+D71/$K$52 -> 0.04703542064 | T71: Pozo a/ | U71: =VLOOKUP(_ubigeo_,SANEAMIENTO,7,0) -> 562275 | V71: =U71/$U$69 -> 0.4303285275
A72: Viviendas con acceso a agua por otras fuentes (*) | D72: =K52-D68 -> 1306618 | E72: =+D72/$K$52 -> 0.1697148943 | T72: Naturales superficiales b/ | U72: =+U75+U76 -> 347283 | V72: =+V75+V76 -> 0.2657877054
A73: Fuente: INEI, Censos Nacionales 2017: XII de Población, VII de Vivienda y III de Comunidades Indígenas. a/ Considera a viviendas censadas con acceso a agua por red pública (dentro o fuera de la vivienda) o por pilón o pileta pública | T73: Otros | U73: =+#REF!+U77 ->  | V73: =+#REF!+V77 -> 
T75: Manantial o puquio | U75: =VLOOKUP(_ubigeo_,SANEAMIENTO,8,0) -> 97712 | V75: =U75/$U$69 -> 0.0747823771
T76: Río, acequia, lago, laguna | U76: =VLOOKUP(_ubigeo_,SANEAMIENTO,9,0) -> 249571 | V76: =U76/$U$69 -> 0.1910053283
A77: 2.3. Continuidad en el servicio de agua por red pública | H77: 2.4. Distribución según forma de eliminación de excretas | T77: Vecino | U77: =VLOOKUP(_ubigeo_,SANEAMIENTO,11,0) -> 46172 | V77: =U77/$U$69 -> 0.03533703041
A79: Frecuencia de acceso | B79: Número de viviendas | C79: Porcentaje de viviendas | D79: Frecuencia promedio | F79: Con acceso las 24 horas | H79: Forma de eliminación de excretas | L79: Número de viviendas | O79: Porcentaje | T79: Pozo séptico biodigestor
D80: Días | E80: Horas | L80: Rural | M80: Urbano | N80: Total | T80: Letrina
A81: Todos los días de la semana | B81: =+VLOOKUP($B$5,AGUA_DISP,2,0) -> 5528861 | C81: =+B81/$K$52 -> 0.718136487 | D81: - | E81: =+VLOOKUP($B$5,AGUA_DISP,5,0) -> 17.96072229 | F81: =+VLOOKUP($B$5,AGUA_DISP,4,0) -> 3529319 | H81: Saneamiento por red pública de alcantarillado | L81: =+L82+L83 -> 133267 | M81: =+M82+M83 -> 4997595 | N81: =+L81+M81 -> 5130862 | O81: =N81/$K$52 -> 0.6664409201 | T81: Pozo ciego o negro
H82: Red pública dentro de la vivienda | L82: =+VLOOKUP($B$5,SANEAMIENTO,22,0) -> 91400 | M82: =+VLOOKUP($B$5,SANEAMIENTO,31,0) -> 4421734 | N82: =+L82+M82 -> 4513134 | O82: 0.5862050423 | T82: No tiene (*)
A83: Solo algunos días de la semana | B83: =+VLOOKUP($B$5,AGUA_DISP,6,0) -> 863421 | C83: =+B83/$K$52 -> 0.1121486186 | D83: =+VLOOKUP($B$5,AGUA_DISP,10,0) -> 6.532015089 | E83: =+VLOOKUP($B$5,AGUA_DISP,9,0) -> 3.311061464 | F83: =+VLOOKUP($B$5,AGUA_DISP,8,0) -> 98697 | H83: Red pública fuera de la vivienda | L83: =+VLOOKUP($B$5,SANEAMIENTO,23,0) -> 41867 | M83: =+VLOOKUP($B$5,SANEAMIENTO,32,0) -> 575861 | N83: 617728 | O83: 0.08023587785
H84: Pozo/tanque séptico o biodigestor | L84: =+VLOOKUP($B$5,SANEAMIENTO,24,0) -> 120535 | M84: =+VLOOKUP($B$5,SANEAMIENTO,33,0) -> 187931 | N84: 308466 | O84: 0.04006624323
H85: Letrina (con tratamiento) | L85: =+VLOOKUP($B$5,SANEAMIENTO,25,0) -> 244276 | M85: =+VLOOKUP($B$5,SANEAMIENTO,34,0) -> 187260 | N85: 431536 | O85: 0.05605164374
H86: Pozo ciego o negro | L86: =+VLOOKUP($B$5,SANEAMIENTO,26,0) -> 723475 | M86: =+VLOOKUP($B$5,SANEAMIENTO,35,0) -> 586084 | N86: =+L86+M86 -> 1309559 | O86: 0.170096897
H87: No tiene (*) | L87: =+VLOOKUP($B$5,SANEAMIENTO,28,0)+VLOOKUP($B$5,SANEAMIENTO,29,0) -> 305578 | M87: =+VLOOKUP($B$5,SANEAMIENTO,37,0)+VLOOKUP($B$5,SANEAMIENTO,38,0) -> 158948 | N87: 464526 | O87: 0.06033667147
H88: Fuente: Censos Nacionales 2017: XII de Población, VII de Viviendas y III de Comunidades Indígenas.
N90: Fuente: Censos Nacionales 2017: XII de Población, VII de Viviendas y III de Comunidades Indígenas
A97: Fuente: INEI, Censos Nacionales 2017: XII de Población, VII de Vivienda y III de Comunidades Indígenas.
A98: 2.5. Acceso a alumbrado eléctrico, 2017
S99: Alumbrado eléctrico | U99: Valor | V99: Porcentaje
A100: Viviendas con alumbrado eléctrico | C100: Valor | S100: Sí | T100: Sí | U100: =+VLOOKUP(_ubigeo_,Alumbrado,2,0) -> 6750790 | V100: =+U100/SUM($U$100:$U$102) -> 0.8768512385
A101: Sí | B101: Total | C101: =+VLOOKUP(_ubigeo_,Alumbrado,2,0) -> 6750790 | S101: No | T101: Rural | U101: =+VLOOKUP(_ubigeo_,Alumbrado,6,0) -> 535663 | V101: =+U101/SUM($U$100:$U$102) -> 0.06957656289
B102: Rural | C102: =+VLOOKUP(_ubigeo_,Alumbrado,3,0) -> 1008068 | T102: Urbano | U102: =+VLOOKUP(_ubigeo_,Alumbrado,7,0) -> 412447 | V102: =+U102/SUM($U$100:$U$102) -> 0.05357219863
B103: Urbano | C103: =+VLOOKUP(_ubigeo_,Alumbrado,4,0) -> 5742722
A104: No | B104: Total | C104: =+VLOOKUP(_ubigeo_,Alumbrado,5,0) -> 948110
B105: Rural | C105: =+VLOOKUP(_ubigeo_,Alumbrado,6,0) -> 535663 | S105: Sí | V105: =+C102/U100 -> 0.1493259307
B106: Urbano | C106: =+VLOOKUP(_ubigeo_,Alumbrado,7,0) -> 412447 | V106: =+C103/U100 -> 0.8506740693
A107: Fuente: INEI, Censos Nacionales 2017: XII de Población, VII de Vivienda y III de Comunidades Indígenas.
A112: 3. Salud
A114: 3.1. Desnutrición Crónica Infantil (OMS)
A116: Niños menores de 5 años | C116: 2019 | D116: 2020 | E116: 2021
A117: Porcentaje de niños con DCI e/ | C117: =IF(OR(_ubigeo_="150100",_ubigeo_="159999",RIGHT(_ubigeo_,4)="0000"),VLOOKUP(_ubigeo_,DESNUTRICIÓN_ENDES,3,0),VLOOKUP(_ubigeo_,DESNUTRICIÓN_INS,2,0)) -> 12.23604694 | D117: =IF(OR(_ubigeo_="150100",_ubigeo_="159999",RIGHT(_ubigeo_,4)="0000"),VLOOKUP(_ubigeo_,DESNUTRICIÓN_ENDES,4,0),VLOOKUP(_ubigeo_,DESNUTRICIÓN_INS,5,0)) -> 12.1 | E117: =IF(OR(_ubigeo_="150100",_ubigeo_="159999",RIGHT(_ubigeo_,4)="0000"),VLOOKUP(_ubigeo_,DESNUTRICIÓN_ENDES,5,0),VLOOKUP(_ubigeo_,DESNUTRICIÓN_INS,8,0)) -> 11.5 | S117: 2019 | T117: 2020 | U117: 2021
A118: Niños con DCI | C118: =IF(OR(_ubigeo_="150100",_ubigeo_="159999",RIGHT(_ubigeo_,4)="0000"),"-",VLOOKUP(_ubigeo_,DESNUTRICIÓN_INS,3,0)) -> - | D118: =IF(OR(_ubigeo_="150100",_ubigeo_="159999",RIGHT(_ubigeo_,4)="0000"),"-",VLOOKUP(_ubigeo_,DESNUTRICIÓN_INS,6,0)) -> - | E118: =IF(OR(_ubigeo_="150100",_ubigeo_="159999",RIGHT(_ubigeo_,4)="0000"),"-",VLOOKUP(_ubigeo_,DESNUTRICIÓN_INS,9,0)) -> - | Q118: =+IF(MID(A2,1,1)="R","000000",IF(MID(A2,1,1)="P",LEFT(Q119,2)&"0000",IF(MID(A2,1,1)="D",LEFT(Q130,4)&"00","-"))) -> 000000 | R118: =PROPER(IF(Q118="000000",VLOOKUP(Q129,NOMBRES,2,0),IF(RIGHT(Q129,4)="0000","REGIÓN-"&VLOOKUP(Q129,NOMBRES,2,0),"PROVINCIA-"&VLOOKUP(Q129,NOMBRES,2,0)))) -> Perú | S118: =IF(OR(Q118="150100",Q118="159999",RIGHT(Q118,4)="0000"),VLOOKUP(Q118,DESNUTRICIÓN_ENDES,3,0),VLOOKUP(Q118,DESNUTRICIÓN_INS,2,0)) -> 12.23604694 | T118: =IF(OR(Q118="150100",Q118="159999",RIGHT(Q118,4)="0000"),VLOOKUP(Q118,DESNUTRICIÓN_ENDES,4,0),VLOOKUP(Q118,DESNUTRICIÓN_INS,5,0)) -> 12.1 | U118: =IF(OR(Q118="150100",Q118="159999",RIGHT(Q118,4)="0000"),VLOOKUP(Q118,DESNUTRICIÓN_ENDES,5,0),VLOOKUP(Q118,DESNUTRICIÓN_INS,8,0)) -> 11.5
A119: Niños evaluados | C119: =IF(OR(_ubigeo_="150100",_ubigeo_="159999",RIGHT(_ubigeo_,4)="0000"),"-",VLOOKUP(_ubigeo_,DESNUTRICIÓN_INS,4,0)) -> - | D119: =IF(OR(_ubigeo_="150100",_ubigeo_="159999",RIGHT(_ubigeo_,4)="0000"),"-",VLOOKUP(_ubigeo_,DESNUTRICIÓN_INS,7,0)) -> - | E119: =IF(OR(_ubigeo_="150100",_ubigeo_="159999",RIGHT(_ubigeo_,4)="0000"),"-",VLOOKUP(_ubigeo_,DESNUTRICIÓN_INS,10,0)) -> - | Q119: =_ubigeo_ -> 000000 | R119: =+PROPER(VLOOKUP(Q119,NOMBRES,2,0)) -> Perú | S119: =IF(OR(Q119="150100",Q119="159999",RIGHT(Q119,4)="0000"),VLOOKUP(Q119,DESNUTRICIÓN_ENDES,3,0),VLOOKUP(Q119,DESNUTRICIÓN_INS,2,0)) -> 12.23604694 | T119: =IF(OR(Q119="150100",Q119="159999",RIGHT(Q119,4)="0000"),VLOOKUP(Q119,DESNUTRICIÓN_ENDES,4,0),VLOOKUP(Q119,DESNUTRICIÓN_INS,5,0)) -> 12.1 | U119: =IF(OR(Q119="150100",Q119="159999",RIGHT(Q119,4)="0000"),VLOOKUP(Q119,DESNUTRICIÓN_ENDES,5,0),VLOOKUP(Q119,DESNUTRICIÓN_INS,8,0)) -> 11.5
A120: Nota: La fuente varía según el nivel de desagregación territorial: - La información nacional y departamental tienen como fuente: Encuesta Demográfica y de Salud Familiar (ENDES), Instituto Nacional de Estadística e Informática (INEI). No se encuentra actualizada para el 2021. - Los valores provinciales y distritales son obtenidos solo de los casos de DCI evaluados en niños registrados en el SIEN, tiene como fuente: Sistema de Información del Estado Nutricional (SIEN), Centro Nacional de Alimentación y Nutrición (CENAN), Instituto Nacional de Salud (INS), MINSA
A124: 3.2. Anemia en niñas y niños | Q124: SI(O(_ubigeo_="150100";_ubigeo_="159999";DERECHA(_ubigeo_;4)="0000");BUSCARV(_ubigeo_;DESNUTRICIÓN_ENDES;3;0);BUSCARV(_ubigeo_;DESNUTRICIÓN_INS;2;0))
I126: Año | L126: 2020 | N126: 2021
I127: Edad | L127: < 3 años 1/ | M127: < 5 años 2/ | N127: < 3 años 1/ | O127: < 5 años 2/
I128: Anemia total | K128: % | L128: =IF(OR(_ubigeo_="150100",_ubigeo_="159999",RIGHT(_ubigeo_,4)="0000"),VLOOKUP(_ubigeo_,ANEMIA_ENDES_3A,3,FALSE),VLOOKUP(_ubigeo_,ANEMIA_INS_3A,11,0)) -> 40 | M128: =IF(OR(_ubigeo_="150100",_ubigeo_="159999",RIGHT(_ubigeo_,4)="0000"),VLOOKUP(_ubigeo_,ANEMIA_ENDES_3A,6,FALSE),VLOOKUP(_ubigeo_,ANEMIA_INS_5A,11,0)) -> 29 | N128: =IF(OR(_ubigeo_="150100",_ubigeo_="159999",RIGHT(_ubigeo_,4)="0000"),VLOOKUP(_ubigeo_,ANEMIA_ENDES_3A,4,FALSE),VLOOKUP(_ubigeo_,ANEMIA_INS_3A,20,0)) -> 38,8 | O128: =IF(OR(_ubigeo_="150100",_ubigeo_="159999",RIGHT(_ubigeo_,4)="0000"),VLOOKUP(_ubigeo_,ANEMIA_ENDES_3A,7,FALSE),VLOOKUP(_ubigeo_,ANEMIA_INS_5A,20,0)) -> 28,4 | S128: Anemia Total | T128: Anemia leve | U128: Anemia moderada | V128: Anemia severa
K129: casos | L129: =IF(OR(_ubigeo_="150100",_ubigeo_="159999",RIGHT(_ubigeo_,4)="0000"),"-",VLOOKUP(_ubigeo_,ANEMIA_INS_3A,12,0)) -> - | M129: =IF(OR(_ubigeo_="150100",_ubigeo_="159999",RIGHT(_ubigeo_,4)="0000"),"-",VLOOKUP(_ubigeo_,ANEMIA_INS_5A,12,0)) -> - | N129: =IF(OR(_ubigeo_="150100",_ubigeo_="159999",RIGHT(_ubigeo_,4)="0000"),"-",VLOOKUP(_ubigeo_,ANEMIA_INS_3A,21,0)) -> - | O129: =IF(OR(_ubigeo_="150100",_ubigeo_="159999",RIGHT(_ubigeo_,4)="0000"),"-",VLOOKUP(_ubigeo_,ANEMIA_INS_5A,21,0)) -> - | Q129: =+IF(MID(A2,1,1)="R","000000",IF(MID(A2,1,1)="P",LEFT(Q130,2)&"0000",IF(MID(A2,1,1)="D",LEFT(Q130,4)&"00","-"))) -> 000000 | R129: =PROPER(IF(Q129="000000",VLOOKUP(Q129,NOMBRES,2,0),IF(RIGHT(Q129,4)="0000","REGIÓN-"&VLOOKUP(Q129,NOMBRES,2,0),"PROVINCIA-"&VLOOKUP(Q129,NOMBRES,2,0)))) -> Perú | S129: =+VLOOKUP($Q$129,ANEMIA_INS_3A,20,0) -> 27.75380322 | T129: =+VLOOKUP($Q$129,ANEMIA_INS_3A,22,0) -> 18.25424994 | U129: =+VLOOKUP($Q$129,ANEMIA_INS_3A,24,0) -> 9.290758442 | V129: =+VLOOKUP($Q$129,ANEMIA_INS_3A,26,0) -> 0.2087948401
I130: Anemia leve | K130: % | L130: =IF(OR(_ubigeo_="150100",_ubigeo_="159999",RIGHT(_ubigeo_,4)="0000"),VLOOKUP(_ubigeo_,ANEMIA_ENDES_DET,2,FALSE),VLOOKUP(_ubigeo_,ANEMIA_INS_3A,13,0)) -> 27.2 | M130: =IF(OR(_ubigeo_="150100",_ubigeo_="159999",RIGHT(_ubigeo_,4)="0000"),VLOOKUP(_ubigeo_,ANEMIA_ENDES_DET,8,FALSE),VLOOKUP(_ubigeo_,ANEMIA_INS_5A,13,0)) -> 20.9 | N130: =IF(OR(_ubigeo_="150100",_ubigeo_="159999",RIGHT(_ubigeo_,4)="0000"),VLOOKUP(_ubigeo_,ANEMIA_ENDES_DET,5,FALSE),VLOOKUP(_ubigeo_,ANEMIA_INS_3A,22,0)) -> 26.9 | O130: =IF(OR(_ubigeo_="150100",_ubigeo_="159999",RIGHT(_ubigeo_,4)="0000"),VLOOKUP(_ubigeo_,ANEMIA_ENDES_DET,11,FALSE),VLOOKUP(_ubigeo_,ANEMIA_INS_5A,22,0)) -> 20.8 | Q130: =+B5 -> 000000 | R130: =+PROPER(VLOOKUP(Q130,NOMBRES,2,0)) -> Perú | S130: =+VLOOKUP($Q$130,ANEMIA_INS_3A,20,0) -> 27.75380322 | T130: =+VLOOKUP($Q$130,ANEMIA_INS_3A,22,0) -> 18.25424994 | U130: =+VLOOKUP($Q$130,ANEMIA_INS_3A,24,0) -> 9.290758442 | V130: =+VLOOKUP($Q$130,ANEMIA_INS_3A,26,0) -> 0.2087948401
K131: casos | L131: =IF(OR(_ubigeo_="150100",_ubigeo_="159999",RIGHT(_ubigeo_,4)="0000"),"-",VLOOKUP(_ubigeo_,ANEMIA_INS_3A,14,0)) -> - | M131: =IF(OR(_ubigeo_="150100",_ubigeo_="159999",RIGHT(_ubigeo_,4)="0000"),"-",VLOOKUP(_ubigeo_,ANEMIA_INS_5A,14,0)) -> - | N131: =IF(OR(_ubigeo_="150100",_ubigeo_="159999",RIGHT(_ubigeo_,4)="0000"),"-",VLOOKUP(_ubigeo_,ANEMIA_INS_3A,23,0)) -> - | O131: =IF(OR(_ubigeo_="150100",_ubigeo_="159999",RIGHT(_ubigeo_,4)="0000"),"-",VLOOKUP(_ubigeo_,ANEMIA_INS_5A,23,0)) -> -
I132: Anemia moderada | K132: % | L132: =IF(OR(_ubigeo_="150100",_ubigeo_="159999",RIGHT(_ubigeo_,4)="0000"),VLOOKUP(_ubigeo_,ANEMIA_ENDES_DET,3,FALSE),VLOOKUP(_ubigeo_,ANEMIA_INS_3A,15,0)) -> 12.6 | M132: =IF(OR(_ubigeo_="150100",_ubigeo_="159999",RIGHT(_ubigeo_,4)="0000"),VLOOKUP(_ubigeo_,ANEMIA_ENDES_DET,9,FALSE),VLOOKUP(_ubigeo_,ANEMIA_INS_5A,15,0)) -> 8 | N132: =IF(OR(_ubigeo_="150100",_ubigeo_="159999",RIGHT(_ubigeo_,4)="0000"),VLOOKUP(_ubigeo_,ANEMIA_ENDES_DET,6,FALSE),VLOOKUP(_ubigeo_,ANEMIA_INS_3A,24,0)) -> 11.8 | O132: =IF(OR(_ubigeo_="150100",_ubigeo_="159999",RIGHT(_ubigeo_,4)="0000"),VLOOKUP(_ubigeo_,ANEMIA_ENDES_DET,12,FALSE),VLOOKUP(_ubigeo_,ANEMIA_INS_5A,24,0)) -> 7.6
K133: casos | L133: =IF(OR(_ubigeo_="150100",_ubigeo_="159999",RIGHT(_ubigeo_,4)="0000"),"-",VLOOKUP(_ubigeo_,ANEMIA_INS_3A,16,0)) -> - | M133: =IF(OR(_ubigeo_="150100",_ubigeo_="159999",RIGHT(_ubigeo_,4)="0000"),"-",VLOOKUP(_ubigeo_,ANEMIA_INS_5A,16,0)) -> - | N133: =IF(OR(_ubigeo_="150100",_ubigeo_="159999",RIGHT(_ubigeo_,4)="0000"),"-",VLOOKUP(_ubigeo_,ANEMIA_INS_3A,25,0)) -> - | O133: =IF(OR(_ubigeo_="150100",_ubigeo_="159999",RIGHT(_ubigeo_,4)="0000"),"-",VLOOKUP(_ubigeo_,ANEMIA_INS_5A,25,0)) -> -
I134: Anemia severa | K134: % | L134: =IF(OR(_ubigeo_="150100",_ubigeo_="159999",RIGHT(_ubigeo_,4)="0000"),VLOOKUP(_ubigeo_,ANEMIA_ENDES_DET,4,FALSE),VLOOKUP(_ubigeo_,ANEMIA_INS_3A,17,0)) -> 0.2 | M134: =IF(OR(_ubigeo_="150100",_ubigeo_="159999",RIGHT(_ubigeo_,4)="0000"),VLOOKUP(_ubigeo_,ANEMIA_ENDES_DET,10,FALSE),VLOOKUP(_ubigeo_,ANEMIA_INS_5A,17,0)) -> 0.1 | N134: =IF(OR(_ubigeo_="150100",_ubigeo_="159999",RIGHT(_ubigeo_,4)="0000"),VLOOKUP(_ubigeo_,ANEMIA_ENDES_DET,7,FALSE),VLOOKUP(_ubigeo_,ANEMIA_INS_3A,26,0)) -> 0.1 | O134: =IF(OR(_ubigeo_="150100",_ubigeo_="159999",RIGHT(_ubigeo_,4)="0000"),VLOOKUP(_ubigeo_,ANEMIA_ENDES_DET,13,FALSE),VLOOKUP(_ubigeo_,ANEMIA_INS_5A,26,0)) -> 0.1
K135: casos | L135: =IF(OR(_ubigeo_="150100",_ubigeo_="159999",RIGHT(_ubigeo_,4)="0000"),"-",VLOOKUP(_ubigeo_,ANEMIA_INS_3A,18,0)) -> - | M135: =IF(OR(_ubigeo_="150100",_ubigeo_="159999",RIGHT(_ubigeo_,4)="0000"),"-",VLOOKUP(_ubigeo_,ANEMIA_INS_5A,18,0)) -> - | N135: =IF(OR(_ubigeo_="150100",_ubigeo_="159999",RIGHT(_ubigeo_,4)="0000"),"-",VLOOKUP(_ubigeo_,ANEMIA_INS_3A,27,0)) -> - | O135: =IF(OR(_ubigeo_="150100",_ubigeo_="159999",RIGHT(_ubigeo_,4)="0000"),"-",VLOOKUP(_ubigeo_,ANEMIA_INS_5A,27,0)) -> -
I136: Evaluados | L136: =IF(OR(_ubigeo_="150100",_ubigeo_="159999",RIGHT(_ubigeo_,4)="0000"),"-",VLOOKUP(_ubigeo_,ANEMIA_INS_3A,19,0)) -> - | M136: =IF(OR(_ubigeo_="150100",_ubigeo_="159999",RIGHT(_ubigeo_,4)="0000"),"-",VLOOKUP(_ubigeo_,ANEMIA_INS_5A,19,0)) -> - | N136: =IF(OR(_ubigeo_="150100",_ubigeo_="159999",RIGHT(_ubigeo_,4)="0000"),"-",VLOOKUP(_ubigeo_,ANEMIA_INS_3A,28,0)) -> - | O136: =IF(OR(_ubigeo_="150100",_ubigeo_="159999",RIGHT(_ubigeo_,4)="0000"),"-",VLOOKUP(_ubigeo_,ANEMIA_INS_5A,28,0)) -> -
I137: 1/ Niños de 6 a 35 meses de edad 2/ Niños de 6 a 59 meses de edad Nota 1: Información a nivel provincial y distrital corresponde a casos de anemia evaluados en niños de acuerdo con el Sistema de Información del Estado Nutricional (SIEN) Nota 2: Información a nivel nacional y departamental corresponde a estimación con la Encuesta Nacional Demográfica y de Salud Familiar (Endes) Fuentes: Sistema de Información del Estado Nutricional (SIEN), Centro Nacional de Alimentación y Nutrición (Cenan), Instituto Nacional de Salud (INS), Ministerio de Salud (Minsa), Encuesta Nacional Demográfica y de Salud Familiar (Endes)
A138: Nota: Información a nivel provincial y distrital corresponde a casos de anemia evaluados en niños de acuerdo con el Sistema de Información del Estado Nutricional (SIEN) Nota 2: Información a nivel nacional y departamental corresponde a estimación con la Encuesta Nacional Demográfica y de Salud Familiar (Endes) Fuentes: Sistema de Información del Estado Nutricional (SIEN), Centro Nacional de Alimentación y Nutrición (Cenan), Instituto Nacional de Salud (INS), Ministerio de Salud (Minsa), Encuesta Nacional Demográfica y de Salud Familiar (Endes)
A139: 3.3. Seguro de salud | Q139: Afiliados según IAFAS y Grupos de IAFAS 1/ | U139: 2 | V139: 10 | W139: 18
U140: 3 | V140: 11 | W140: 19
C141: 2019 | D141: 2020 | E141: 2021 | Q141: =+IF(MID(A2,1,1)="R","000000",IF(MID(A2,1,1)="P",LEFT(Q145,2)&"0000",IF(MID(A2,1,1)="D",LEFT(Q145,4)&"00","-"))) -> 000000 | R141: =PROPER(IF(Q141="000000",VLOOKUP(Q141,NOMBRES,2,0),IF(RIGHT(Q141,4)="0000","REGIÓN-"&VLOOKUP(Q141,NOMBRES,2,0),"PROVINCIA-"&VLOOKUP(Q141,NOMBRES,2,0)))) -> Perú | S141: Afiliados AUS (*) | U141: =VLOOKUP($Q$141,SEGURO,U$139,0) -> 29643745 | V141: =VLOOKUP($Q$141,SEGURO,V$139,0) -> 33354469 | W141: =VLOOKUP($Q$141,SEGURO,W$139,0) -> 34775982
A142: Aseguramiento Universal en Salud (AUS) | C142: =VLOOKUP(_ubigeo_,SEGURO,2,0) -> 29643745 | D142: =VLOOKUP(_ubigeo_,SEGURO,10,0) -> 33354469 | E142: =VLOOKUP(_ubigeo_,SEGURO,18,0) -> 34775982 | S142: SIS | U142: =VLOOKUP($Q$141,SEGURO,U$140,0) -> 19729544 | V142: =VLOOKUP($Q$141,SEGURO,V$140,0) -> 23281311 | W142: =VLOOKUP($Q$141,SEGURO,W$140,0) -> 24588809
A143: Afiliados según IAFAS y Grupos de IAFAS | U143: =+U142/U141*100 -> 66.55550437 | V143: =+V142/V141*100 -> 69.79967512 | W143: 70.70629666
A144: SIS | C144: =VLOOKUP(_ubigeo_,SEGURO,3,0) -> 19729544 | D144: =VLOOKUP(_ubigeo_,SEGURO,11,0) -> 23281311 | E144: =VLOOKUP(_ubigeo_,SEGURO,19,0) -> 24588809 | U144: 2019 | V144: 2020 | W144: 2021
A145: EsSalud | C145: =VLOOKUP(_ubigeo_,SEGURO,4,0) -> 10088824 | D145: =VLOOKUP(_ubigeo_,SEGURO,12,0) -> 9517432 | E145: =VLOOKUP(_ubigeo_,SEGURO,20,0) -> 10128963 | Q145: =+B5 -> 000000 | R145: =+PROPER(VLOOKUP(Q145,NOMBRES,2,0)) -> Perú | S145: Afiliados AUS (*) | U145: =VLOOKUP(_ubigeo_,SEGURO,2,0) -> 29643745 | V145: =VLOOKUP(_ubigeo_,SEGURO,10,0) -> 33354469 | W145: =VLOOKUP(_ubigeo_,SEGURO,18,0) -> 34775982
A146: EPS | C146: =VLOOKUP(_ubigeo_,SEGURO,5,0) -> 888608 | D146: =VLOOKUP(_ubigeo_,SEGURO,13,0) -> 876110 | E146: =VLOOKUP(_ubigeo_,SEGURO,21,0) -> 934543 | S146: SIS | U146: =VLOOKUP(_ubigeo_,SEGURO,3,0) -> 19729544 | V146: =VLOOKUP(_ubigeo_,SEGURO,11,0) -> 23281311 | W146: =VLOOKUP(_ubigeo_,SEGURO,19,0) -> 24588809
A147: FFAA | C147: =VLOOKUP(_ubigeo_,SEGURO,6,0) -> 571058 | D147: =VLOOKUP(_ubigeo_,SEGURO,14,0) -> 608895 | E147: =VLOOKUP(_ubigeo_,SEGURO,22,0) -> 642730 | S147: EsSalud | U147: =VLOOKUP(_ubigeo_,SEGURO,4,0) -> 10088824 | V147: =VLOOKUP(_ubigeo_,SEGURO,12,0) -> 9517432 | W147: =VLOOKUP(_ubigeo_,SEGURO,20,0) -> 10128963
A148: Prepagas | C148: =VLOOKUP(_ubigeo_,SEGURO,7,0) -> 992128 | D148: =VLOOKUP(_ubigeo_,SEGURO,15,0) -> 954004 | E148: =VLOOKUP(_ubigeo_,SEGURO,23,0) -> 1010450 | S148: EPS | U148: =VLOOKUP(_ubigeo_,SEGURO,5,0) -> 888608 | V148: =VLOOKUP(_ubigeo_,SEGURO,13,0) -> 876110 | W148: =VLOOKUP(_ubigeo_,SEGURO,21,0) -> 934543
A149: Emp. de Seguros | C149: =VLOOKUP(_ubigeo_,SEGURO,8,0) -> 1134176 | D149: =VLOOKUP(_ubigeo_,SEGURO,16,0) -> 1053572 | E149: =VLOOKUP(_ubigeo_,SEGURO,24,0) -> 1094012 | S149: FFAA | U149: =VLOOKUP(_ubigeo_,SEGURO,6,0) -> 571058 | V149: =VLOOKUP(_ubigeo_,SEGURO,14,0) -> 608895 | W149: =VLOOKUP(_ubigeo_,SEGURO,22,0) -> 642730
A150: Autoseguros | C150: =VLOOKUP(_ubigeo_,SEGURO,9,0) -> 82990 | D150: =VLOOKUP(_ubigeo_,SEGURO,17,0) -> 82722 | E150: =VLOOKUP(_ubigeo_,SEGURO,25,0) -> 86674 | S150: Prepagas | U150: =VLOOKUP(_ubigeo_,SEGURO,7,0) -> 992128 | V150: =VLOOKUP(_ubigeo_,SEGURO,15,0) -> 954004 | W150: =VLOOKUP(_ubigeo_,SEGURO,23,0) -> 1010450
A151: - Aseguramiento Universal en Salud (AUS). Ley N°29344, Ley marco del aseguramiento universal en salud. - Instituciones Administradoras de Fondos de Aseguramiento en Salud (IAFAS) son las encargadas de captar y gestionar los fondos para el aseguramiento de prestaciones de salud y las coberturas de riesgo de los asegurados Fuente: MISNA, Susalud, Registro Nominal de Afiliados. | S151: Emp. de Seguros | U151: =VLOOKUP(_ubigeo_,SEGURO,8,0) -> 1134176 | V151: =VLOOKUP(_ubigeo_,SEGURO,16,0) -> 1053572 | W151: =VLOOKUP(_ubigeo_,SEGURO,24,0) -> 1094012
S152: Autoseguros | U152: =VLOOKUP(_ubigeo_,SEGURO,9,0) -> 82990 | V152: =VLOOKUP(_ubigeo_,SEGURO,17,0) -> 82722 | W152: =VLOOKUP(_ubigeo_,SEGURO,25,0) -> 86674
U153: =U146/U145*100 -> 66.55550437 | V153: =V146/V145*100 -> 69.79967512 | W153: =W146/W145*100 -> 70.70629666
A156: 3.4. Establecimientos y personal de salud
X157: Profesional de salud | Y157: Catidad
R158: EESS | U158: Catidad | W158: Profesionales de salud | X158: Médico | Y158: =VLOOKUP(_ubigeo_,_PERSONAL_SALUD,Z158,0) -> 43847 | Z158: 2
R159: Establecimientos de Salud según Categoría 6/ | S159: Primer nivel de atención | T159: I-1 | U159: =VLOOKUP(_ubigeo_,_EESS,V159,0) -> 8747 | V159: 2 | X159: Enfermero | Y159: 48426 | Z159: 3
T160: I-2 | U160: 5426 | V160: 3 | X160: Obstetra | Y160: 19111 | Z160: 4
T161: I-3 | U161: 3951 | V161: 4 | X161: Odontólogo | Y161: 5594 | Z161: 5
T162: I-4 | U162: 446 | V162: 5 | X162: Biólogo | Y162: 3694 | Z162: 6
S163: Segundo nivel de atención | T163: II-1 | U163: 231 | V163: 6 | X163: Ingeniero sanitario | Y163: 150 | Z163: 7
T164: II-2 | U164: 81 | V164: 7 | X164: Nutricionista | Y164: 2241 | Z164: 8
T165: II-E | U165: 213 | V165: 8 | X165: Psicólogo | Y165: 4460 | Z165: 9
S166: Tercer nivel de atención | T166: III-1 | U166: 34 | V166: 9 | X166: Químico Farmacéutico | Y166: 3703 | Z166: 10
T167: III-2 | U167: 14 | V167: 10 | X167: Químico | Y167: 74 | Z167: 11
T168: III-E | U168: 10 | V168: 11 | X168: Tecnólogo Médico | Y168: 4516 | Z168: 12
S169: Sin Categoría | U169: 5223 | V169: 12 | X169: Médico Veterinario | Y169: 360 | Z169: 13
S170: Total | U170: 24390 | V170: 13 | X170: Trabajadora Social | Y170: 1887 | Z170: 14
X171: Técnicos Especializados | Y171: 265 | Z171: 15
X172: Profesional Asistencial no especificado | Y172: 96 | Z172: 16
A173: Fuente MINSA, SUSALUD, Registro Nacional de IPRESS – RENIPRESS | G173: Fuente MINSA, INFORHUS, Registro Nacional del Personal de la Salud Información del 2022 actualizado a mayo del 2022 | W173: Técnico y auxiliar Asistencial | Y173: 93218 | Z173: 17
W174: Profesional, técnico y auxiliar Administrativo | Y174: 49186 | Z174: 18
A176: 4. Educación
A178: 4.1. Logros de aprendizaje en Educación Básica Regular | I178: 4.2. Matriculados en Educación Básico Regular, según edades
Q179: =+IF(MID(A2,1,1)="R","000000",IF(MID(A2,1,1)="P",LEFT(Q180,2)&"0000",IF(MID(A2,1,1)="D",LEFT(Q180,4)&"00","-"))) -> 000000 | R179: =PROPER(IF(Q179="000000",VLOOKUP(Q179,NOMBRES,2,0),IF(RIGHT(Q179,4)="0000","REGIÓN-"&VLOOKUP(Q179,NOMBRES,2,0),"PROVINCIA-"&VLOOKUP(Q179,NOMBRES,2,0)))) -> Perú
A180: Grado | C180: Comprensión lectora | E180: Lógico Matemático | I180: Edad | J180: Total de matriculados a/ | L180: Población b/ | N180: Brecha de acceso a EBR (%) | Q180: =+_ubigeo_ -> 000000 | R180: =+PROPER(VLOOKUP(Q180,NOMBRES,2,0)) -> Perú
C181: Porcentaje | D181: Brecha | E181: Porcentaje | F181: Brecha | I181: 05 | J181: =+VLOOKUP(_ubigeo_,MATRICULA_PRIM,2,0) -> 15723 | L181: =+VLOOKUP(_ubigeo_,_Población_RENIEC,7,0) -> 577547 | N181: =IF(L181>J181,1-(J181/L181),"0.0%") -> 0.9727762416 | Q181: =+VLOOKUP($Q$179,MATRICULA_PRIM,2,0) -> 15723 | R181: =+VLOOKUP($Q$179,_Población_RENIEC,$T181,0) -> 577547 | S181: =IF(R181>Q181,1-(Q181/R181),"0.0%") -> 0.9727762416 | T181: 7
A182: Primaria | B182: Segundo grado a/ | C182: =+VLOOKUP(_ubigeo_,Logros_satis,4,0) -> 37.6 | D182: =IFERROR(100-C182,"-") -> 62.4 | E182: =+VLOOKUP(_ubigeo_,Logros_satis,7,0) -> 17 | F182: =100-E182 -> 83 | I182: 06 | J182: =+VLOOKUP(_ubigeo_,MATRICULA_PRIM,3,0) -> 562814 | L182: =+VLOOKUP(_ubigeo_,_Población_RENIEC,8,0) -> 603511 | N182: 0.0674337336 | Q182: =+VLOOKUP($Q$179,MATRICULA_PRIM,3,0) -> 562814 | R182: 603511 | S182: =IF(R182>Q182,1-(Q182/R182),"0.0%") -> 0.0674337336 | T182: 8
B183: Cuarto grado b/ | C183: =+VLOOKUP(_ubigeo_,Logros_satis,11,0) -> 35 | D183: =IFERROR(100-C183,"-") -> 65 | E183: =+VLOOKUP(_ubigeo_,Logros_satis,15,0) -> 34 | F183: =100-E183 -> 66 | I183: 07 | J183: =+VLOOKUP(_ubigeo_,MATRICULA_PRIM,4,0) -> 618492 | L183: =+VLOOKUP(_ubigeo_,_Población_RENIEC,9,0) -> 620791 | N183: =IF(L183>J183,1-(J183/L183),"0.0%") -> 0.003703339771 | Q183: =+VLOOKUP($Q$179,MATRICULA_PRIM,4,0) -> 618492 | R183: 620791 | S183: =IF(R183>Q183,1-(Q183/R183),"0.0%") -> 0.003703339771 | T183: 9
A184: Secundaria | B184: Segundo grado c/ | C184: =+VLOOKUP(_ubigeo_,Logros_satis,19,0) -> 15 | D184: =IFERROR(100-C184,"-") -> 85 | E184: =+VLOOKUP(_ubigeo_,Logros_satis,23,0) -> 18 | F184: =100-E184 -> 82 | I184: 08 | J184: =+VLOOKUP(_ubigeo_,MATRICULA_PRIM,5,0) -> 615780 | L184: =+VLOOKUP(_ubigeo_,_Población_RENIEC,10,0) -> 620185 | N184: 0.00710271935 | Q184: =+VLOOKUP($Q$179,MATRICULA_PRIM,5,0) -> 615780 | R184: 620185 | S184: 0.00710271935 | T184: 10
A185: Fuente: Sistema de Consulta de Resultados de Evaluación (SICRECE), Oficina de medición de la calidad de los aprendizajes (UMC), MINEDU a/ A nivel nacional y departamental se considera los resultados de la EME 2019 y a nivel provincial y distrital; la EME 2016. b/ A nivel nacional y departamental se considera los resultados de la EME 2019 y a nivel provincial y distrital; la EME 2018. c/ A nivel nacional, departamental y provincial se considera los resultados de la EME 2019, considerar que solo se presentan los resultados correspondientes al número de UGEL de la regiones que han alcanzado la cobertura mínima en la aplicación de la ECE 2019. A nivel distrital; la EME 2018. | I185: 09 | J185: =+VLOOKUP(_ubigeo_,MATRICULA_PRIM,6,0) -> 611052 | L185: =+VLOOKUP(_ubigeo_,_Población_RENIEC,11,0) -> 607186 | N185: 0.0% | Q185: =+VLOOKUP($Q$179,MATRICULA_PRIM,6,0) -> 611052 | R185: 607186 | S185: 0.0% | T185: 11
I186: 10 | J186: =+VLOOKUP(_ubigeo_,MATRICULA_PRIM,7,0) -> 609262 | L186: =+VLOOKUP(_ubigeo_,_Población_RENIEC,12,0) -> 602918 | N186: 0.0% | Q186: =+VLOOKUP($Q$179,MATRICULA_PRIM,7,0) -> 609262 | R186: 602918 | S186: 0.0% | T186: 12
I187: 11 | J187: =+VLOOKUP(_ubigeo_,MATRICULA_PRIM,8,0) -> 586344 | L187: =+VLOOKUP(_ubigeo_,_Población_RENIEC,13,0) -> 607176 | N187: 0.03430965651 | Q187: =+VLOOKUP($Q$179,MATRICULA_PRIM,8,0) -> 586344 | R187: 607176 | S187: 0.03430965651 | T187: 13
I188: 12 | J188: =+VLOOKUP(_ubigeo_,Matricula_sec,3,0) -> 472843 | L188: =+VLOOKUP(_ubigeo_,_Población_RENIEC,14,0) -> 621233 | N188: 0.2388636792 | Q188: =+VLOOKUP($Q$179,Matricula_sec,3,0) -> 472843 | R188: 621233 | S188: 0.2388636792 | T188: 14
I189: 13 | J189: =+VLOOKUP(_ubigeo_,Matricula_sec,4,0) -> 536231 | L189: =+VLOOKUP(_ubigeo_,_Población_RENIEC,15,0) -> 617277 | N189: 0.1312959984 | Q189: =+VLOOKUP($Q$179,Matricula_sec,4,0) -> 536231 | R189: 617277 | S189: 0.1312959984 | T189: 15
I190: 14 | J190: =+VLOOKUP(_ubigeo_,Matricula_sec,5,0) -> 539900 | L190: =+VLOOKUP(_ubigeo_,_Población_RENIEC,16,0) -> 576628 | N190: 0.06369444425 | Q190: =+VLOOKUP($Q$179,Matricula_sec,5,0) -> 539900 | R190: 576628 | S190: 0.06369444425 | T190: 16
I191: 15 | J191: =+VLOOKUP(_ubigeo_,Matricula_sec,6,0) -> 535438 | L191: =+VLOOKUP(_ubigeo_,_Población_RENIEC,17,0) -> 587298 | N191: 0.08830270152 | Q191: =+VLOOKUP($Q$179,Matricula_sec,6,0) -> 535438 | R191: 587298 | S191: 0.08830270152 | T191: 17
I192: 16 | J192: =+VLOOKUP(_ubigeo_,Matricula_sec,7,0) -> 425030 | L192: =+VLOOKUP(_ubigeo_,_Población_RENIEC,18,0) -> 605335 | N192: 0.2978598627 | Q192: =+VLOOKUP($Q$179,Matricula_sec,7,0) -> 425030 | R192: 605335 | S192: 0.2978598627 | T192: 18
I193: Fuente: a/ Censo Educativo 2021. Ministerio de Educación (MINEDU). b/ Se considera a la población identificada 2021. Fuente: Registro Nacional de Identificación y Estado Civil (RENIEC)
A202: 4.3. Instituciones Educativas y Locales Escolares por tipo de Gestión | I202: 4.4. Instituciones Educativas según carga de docencia y tipo de gestión
C204: Pública de gestión directa | D204: Pública de gestión privada | E204: Privada | F204: TOTAL | K204: Polidocente Completo | L204: Polidocente Multigrado | M204: Unidocente | N204: Otros | O204: TOTAL
A205: Instituciones Educativas (I.E.) | C205: =+VLOOKUP(_ubigeo_,LOCALES_GES,2,0) -> 46751 | D205: =+VLOOKUP(_ubigeo_,LOCALES_GES,4,0) -> 125333 | E205: =+VLOOKUP(_ubigeo_,LOCALES_GES,6,0) -> 1335 | F205: =+IFERROR(C205+D205+E205,"-") -> 173419 | I205: Asociación civil, Institución Ben. | K205: =+VLOOKUP(_ubigeo_,IIEE_Depen,4,0) -> 14 | L205: =+VLOOKUP(_ubigeo_,IIEE_Depen,5,0) -> 7 | M205: =+VLOOKUP(_ubigeo_,IIEE_Depen,6,0) -> 3 | N205: =+IFERROR(VLOOKUP(_ubigeo_,IIEE_Depen,2,0)+VLOOKUP(_ubigeo_,IIEE_Depen,3,0),"-") -> 363 | O205: =+SUM(K205:N205) -> 380
A206: Locales Escolares* | C206: =+VLOOKUP(_ubigeo_,LOCALES_GES,3,0) -> 45831 | D206: =+VLOOKUP(_ubigeo_,LOCALES_GES,5,0) -> 74330 | E206: =+VLOOKUP(_ubigeo_,LOCALES_GES,7,0) -> 1275 | F206: =+IFERROR(C206+D206+E206,"-") -> 121436 | I206: Comunidad | K206: =+VLOOKUP(_ubigeo_,IIEE_Depen,9,0) -> 1 | L206: =+VLOOKUP(_ubigeo_,IIEE_Depen,10,0) -> 17 | M206: =+VLOOKUP(_ubigeo_,IIEE_Depen,11,0) -> 72 | N206: =+VLOOKUP(_ubigeo_,IIEE_Depen,7,0)+VLOOKUP(_ubigeo_,IIEE_Depen,8,0) -> 1380 | O206: 1469
I207: Comunidad o asociación religiosa | K207: =+VLOOKUP(_ubigeo_,IIEE_Depen,14,0) -> 214 | L207: =+VLOOKUP(_ubigeo_,IIEE_Depen,15,0) -> 6 | M207: =+VLOOKUP(_ubigeo_,IIEE_Depen,16,0) -> 2 | N207: =+VLOOKUP(_ubigeo_,IIEE_Depen,12,0)+VLOOKUP(_ubigeo_,IIEE_Depen,13,0) -> 698 | O207: 920
A208: Fuente: Padrón de Instituciones Educativas y Programas (PADRÓN). Estadística de la Calidad Educativa (ESCALE). Ministerio de Educación (MINEDU). | I208: Convenio con Sector Educación | K208: =+VLOOKUP(_ubigeo_,IIEE_Depen,19,0) -> 312 | L208: =+VLOOKUP(_ubigeo_,IIEE_Depen,20,0) -> 65 | M208: =+VLOOKUP(_ubigeo_,IIEE_Depen,21,0) -> 19 | N208: =+VLOOKUP(_ubigeo_,IIEE_Depen,17,0)+VLOOKUP(_ubigeo_,IIEE_Depen,18,0) -> 939 | O208: 1316
A209: * Se contabiliza solo los locales escolares codificados en el padrón, existen IE con locales sin codificación. | I209: Cooperativo | K209: =+VLOOKUP(_ubigeo_,IIEE_Depen,24,0) -> 8 | L209: =+VLOOKUP(_ubigeo_,IIEE_Depen,25,0) -> 1 | M209: =+VLOOKUP(_ubigeo_,IIEE_Depen,26,0) -> 0 | N209: =+VLOOKUP(_ubigeo_,IIEE_Depen,22,0)+VLOOKUP(_ubigeo_,IIEE_Depen,23,0) -> 105 | O209: 113
A210: Nota: Se considera los centros educativos y locales de servicios de educación básica regular, especializada, alternativa, para adultos, técnico productivos y educación superior no universitaria | I210: Empresa | K210: =+VLOOKUP(_ubigeo_,IIEE_Depen,29,0) -> 10 | L210: =+VLOOKUP(_ubigeo_,IIEE_Depen,30,0) -> 1 | M210: =+VLOOKUP(_ubigeo_,IIEE_Depen,31,0) -> 1 | N210: =+VLOOKUP(_ubigeo_,IIEE_Depen,27,0)+VLOOKUP(_ubigeo_,IIEE_Depen,28,0) -> 251 | O210: 253
A211: Información de 2021 actualizada a mayo del 2022 | I211: Municipalidad | K211: =+VLOOKUP(_ubigeo_,IIEE_Depen,34,0) -> 1 | L211: =+VLOOKUP(_ubigeo_,IIEE_Depen,35,0) -> 2 | M211: =+VLOOKUP(_ubigeo_,IIEE_Depen,36,0) -> 21 | N211: =+VLOOKUP(_ubigeo_,IIEE_Depen,32,0)+VLOOKUP(_ubigeo_,IIEE_Depen,33,0) -> 3524 | O211: 3548
I212: Otro sector público | K212: =+VLOOKUP(_ubigeo_,IIEE_Depen,39,0) -> 63 | L212: =+VLOOKUP(_ubigeo_,IIEE_Depen,40,0) -> 1 | M212: =+VLOOKUP(_ubigeo_,IIEE_Depen,41,0) -> 0 | N212: =+VLOOKUP(_ubigeo_,IIEE_Depen,37,0)+VLOOKUP(_ubigeo_,IIEE_Depen,38,0) -> 442 | O212: 506
I213: Particular | K213: =+VLOOKUP(_ubigeo_,IIEE_Depen,44,0) -> 5224 | L213: =+VLOOKUP(_ubigeo_,IIEE_Depen,45,0) -> 2413 | M213: =+VLOOKUP(_ubigeo_,IIEE_Depen,46,0) -> 626 | N213: =+VLOOKUP(_ubigeo_,IIEE_Depen,42,0)+VLOOKUP(_ubigeo_,IIEE_Depen,43,0) -> 35334 | O213: 41184
I214: Sector Educación | K214: =+VLOOKUP(_ubigeo_,IIEE_Depen,49,0) -> 7445 | L214: =+VLOOKUP(_ubigeo_,IIEE_Depen,50,0) -> 12111 | M214: =+VLOOKUP(_ubigeo_,IIEE_Depen,51,0) -> 9874 | N214: =+VLOOKUP(_ubigeo_,IIEE_Depen,47,0)+VLOOKUP(_ubigeo_,IIEE_Depen,48,0) -> 91849 | O214: 113834
I215: Fuente: Padrón de Instituciones Educativas y Programas (PADRÓN) 2021. Estadística de la Calidad Educativa (ESCALE). MINEDU
A216: 4.5. Infraestructura y servicios en locales públicos
A218: Unidad | B218: Locales públicos en buen estado 1/ | D218: Locales públicos conectados a red de electricidad 2/ | F218: Locales públicos conectados a red de agua potable 2/ | H218: Locales públicos conectados a red de desagüe 2/ | J218: Locales públicos con los tres servicios básicos 2/ | L218: Porcentaje de escuelas que cuentan con acceso a Internet, primaria 3/ | N218: Porcentaje de escuelas que cuentan con acceso a Internet, secundaria 3/
A219: Porcentaje | B219: =+VLOOKUP($B$5,LOCALES_SERV,2,0) -> 16.3 | D219: =+VLOOKUP($B$5,LOCALES_SERV,4,0) -> 78.80939484 | F219: =+VLOOKUP($B$5,LOCALES_SERV,6,0) -> 32.56646347 | H219: =+VLOOKUP($B$5,LOCALES_SERV,8,0) -> 48.4 | J219: =+VLOOKUP($B$5,LOCALES_SERV,10,0) -> 26.8 | L219: =+VLOOKUP($B$5,LOCALES_SERV,11,0) -> 40.4 | N219: =+VLOOKUP($B$5,LOCALES_SERV,12,0) -> 71.4
A220: Brecha | B220: =IFERROR(100-B219,"-") -> 83.7 | D220: =IFERROR(100-D219,"-") -> 21.19060516 | F220: =IFERROR(100-F219,"-") -> 67.43353653 | H220: =IFERROR(100-H219,"-") -> 51.6 | J220: =IFERROR(100-J219,"-") -> 73.2 | L220: =IFERROR(100-L219,"-") -> 59.6 | N220: =IFERROR(100-N219,"-") -> 28.6
A221: 1/ Información corresponde al año 2018
A222: 2/ Información corresponde al año 2021
A223: 3/ Información corresponde al año 2020
A224: Fuente: Padrón de Instituciones Educativas y Programas (PADRÓN). Estadística de la Calidad Educativa (ESCALE). Ministerio de Educación (MINEDU).
A225: Nota: Se considera los centros educativos y locales de servicios de educación básica regular, especializada, alternativa, para adultos, técnico productivos y educación superior no universitaria
A229: 5. Empleo
A231: 5.1. Tasas de actividad e indicadores del mercado laboral
Q232: =PROPER(IF(_ubigeo_="000000",VLOOKUP(_ubigeo_,NOMBRES,2,0),"REGIÓN-"&VLOOKUP((LEFT(_ubigeo_,2)&"0000"),NOMBRES,2,0)))&": Tasa de actividad" -> Perú: Tasa de actividad
A233: =Q233&": INDICADORES LABORALES" -> PERÚ: INDICADORES LABORALES | Q233: =UPPER(IF(_ubigeo_="000000",VLOOKUP(_ubigeo_,NOMBRES,2,0),"REGIÓN-"&VLOOKUP((LEFT(_ubigeo_,2)&"0000"),NOMBRES,2,0))) -> PERÚ
A234: Año | B234: Tasa de actividad | C234: Ratio Empleo/Población | D234: Población en Edad de Trabajar (PET) 1/ | E234: Población económicamente activa (PEA) 2/ | F234: Población económicamente activa ocupada (PEA Ocupada) 3/ | G234: Población económicamente activa desocupada (PEA Desocupada) 4/
A235: 2019 | B235: =VLOOKUP(_xlfn.CONCAT(MID(_ubigeo_,1,2),"0000"),'5_Empleo'!$WI$8:$WO$2103,2,0) -> 72.7 | C235: =VLOOKUP(_xlfn.CONCAT(MID(_ubigeo_,1,2),"0000"),'5_Empleo'!$WI$8:$WO$2103,5,0) -> 69.9 | D235: =VLOOKUP(_xlfn.CONCAT(MID(_ubigeo_,1,2),"0000"),'5_Empleo'!$WQ$8:$XO$2103,2,FALSE) -> 24511.5 | E235: =VLOOKUP(_xlfn.CONCAT(MID(_ubigeo_,1,2),"0000"),'5_Empleo'!$WQ$8:$XO$2103,8,FALSE) -> 17830.5 | F235: =VLOOKUP(_xlfn.CONCAT(MID(_ubigeo_,1,2),"0000"),'5_Empleo'!$WQ$8:$XO$2103,14,FALSE) -> 17133.1 | G235: =VLOOKUP(_xlfn.CONCAT(MID(_ubigeo_,1,2),"0000"),'5_Empleo'!$WQ$8:$XO$2103,20,FALSE) -> 697.4
A236: 2020 | B236: =VLOOKUP(_xlfn.CONCAT(MID(_ubigeo_,1,2),"0000"),'5_Empleo'!$WI$8:$WO$2103,3,0) -> 64.7 | C236: =VLOOKUP(_xlfn.CONCAT(MID(_ubigeo_,1,2),"0000"),'5_Empleo'!$WI$8:$WO$2103,6,0) -> 59.9 | D236: =VLOOKUP(_xlfn.CONCAT(MID(_ubigeo_,1,2),"0000"),'5_Empleo'!$WQ$8:$XO$2103,4,FALSE) -> 24881.6 | E236: =VLOOKUP(_xlfn.CONCAT(MID(_ubigeo_,1,2),"0000"),'5_Empleo'!$WQ$8:$XO$2103,10,FALSE) -> 16095 | F236: =VLOOKUP(_xlfn.CONCAT(MID(_ubigeo_,1,2),"0000"),'5_Empleo'!$WQ$8:$XO$2103,16,FALSE) -> 14901.8 | G236: =VLOOKUP(_xlfn.CONCAT(MID(_ubigeo_,1,2),"0000"),'5_Empleo'!$WQ$8:$XO$2103,22,FALSE) -> 1193.2
A237: 2021 | B237: =VLOOKUP(_xlfn.CONCAT(MID(_ubigeo_,1,2),"0000"),'5_Empleo'!$WI$8:$WO$2103,4,0) -> 71.9 | C237: =VLOOKUP(_xlfn.CONCAT(MID(_ubigeo_,1,2),"0000"),'5_Empleo'!$WI$8:$WO$2103,7,0) -> 67.8 | D237: =VLOOKUP(_xlfn.CONCAT(MID(_ubigeo_,1,2),"0000"),'5_Empleo'!$WQ$8:$XO$2103,6,FALSE) -> 25250.7 | E237: =VLOOKUP(_xlfn.CONCAT(MID(_ubigeo_,1,2),"0000"),'5_Empleo'!$WQ$8:$XO$2103,12,FALSE) -> 18149.4 | F237: =VLOOKUP(_xlfn.CONCAT(MID(_ubigeo_,1,2),"0000"),'5_Empleo'!$WQ$8:$XO$2103,18,FALSE) -> 17120.1 | G237: =VLOOKUP(_xlfn.CONCAT(MID(_ubigeo_,1,2),"0000"),'5_Empleo'!$WQ$8:$XO$2103,24,FALSE) -> 1029.3
A238: 1/ Se refiere a las personas de 14 a más años de edad que están aptas en cuanto a edad para el ejercicio de funciones productivas.
A239: 2/ Se refiere a las personas en edad de trabajar que en la semana de referencia de la encuesta se encontraban trabajando, o no se encontraban trabajando pero estaban buscando trabajo activamente.
A240: 3/ Se refiere a las personas en edad de trabajar que en la semana de referencia de la encuesta se encontraban trabajando.
A241: 4/ Se refiere a las personas en edad de trabajar que en la semana de referencia de la encuesta no se encontraban trabajando pero estaban buscando trabajo activamente.
A242: Fuente: MTPE/DGPE - Dirección de Investigación Socio Económico Laboral (DISEL), a partir de la Encuesta Nacional de Hogares (Enaho) | I242: Fuente: Ministerio de Trabajo y Promoción del Empleo (MTPE) a partir de la Encuesta Nacional de Hogares (Enaho)
A244: 5.2. PEA por nivel educativo y edad
G246: Nivel Educativo | I246: PEA DESOCUPADA | N246: PEA OCUPADA | O246: PEA | R246: Nivel Educativo | T246: PEA OCUPADA
I247: 14 a 29 años | J247: 30 a 44 años | K247: 45 a 64 años | L247: 65 a mas | M247: TOTAL | T247: 14 a 29 años | U247: 30 a 44 años | V247: 45 a 64 años | W247: De 65 a más | X247: Total
G248: Sin nivel | I248: =+VLOOKUP($B$5,PEA_DESOCUPADA,2,0) -> 2747 | J248: =+VLOOKUP($B$5,PEA_DESOCUPADA,12,0) -> 5727 | K248: =+VLOOKUP($B$5,PEA_DESOCUPADA,22,0) -> 10652 | L248: =+VLOOKUP($B$5,PEA_DESOCUPADA,32,0) -> 4454 | M248: =+SUM(I248:L248) -> 23580 | N248: =+X248 -> 290151 | O248: =+M248+N248 -> 313731 | R248: Sin nivel | T248: =+VLOOKUP($B$5,PEA_OCUPADA,2,0) -> 15669 | U248: =+VLOOKUP($B$5,PEA_OCUPADA,12,0) -> 54849 | V248: =+VLOOKUP($B$5,PEA_OCUPADA,22,0) -> 129711 | W248: =+VLOOKUP($B$5,PEA_OCUPADA,32,0) -> 89922 | X248: =+SUM(T248:W248) -> 290151
G249: Inicial | I249: =+VLOOKUP($B$5,PEA_DESOCUPADA,3,0) -> 647 | J249: =+VLOOKUP($B$5,PEA_DESOCUPADA,13,0) -> 1144 | K249: =+VLOOKUP($B$5,PEA_DESOCUPADA,23,0) -> 757 | L249: =+VLOOKUP($B$5,PEA_DESOCUPADA,33,0) -> 0 | M249: =+SUM(I249:L249) -> 2548 | N249: =+X249 -> 16875 | O249: 19423 | R249: Inicial | T249: =+VLOOKUP($B$5,PEA_OCUPADA,3,0) -> 2585 | U249: =+VLOOKUP($B$5,PEA_OCUPADA,13,0) -> 6525 | V249: =+VLOOKUP($B$5,PEA_OCUPADA,23,0) -> 7765 | W249: =+VLOOKUP($B$5,PEA_OCUPADA,33,0) -> 0 | X249: =+SUM(T249:W249) -> 16875
G250: Primaria | I250: =+VLOOKUP($B$5,PEA_DESOCUPADA,4,0) -> 22758 | J250: =+VLOOKUP($B$5,PEA_DESOCUPADA,14,0) -> 41438 | K250: =+VLOOKUP($B$5,PEA_DESOCUPADA,24,0) -> 47123 | L250: =+VLOOKUP($B$5,PEA_DESOCUPADA,34,0) -> 11696 | M250: 123015 | N250: 2020821 | O250: 2143836 | R250: Primaria | T250: =+VLOOKUP($B$5,PEA_OCUPADA,4,0) -> 254153 | U250: =+VLOOKUP($B$5,PEA_OCUPADA,14,0) -> 606645 | V250: =+VLOOKUP($B$5,PEA_OCUPADA,24,0) -> 858033 | W250: =+VLOOKUP($B$5,PEA_OCUPADA,34,0) -> 301990 | X250: 2020821
G251: Secundaria | I251: =+VLOOKUP($B$5,PEA_DESOCUPADA,5,0) -> 153667 | J251: =+VLOOKUP($B$5,PEA_DESOCUPADA,15,0) -> 94874 | K251: =+VLOOKUP($B$5,PEA_DESOCUPADA,25,0) -> 59241 | L251: =+VLOOKUP($B$5,PEA_DESOCUPADA,35,0) -> 6333 | M251: 314115 | N251: 4924803 | O251: 5238918 | R251: Secundaria | T251: =+VLOOKUP($B$5,PEA_OCUPADA,5,0) -> 1565035 | U251: =+VLOOKUP($B$5,PEA_OCUPADA,15,0) -> 1838185 | V251: =+VLOOKUP($B$5,PEA_OCUPADA,25,0) -> 1346992 | W251: =+VLOOKUP($B$5,PEA_OCUPADA,35,0) -> 174591 | X251: 4924803
G252: Básica especial | I252: =+VLOOKUP($B$5,PEA_DESOCUPADA,6,0) -> 1873 | J252: =+VLOOKUP($B$5,PEA_DESOCUPADA,16,0) -> 1318 | K252: =+VLOOKUP($B$5,PEA_DESOCUPADA,26,0) -> 456 | L252: =+VLOOKUP($B$5,PEA_DESOCUPADA,36,0) -> 0 | M252: 3647 | N252: 6373 | O252: 10020 | R252: Básica especial | T252: =+VLOOKUP($B$5,PEA_OCUPADA,6,0) -> 4046 | U252: =+VLOOKUP($B$5,PEA_OCUPADA,16,0) -> 1786 | V252: =+VLOOKUP($B$5,PEA_OCUPADA,26,0) -> 541 | W252: =+VLOOKUP($B$5,PEA_OCUPADA,36,0) -> 0 | X252: 6373
G253: Sup. no univ. incompleta | I253: =+VLOOKUP($B$5,PEA_DESOCUPADA,7,0) -> 31271 | J253: =+VLOOKUP($B$5,PEA_DESOCUPADA,17,0) -> 11840 | K253: =+VLOOKUP($B$5,PEA_DESOCUPADA,27,0) -> 5852 | L253: =+VLOOKUP($B$5,PEA_DESOCUPADA,37,0) -> 356 | M253: 49319 | N253: 695602 | O253: 744921 | R253: Sup. no univ. incompleta | T253: =+VLOOKUP($B$5,PEA_OCUPADA,7,0) -> 279929 | U253: =+VLOOKUP($B$5,PEA_OCUPADA,17,0) -> 253830 | V253: =+VLOOKUP($B$5,PEA_OCUPADA,27,0) -> 150426 | W253: =+VLOOKUP($B$5,PEA_OCUPADA,37,0) -> 11417 | X253: 695602
G254: Sup. no univ. completa | I254: =+VLOOKUP($B$5,PEA_DESOCUPADA,8,0) -> 27008 | J254: =+VLOOKUP($B$5,PEA_DESOCUPADA,18,0) -> 22158 | K254: =+VLOOKUP($B$5,PEA_DESOCUPADA,28,0) -> 11678 | L254: =+VLOOKUP($B$5,PEA_DESOCUPADA,38,0) -> 996 | M254: 61840 | N254: 1436065 | O254: 1497905 | R254: Sup. no univ. completa | T254: =+VLOOKUP($B$5,PEA_OCUPADA,8,0) -> 394727 | U254: =+VLOOKUP($B$5,PEA_OCUPADA,18,0) -> 609008 | V254: =+VLOOKUP($B$5,PEA_OCUPADA,28,0) -> 400512 | W254: =+VLOOKUP($B$5,PEA_OCUPADA,38,0) -> 31818 | X254: 1436065
G255: Sup. univ. incompleta | I255: =+VLOOKUP($B$5,PEA_DESOCUPADA,9,0) -> 51987 | J255: =+VLOOKUP($B$5,PEA_DESOCUPADA,19,0) -> 9683 | K255: =+VLOOKUP($B$5,PEA_DESOCUPADA,29,0) -> 4668 | L255: =+VLOOKUP($B$5,PEA_DESOCUPADA,39,0) -> 454 | M255: 66792 | N255: 717627 | O255: 784419 | R255: Sup. univ. incompleta | T255: =+VLOOKUP($B$5,PEA_OCUPADA,9,0) -> 376408 | U255: =+VLOOKUP($B$5,PEA_OCUPADA,19,0) -> 195823 | V255: =+VLOOKUP($B$5,PEA_OCUPADA,29,0) -> 131332 | W255: =+VLOOKUP($B$5,PEA_OCUPADA,39,0) -> 14064 | X255: 717627
G256: Sup. univ. completa | I256: =+VLOOKUP($B$5,PEA_DESOCUPADA,10,0) -> 35507 | J256: =+VLOOKUP($B$5,PEA_DESOCUPADA,20,0) -> 29230 | K256: =+VLOOKUP($B$5,PEA_DESOCUPADA,30,0) -> 14716 | L256: =+VLOOKUP($B$5,PEA_DESOCUPADA,40,0) -> 2026 | M256: 81479 | N256: 1899050 | O256: 1980529 | R256: Sup. univ. completa | T256: =+VLOOKUP($B$5,PEA_OCUPADA,10,0) -> 458077 | U256: =+VLOOKUP($B$5,PEA_OCUPADA,20,0) -> 800357 | V256: =+VLOOKUP($B$5,PEA_OCUPADA,30,0) -> 565981 | W256: =+VLOOKUP($B$5,PEA_OCUPADA,40,0) -> 74635 | X256: 1899050
G257: Maestría / Doctorado | I257: =+VLOOKUP($B$5,PEA_DESOCUPADA,11,0) -> 883 | J257: =+VLOOKUP($B$5,PEA_DESOCUPADA,21,0) -> 2982 | K257: =+VLOOKUP($B$5,PEA_DESOCUPADA,31,0) -> 2161 | L257: =+VLOOKUP($B$5,PEA_DESOCUPADA,41,0) -> 246 | M257: 6272 | N257: 298351 | O257: 304623 | R257: Maestría / Doctorado | T257: =+VLOOKUP($B$5,PEA_OCUPADA,11,0) -> 18944 | U257: =+VLOOKUP($B$5,PEA_OCUPADA,21,0) -> 136683 | V257: =+VLOOKUP($B$5,PEA_OCUPADA,31,0) -> 128219 | W257: =+VLOOKUP($B$5,PEA_OCUPADA,41,0) -> 14505 | X257: 298351
G258: Total | I258: =+SUM(I248:I257) -> 328348 | J258: 220394 | K258: 157304 | L258: 26561 | M258: 732607 | N258: 12305718 | O258: 13038325 | R258: Total | T258: =+SUM(T248:T257) -> 3369573 | U258: =+SUM(U248:U257) -> 4503691 | V258: =+SUM(V248:V257) -> 3719512 | W258: =+SUM(W248:W257) -> 712942 | X258: =+SUM(X248:X257) -> 12305718
A259: Fuente: Censos Nacionales 2017: XII de Población, VII de Vivienda y III de Comunidades Indígenas | T259: =+I258/(I258+T258)*100 -> 8.879259454 | U259: =+J258/(J258+U258)*100 -> 4.665326725 | V259: =+K258/(K258+V258)*100 -> 4.05755651 | W259: =+L258/(L258+W258)*100 -> 3.591736612 | X259: =+M258/(M258+X258)*100 -> 5.61887359
... 170 more rows

Sheet RD (hidden)
B5: UBIGEO | C5: DEPARTAMENTO | D5: UB1 | E5: B1 | F5: PROVINCIA | G5: UB2 | H5: B2 | I5: DISTRITO | J5: UB3 | K5: B3 | M5: DEPARTAMENTO | O5: _01.Amazonas | P5: _02.Ancash | Q5: _03.Apurímac | R5: _04.Arequipa | S5: _05.Ayacucho | T5: _06.Cajamarca | U5: _07.Callao | V5: _08.Cusco | W5: _09.Huancavelica | X5: _10.Huánuco | Y5: _11.Ica | Z5: _12.Junín | AA5: _13.La_Libertad | AB5: _14.Lambayeque | AC5: _15.Lima | AD5: _16.Loreto | AE5: _17.Madre_De_Dios | AF5: _18.Moquegua | AG5: _19.Pasco | AH5: _20.Piura | AI5: _21.Puno | AJ5: _22.San_Martín | AK5: _23.Tacna | AL5: _24.Tumbes | AM5: _25.Ucayali | AN5: _26.Lima
B6: 010101 | C6: Amazonas | D6: =MID(B6,1,2) -> 01 | E6: 01.Amazonas | F6: Chachapoyas | G6: =MID(B6,3,2) -> 01 | H6: 01.Chachapoyas | I6: Chachapoyas | J6: =MID(B6,5,2) -> 01 | K6: 01.Chachapoyas | M6: 01.Amazonas | O6: 01.Chachapoyas | P6: 01.Huaraz | Q6: 01.Abancay | R6: 01.Arequipa | S6: 01.Huamanga | T6: 01.Cajamarca | U6: 01.Callao | V6: 01.Cusco | W6: 01.Huancavelica | X6: 01.Huánuco | Y6: 01.Ica | Z6: 01.Huancayo | AA6: 01.Trujillo | AB6: 01.Chiclayo | AC6: 01.Lima | AD6: 01.Maynas | AE6: 01.Tambopata | AF6: 01.Mariscal Nieto | AG6: 01.Pasco | AH6: 01.Piura | AI6: 01.Puno | AJ6: 01.Moyobamba | AK6: 01.Tacna | AL6: 01.Tumbes | AM6: 01.Coronel Portillo | AN6: 01. Provincia de Lima
B7: 010102 | C7: Amazonas | D7: =MID(B7,1,2) -> 01 | E7: 01.Amazonas | F7: Chachapoyas | G7: =MID(B7,3,2) -> 01 | H7: 01.Chachapoyas | I7: Asunción | J7: =MID(B7,5,2) -> 02 | K7: 02.Asunción | M7: 02.Áncash | O7: 02.Bagua | P7: 02.Aija | Q7: 02.Andahuaylas | R7: 02.Camana | S7: 02.Cangallo | T7: 02.Cajabamba | V7: 02.Acomayo | W7: 02.Acobamba | X7: 02.Ambo | Y7: 02.Chincha | Z7: 02.Concepción | AA7: 02.Ascope | AB7: 02.Ferreñafe | AC7: 02.Barranca | AD7: 02.Alto Amazonas | AE7: 02.Manu | AF7: 02.General Sanchez Cerro | AG7: 02.Daniel Alcides Carrión | AH7: 02.Ayabaca | AI7: 02.Azángaro | AJ7: 02.Bellavista | AK7: 02.Candarave | AL7: 02.Contralmirante Villar | AM7: 02.Atalaya
B8: 010103 | C8: Amazonas | D8: 01 | E8: 01.Amazonas | F8: Chachapoyas | G8: 01 | H8: 01.Chachapoyas | I8: Balsas | J8: 03 | K8: 03.Balsas | M8: 03.Apurímac | O8: 03.Bongara | P8: 03.Antonio Raymondi | Q8: 03.Antabamba | R8: 03.Caraveli | S8: 03.Huanca Sancos | T8: 03.Celendin | V8: 03.Anta | W8: 03.Angaraes | X8: 03.Dos De Mayo | Y8: 03.Nasca | Z8: 03.Chanchamayo | AA8: 03.Bolivar | AB8: 03.Lambayeque | AC8: 03.Cajatambo | AD8: 03.Loreto | AE8: 03.Tahuamanu | AF8: 03.Ilo | AG8: 03.Oxapampa | AH8: 03.Huancabamba | AI8: 03.Carabaya | AJ8: 03.El Dorado | AK8: 03.Jorge Basadre | AL8: 03.Zarumilla | AM8: 03.Padre Abad
B9: 010104 | C9: Amazonas | D9: 01 | E9: 01.Amazonas | F9: Chachapoyas | G9: 01 | H9: 01.Chachapoyas | I9: Cheto | J9: 04 | K9: 04.Cheto | M9: 04.Arequipa | O9: 04.Condorcanqui | P9: 04.Asunción | Q9: 04.Aymaraes | R9: 04.Castilla | S9: 04.Huanta | T9: 04.Chota | V9: 04.Calca | W9: 04.Castrovirreyna | X9: 04.Huacaybamba | Y9: 04.Palpa | Z9: 04.Jauja | AA9: 04.Chepen | AC9: 04.Canta | AD9: 04.Mariscal Ramón Castilla | AH9: 04.Morropon | AI9: 04.Chucuito | AJ9: 04.Huallaga | AK9: 04.Tarata | AM9: 04.Purus
B10: 010105 | C10: Amazonas | D10: 01 | E10: 01.Amazonas | F10: Chachapoyas | G10: 01 | H10: 01.Chachapoyas | I10: Chiliquín | J10: 05 | K10: 05.Chiliquín | M10: 05.Ayacucho | O10: 05.Luya | P10: 05.Bolognesi | Q10: 05.Cotabambas | R10: 05.Caylloma | S10: 05.La Mar | T10: 05.Contumaza | V10: 05.Canas | W10: 05.Churcampa | X10: 05.Huamalies | Y10: 05.Pisco | Z10: 05.Junín | AA10: 05.Julcan | AC10: 05.Cañete | AD10: 05.Requena | AH10: 05.Paita | AI10: 05.El Collao | AJ10: 05.Lamas
B11: 010106 | C11: Amazonas | D11: 01 | E11: 01.Amazonas | F11: Chachapoyas | G11: 01 | H11: 01.Chachapoyas | I11: Chuquibamba | J11: 06 | K11: 06.Chuquibamba | M11: 06.Cajamarca | O11: 06.Rodriguez De Mendoza | P11: 06.Carhuaz | Q11: 06.Chincheros | R11: 06.Condesuyos | S11: 06.Lucanas | T11: 06.Cutervo | V11: 06.Canchis | W11: 06.Huaytara | X11: 06.Leoncio Prado | Z11: 06.Satipo | AA11: 06.Otuzco | AC11: 06.Huaral | AD11: 06.Ucayali | AH11: 06.Sullana | AI11: 06.Huancane | AJ11: 06.Mariscal Caceres
B12: 010107 | C12: Amazonas | D12: 01 | E12: 01.Amazonas | F12: Chachapoyas | G12: 01 | H12: 01.Chachapoyas | I12: Granada | J12: 07 | K12: 07.Granada | M12: 07.Callao | O12: 07.Utcubamba | P12: 07.Carlos Fermin Fitzcarrald | Q12: 07.Grau | R12: 07.Islay | S12: 07.Parinacochas | T12: 07.Hualgayoc | V12: 07.Chumbivilcas | W12: 07.Tayacaja | X12: 07.Marañón | Z12: 07.Tarma | AA12: 07.Pacasmayo | AC12: 07.Huarochiri | AD12: 07.Datem Del Marañon | AH12: 07.Talara | AI12: 07.Lampa | AJ12: 07.Picota
B13: 010108 | C13: Amazonas | D13: 01 | E13: 01.Amazonas | F13: Chachapoyas | G13: 01 | H13: 01.Chachapoyas | I13: Huancas | J13: 08 | K13: 08.Huancas | M13: 08.Cusco | P13: 08.Casma | R13: 08.La Unión | S13: 08.Paucar Del Sara Sara | T13: 08.Jaén | V13: 08.Espinar | X13: 08.Pachitea | Z13: 08.Yauli | AA13: 08.Pataz | AC13: 08.Huaura | AD13: 08.Putumayo | AH13: 08.Sechura | AI13: 08.Melgar | AJ13: 08.Rioja
B14: 010109 | C14: Amazonas | D14: 01 | E14: 01.Amazonas | F14: Chachapoyas | G14: 01 | H14: 01.Chachapoyas | I14: La Jalca | J14: 09 | K14: 09.La Jalca | M14: 09.Huancavelica | P14: 09.Corongo | S14: 09.Sucre | T14: 09.San Ignacio | V14: 09.La Convención | X14: 09.Puerto Inca | Z14: 09.Chupaca | AA14: 09.Sanchez Carrion | AC14: 09.Oyon | AI14: 09.Moho | AJ14: 09.San Martin
B15: 010110 | C15: Amazonas | D15: 01 | E15: 01.Amazonas | F15: Chachapoyas | G15: 01 | H15: 01.Chachapoyas | I15: Leimebamba | J15: 10 | K15: 10.Leimebamba | M15: 10.Huánuco | P15: 10.Huari | S15: 10.Victor Fajardo | T15: 10.San Marcos | V15: 10.Paruro | X15: 10.Lauricocha | AA15: 10.Santiago De Chuco | AC15: 10.Yauyos | AI15: 10.San Antonio De Putina | AJ15: 10.Tocache
B16: 010111 | C16: Amazonas | D16: 01 | E16: 01.Amazonas | F16: Chachapoyas | G16: 01 | H16: 01.Chachapoyas | I16: Levanto | J16: 11 | K16: 11.Levanto | M16: 11.Ica | P16: 11.Huarmey | S16: 11.Vilcas Huaman | T16: 11.San Miguel | V16: 11.Paucartambo | X16: 11.Yarowilca | AA16: 11.Gran Chimú | AI16: 11.San Román
B17: 010112 | C17: Amazonas | D17: 01 | E17: 01.Amazonas | F17: Chachapoyas | G17: 01 | H17: 01.Chachapoyas | I17: Magdalena | J17: 12 | K17: 12.Magdalena | M17: 12.Junín | P17: 12.Huaylas | T17: 12.San Pablo | V17: 12.Quispicanchi | AA17: 12.Viru | AI17: 12.Sandia
B18: 010113 | C18: Amazonas | D18: 01 | E18: 01.Amazonas | F18: Chachapoyas | G18: 01 | H18: 01.Chachapoyas | I18: Mariscal Castilla | J18: 13 | K18: 13.Mariscal Castilla | M18: 13.La Libertad | P18: 13.Mariscal Luzuriaga | T18: 13.Santa Cruz | V18: 13.Urubamba | AI18: 13.Yunguyo
B19: 010114 | C19: Amazonas | D19: 01 | E19: 01.Amazonas | F19: Chachapoyas | G19: 01 | H19: 01.Chachapoyas | I19: Molinopampa | J19: 14 | K19: 14.Molinopampa | M19: 14.Lambayeque | P19: 14.Ocros
B20: 010115 | C20: Amazonas | D20: 01 | E20: 01.Amazonas | F20: Chachapoyas | G20: 01 | H20: 01.Chachapoyas | I20: Montevideo | J20: 15 | K20: 15.Montevideo | M20: 15.Lima | P20: 15.Pallasca
B21: 010116 | C21: Amazonas | D21: 01 | E21: 01.Amazonas | F21: Chachapoyas | G21: 01 | H21: 01.Chachapoyas | I21: Olleros | J21: 16 | K21: 16.Olleros | M21: 16.Loreto | P21: 16.Pomabamba
B22: 010117 | C22: Amazonas | D22: 01 | E22: 01.Amazonas | F22: Chachapoyas | G22: 01 | H22: 01.Chachapoyas | I22: Quinjalca | J22: 17 | K22: 17.Quinjalca | M22: 17.Madre De Dios | P22: 17.Recuay
B23: 010118 | C23: Amazonas | D23: 01 | E23: 01.Amazonas | F23: Chachapoyas | G23: 01 | H23: 01.Chachapoyas | I23: San Francisco de Daguas | J23: 18 | K23: 18.San Francisco de Daguas | M23: 18.Moquegua | P23: 18.Santa
B24: 010119 | C24: Amazonas | D24: 01 | E24: 01.Amazonas | F24: Chachapoyas | G24: 01 | H24: 01.Chachapoyas | I24: San Isidro de Maino | J24: 19 | K24: 19.San Isidro de Maino | M24: 19.Pasco | P24: 19.Sihuas
B25: 010120 | C25: Amazonas | D25: 01 | E25: 01.Amazonas | F25: Chachapoyas | G25: 01 | H25: 01.Chachapoyas | I25: Soloco | J25: 20 | K25: 20.Soloco | M25: 20.Piura | P25: 20.Yungay
B26: 010121 | C26: Amazonas | D26: 01 | E26: 01.Amazonas | F26: Chachapoyas | G26: 01 | H26: 01.Chachapoyas | I26: Sonche | J26: 21 | K26: 21.Sonche | M26: 21.Puno
B27: 010201 | C27: Amazonas | D27: 01 | E27: 01.Amazonas | F27: Bagua | G27: 02 | H27: 02.Bagua | I27: Bagua | J27: 01 | K27: 01.Bagua | M27: 22.San Martín
B28: 010202 | C28: Amazonas | D28: 01 | E28: 01.Amazonas | F28: Bagua | G28: 02 | H28: 02.Bagua | I28: Aramango | J28: 02 | K28: 02.Aramango | M28: 23.Tacna
B29: 010203 | C29: Amazonas | D29: 01 | E29: 01.Amazonas | F29: Bagua | G29: 02 | H29: 02.Bagua | I29: Copallín | J29: 03 | K29: 03.Copallín | M29: 24.Tumbes
M30: 25.Ucayali
B31: 010204 | C31: Amazonas | D31: 01 | E31: 01.Amazonas | F31: Bagua | G31: 02 | H31: 02.Bagua | I31: El Parco | J31: 04 | K31: 04.El Parco
B32: 010205 | C32: Amazonas | D32: 01 | E32: 01.Amazonas | F32: Bagua | G32: 02 | H32: 02.Bagua | I32: Imaza | J32: 05 | K32: 05.Imaza
B33: 010206 | C33: Amazonas | D33: 01 | E33: 01.Amazonas | F33: Bagua | G33: 02 | H33: 02.Bagua | I33: La Peca | J33: 06 | K33: 06.La Peca | M33: Provincias
B34: 010301 | C34: Amazonas | D34: 01 | E34: 01.Amazonas | F34: Bongara | G34: 03 | H34: 03.Bongara | I34: Jumbilla | J34: 01 | K34: 01.Jumbilla | M34: 01.Chachapoyas | O34: 01.Abancay | P34: 01.Abancay | Q34: 02.Chacoche | R34: 03.Circa | S34: 04.Curahuasi | T34: 05.Huanipaca | U34: 06.Lambrama | V34: 07.Pichirhua | W34: 08.San Pedro de Cachora | X34: 09.Tamburco
B35: 010302 | C35: Amazonas | D35: 01 | E35: 01.Amazonas | F35: Bongara | G35: 03 | H35: 03.Bongara | I35: Chisquilla | J35: 02 | K35: 02.Chisquilla | M35: 02.Bagua | O35: 01.Arequipa | P35: 01.Arequipa | Q35: 02.Alto Selva Alegre | R35: 03.Cayma | S35: 04.Cerro Colorado | T35: 05.Characato | U35: 06.Chiguata | V35: 07.Jacobo Hunter | W35: 08.La Joya | X35: 09.Maríano Melgar | Y35: 10.Miraflores | Z35: 11.Mollebaya | AA35: 12.Paucarpata | AB35: 13.Pocsi | AC35: 14.Polobaya | AD35: 15.Quequeña | AE35: 16.Sabandia | AF35: 17.Sachaca | AG35: 18.San Juan de Siguas | AH35: 19.San Juan de Tarucani | AI35: 20.Santa Isabel de Siguas | AJ35: 21.Santa Rita de Siguas | AK35: 22.Socabaya | AL35: 23.Tiabaya | AM35: 24.Uchumayo | AN35: 25.Vitor | AO35: 26.Yanahuara | AP35: 27.Yarabamba | AQ35: 28.Yura | AR35: 29.José Luis Bustamante y Rivero
B36: 010303 | C36: Amazonas | D36: 01 | E36: 01.Amazonas | F36: Bongara | G36: 03 | H36: 03.Bongara | I36: Churuja | J36: 03 | K36: 03.Churuja | M36: 03.Bongara | O36: 01.Cajamarca | P36: 01.Cajamarca | Q36: 02.Asunción | R36: 03.Chetilla | S36: 04.Cospán | T36: 05.Encañada | U36: 06.Jesús | V36: 07.Llacanora | W36: 08.Los Baños del Inca | X36: 09.Magdalena | Y36: 10.Matara | Z36: 11.Namora | AA36: 12.San Juan
B37: 010304 | C37: Amazonas | D37: 01 | E37: 01.Amazonas | F37: Bongara | G37: 03 | H37: 03.Bongara | I37: Corosha | J37: 04 | K37: 04.Corosha | M37: 04.Condorcanqui | O37: 01.Callao | P37: 01.Callao | Q37: 02.Bellavista | R37: 03.Carmen de la Legua Reynoso | S37: 04.La Perla | T37: 05.La Punta | U37: 06.Ventanilla | V37: 07.Mi Perú
B38: 010305 | C38: Amazonas | D38: 01 | E38: 01.Amazonas | F38: Bongara | G38: 03 | H38: 03.Bongara | I38: Cuispes | J38: 05 | K38: 05.Cuispes | M38: 05.Luya | O38: 01.Chachapoyas | P38: 01.Chachapoyas | Q38: 02.Asunción | R38: 03.Balsas | S38: 04.Cheto | T38: 05.Chiliquín | U38: 06.Chuquibamba | V38: 07.Granada | W38: 08.Huancas | X38: 09.La Jalca | Y38: 10.Leimebamba | Z38: 11.Levanto | AA38: 12.Magdalena | AB38: 13.Mariscal Castilla | AC38: 14.Molinopampa | AD38: 15.Montevideo | AE38: 16.Olleros | AF38: 17.Quinjalca | AG38: 18.San Francisco de Daguas | AH38: 19.San Isidro de Maino | AI38: 20.Soloco | AJ38: 21.Sonche
B39: 010306 | C39: Amazonas | D39: 01 | E39: 01.Amazonas | F39: Bongara | G39: 03 | H39: 03.Bongara | I39: Florida | J39: 06 | K39: 06.Florida | M39: 06.Rodriguez_De_Mendoza | O39: 01.Chiclayo | P39: 01.Chiclayo | Q39: 02.Chongoyape | R39: 03.Etén | S39: 04.Etén Puerto | T39: 05.José Leonardo Ortiz | U39: 06.La Victoria | V39: 07.Lagunas | W39: 08.Monsefú | X39: 09.Nueva Arica | Y39: 10.Oyotún | Z39: 11.Picsi | AA39: 12.Pimentel | AB39: 13.Reque | AC39: 14.Santa Rosa | AD39: 15.Saña | AE39: 16.Cayaltí | AF39: 17.Patapo | AG39: 18.Pomalca | AH39: 19.Pucala | AI39: 20.Tumán
B40: 010307 | C40: Amazonas | D40: 01 | E40: 01.Amazonas | F40: Bongara | G40: 03 | H40: 03.Bongara | I40: Jazán | J40: 07 | K40: 07.Jazán | M40: 07.Utcubamba | O40: 01.Coronel_Portillo | P40: 01.Callería | Q40: 02.Campoverde | R40: 03.Iparia | S40: 04.Masisea | T40: 05.Yarinacocha | U40: 06.Nueva Requena | V40: 07.Manantay
B41: 010308 | C41: Amazonas | D41: 01 | E41: 01.Amazonas | F41: Bongara | G41: 03 | H41: 03.Bongara | I41: Recta | J41: 08 | K41: 08.Recta | M41: 01.Huaraz | O41: 01.Cusco | P41: 01.Cusco | Q41: 02.Ccorca | R41: 03.Poroy | S41: 04.San Jerónimo | T41: 05.San Sebastián | U41: 06.Santiago | V41: 07.Saylla | W41: 08.Wanchaq
B42: 010309 | C42: Amazonas | D42: 01 | E42: 01.Amazonas | F42: Bongara | G42: 03 | H42: 03.Bongara | I42: San Carlos | J42: 09 | K42: 09.San Carlos | M42: 02.Aija | O42: 01.Huamanga | P42: 01.Ayacucho | Q42: 02.Acocro | R42: 03.Acos Vinchos | S42: 04.Carmen Alto | T42: 05.Chiara | U42: 06.Ocros | V42: 07.Pacaycasa | W42: 08.Quinua | X42: 09.San José de Ticllas | Y42: 10.San Juan Bautista | Z42: 11.Santiago de Pischa | AA42: 12.Socos | AB42: 13.Tambillo | AC42: 14.Vinchos | AD42: 15.Jesús Nazareno | AE42: 16.Andrés Avelino Cáceres Dorregaray
B43: 010310 | C43: Amazonas | D43: 01 | E43: 01.Amazonas | F43: Bongara | G43: 03 | H43: 03.Bongara | I43: Shipasbamba | J43: 10 | K43: 10.Shipasbamba | M43: 03.Antonio_Raymondi | O43: 01.Huancavelica | P43: 01.Huancavelica | Q43: 02.Acobambilla | R43: 03.Acoria | S43: 04.Conayca | T43: 05.Cuenca | U43: 06.Huachocolpa | V43: 07.Huayllahuara | W43: 08.Izcuchaca | X43: 09.Laria | Y43: 10.Manta | Z43: 11.Mariscal Cáceres | AA43: 12.Moya | AB43: 13.Nuevo Occoro | AC43: 14.Palca | AD43: 15.Pilchaca | AE43: 16.Vilca | AF43: 17.Yauli | AG43: 18.Ascensión | AH43: 19.Huando
B44: 010311 | C44: Amazonas | D44: 01 | E44: 01.Amazonas | F44: Bongara | G44: 03 | H44: 03.Bongara | I44: Valera | J44: 11 | K44: 11.Valera | M44: 04.Asunción | O44: 01.Huancayo | P44: 01.Huancayo | Q44: 04.Carhuacallanga | R44: 05.Chacapampa | S44: 06.Chicche | T44: 07.Chilca | U44: 08.Chongos Alto | V44: 11.Chupuro | W44: 12.Colca | X44: 13.Cullhuas | Y44: 14.El Tambo | Z44: 16.Huacrapuquio | AA44: 17.Hualhuas | AB44: 19.Huancán | AC44: 20.Huasicancha | AD44: 21.Huayucachi | AE44: 22.Ingenio | AF44: 24.Pariahuanca | AG44: 25.Pilcomayo | AH44: 26.Pucará | AI44: 27.Quichuay | AJ44: 28.Quilcas | AK44: 29.San Agustín | AL44: 30.San Jerónimo de Tunán | AM44: 32.Saño | AN44: 33.Sapallanga | AO44: 34.Sicaya | AP44: 35.Santo Domingo de Acobamba | AQ44: 36.Viques
B45: 010312 | C45: Amazonas | D45: 01 | E45: 01.Amazonas | F45: Bongara | G45: 03 | H45: 03.Bongara | I45: Yambrasbamba | J45: 12 | K45: 12.Yambrasbamba | M45: 05.Bolognesi | O45: 01.Huánuco | P45: 01.Huánuco | Q45: 02.Amarilis | R45: 03.Chinchao | S45: 04.Churubamba | T45: 05.Margos | U45: 06.Quisqui | V45: 07.San Francisco de Cayrán | W45: 08.San Pedro de Chaulan | X45: 09.Santa María del Valle | Y45: 10.Yarumayo | Z45: 11.Pillco Marca | AA45: 12.Yacus | AB45: 13.San Pablo de Pillao
B46: 010401 | C46: Amazonas | D46: 01 | E46: 01.Amazonas | F46: Condorcanqui | G46: 04 | H46: 04.Condorcanqui | I46: Nieva | J46: 01 | K46: 01.Nieva | M46: 06.Carhuaz | O46: 01.Huaraz | P46: 01.Huaraz | Q46: 02.Cochabamba | R46: 03.Colcabamba | S46: 04.Huanchay | T46: 05.Independencia | U46: 06.Jangas | V46: 07.La Libertad | W46: 08.Olleros | X46: 09.Pampas Grande | Y46: 10.Pariacoto | Z46: 11.Pira | AA46: 12.Tarica
B47: 010402 | C47: Amazonas | D47: 01 | E47: 01.Amazonas | F47: Condorcanqui | G47: 04 | H47: 04.Condorcanqui | I47: El Cenepa | J47: 02 | K47: 02.El Cenepa | M47: 07.Carlos_Fermin_Fitzcarrald | O47: 01.Ica | P47: 01.Ica | Q47: 02.La Tinguiña | R47: 03.Los Aquijes | S47: 04.Ocucaje | T47: 05.Pachacútec | U47: 06.Parcona | V47: 07.Pueblo Nuevo | W47: 08.Salas | X47: 09.San José de Los Molinos | Y47: 10.San Juan Bautista | Z47: 11.Santiago | AA47: 12.Subtanjalla | AB47: 13.Tate | AC47: 14.Yauca del Rosario
B48: 010403 | C48: Amazonas | D48: 01 | E48: 01.Amazonas | F48: Condorcanqui | G48: 04 | H48: 04.Condorcanqui | I48: Río Santiago | J48: 03 | K48: 03.Río Santiago | M48: 08.Casma | O48: 01.Lima | P48: 01.Lima | Q48: 02.Ancón | R48: 03.Ate | S48: 04.Barranco | T48: 05.Breña | U48: 06.Carabayllo | V48: 07.Chaclacayo | W48: 08.Chorrillos | X48: 09.Cieneguilla | Y48: 10.Comas | Z48: 11.El Agustino | AA48: 12.Independencia | AB48: 13.Jesús María | AC48: 14.La Molina | AD48: 15.La Victoria | AE48: 16.Lince | AF48: 17.Los Olivos | AG48: 18.Lurigancho | AH48: 19.Lurín | AI48: 20.Magdalena del Mar | AJ48: 21.Pueblo Libre | AK48: 22.Miraflores | AL48: 23.Pachacámac | AM48: 24.Pucusana | AN48: 25.Puente Piedra | AO48: 26.Punta Hermosa | AP48: 27.Punta Negra | AQ48: 28.Rímac | AR48: 29.San Bartolo | AS48: 30.San Borja | AT48: 31.San Isidro | AU48: 32.San Juan de Lurigancho | AV48: 33.San Juan de Miraflores | AW48: 34.San Luis | AX48: 35.San Martín de Porres | AY48: 36.San Miguel | AZ48: 37.Santa Anita | BA48: 38.Santa María del Mar | BB48: 39.Santa Rosa | BC48: 40.Santiago de Surco | BD48: 41.Surquillo | BE48: 42.Villa El Salvador | BF48: 43.Villa María del Triunfo
B49: 010501 | C49: Amazonas | D49: 01 | E49: 01.Amazonas | F49: Luya | G49: 05 | H49: 05.Luya | I49: Lamud | J49: 01 | K49: 01.Lamud | M49: 09.Corongo | O49: 01.Mariscal_Nieto | P49: 01.Moquegua | Q49: 02.Carumas | R49: 03.Cuchumbaya | S49: 04.Samegua | T49: 05.San Cristóbal | U49: 06.Torata
B50: 010502 | C50: Amazonas | D50: 01 | E50: 01.Amazonas | F50: Luya | G50: 05 | H50: 05.Luya | I50: Camporredondo | J50: 02 | K50: 02.Camporredondo | M50: 10.Huari | O50: 01.Maynas | P50: 01.Iquitos | Q50: 02.Alto Nanay | R50: 03.Fernando Lores | S50: 04.Indiana | T50: 05.Las Amazonas | U50: 06.Mazan | V50: 07.Napo | W50: 08.Punchana | X50: 10.Torres Causana | Y50: 12.Belén | Z50: 13.San Juan Bautista
B51: 010503 | C51: Amazonas | D51: 01 | E51: 01.Amazonas | F51: Luya | G51: 05 | H51: 05.Luya | I51: Cocabamba | J51: 03 | K51: 03.Cocabamba | M51: 11.Huarmey | O51: 01.Moyobamba | P51: 01.Moyobamba | Q51: 02.Calzada | R51: 03.Habana | S51: 04.Jepelacio | T51: 05.Soritor | U51: 06.Yantalo
B52: 010504 | C52: Amazonas | D52: 01 | E52: 01.Amazonas | F52: Luya | G52: 05 | H52: 05.Luya | I52: Colcamar | J52: 04 | K52: 04.Colcamar | M52: 12.Huaylas | O52: 01.Pasco | P52: 01.Chaupimarca | Q52: 02.Huachón | R52: 03.Huariaca | S52: 04.Huayllay | T52: 05.Ninacaca | U52: 06.Pallanchacra | V52: 07.Paucartambo | W52: 08.San Francisco de Asís de Yarusyacán | X52: 09.Simón Bolívar | Y52: 10.Ticlacayan | Z52: 11.Tinyahuarco | AA52: 12.Vicco | AB52: 13.Yanacancha
B53: 010505 | C53: Amazonas | D53: 01 | E53: 01.Amazonas | F53: Luya | G53: 05 | H53: 05.Luya | I53: Conila | J53: 05 | K53: 05.Conila | M53: 13.Mariscal_Luzuriaga | O53: 01.Piura | P53: 01.Piura | Q53: 04.Castilla | R53: 05.Catacaos | S53: 07.Cura Mori | T53: 08.El Tallán | U53: 09.La Arena | V53: 10.La Unión | W53: 11.Las Lomas | X53: 14.Tambo Grande | Y53: 15.Veintiseis de Octubre
B54: 010506 | C54: Amazonas | D54: 01 | E54: 01.Amazonas | F54: Luya | G54: 05 | H54: 05.Luya | I54: Inguilpata | J54: 06 | K54: 06.Inguilpata | M54: 14.Ocros | O54: 01.Puno | P54: 01.Puno | Q54: 02.Acora | R54: 03.Amantani | S54: 04.Atuncolla | T54: 05.Capachica | U54: 06.Chucuito | V54: 07.Coata | W54: 08.Huata | X54: 09.Mañazo | Y54: 10.Paucarcolla | Z54: 11.Pichacani | AA54: 12.Platería | AB54: 13.San Antonio | AC54: 14.Tiquillaca | AD54: 15.Vilque
B55: 010507 | C55: Amazonas | D55: 01 | E55: 01.Amazonas | F55: Luya | G55: 05 | H55: 05.Luya | I55: Longuita | J55: 07 | K55: 07.Longuita | M55: 15.Pallasca | O55: 01.Tacna | P55: 01.Tacna | Q55: 02.Alto de la Alianza | R55: 03.Calana | S55: 04.Ciudad Nueva | T55: 05.Inclán | U55: 06.Pachia | V55: 07.Palca | W55: 08.Pocollay | X55: 09.Sama | Y55: 10.Coronel Gregorio Albarracín Lanchipa | Z55: 11.La Yarada Los Palos
B56: 010508 | C56: Amazonas | D56: 01 | E56: 01.Amazonas | F56: Luya | G56: 05 | H56: 05.Luya | I56: Lonya Chico | J56: 08 | K56: 08.Lonya Chico | M56: 16.Pomabamba | O56: 01.Tambopata | P56: 01.Tambopata | Q56: 02.Inambari | R56: 03.Las Piedras | S56: 04.Laberinto
B57: 010509 | C57: Amazonas | D57: 01 | E57: 01.Amazonas | F57: Luya | G57: 05 | H57: 05.Luya | I57: Luya | J57: 09 | K57: 09.Luya | M57: 17.Recuay | O57: 01.Trujillo | P57: 01.Trujillo | Q57: 02.El Porvenir | R57: 03.Florencia de Mora | S57: 04.Huanchaco | T57: 05.La Esperanza | U57: 06.Laredo | V57: 07.Moche | W57: 08.Poroto | X57: 09.Salaverry | Y57: 10.Simbal | Z57: 11.Victor Larco Herrera
B58: 010510 | C58: Amazonas | D58: 01 | E58: 01.Amazonas | F58: Luya | G58: 05 | H58: 05.Luya | I58: Luya Viejo | J58: 10 | K58: 10.Luya Viejo | M58: 18.Santa | O58: 01.Tumbes | P58: 01.Tumbes | Q58: 02.Corrales | R58: 03.La Cruz | S58: 04.Pampas de Hospital | T58: 05.San Jacinto | U58: 06.San Juan de la Virgen
B59: 010511 | C59: Amazonas | D59: 01 | E59: 01.Amazonas | F59: Luya | G59: 05 | H59: 05.Luya | I59: María | J59: 11 | K59: 11.María | M59: 19.Sihuas | O59: 02.Acobamba | P59: 01.Acobamba | Q59: 02.Andabamba | R59: 03.Anta | S59: 04.Caja | T59: 05.Marcas | U59: 06.Paucara | V59: 07.Pomacocha | W59: 08.Rosario
B60: 010512 | C60: Amazonas | D60: 01 | E60: 01.Amazonas | F60: Luya | G60: 05 | H60: 05.Luya | I60: Ocalli | J60: 12 | K60: 12.Ocalli | M60: 20.Yungay | O60: 02.Acomayo | P60: 01.Acomayo | Q60: 02.Acopia | R60: 03.Acos | S60: 04.Mosoc Llacta | T60: 05.Pomacanchi | U60: 06.Rondocán | V60: 07.Sangarara
B61: 010513 | C61: Amazonas | D61: 01 | E61: 01.Amazonas | F61: Luya | G61: 05 | H61: 05.Luya | I61: Ocumal | J61: 13 | K61: 13.Ocumal | M61: 01.Abancay | O61: 02.Aija | P61: 01.Aija | Q61: 02.Coris | R61: 03.Huacllan | S61: 04.La Merced | T61: 05.Succha
B62: 010514 | C62: Amazonas | D62: 01 | E62: 01.Amazonas | F62: Luya | G62: 05 | H62: 05.Luya | I62: Pisuquia | J62: 14 | K62: 14.Pisuquia | M62: 02.Andahuaylas | O62: 02.Alto_Amazonas | P62: 01.Yurimaguas | Q62: 02.Balsapuerto | R62: 05.Jeberos | S62: 06.Lagunas | T62: 10.Santa Cruz | U62: 11.Teniente César López Rojas
B63: 010515 | C63: Amazonas | D63: 01 | E63: 01.Amazonas | F63: Luya | G63: 05 | H63: 05.Luya | I63: Providencia | J63: 15 | K63: 15.Providencia | M63: 03.Antabamba | O63: 02.Ambo | P63: 01.Ambo | Q63: 02.Cayna | R63: 03.Colpas | S63: 04.Conchamarca | T63: 05.Huacar | U63: 06.San Francisco | V63: 07.San Rafael | W63: 08.Tomay Kichwa
B64: 010516 | C64: Amazonas | D64: 01 | E64: 01.Amazonas | F64: Luya | G64: 05 | H64: 05.Luya | I64: San Cristóbal | J64: 16 | K64: 16.San Cristóbal | M64: 04.Aymaraes | O64: 02.Andahuaylas | P64: 01.Andahuaylas | Q64: 02.Andarapa | R64: 03.Chiara | S64: 04.Huancarama | T64: 05.Huancaray | U64: 06.Huayana | V64: 07.Kishuara | W64: 08.Pacobamba | X64: 09.Pacucha | Y64: 10.Pampachiri | Z64: 11.Pomacocha | AA64: 12.San Antonio de Cachi | AB64: 13.San Jerónimo | AC64: 14.San Miguel de Chaccrampa | AD64: 15.Santa María de Chicmo | AE64: 16.Talavera | AF64: 17.Tumay Huaraca | AG64: 18.Turpo | AH64: 19.Kaquiabamba | AI64: 20.Jose Maria Arguedas
B65: 010517 | C65: Amazonas | D65: 01 | E65: 01.Amazonas | F65: Luya | G65: 05 | H65: 05.Luya | I65: San Francisco del Yeso | J65: 17 | K65: 17.San Francisco del Yeso | M65: 05.Cotabambas | O65: 02.Ascope | P65: 01.Ascope | Q65: 02.Chicama | R65: 03.Chocope | S65: 04.Magdalena de Cao | T65: 05.Paiján | U65: 06.Rázuri | V65: 07.Santiago de Cao | W65: 08.Casa Grande
B66: 010518 | C66: Amazonas | D66: 01 | E66: 01.Amazonas | F66: Luya | G66: 05 | H66: 05.Luya | I66: San Jerónimo | J66: 18 | K66: 18.San Jerónimo | M66: 06.Chincheros | O66: 02.Atalaya | P66: 01.Raymondi | Q66: 02.Sepahua | R66: 03.Tahuania | S66: 04.Yurua
B67: 010519 | C67: Amazonas | D67: 01 | E67: 01.Amazonas | F67: Luya | G67: 05 | H67: 05.Luya | I67: San Juan de Lopecancha | J67: 19 | K67: 19.San Juan de Lopecancha | M67: 07.Grau | O67: 02.Ayabaca | P67: 01.Ayabaca | Q67: 02.Frías | R67: 03.Jilili | S67: 04.Lagunas | T67: 05.Montero | U67: 06.Pacaipampa | V67: 07.Paimas | W67: 08.Sapillica | X67: 09.Sicchez | Y67: 10.Suyo
B68: 010520 | C68: Amazonas | D68: 01 | E68: 01.Amazonas | F68: Luya | G68: 05 | H68: 05.Luya | I68: Santa Catalina | J68: 20 | K68: 20.Santa Catalina | M68: 01.Arequipa | O68: 02.Azángaro | P68: 01.Azángaro | Q68: 02.Achaya | R68: 03.Arapa | S68: 04.Asillo | T68: 05.Caminaca | U68: 06.Chupa | V68: 07.José Domingo Choquehuanca | W68: 08.Muñani | X68: 09.Potoni | Y68: 10.Saman | Z68: 11.San Antón | AA68: 12.San José | AB68: 13.San Juan de Salinas | AC68: 14.Santiago de Pupuja | AD68: 15.Tirapata
B69: 010521 | C69: Amazonas | D69: 01 | E69: 01.Amazonas | F69: Luya | G69: 05 | H69: 05.Luya | I69: Santo Tomás | J69: 21 | K69: 21.Santo Tomás | M69: 02.Camana | O69: 02.Bagua | P69: 01.Bagua | Q69: 02.Aramango | R69: 03.Copallín | S69: 04.El Parco | T69: 05.Imaza | U69: 06.La Peca
B70: 010522 | C70: Amazonas | D70: 01 | E70: 01.Amazonas | F70: Luya | G70: 05 | H70: 05.Luya | I70: Tingo | J70: 22 | K70: 22.Tingo | M70: 03.Caraveli | O70: 02.Barranca | P70: 01.Barranca | Q70: 02.Paramonga | R70: 03.Pativilca | S70: 04.Supe | T70: 05.Supe Puerto
B71: 010523 | C71: Amazonas | D71: 01 | E71: 01.Amazonas | F71: Luya | G71: 05 | H71: 05.Luya | I71: Trita | J71: 23 | K71: 23.Trita | M71: 04.Castilla | O71: 02.Bellavista | P71: 01.Bellavista | Q71: 02.Alto Biavo | R71: 03.Bajo Biavo | S71: 04.Huallaga | T71: 05.San Pablo | U71: 06.San Rafael
B72: 010601 | C72: Amazonas | D72: =MID(B72,1,2) -> 01 | E72: 01.Amazonas | F72: Rodriguez_De_Mendoza | G72: =MID(B72,3,2) -> 06 | H72: 06.Rodriguez_De_Mendoza | I72: San Nicolás | J72: =MID(B72,5,2) -> 01 | K72: 01.San Nicolás | M72: 05.Caylloma | O72: 02.Cajabamba | P72: 01.Cajabamba | Q72: 02.Cachachi | R72: 03.Condebamba | S72: 04.Sitacocha
B73: 010602 | C73: Amazonas | D73: 01 | E73: 01.Amazonas | F73: Rodriguez_De_Mendoza | G73: 06 | H73: 06.Rodriguez_De_Mendoza | I73: Chirimoto | J73: 02 | K73: 02.Chirimoto | M73: 06.Condesuyos | O73: 02.Camana | P73: 01.Camaná | Q73: 02.José María Quimper | R73: 03.Mariano Nicolás Valcárcel | S73: 04.Mariscal Cáceres | T73: 05.Nicolás de Piérola | U73: 06.Ocoña | V73: 07.Quilca | W73: 08.Samuel Pastor
B74: 010603 | C74: Amazonas | D74: 01 | E74: 01.Amazonas | F74: Rodriguez_De_Mendoza | G74: 06 | H74: 06.Rodriguez_De_Mendoza | I74: Cochamal | J74: 03 | K74: 03.Cochamal | M74: 07.Islay | O74: 02.Candarave | P74: 01.Candarave | Q74: 02.Cairani | R74: 03.Camilaca | S74: 04.Curibaya | T74: 05.Huanuara | U74: 06.Quilahuani
B75: 010604 | C75: Amazonas | D75: 01 | E75: 01.Amazonas | F75: Rodriguez_De_Mendoza | G75: 06 | H75: 06.Rodriguez_De_Mendoza | I75: Huambo | J75: 04 | K75: 04.Huambo | M75: 08.La_Unión | O75: 02.Cangallo | P75: 01.Cangallo | Q75: 02.Chuschi | R75: 03.Los Morochucos | S75: 04.María Parado de Bellido | T75: 05.Paras | U75: 06.Totos
B76: 010605 | C76: Amazonas | D76: 01 | E76: 01.Amazonas | F76: Rodriguez_De_Mendoza | G76: 06 | H76: 06.Rodriguez_De_Mendoza | I76: Limabamba | J76: 05 | K76: 05.Limabamba | M76: 01.Huamanga | O76: 02.Chincha | P76: 01.Chincha Alta | Q76: 02.Alto Larán | R76: 03.Chavín | S76: 04.Chincha Baja | T76: 05.El Carmen | U76: 06.Grocio Prado | V76: 07.Pueblo Nuevo | W76: 08.San Juan de Yánac | X76: 09.San Pedro de Huacarpana | Y76: 10.Sunampe | Z76: 11.Tambo de Mora
B77: 010606 | C77: Amazonas | D77: 01 | E77: 01.Amazonas | F77: Rodriguez_De_Mendoza | G77: 06 | H77: 06.Rodriguez_De_Mendoza | I77: Longar | J77: 06 | K77: 06.Longar | M77: 02.Cangallo | O77: 02.Concepción | P77: 01.Concepción | Q77: 02.Aco | R77: 03.Andamarca | S77: 04.Chambará | T77: 05.Cochas | U77: 06.Comas | V77: 07.Heroínas Toledo | W77: 08.Manzanares | X77: 09.Mariscal Castilla | Y77: 10.Matahuasi | Z77: 11.Mito | AA77: 12.Nueve de Julio | AB77: 13.Orcotuna | AC77: 14.San José de Quero | AD77: 15.Santa Rosa de Ocopa
B78: 010607 | C78: Amazonas | D78: 01 | E78: 01.Amazonas | F78: Rodriguez_De_Mendoza | G78: 06 | H78: 06.Rodriguez_De_Mendoza | I78: Mariscal Benavides | J78: 07 | K78: 07.Mariscal Benavides | M78: 03.Huanca_Sancos | O78: 02.Contralmirante_Villar | P78: 01.Zorritos | Q78: 02.Casitas | R78: 03.Canoas de Punta Sal
B79: 010608 | C79: Amazonas | D79: 01 | E79: 01.Amazonas | F79: Rodriguez_De_Mendoza | G79: 06 | H79: 06.Rodriguez_De_Mendoza | I79: Milpuc | J79: 08 | K79: 08.Milpuc | M79: 04.Huanta | O79: 02.Daniel_Alcides_Carrión | P79: 01.Yanahuanca | Q79: 02.Chacayan | R79: 03.Goyllarisquizga | S79: 04.Paucar | T79: 05.San Pedro de Pillao | U79: 06.Santa Ana de Tusi | V79: 07.Tapuc | W79: 08.Vilcabamba
B80: 010609 | C80: Amazonas | D80: 01 | E80: 01.Amazonas | F80: Rodriguez_De_Mendoza | G80: 06 | H80: 06.Rodriguez_De_Mendoza | I80: Omia | J80: 09 | K80: 09.Omia | M80: 05.La_Mar | O80: 02.Ferreñafe | P80: 01.Ferreñafe | Q80: 02.Cañaris | R80: 03.Incahuasi | S80: 04.Manuel Antonio Mesones Muro | T80: 05.Pitipo | U80: 06.Pueblo Nuevo
B81: 010610 | C81: Amazonas | D81: 01 | E81: 01.Amazonas | F81: Rodriguez_De_Mendoza | G81: 06 | H81: 06.Rodriguez_De_Mendoza | I81: Santa Rosa | J81: 10 | K81: 10.Santa Rosa | M81: 06.Lucanas | O81: 02.General_Sanchez_Cerro | P81: 01.Omate | Q81: 02.Chojata | R81: 03.Coalaque | S81: 04.Ichuña | T81: 05.La Capilla | U81: 06.Lloque | V81: 07.Matalaque | W81: 08.Puquina | X81: 09.Quinistaquillas | Y81: 10.Ubinas | Z81: 11.Yunga
B82: 010611 | C82: Amazonas | D82: 01 | E82: 01.Amazonas | F82: Rodriguez_De_Mendoza | G82: 06 | H82: 06.Rodriguez_De_Mendoza | I82: Totora | J82: 11 | K82: 11.Totora | M82: 07.Parinacochas | O82: 02.Manu | P82: 01.Manu | Q82: 02.Fitzcarrald | R82: 03.Madre de Dios | S82: 04.Huepetuhe
B83: 010612 | C83: Amazonas | D83: 01 | E83: 01.Amazonas | F83: Rodriguez_De_Mendoza | G83: 06 | H83: 06.Rodriguez_De_Mendoza | I83: Vista Alegre | J83: 12 | K83: 12.Vista Alegre | M83: 08.Paucar_Del_Sara_Sara | O83: 03.Angaraes | P83: 01.Lircay | Q83: 02.Anchonga | R83: 03.Callanmarca | S83: 04.Ccochaccasa | T83: 05.Chincho | U83: 06.Congalla | V83: 07.Huanca-Huanca | W83: 08.Huayllay Grande | X83: 09.Julcamarca | Y83: 10.San Antonio de Antaparco | Z83: 11.Santo Tomás de Pata | AA83: 12.Secclla
B84: 010701 | C84: Amazonas | D84: 01 | E84: 01.Amazonas | F84: Utcubamba | G84: 07 | H84: 07.Utcubamba | I84: Bagua Grande | J84: 01 | K84: 01.Bagua Grande | M84: 09.Sucre | O84: 03.Anta | P84: 01.Anta | Q84: 02.Ancahuasi | R84: 03.Cachimayo | S84: 04.Chinchaypujio | T84: 05.Huarocondo | U84: 06.Limatambo | V84: 07.Mollepata | W84: 08.Pucyura | X84: 09.Zurite
B85: 010702 | C85: Amazonas | D85: 01 | E85: 01.Amazonas | F85: Utcubamba | G85: 07 | H85: 07.Utcubamba | I85: Cajaruro | J85: 02 | K85: 02.Cajaruro | M85: 10.Victor_Fajardo | O85: 03.Antabamba | P85: 01.Antabamba | Q85: 02.El Oro | R85: 03.Huaquirca | S85: 04.Juan Espinoza Medrano | T85: 05.Oropesa | U85: 06.Pachaconas | V85: 07.Sabaino
B86: 010703 | C86: Amazonas | D86: 01 | E86: 01.Amazonas | F86: Utcubamba | G86: 07 | H86: 07.Utcubamba | I86: Cumba | J86: 03 | K86: 03.Cumba | M86: 11.Vilcas_Huaman | O86: 03.Antonio_Raymondi | P86: 01.Llamellín | Q86: 02.Aczo | R86: 03.Chaccho | S86: 04.Chingas | T86: 05.Mirgas | U86: 06.San Juan de Rontoy
B87: 010704 | C87: Amazonas | D87: 01 | E87: 01.Amazonas | F87: Utcubamba | G87: 07 | H87: 07.Utcubamba | I87: El Milagro | J87: 04 | K87: 04.El Milagro | M87: 01.Cajamarca | O87: 03.Bolivar | P87: 01.Bolívar | Q87: 02.Bambamarca | R87: 03.Condormarca | S87: 04.Longotea | T87: 05.Uchumarca | U87: 06.Ucuncha
B88: 010705 | C88: Amazonas | D88: 01 | E88: 01.Amazonas | F88: Utcubamba | G88: 07 | H88: 07.Utcubamba | I88: Jamalca | J88: 05 | K88: 05.Jamalca | M88: 02.Cajabamba | O88: 03.Bongara | P88: 01.Jumbilla | Q88: 02.Chisquilla | R88: 03.Churuja | S88: 04.Corosha | T88: 05.Cuispes | U88: 06.Florida | V88: 07.Jazán | W88: 08.Recta | X88: 09.San Carlos | Y88: 10.Shipasbamba | Z88: 11.Valera | AA88: 12.Yambrasbamba
B89: 010706 | C89: Amazonas | D89: 01 | E89: 01.Amazonas | F89: Utcubamba | G89: 07 | H89: 07.Utcubamba | I89: Lonya Grande | J89: 06 | K89: 06.Lonya Grande | M89: 03.Celendin | O89: 03.Cajatambo | P89: 01.Cajatambo | Q89: 02.Copa | R89: 03.Gorgor | S89: 04.Huancapón | T89: 05.Manas
B90: 010707 | C90: Amazonas | D90: 01 | E90: 01.Amazonas | F90: Utcubamba | G90: 07 | H90: 07.Utcubamba | I90: Yamón | J90: 07 | K90: 07.Yamón | M90: 04.Chota | O90: 03.Carabaya | P90: 01.Macusani | Q90: 02.Ajoyani | R90: 03.Ayapata | S90: 04.Coasa | T90: 05.Corani | U90: 06.Crucero | V90: 07.Ituata | W90: 08.Ollachea | X90: 09.San Gabán | Y90: 10.Usicayos
B91: 020101 | C91: Ancash | D91: 02 | E91: 02.Ancash | F91: Huaraz | G91: 01 | H91: 01.Huaraz | I91: Huaraz | J91: 01 | K91: 01.Huaraz | M91: 05.Contumaza | O91: 03.Caraveli | P91: 01.Caravelí | Q91: 02.Acari | R91: 03.Atico | S91: 04.Atiquipa | T91: 05.Bella Unión | U91: 06.Cahuacho | V91: 07.Chala | W91: 08.Chaparra | X91: 09.Huanuhuanu | Y91: 10.Jaqui | Z91: 11.Lomas | AA91: 12.Quicacha | AB91: 13.Yauca
B92: 020102 | C92: Ancash | D92: 02 | E92: 02.Ancash | F92: Huaraz | G92: 01 | H92: 01.Huaraz | I92: Cochabamba | J92: 02 | K92: 02.Cochabamba | M92: 06.Cutervo | O92: 03.Celendin | P92: 01.Celendín | Q92: 02.Chumuch | R92: 03.Cortegana | S92: 04.Huasmín | T92: 05.Jorge Chávez | U92: 06.José Gálvez | V92: 07.Miguel Iglesias | W92: 08.Oxamarca | X92: 09.Sorochuco | Y92: 10.Sucre | Z92: 11.Utco | AA92: 12.La Libertad de Pallán
B93: 020103 | C93: Ancash | D93: 02 | E93: 02.Ancash | F93: Huaraz | G93: 01 | H93: 01.Huaraz | I93: Colcabamba | J93: 03 | K93: 03.Colcabamba | M93: 07.Hualgayoc | O93: 03.Chanchamayo | P93: 01.Chanchamayo | Q93: 02.Perené | R93: 03.Pichanaqui | S93: 04.San Luis de Shuaro | T93: 05.San Ramón | U93: 06.Vitoc
B94: 020104 | C94: Ancash | D94: 02 | E94: 02.Ancash | F94: Huaraz | G94: 01 | H94: 01.Huaraz | I94: Huanchay | J94: 04 | K94: 04.Huanchay | M94: 08.Jaén | O94: 03.Dos_De_Mayo | P94: 01.La Unión | Q94: 07.Chuquis | R94: 11.Marías | S94: 13.Pachas | T94: 16.Quivilla | U94: 17.Ripan | V94: 21.Shunqui | W94: 22.Sillapata | X94: 23.Yanas
B95: 020105 | C95: Ancash | D95: 02 | E95: 02.Ancash | F95: Huaraz | G95: 01 | H95: 01.Huaraz | I95: Independencia | J95: 05 | K95: 05.Independencia | M95: 09.San_Ignacio | O95: 03.El_Dorado | P95: 01.San José de Sisa | Q95: 02.Agua Blanca | R95: 03.San Martín | S95: 04.Santa Rosa | T95: 05.Shatoja
B96: 020106 | C96: Ancash | D96: 02 | E96: 02.Ancash | F96: Huaraz | G96: 01 | H96: 01.Huaraz | I96: Jangas | J96: 06 | K96: 06.Jangas | M96: 10.San_Marcos | O96: 03.Huanca_Sancos | P96: 01.Sancos | Q96: 02.Carapo | R96: 03.Sacsamarca | S96: 04.Santiago de Lucanamarca
B97: 020107 | C97: Ancash | D97: 02 | E97: 02.Ancash | F97: Huaraz | G97: 01 | H97: 01.Huaraz | I97: La Libertad | J97: 07 | K97: 07.La Libertad | M97: 11.San_Miguel | O97: 03.Huancabamba | P97: 01.Huancabamba | Q97: 02.Canchaque | R97: 03.El Carmen de la Frontera | S97: 04.Huarmaca | T97: 05.Lalaquiz | U97: 06.San Miguel de El Faique | V97: 07.Sondor | W97: 08.Sondorillo
B98: 020108 | C98: Ancash | D98: 02 | E98: 02.Ancash | F98: Huaraz | G98: 01 | H98: 01.Huaraz | I98: Olleros | J98: 08 | K98: 08.Olleros | M98: 12.San_Pablo | O98: 03.Ilo | P98: 01.Ilo | Q98: 02.El Algarrobal | R98: 03.Pacocha
B99: 020109 | C99: Ancash | D99: 02 | E99: 02.Ancash | F99: Huaraz | G99: 01 | H99: 01.Huaraz | I99: Pampas Grande | J99: 09 | K99: 09.Pampas Grande | M99: 13.Santa_Cruz | O99: 03.Jorge_Basadre | P99: 01.Locumba | Q99: 02.Ilabaya | R99: 03.Ite
B100: 020110 | C100: Ancash | D100: 02 | E100: 02.Ancash | F100: Huaraz | G100: 01 | H100: 01.Huaraz | I100: Pariacoto | J100: 10 | K100: 10.Pariacoto | M100: 01.Callao | O100: 03.Lambayeque | P100: 01.Lambayeque | Q100: 02.Chochope | R100: 03.Illimo | S100: 04.Jayanca | T100: 05.Mochumi | U100: 06.Mórrope | V100: 07.Motupe | W100: 08.Olmos | X100: 09.Pacora | Y100: 10.Salas | Z100: 11.San José | AA100: 12.Túcume
B101: 020111 | C101: Ancash | D101: 02 | E101: 02.Ancash | F101: Huaraz | G101: 01 | H101: 01.Huaraz | I101: Pira | J101: 11 | K101: 11.Pira | M101: 01.Cusco | O101: 03.Loreto | P101: 01.Nauta | Q101: 02.Parinari | R101: 03.Tigre | S101: 04.Trompeteros | T101: 05.Urarinas
B102: 020112 | C102: Ancash | D102: 02 | E102: 02.Ancash | F102: Huaraz | G102: 01 | H102: 01.Huaraz | I102: Tarica | J102: 12 | K102: 12.Tarica | M102: 02.Acomayo | O102: 03.Nasca | P102: 01.Nasca | Q102: 02.Changuillo | R102: 03.El Ingenio | S102: 04.Marcona | T102: 05.Vista Alegre
B103: 020201 | C103: Ancash | D103: 02 | E103: 02.Ancash | F103: Aija | G103: 02 | H103: 02.Aija | I103: Aija | J103: 01 | K103: 01.Aija | M103: 03.Anta | O103: 03.Oxapampa | P103: 01.Oxapampa | Q103: 02.Chontabamba | R103: 03.Huancabamba | S103: 04.Palcazu | T103: 05.Pozuzo | U103: 06.Puerto Bermúdez | V103: 07.Villa Rica | W103: 08.Constitución
B104: 020202 | C104: Ancash | D104: 02 | E104: 02.Ancash | F104: Aija | G104: 02 | H104: 02.Aija | I104: Coris | J104: 02 | K104: 02.Coris | M104: 04.Calca | O104: 03.Padre_Abad | P104: 01.Padre Abad | Q104: 02.Irazola | R104: 03.Curimaná | S104: 04.Neshuya | T104: 05.Alexander Von Humboldt
B105: 020203 | C105: Ancash | D105: 02 | E105: 02.Ancash | F105: Aija | G105: 02 | H105: 02.Aija | I105: Huacllan | J105: 03 | K105: 03.Huacllan | M105: 05.Canas | O105: 03.Tahuamanu | P105: 01.Iñapari | Q105: 02.Iberia | R105: 03.Tahuamanu
B106: 020204 | C106: Ancash | D106: 02 | E106: 02.Ancash | F106: Aija | G106: 02 | H106: 02.Aija | I106: La Merced | J106: 04 | K106: 04.La Merced | M106: 06.Canchis | O106: 03.Zarumilla | P106: 01.Zarumilla | Q106: 02.Aguas Verdes | R106: 03.Matapalo | S106: 04.Papayal
B107: 020205 | C107: Ancash | D107: 02 | E107: 02.Ancash | F107: Aija | G107: 02 | H107: 02.Aija | I107: Succha | J107: 05 | K107: 05.Succha | M107: 07.Chumbivilcas | O107: 04.Asunción | P107: 01.Chacas | Q107: 02.Acochaca
B108: 020301 | C108: Ancash | D108: 02 | E108: 02.Ancash | F108: Antonio_Raymondi | G108: 03 | H108: 03.Antonio_Raymondi | I108: Llamellín | J108: 01 | K108: 01.Llamellín | M108: 08.Espinar | O108: 04.Aymaraes | P108: 01.Chalhuanca | Q108: 02.Capaya | R108: 03.Caraybamba | S108: 04.Chapimarca | T108: 05.Colcabamba | U108: 06.Cotaruse | V108: 07.Huayllo | W108: 08.Justo Apu Sahuaraura | X108: 09.Lucre | Y108: 10.Pocohuanca | Z108: 11.San Juan de Chacña | AA108: 12.Sañayca | AB108: 13.Soraya | AC108: 14.Tapairihua | AD108: 15.Tintay | AE108: 16.Toraya | AF108: 17.Yanaca
B109: 020302 | C109: Ancash | D109: 02 | E109: 02.Ancash | F109: Antonio_Raymondi | G109: 03 | H109: 03.Antonio_Raymondi | I109: Aczo | J109: 02 | K109: 02.Aczo | M109: 09.La_Convención | O109: 04.Calca | P109: 01.Calca | Q109: 02.Coya | R109: 03.Lamay | S109: 04.Lares | T109: 05.Pisac | U109: 06.San Salvador | V109: 07.Taray | W109: 08.Yanatile
B110: 020303 | C110: Ancash | D110: 02 | E110: 02.Ancash | F110: Antonio_Raymondi | G110: 03 | H110: 03.Antonio_Raymondi | I110: Chaccho | J110: 03 | K110: 03.Chaccho | M110: 10.Paruro | O110: 04.Canta | P110: 01.Canta | Q110: 02.Arahuay | R110: 03.Huamantanga | S110: 04.Huaros | T110: 05.Lachaqui | U110: 06.San Buenaventura | V110: 07.Santa Rosa de Quives
B111: 020304 | C111: Ancash | D111: 02 | E111: 02.Ancash | F111: Antonio_Raymondi | G111: 03 | H111: 03.Antonio_Raymondi | I111: Chingas | J111: 04 | K111: 04.Chingas | M111: 11.Paucartambo | O111: 04.Castilla | P111: 01.Aplao | Q111: 02.Andagua | R111: 03.Ayo | S111: 04.Chachas | T111: 05.Chilcaymarca | U111: 06.Choco | V111: 07.Huancarqui | W111: 08.Machaguay | X111: 09.Orcopampa | Y111: 10.Pampacolca | Z111: 11.Tipán | AA111: 12.Uñón | AB111: 13.Uraca | AC111: 14.Viraco
B112: 020305 | C112: Ancash | D112: 02 | E112: 02.Ancash | F112: Antonio_Raymondi | G112: 03 | H112: 03.Antonio_Raymondi | I112: Mirgas | J112: 05 | K112: 05.Mirgas | M112: 12.Quispicanchi | O112: 04.Castrovirreyna | P112: 01.Castrovirreyna | Q112: 02.Arma | R112: 03.Aurahua | S112: 04.Capillas | T112: 05.Chupamarca | U112: 06.Cocas | V112: 07.Huachos | W112: 08.Huamatambo | X112: 09.Mollepampa | Y112: 10.San Juan | Z112: 11.Santa Ana | AA112: 12.Tantara | AB112: 13.Ticrapo
B113: 020306 | C113: Ancash | D113: 02 | E113: 02.Ancash | F113: Antonio_Raymondi | G113: 03 | H113: 03.Antonio_Raymondi | I113: San Juan de Rontoy | J113: 06 | K113: 06.San Juan de Rontoy | M113: 13.Urubamba | O113: 04.Chepen | P113: 01.Chepén | Q113: 02.Pacanga | R113: 03.Pueblo Nuevo
B114: 020401 | C114: Ancash | D114: 02 | E114: 02.Ancash | F114: Asunción | G114: 04 | H114: 04.Asunción | I114: Chacas | J114: 01 | K114: 01.Chacas | M114: 01.Huancavelica | O114: 04.Chota | P114: 01.Chota | Q114: 02.Anguia | R114: 03.Chadin | S114: 04.Chiguirip | T114: 05.Chimbán | U114: 06.Choropampa | V114: 07.Cochabamba | W114: 08.Conchán | X114: 09.Huambos | Y114: 10.Lajas | Z114: 11.Llama | AA114: 12.Miracosta | AB114: 13.Paccha | AC114: 14.Pión | AD114: 15.Querocoto | AE114: 16.San Juan de Licupis | AF114: 17.Tacabamba | AG114: 18.Tocmoche | AH114: 19.Chalamarca
B115: 020402 | C115: Ancash | D115: 02 | E115: 02.Ancash | F115: Asunción | G115: 04 | H115: 04.Asunción | I115: Acochaca | J115: 02 | K115: 02.Acochaca | M115: 02.Acobamba | O115: 04.Chucuito | P115: 01.Juli | Q115: 02.Desaguadero | R115: 03.Huacullani | S115: 04.Kelluyo | T115: 05.Pisacoma | U115: 06.Pomata | V115: 07.Zepita
B116: 020501 | C116: Ancash | D116: 02 | E116: 02.Ancash | F116: Bolognesi | G116: 05 | H116: 05.Bolognesi | I116: Chiquián | J116: 01 | K116: 01.Chiquián | M116: 03.Angaraes | O116: 04.Condorcanqui | P116: 01.Nieva | Q116: 02.El Cenepa | R116: 03.Río Santiago
B117: 020502 | C117: Ancash | D117: 02 | E117: 02.Ancash | F117: Bolognesi | G117: 05 | H117: 05.Bolognesi | I117: Abelardo Pardo Lezameta | J117: 02 | K117: 02.Abelardo Pardo Lezameta | M117: 04.Castrovirreyna | O117: 04.Huacaybamba | P117: 01.Huacaybamba | Q117: 02.Canchabamba | R117: 03.Cochabamba | S117: 04.Pinra
B118: 020503 | C118: Ancash | D118: 02 | E118: 02.Ancash | F118: Bolognesi | G118: 05 | H118: 05.Bolognesi | I118: Antonio Raymondi | J118: 03 | K118: 03.Antonio Raymondi | M118: 05.Churcampa | O118: 04.Huallaga | P118: 01.Saposoa | Q118: 02.Alto Saposoa | R118: 03.El Eslabón | S118: 04.Piscoyacu | T118: 05.Sacanche | U118: 06.Tingo de Saposoa
B119: 020504 | C119: Ancash | D119: 02 | E119: 02.Ancash | F119: Bolognesi | G119: 05 | H119: 05.Bolognesi | I119: Aquia | J119: 04 | K119: 04.Aquia | M119: 06.Huaytara | O119: 04.Huanta | P119: 01.Huanta | Q119: 02.Ayahuanco | R119: 03.Huamanguilla | S119: 04.Iguain | T119: 05.Luricocha | U119: 06.Santillana | V119: 07.Sivia | W119: 08.Llochegua | X119: 09.Canayre | Y119: 10.Uchuraccay | Z119: 11.Pucacolpa | AA119: 12.Chaca
B120: 020505 | C120: Ancash | D120: 02 | E120: 02.Ancash | F120: Bolognesi | G120: 05 | H120: 05.Bolognesi | I120: Cajacay | J120: 05 | K120: 05.Cajacay | M120: 07.Tayacaja | O120: 04.Jauja | P120: 01.Jauja | Q120: 02.Acolla | R120: 03.Apata | S120: 04.Ataura | T120: 05.Canchayllo | U120: 06.Curicaca | V120: 07.El Mantaro | W120: 08.Huamalí | X120: 09.Huaripampa | Y120: 10.Huertas | Z120: 11.Janjaillo | AA120: 12.Julcán | AB120: 13.Leonor Ordóñez | AC120: 14.Llocllapampa | AD120: 15.Marco | AE120: 16.Masma | AF120: 17.Masma Chicche | AG120: 18.Molinos | AH120: 19.Monobamba | AI120: 20.Muqui | AJ120: 21.Muquiyauyo | AK120: 22.Paca | AL120: 23.Paccha | AM120: 24.Pancán | AN120: 25.Parco | AO120: 26.Pomacancha | AP120: 27.Ricrán | AQ120: 28.San Lorenzo | AR120: 29.San Pedro de Chunán | AS120: 30.Sausa | AT120: 31.Sincos | AU120: 32.Tunan Marca | AV120: 33.Yauli | AW120: 34.Yauyos
B121: 020506 | C121: Ancash | D121: 02 | E121: 02.Ancash | F121: Bolognesi | G121: 05 | H121: 05.Bolognesi | I121: Canis | J121: 06 | K121: 06.Canis | M121: 01.Huánuco | O121: 04.Mariscal_Ramón_Castilla | P121: 01.Ramón Castilla | Q121: 02.Pebas | R121: 03.Yavari | S121: 04.San Pablo
B122: 020507 | C122: Ancash | D122: 02 | E122: 02.Ancash | F122: Bolognesi | G122: 05 | H122: 05.Bolognesi | I122: Colquioc | J122: 07 | K122: 07.Colquioc | M122: 02.Ambo | O122: 04.Morropon | P122: 01.Chulucanas | Q122: 02.Buenos Aires | R122: 03.Chalaco | S122: 04.La Matanza | T122: 05.Morropón | U122: 06.Salitral | V122: 07.San Juan de Bigote | W122: 08.Santa Catalina de Mossa | X122: 09.Santo Domingo | Y122: 10.Yamango
B123: 020508 | C123: Ancash | D123: 02 | E123: 02.Ancash | F123: Bolognesi | G123: 05 | H123: 05.Bolognesi | I123: Huallanca | J123: 08 | K123: 08.Huallanca | M123: 03.Dos_De_Mayo | O123: 04.Palpa | P123: 01.Palpa | Q123: 02.Llipata | R123: 03.Río Grande | S123: 04.Santa Cruz | T123: 05.Tibillo
B124: 020509 | C124: Ancash | D124: 02 | E124: 02.Ancash | F124: Bolognesi | G124: 05 | H124: 05.Bolognesi | I124: Huasta | J124: 09 | K124: 09.Huasta | M124: 04.Huacaybamba | O124: 04.Purus | P124: 01.Purús
B125: 020510 | C125: Ancash | D125: 02 | E125: 02.Ancash | F125: Bolognesi | G125: 05 | H125: 05.Bolognesi | I125: Huayllacayán | J125: 10 | K125: 10.Huayllacayán | M125: 05.Huamalies | O125: 04.Tarata | P125: 01.Tarata | Q125: 02.Héroes Albarracín | R125: 03.Estique | S125: 04.Estique-Pampa | T125: 05.Sitajara | U125: 06.Susapaya | V125: 07.Tarucachi | W125: 08.Ticaco
B126: 020511 | C126: Ancash | D126: 02 | E126: 02.Ancash | F126: Bolognesi | G126: 05 | H126: 05.Bolognesi | I126: La Primavera | J126: 11 | K126: 11.La Primavera | M126: 06.Leoncio_Prado | O126: 05.Bolognesi | P126: 01.Chiquián | Q126: 02.Abelardo Pardo Lezameta | R126: 03.Antonio Raymondi | S126: 04.Aquia | T126: 05.Cajacay | U126: 06.Canis | V126: 07.Colquioc | W126: 08.Huallanca | X126: 09.Huasta | Y126: 10.Huayllacayán | Z126: 11.La Primavera | AA126: 12.Mangas | AB126: 13.Pacllón | AC126: 14.San Miguel de Corpanqui | AD126: 15.Ticllos
B127: 020512 | C127: Ancash | D127: 02 | E127: 02.Ancash | F127: Bolognesi | G127: 05 | H127: 05.Bolognesi | I127: Mangas | J127: 12 | K127: 12.Mangas | M127: 07.Marañón | O127: 05.Canas | P127: 01.Yanaoca | Q127: 02.Checca | R127: 03.Kunturkanki | S127: 04.Langui | T127: 05.Layo | U127: 06.Pampamarca | V127: 07.Quehue | W127: 08.Túpac Amaru
B128: 020513 | C128: Ancash | D128: 02 | E128: 02.Ancash | F128: Bolognesi | G128: 05 | H128: 05.Bolognesi | I128: Pacllón | J128: 13 | K128: 13.Pacllón | M128: 08.Pachitea | O128: 05.Cañete | P128: 01.San Vicente de Cañete | Q128: 02.Asia | R128: 03.Calango | S128: 04.Cerro Azul | T128: 05.Chilca | U128: 06.Coayllo | V128: 07.Imperial | W128: 08.Lunahuana | X128: 09.Mala | Y128: 10.Nuevo Imperial | Z128: 11.Pacarán | AA128: 12.Quilmana | AB128: 13.San Antonio | AC128: 14.San Luis | AD128: 15.Santa Cruz de Flores | AE128: 16.Zuñiga
B129: 020514 | C129: Ancash | D129: 02 | E129: 02.Ancash | F129: Bolognesi | G129: 05 | H129: 05.Bolognesi | I129: San Miguel de Corpanqui | J129: 14 | K129: 14.San Miguel de Corpanqui | M129: 09.Puerto_Inca | O129: 05.Caylloma | P129: 01.Chivay | Q129: 02.Achoma | R129: 03.Cabanaconde | S129: 04.Callalli | T129: 05.Caylloma | U129: 06.Coporaque | V129: 07.Huambo | W129: 08.Huanca | X129: 09.Ichupampa | Y129: 10.Lari | Z129: 11.Lluta | AA129: 12.Maca | AB129: 13.Madrigal | AC129: 14.San Antonio de Chuca | AD129: 15.Sibayo | AE129: 16.Tapay | AF129: 17.Tisco | AG129: 18.Tuti | AH129: 19.Yanque | AI129: 20.Majes
B130: 020515 | C130: Ancash | D130: 02 | E130: 02.Ancash | F130: Bolognesi | G130: 05 | H130: 05.Bolognesi | I130: Ticllos | J130: 15 | K130: 15.Ticllos | M130: 10.Lauricocha | O130: 05.Churcampa | P130: 01.Churcampa | Q130: 02.Anco | R130: 03.Chinchihuasi | S130: 04.El Carmen | T130: 05.La Merced | U130: 06.Locroja | V130: 07.Paucarbamba | W130: 08.San Miguel de Mayocc | X130: 09.San Pedro de Coris | Y130: 10.Pachamarca | Z130: 11.Cosme
B131: 020601 | C131: Ancash | D131: 02 | E131: 02.Ancash | F131: Carhuaz | G131: 06 | H131: 06.Carhuaz | I131: Carhuaz | J131: 01 | K131: 01.Carhuaz | M131: 11.Yarowilca | O131: 05.Contumaza | P131: 01.Contumazá | Q131: 02.Chilete | R131: 03.Cupisnique | S131: 04.Guzmango | T131: 05.San Benito | U131: 06.Santa Cruz de Toled | V131: 07.Tantarica | W131: 08.Yonán
B132: 020602 | C132: Ancash | D132: 02 | E132: 02.Ancash | F132: Carhuaz | G132: 06 | H132: 06.Carhuaz | I132: Acopampa | J132: 02 | K132: 02.Acopampa | M132: 01.Ica | O132: 05.Cotabambas | P132: 01.Tambobamba | Q132: 02.Cotabambas | R132: 03.Coyllurqui | S132: 04.Haquira | T132: 05.Mara | U132: 06.Challhuahuacho
B133: 020603 | C133: Ancash | D133: 02 | E133: 02.Ancash | F133: Carhuaz | G133: 06 | H133: 06.Carhuaz | I133: Amashca | J133: 03 | K133: 03.Amashca | M133: 02.Chincha | O133: 05.El_Collao | P133: 01.Ilave | Q133: 02.Capazo | R133: 03.Pilcuyo | S133: 04.Santa Rosa | T133: 05.Conduriri
B134: 020604 | C134: Ancash | D134: 02 | E134: 02.Ancash | F134: Carhuaz | G134: 06 | H134: 06.Carhuaz | I134: Anta | J134: 04 | K134: 04.Anta | M134: 03.Nasca | O134: 05.Huamalies | P134: 01.Llata | Q134: 02.Arancay | R134: 03.Chavín de Pariarca | S134: 04.Jacas Grande | T134: 05.Jircan | U134: 06.Miraflores | V134: 07.Monzón | W134: 08.Punchao | X134: 09.Puños | Y134: 10.Singa | Z134: 11.Tantamayo
B135: 020605 | C135: Ancash | D135: 02 | E135: 02.Ancash | F135: Carhuaz | G135: 06 | H135: 06.Carhuaz | I135: Ataquero | J135: 05 | K135: 05.Ataquero | M135: 04.Palpa | O135: 05.Julcan | P135: 01.Julcán | Q135: 02.Calamarca | R135: 03.Carabamba | S135: 04.Huaso
B136: 020606 | C136: Ancash | D136: =MID(B136,1,2) -> 02 | E136: 02.Ancash | F136: Carhuaz | G136: =MID(B136,3,2) -> 06 | H136: 06.Carhuaz | I136: Marcará | J136: =MID(B136,5,2) -> 06 | K136: 06.Marcará | M136: 05.Pisco | O136: 05.Junín | P136: 01.Junín | Q136: 02.Carhuamayo | R136: 03.Ondores | S136: 04.Ulcumayo
B137: 020607 | C137: Ancash | D137: 02 | E137: 02.Ancash | F137: Carhuaz | G137: 06 | H137: 06.Carhuaz | I137: Pariahuanca | J137: 07 | K137: 07.Pariahuanca | M137: 01.Huancayo | O137: 05.La_Mar | P137: 01.San Miguel | Q137: 02.Anco | R137: 03.Ayna | S137: 04.Chilcas | T137: 05.Chungui | U137: 06.Luis Carranza | V137: 07.Santa Rosa | W137: 08.Tambo | X137: 09.Samugari | Y137: 10.Anchihuay | Z137: 11.Oroncoy 25/
B138: 020608 | C138: Ancash | D138: 02 | E138: 02.Ancash | F138: Carhuaz | G138: 06 | H138: 06.Carhuaz | I138: San Miguel de Aco | J138: 08 | K138: 08.San Miguel de Aco | M138: 02.Concepción | O138: 05.Lamas | P138: 01.Lamas | Q138: 02.Alonso de Alvarado | R138: 03.Barranquita | S138: 04.Caynarachi | T138: 05.Cuñumbuqui | U138: 06.Pinto Recodo | V138: 07.Rumisapa | W138: 08.San Roque de Cumbaza | X138: 09.Shanao | Y138: 10.Tabalosos | Z138: 11.Zapatero
B139: 020609 | C139: Ancash | D139: 02 | E139: 02.Ancash | F139: Carhuaz | G139: 06 | H139: 06.Carhuaz | I139: Shilla | J139: 09 | K139: 09.Shilla | M139: 03.Chanchamayo | O139: 05.Luya | P139: 01.Lamud | Q139: 02.Camporredondo | R139: 03.Cocabamba | S139: 04.Colcamar | T139: 05.Conila | U139: 06.Inguilpata | V139: 07.Longuita | W139: 08.Lonya Chico | X139: 09.Luya | Y139: 10.Luya Viejo | Z139: 11.María | AA139: 12.Ocalli | AB139: 13.Ocumal | AC139: 14.Pisuquia | AD139: 15.Providencia | AE139: 16.San Cristóbal | AF139: 17.San Francisco del Yeso | AG139: 18.San Jerónimo | AH139: 19.San Juan de Lopecancha | AI139: 20.Santa Catalina | AJ139: 21.Santo Tomás | AK139: 22.Tingo | AL139: 23.Trita
B140: 020610 | C140: Ancash | D140: 02 | E140: 02.Ancash | F140: Carhuaz | G140: 06 | H140: 06.Carhuaz | I140: Tinco | J140: 10 | K140: 10.Tinco | M140: 04.Jauja | O140: 05.Paita | P140: 01.Paita | Q140: 02.Amotape | R140: 03.Arenal | S140: 04.Colan | T140: 05.La Huaca | U140: 06.Tamarindo | V140: 07.Vichayal
B141: 020611 | C141: Ancash | D141: 02 | E141: 02.Ancash | F141: Carhuaz | G141: 06 | H141: 06.Carhuaz | I141: Yungar | J141: 11 | K141: 11.Yungar | M141: 05.Junín | O141: 05.Pisco | P141: 01.Pisco | Q141: 02.Huancano | R141: 03.Humay | S141: 04.Independencia | T141: 05.Paracas | U141: 06.San Andrés | V141: 07.San Clemente | W141: 08.Túpac Amaru Inca
B142: 020701 | C142: Ancash | D142: 02 | E142: 02.Ancash | F142: Carlos_Fermin_Fitzcarrald | G142: 07 | H142: 07.Carlos_Fermin_Fitzcarrald | I142: San Luis | J142: 01 | K142: 01.San Luis | M142: 06.Satipo | O142: 05.Requena | P142: 01.Requena | Q142: 02.Alto Tapiche | R142: 03.Capelo | S142: 04.Emilio San Martín | T142: 05.Maquia | U142: 06.Puinahua | V142: 07.Saquena | W142: 08.Soplin | X142: 09.Tapiche | Y142: 10.Jenaro Herrera | Z142: 11.Yaquerana
B143: 020702 | C143: Ancash | D143: 02 | E143: 02.Ancash | F143: Carlos_Fermin_Fitzcarrald | G143: 07 | H143: 07.Carlos_Fermin_Fitzcarrald | I143: San Nicolas | J143: 02 | K143: 02.San Nicolas | M143: 07.Tarma | O143: 06.Canchis | P143: 01.Sicuani | Q143: 02.Checacupe | R143: 03.Combapata | S143: 04.Marangani | T143: 05.Pitumarca | U143: 06.San Pablo | V143: 07.San Pedro | W143: 08.Tinta
B144: 020703 | C144: Ancash | D144: 02 | E144: 02.Ancash | F144: Carlos_Fermin_Fitzcarrald | G144: 07 | H144: 07.Carlos_Fermin_Fitzcarrald | I144: Yauya | J144: 03 | K144: 03.Yauya | M144: 08.Yauli | O144: 06.Carhuaz | P144: 01.Carhuaz | Q144: 02.Acopampa | R144: 03.Amashca | S144: 04.Anta | T144: 05.Ataquero | U144: 06.Marcará | V144: 07.Pariahuanca | W144: 08.San Miguel de Aco | X144: 09.Shilla | Y144: 10.Tinco | Z144: 11.Yungar
B145: 020801 | C145: Ancash | D145: 02 | E145: 02.Ancash | F145: Casma | G145: 08 | H145: 08.Casma | I145: Casma | J145: 01 | K145: 01.Casma | M145: 09.Chupaca | O145: 06.Chincheros | P145: 01.Chincheros | Q145: 02.Anco-Huallo | R145: 03.Cocharcas | S145: 04.Huaccana | T145: 05.Ocobamba | U145: 06.Ongoy | V145: 07.Uranmarca | W145: 08.Ranracancha | X145: 09.Rocchacc | Y145: 10.El Porvenir | Z145: 11.Los Chankas
B146: 020802 | C146: Ancash | D146: 02 | E146: 02.Ancash | F146: Casma | G146: 08 | H146: 08.Casma | I146: Buena Vista Alta | J146: 02 | K146: 02.Buena Vista Alta | M146: 01.Trujillo | O146: 06.Condesuyos | P146: 01.Chuquibamba | Q146: 02.Andaray | R146: 03.Cayarani | S146: 04.Chichas | T146: 05.Iray | U146: 06.Río Grande | V146: 07.Salamanca | W146: 08.Yanaquihua
B147: 020803 | C147: Ancash | D147: 02 | E147: 02.Ancash | F147: Casma | G147: 08 | H147: 08.Casma | I147: Comandante Noél | J147: 03 | K147: 03.Comandante Noél | M147: 02.Ascope | O147: 06.Cutervo | P147: 01.Cutervo | Q147: 02.Callayuc | R147: 03.Choros | S147: 04.Cujillo | T147: 05.La Ramada | U147: 06.Pimpingos | V147: 07.Querocotillo | W147: 08.San Andres de Cutervo | X147: 09.San Juan de Cutervo | Y147: 10.San Luis de Lucma | Z147: 11.Santa Cruz | AA147: 12.Santo Domingo de la Capilla | AB147: 13.Santo Tomás | AC147: 14.Socota | AD147: 15.Toribio Casanova
B148: 020804 | C148: Ancash | D148: 02 | E148: 02.Ancash | F148: Casma | G148: 08 | H148: 08.Casma | I148: Yaután | J148: 04 | K148: 04.Yaután | M148: 03.Bolivar | O148: 06.Huancane | P148: 01.Huancané | Q148: 02.Cojata | R148: 03.Huatasani | S148: 04.Inchupalla | T148: 05.Pusi | U148: 06.Rosaspata | V148: 07.Taraco | W148: 08.Vilque Chico
B149: 020901 | C149: Ancash | D149: 02 | E149: 02.Ancash | F149: Corongo | G149: 09 | H149: 09.Corongo | I149: Corongo | J149: 01 | K149: 01.Corongo | M149: 04.Chepen | O149: 06.Huaral | P149: 01.Huaral | Q149: 02.Atavillos Alto | R149: 03.Atavillos Bajo | S149: 04.Aucallama | T149: 05.Chancay | U149: 06.Ihuari | V149: 07.Lampián | W149: 08.Pacaraos | X149: 09.San Miguel de Acos | Y149: 10.Santa Cruz de Andamarca | Z149: 11.Sumbilca | AA149: 12.Veintisiete de Noviembre
B150: 020902 | C150: Ancash | D150: 02 | E150: 02.Ancash | F150: Corongo | G150: 09 | H150: 09.Corongo | I150: Aco | J150: 02 | K150: 02.Aco | M150: 05.Julcan | O150: 06.Huaytara | P150: 01.Huaytará | Q150: 02.Ayavi | R150: 03.Córdova | S150: 04.Huayacundo Arma | T150: 05.Laramarca | U150: 06.Ocoyo | V150: 07.Pilpichaca | W150: 08.Querco | X150: 09.Quito-Arma | Y150: 10.San Antonio de Cusicancha | Z150: 11.San Francisco de Sangayaico | AA150: 12.San Isidro | AB150: 13.Santiago de Chocorvos | AC150: 14.Santiago de Quirahuara | AD150: 15.Santo Domingo de Capillas | AE150: 16.Tambo
B151: 020903 | C151: Ancash | D151: 02 | E151: 02.Ancash | F151: Corongo | G151: 09 | H151: 09.Corongo | I151: Bambas | J151: 03 | K151: 03.Bambas | M151: 06.Otuzco | O151: 06.Leoncio_Prado | P151: 01.Rupa-Rupa | Q151: 02.Daniel Alomias Robles | R151: 03.Hermilio Valdizán | S151: 04.José Crespo y Castillo | T151: 05.Luyando | U151: 06.Mariano Damaso Beraun | V151: 07.Pucayacu | W151: 08.Castillo Grande | X151: 09.Pueblo Nuevo | Y151: 10.Santo Domingo de Anda
B152: 020904 | C152: Ancash | D152: 02 | E152: 02.Ancash | F152: Corongo | G152: 09 | H152: 09.Corongo | I152: Cusca | J152: 04 | K152: 04.Cusca | M152: 07.Pacasmayo | O152: 06.Lucanas | P152: 01.Puquio | Q152: 02.Aucara | R152: 03.Cabana | S152: 04.Carmen Salcedo | T152: 05.Chaviña | U152: 06.Chipao | V152: 07.Huac-Huas | W152: 08.Laramate | X152: 09.Leoncio Prado | Y152: 10.Llauta | Z152: 11.Lucanas | AA152: 12.Ocaña | AB152: 13.Otoca | AC152: 14.Saisa | AD152: 15.San Cristóbal | AE152: 16.San Juan | AF152: 17.San Pedro | AG152: 18.San Pedro de Palco | AH152: 19.Sancos | AI152: 20.Santa Ana de Huaycahuacho | AJ152: 21.Santa Lucía
B153: 020905 | C153: Ancash | D153: 02 | E153: 02.Ancash | F153: Corongo | G153: 09 | H153: 09.Corongo | I153: La Pampa | J153: 05 | K153: 05.La Pampa | M153: 08.Pataz | O153: 06.Mariscal_Caceres | P153: 01.Juanjui | Q153: 02.Campanilla | R153: 03.Huicungo | S153: 04.Pachiza | T153: 05.Pajarillo
B154: 020906 | C154: Ancash | D154: 02 | E154: 02.Ancash | F154: Corongo | G154: 09 | H154: 09.Corongo | I154: Yánac | J154: 06 | K154: 06.Yánac | M154: 09.Sanchez_Carrion | O154: 06.Otuzco | P154: 01.Otuzco | Q154: 02.Agallpampa | R154: 04.Charat | S154: 05.Huaranchal | T154: 06.La Cuesta | U154: 08.Mache | V154: 10.Paranday | W154: 11.Salpo | X154: 13.Sinsicap | Y154: 14.Usquil
B155: 020907 | C155: Ancash | D155: 02 | E155: 02.Ancash | F155: Corongo | G155: 09 | H155: 09.Corongo | I155: Yupán | J155: 07 | K155: 07.Yupán | M155: 10.Santiago_De_Chuco | O155: 06.Rodriguez_De_Mendoza | P155: 01.San Nicolás | Q155: 02.Chirimoto | R155: 03.Cochamal | S155: 04.Huambo | T155: 05.Limabamba | U155: 06.Longar | V155: 07.Mariscal Benavides | W155: 08.Milpuc | X155: 09.Omia | Y155: 10.Santa Rosa | Z155: 11.Totora | AA155: 12.Vista Alegre
B156: 021001 | C156: Ancash | D156: 02 | E156: 02.Ancash | F156: Huari | G156: 10 | H156: 10.Huari | I156: Huari | J156: 01 | K156: 01.Huari | M156: 11.Gran_Chimú | O156: 06.Satipo | P156: 01.Satipo | Q156: 02.Coviriali | R156: 03.Llaylla | S156: 04.Mazamari | T156: 05.Pampa Hermosa | U156: 06.Pangoa | V156: 07.Río Negro | W156: 08.Río Tambo | X156: 09.Vizcatan del Ene
B157: 021002 | C157: Ancash | D157: 02 | E157: 02.Ancash | F157: Huari | G157: 10 | H157: 10.Huari | I157: Anra | J157: 02 | K157: 02.Anra | M157: 12.Viru | O157: 06.Sullana | P157: 01.Sullana | Q157: 02.Bellavista | R157: 03.Ignacio Escudero | S157: 04.Lancones | T157: 05.Marcavelica | U157: 06.Miguel Checa | V157: 07.Querecotillo | W157: 08.Salitral
B158: 021003 | C158: Ancash | D158: 02 | E158: 02.Ancash | F158: Huari | G158: 10 | H158: 10.Huari | I158: Cajay | J158: 03 | K158: 03.Cajay | M158: 01.Chiclayo | O158: 06.Ucayali | P158: 01.Contamana | Q158: 02.Inahuaya | R158: 03.Padre Márquez | S158: 04.Pampa Hermosa | T158: 05.Sarayacu | U158: 06.Vargas Guerra
B159: 021004 | C159: Ancash | D159: 02 | E159: 02.Ancash | F159: Huari | G159: 10 | H159: 10.Huari | I159: Chavín de Huántar | J159: 04 | K159: 04.Chavín de Huántar | M159: 02.Ferreñafe | O159: 07.Carlos_Fermin_Fitzcarrald | P159: 01.San Luis | Q159: 02.San Nicolas | R159: 03.Yauya
B160: 021005 | C160: Ancash | D160: 02 | E160: 02.Ancash | F160: Huari | G160: 10 | H160: 10.Huari | I160: Huacachi | J160: 05 | K160: 05.Huacachi | M160: 03.Lambayeque | O160: 07.Chumbivilcas | P160: 01.Santo Tomás | Q160: 02.Capacmarca | R160: 03.Chamaca | S160: 04.Colquemarca | T160: 05.Livitaca | U160: 06.Llusco | V160: 07.Quiñota | W160: 08.Velille
B161: 021006 | C161: Ancash | D161: 02 | E161: 02.Ancash | F161: Huari | G161: 10 | H161: 10.Huari | I161: Huacchis | J161: 06 | K161: 06.Huacchis | M161: 01.Lima | O161: 07.Datem_Del_Marañon | P161: 01.Barranca | Q161: 02.Cahuapanas | R161: 03.Manseriche | S161: 04.Morona | T161: 05.Pastaza | U161: 06.Andoas
B162: 021007 | C162: Ancash | D162: 02 | E162: 02.Ancash | F162: Huari | G162: 10 | H162: 10.Huari | I162: Huachis | J162: 07 | K162: 07.Huachis | M162: 02.Barranca | O162: 07.Grau | P162: 01.Chuquibambilla | Q162: 02.Curpahuasi | R162: 03.Gamarra | S162: 04.Huayllati | T162: 05.Mamara | U162: 06.Micaela Bastidas | V162: 07.Pataypampa | W162: 08.Progreso | X162: 09.San Antonio | Y162: 10.Santa Rosa | Z162: 11.Turpay | AA162: 12.Vilcabamba | AB162: 13.Virundo | AC162: 14.Curasco
B163: 021008 | C163: Ancash | D163: 02 | E163: 02.Ancash | F163: Huari | G163: 10 | H163: 10.Huari | I163: Huántar | J163: 08 | K163: 08.Huántar | M163: 03.Cajatambo | O163: 07.Hualgayoc | P163: 01.Bambamarca | Q163: 02.Chugur | R163: 03.Hualgayoc
B164: 021009 | C164: Ancash | D164: 02 | E164: 02.Ancash | F164: Huari | G164: 10 | H164: 10.Huari | I164: Masín | J164: 09 | K164: 09.Masín | M164: 04.Canta | O164: 07.Huarochiri | P164: 01.Matucana | Q164: 02.Antioquía | R164: 03.Callahuanca | S164: 04.Carampoma | T164: 05.Chicla | U164: 06.Cuenca | V164: 07.Huachupampa | W164: 08.Huanza | X164: 09.Huarochirí | Y164: 10.Lahuaytambo | Z164: 11.Langa | AA164: 12.Laraos | AB164: 13.Mariatana | AC164: 14.Ricardo Palma | AD164: 15.San Andrés de Tupicocha | AE164: 16.San Antonio | AF164: 17.San Bartolomé | AG164: 18.San Damián | AH164: 19.San Juan de Iris | AI164: 20.San Juan de Tantaranche | AJ164: 21.San Lorenzo de Quinti | AK164: 22.San Mateo | AL164: 23.San Mateo de Otao | AM164: 24.San Pedro de Casta | AN164: 25.San Pedro de Huancayre | AO164: 26.Sangallaya | AP164: 27.Santa Cruz de Cocachacra | AQ164: 28.Santa Eulalia | AR164: 29.Santiago de Anchucaya | AS164: 30.Santiago de Tuna | AT164: 31.Santo Domingo de los Olleros | AU164: 32.Surco
B165: 021010 | C165: Ancash | D165: 02 | E165: 02.Ancash | F165: Huari | G165: 10 | H165: 10.Huari | I165: Paucas | J165: 10 | K165: 10.Paucas | M165: 05.Cañete | O165: 07.Islay | P165: 01.Mollendo | Q165: 02.Cocachacra | R165: 03.Dean Valdivia | S165: 04.Islay | T165: 05.Mejia | U165: 06.Punta de Bombón
B166: 021011 | C166: Ancash | D166: 02 | E166: 02.Ancash | F166: Huari | G166: 10 | H166: 10.Huari | I166: Ponto | J166: 11 | K166: 11.Ponto | M166: 06.Huaral | O166: 07.Lampa | P166: 01.Lampa | Q166: 02.Cabanilla | R166: 03.Calapuja | S166: 04.Nicasio | T166: 05.Ocuviri | U166: 06.Palca | V166: 07.Paratia | W166: 08.Pucará | X166: 09.Santa Lucía | Y166: 10.Vilavila
B167: 021012 | C167: Ancash | D167: 02 | E167: 02.Ancash | F167: Huari | G167: 10 | H167: 10.Huari | I167: Rahuapampa | J167: 12 | K167: 12.Rahuapampa | M167: 07.Huarochiri | O167: 07.Marañón | P167: 01.Huacrachuco | Q167: 02.Cholón | R167: 03.San Buenaventura | S167: 04.La Morada | T167: 05.Santa Rosa de Alto Yanajanca
B168: 021013 | C168: Ancash | D168: 02 | E168: 02.Ancash | F168: Huari | G168: 10 | H168: 10.Huari | I168: Rapayan | J168: 13 | K168: 13.Rapayan | M168: 08.Huaura | O168: 07.Pacasmayo | P168: 01.San Pedro de Lloc | Q168: 02.Guadalupe | R168: 03.Jequetepeque | S168: 04.Pacasmayo | T168: 05.San José
B169: 021014 | C169: Ancash | D169: 02 | E169: 02.Ancash | F169: Huari | G169: 10 | H169: 10.Huari | I169: San Marcos | J169: 14 | K169: 14.San Marcos | M169: 09.Oyon | O169: 07.Parinacochas | P169: 01.Coracora | Q169: 02.Chumpi | R169: 03.Coronel Castañeda | S169: 04.Pacapausa | T169: 05.Pullo | U169: 06.Puyusca | V169: 07.San Francisco de Ravacayco | W169: 08.Upahuacho
B170: 021015 | C170: Ancash | D170: 02 | E170: 02.Ancash | F170: Huari | G170: 10 | H170: 10.Huari | I170: San Pedro de Chana | J170: 15 | K170: 15.San Pedro de Chana | M170: 10.Yauyos | O170: 07.Picota | P170: 01.Picota | Q170: 02.Buenos Aires | R170: 03.Caspisapa | S170: 04.Pilluana | T170: 05.Pucacaca | U170: 06.San Cristóbal | V170: 07.San Hilarión | W170: 08.Shamboyacu | X170: 09.Tingo de Ponasa | Y170: 10.Tres Unidos
B171: 021016 | C171: Ancash | D171: 02 | E171: 02.Ancash | F171: Huari | G171: 10 | H171: 10.Huari | I171: Uco | J171: 16 | K171: 16.Uco | M171: 01.Maynas | O171: 07.Talara | P171: 01.Pariñas | Q171: 02.El Alto | R171: 03.La Brea | S171: 04.Lobitos | T171: 05.Los Órganos | U171: 06.Máncora
B172: 021101 | C172: Ancash | D172: 02 | E172: 02.Ancash | F172: Huarmey | G172: 11 | H172: 11.Huarmey | I172: Huarmey | J172: 01 | K172: 01.Huarmey | M172: 02.Alto_Amazonas | O172: 07.Tarma | P172: 01.Tarma | Q172: 02.Acobamba | R172: 03.Huaricolca | S172: 04.Huasahuasi | T172: 05.La Unión | U172: 06.Palca | V172: 07.Palcamayo | W172: 08.San Pedro de Cajas | X172: 09.Tapo
B173: 021102 | C173: Ancash | D173: 02 | E173: 02.Ancash | F173: Huarmey | G173: 11 | H173: 11.Huarmey | I173: Cochapeti | J173: 02 | K173: 02.Cochapeti | M173: 03.Loreto | O173: 07.Tayacaja | P173: 01.Pampas | Q173: 02.Acostambo | R173: 03.Acraquia | S173: 04.Ahuaycha | T173: 05.Colcabamba | U173: 06.Daniel Hernández | V173: 07.Huachocolpa | W173: 09.Huaribamba | X173: 10.Ñahuimpuquio | Y173: 11.Pazos | Z173: 13.Quishuar | AA173: 14.Salcabamba | AB173: 15.Salcahuasi | AC173: 16.San Marcos de Rocchac | AD173: 17.Surcubamba | AE173: 18.Tintay Puncu | AF173: 19.Quichuas | AG173: 20.Andaymarca | AH173: 21.Roble | AI173: 22.Pichos | AJ173: 23.Santiago de Tucuma
B174: 021103 | C174: Ancash | D174: 02 | E174: 02.Ancash | F174: Huarmey | G174: 11 | H174: 11.Huarmey | I174: Culebras | J174: 03 | K174: 03.Culebras | M174: 04.Mariscal_Ramón_Castilla | O174: 07.Utcubamba | P174: 01.Bagua Grande | Q174: 02.Cajaruro | R174: 03.Cumba | S174: 04.El Milagro | T174: 05.Jamalca | U174: 06.Lonya Grande | V174: 07.Yamón
B175: 021104 | C175: Ancash | D175: 02 | E175: 02.Ancash | F175: Huarmey | G175: 11 | H175: 11.Huarmey | I175: Huayán | J175: 04 | K175: 04.Huayán | M175: 05.Requena | O175: 08.Casma | P175: 01.Casma | Q175: 02.Buena Vista Alta | R175: 03.Comandante Noél | S175: 04.Yaután
B176: 021105 | C176: Ancash | D176: 02 | E176: 02.Ancash | F176: Huarmey | G176: 11 | H176: 11.Huarmey | I176: Malvas | J176: 05 | K176: 05.Malvas | M176: 06.Ucayali | O176: 08.Espinar | P176: 01.Espinar | Q176: 02.Condoroma | R176: 03.Coporaque | S176: 04.Ocoruro | T176: 05.Pallpata | U176: 06.Pichigua | V176: 07.Suyckutambo | W176: 08.Alto Pichigua
B177: 021201 | C177: Ancash | D177: 02 | E177: 02.Ancash | F177: Huaylas | G177: 12 | H177: 12.Huaylas | I177: Caraz | J177: 01 | K177: 01.Caraz | M177: 07.Datem_Del_Marañon | O177: 08.Huaura | P177: 01.Huacho | Q177: 02.Ambar | R177: 03.Caleta de Carquín | S177: 04.Checras | T177: 05.Hualmay | U177: 06.Huaura | V177: 07.Leoncio Prado | W177: 08.Paccho | X177: 09.Santa Leonor | Y177: 10.Santa María | Z177: 11.Sayán | AA177: 12.Vegueta
B178: 021202 | C178: Ancash | D178: 02 | E178: 02.Ancash | F178: Huaylas | G178: 12 | H178: 12.Huaylas | I178: Huallanca | J178: 02 | K178: 02.Huallanca | M178: 08.Putumayo | O178: 08.Jaén | P178: 01.Jaén | Q178: 02.Bellavista | R178: 03.Chontali | S178: 04.Colasay | T178: 05.Huabal | U178: 06.Las Pirias | V178: 07.Pomahuaca | W178: 08.Pucará | X178: 09.Sallique | Y178: 10.San Felipe | Z178: 11.San José del Alto | AA178: 12.Santa Rosa
B179: 021203 | C179: Ancash | D179: 02 | E179: 02.Ancash | F179: Huaylas | G179: 12 | H179: 12.Huaylas | I179: Huata | J179: 03 | K179: 03.Huata | M179: 01.Tambopata | O179: 08.La_Unión | P179: 01.Cotahuasi | Q179: 02.Alca | R179: 03.Charcana | S179: 04.Huaynacotas | T179: 05.Pampamarca | U179: 06.Puyca | V179: 07.Quechualla | W179: 08.Sayla | X179: 09.Tauria | Y179: 10.Tomepampa | Z179: 11.Toro
B180: 021204 | C180: Ancash | D180: 02 | E180: 02.Ancash | F180: Huaylas | G180: 12 | H180: 12.Huaylas | I180: Huaylas | J180: 04 | K180: 04.Huaylas | M180: 02.Manu | O180: 08.Melgar | P180: 01.Ayaviri | Q180: 02.Antauta | R180: 03.Cupi | S180: 04.Llalli | T180: 05.Macari | U180: 06.Nuñoa | V180: 07.Orurillo | W180: 08.Santa Rosa | X180: 09.Umachiri
B181: 021205 | C181: Ancash | D181: 02 | E181: 02.Ancash | F181: Huaylas | G181: 12 | H181: 12.Huaylas | I181: Mato | J181: 05 | K181: 05.Mato | M181: 03.Tahuamanu | O181: 08.Pachitea | P181: 01.Panao | Q181: 02.Chaglla | R181: 03.Molino | S181: 04.Umari
B182: 021206 | C182: Ancash | D182: 02 | E182: 02.Ancash | F182: Huaylas | G182: 12 | H182: 12.Huaylas | I182: Pamparomás | J182: 06 | K182: 06.Pamparomás | M182: 01.Mariscal_Nieto | O182: 08.Pataz | P182: 01.Tayabamba | Q182: 02.Buldibuyo | R182: 03.Chillia | S182: 04.Huancaspata | T182: 05.Huaylillas | U182: 06.Huayo | V182: 07.Ongón | W182: 08.Parcoy | X182: 09.Pataz | Y182: 10.Pias | Z182: 11.Santiago de Challas | AA182: 12.Taurija | AB182: 13.Urpay
B183: 021207 | C183: Ancash | D183: 02 | E183: 02.Ancash | F183: Huaylas | G183: 12 | H183: 12.Huaylas | I183: Pueblo Libre | J183: 07 | K183: 07.Pueblo Libre | M183: 02.General_Sanchez_Cerro | O183: 08.Paucar_Del_Sara_Sara | P183: 01.Pausa | Q183: 02.Colta | R183: 03.Corculla | S183: 04.Lampa | T183: 05.Marcabamba | U183: 06.Oyolo | V183: 07.Pararca | W183: 08.San Javier de Alpabamba | X183: 09.San José de Ushua | Y183: 10.Sara Sara
B184: 021208 | C184: Ancash | D184: 02 | E184: 02.Ancash | F184: Huaylas | G184: 12 | H184: 12.Huaylas | I184: Santa Cruz | J184: 08 | K184: 08.Santa Cruz | M184: 03.Ilo | O184: 08.Putumayo | P184: 01.Putumayo | Q184: 02.Rosa Panduro | R184: 03.Teniente Manuel Clavero | S184: 04.Yaguas
B185: 021209 | C185: Ancash | D185: 02 | E185: 02.Ancash | F185: Huaylas | G185: 12 | H185: 12.Huaylas | I185: Santo Toribio | J185: 09 | K185: 09.Santo Toribio | M185: 01.Pasco | O185: 08.Rioja | P185: 01.Rioja | Q185: 02.Awajun | R185: 03.Elias Soplín Vargas | S185: 04.Nueva Cajamarca | T185: 05.Pardo Miguel | U185: 06.Posic | V185: 07.San Fernando | W185: 08.Yorongos | X185: 09.Yuracyacu
B186: 021210 | C186: Ancash | D186: 02 | E186: 02.Ancash | F186: Huaylas | G186: 12 | H186: 12.Huaylas | I186: Yuracmarca | J186: 10 | K186: 10.Yuracmarca | M186: 02.Daniel_Alcides_Carrión | O186: 08.Sechura | P186: 01.Sechura | Q186: 02.Bellavista de la Unión | R186: 03.Bernal | S186: 04.Cristo Nos Valga | T186: 05.Vice | U186: 06.Rinconada Llicuar
B187: 021301 | C187: Ancash | D187: 02 | E187: 02.Ancash | F187: Mariscal_Luzuriaga | G187: 13 | H187: 13.Mariscal_Luzuriaga | I187: Piscobamba | J187: 01 | K187: 01.Piscobamba | M187: 03.Oxapampa | O187: 08.Yauli | P187: 01.La Oroya | Q187: 02.Chacapalpa | R187: 03.Huay-Huay | S187: 04.Marcapomacocha | T187: 05.Morococha | U187: 06.Paccha | V187: 07.Santa Bárbara de Carhuacayán | W187: 08.Santa Rosa de Sacco | X187: 09.Suitucancha | Y187: 10.Yauli
B188: 021302 | C188: Ancash | D188: 02 | E188: 02.Ancash | F188: Mariscal_Luzuriaga | G188: 13 | H188: 13.Mariscal_Luzuriaga | I188: Casca | J188: 02 | K188: 02.Casca | M188: 01.Piura | O188: 09.Chupaca | P188: 01.Chupaca | Q188: 02.Ahuac | R188: 03.Chongos Bajo | S188: 04.Huáchac | T188: 05.Huamancaca Chico | U188: 06.San Juan de Yscos | V188: 07.San Juan de Jarpa | W188: 08.Tres de Diciembre | X188: 09.Yanacancha
B189: 021303 | C189: Ancash | D189: 02 | E189: 02.Ancash | F189: Mariscal_Luzuriaga | G189: 13 | H189: 13.Mariscal_Luzuriaga | I189: Eleazar Guzmán Barrón | J189: 03 | K189: 03.Eleazar Guzmán Barrón | M189: 02.Ayabaca | O189: 09.Corongo | P189: 01.Corongo | Q189: 02.Aco | R189: 03.Bambas | S189: 04.Cusca | T189: 05.La Pampa | U189: 06.Yánac | V189: 07.Yupán
B190: 021304 | C190: Ancash | D190: 02 | E190: 02.Ancash | F190: Mariscal_Luzuriaga | G190: 13 | H190: 13.Mariscal_Luzuriaga | I190: Fidel Olivas Escudero | J190: 04 | K190: 04.Fidel Olivas Escudero | M190: 03.Huancabamba | O190: 09.La_Convención | P190: 01.Santa Ana | Q190: 02.Echarate | R190: 03.Huayopata | S190: 04.Maranura | T190: 05.Ocobamba | U190: 06.Quellouno | V190: 07.Kimbiri | W190: 08.Santa Teresa | X190: 09.Vilcabamba | Y190: 10.Pichari | Z190: 11.Inkawasi | AA190: 12.Villa Virgen | AB190: 13.Villa Kintiarina | AC190: 14.Megantoni
B191: 021305 | C191: Ancash | D191: 02 | E191: 02.Ancash | F191: Mariscal_Luzuriaga | G191: 13 | H191: 13.Mariscal_Luzuriaga | I191: Llama | J191: 05 | K191: 05.Llama | M191: 04.Morropon | O191: 09.Moho | P191: 01.Moho | Q191: 02.Conima | R191: 03.Huayrapata | S191: 04.Tilali
B192: 021306 | C192: Ancash | D192: 02 | E192: 02.Ancash | F192: Mariscal_Luzuriaga | G192: 13 | H192: 13.Mariscal_Luzuriaga | I192: Llumpa | J192: 06 | K192: 06.Llumpa | M192: 05.Paita | O192: 09.Oyon | P192: 01.Oyón | Q192: 02.Andajes | R192: 03.Caujul | S192: 04.Cochamarca | T192: 05.Navan | U192: 06.Pachangara
B193: 021307 | C193: Ancash | D193: 02 | E193: 02.Ancash | F193: Mariscal_Luzuriaga | G193: 13 | H193: 13.Mariscal_Luzuriaga | I193: Lucma | J193: 07 | K193: 07.Lucma | M193: 06.Sullana | O193: 09.Puerto_Inca | P193: 01.Puerto Inca | Q193: 02.Codo del Pozuzo | R193: 03.Honoria | S193: 04.Tournavista | T193: 05.Yuyapichis
B194: 021308 | C194: Ancash | D194: 02 | E194: 02.Ancash | F194: Mariscal_Luzuriaga | G194: 13 | H194: 13.Mariscal_Luzuriaga | I194: Musga | J194: 08 | K194: 08.Musga | M194: 07.Talara | O194: 09.San_Ignacio | P194: 01.San Ignacio | Q194: 02.Chirinos | R194: 03.Huarango | S194: 04.La Coipa | T194: 05.Namballe | U194: 06.San José de Lourdes | V194: 07.Tabaconas
B195: 021401 | C195: Ancash | D195: 02 | E195: 02.Ancash | F195: Ocros | G195: 14 | H195: 14.Ocros | I195: Ocros | J195: 01 | K195: 01.Ocros | M195: 08.Sechura | O195: 09.San_Martin | P195: 01.Tarapoto | Q195: 02.Alberto Leveau | R195: 03.Cacatachi | S195: 04.Chazuta | T195: 05.Chipurana | U195: 06.El Porvenir | V195: 07.Huimbayoc | W195: 08.Juan Guerra | X195: 09.La Banda de Shilcayo | Y195: 10.Morales | Z195: 11.Papaplaya | AA195: 12.San Antonio | AB195: 13.Sauce | AC195: 14.Shapaja
B196: 021402 | C196: Ancash | D196: 02 | E196: 02.Ancash | F196: Ocros | G196: 14 | H196: 14.Ocros | I196: Acas | J196: 02 | K196: 02.Acas | M196: 01.Puno | O196: 09.Sanchez_Carrion | P196: 01.Huamachuco | Q196: 02.Chugay | R196: 03.Cochorco | S196: 04.Curgos | T196: 05.Marcabal | U196: 06.Sanagoran | V196: 07.Sarín | W196: 08.Sartimbamba
B197: 021403 | C197: Ancash | D197: 02 | E197: 02.Ancash | F197: Ocros | G197: 14 | H197: 14.Ocros | I197: Cajamarquilla | J197: 03 | K197: 03.Cajamarquilla | M197: 02.Azángaro | O197: 09.Sucre | P197: 01.Querobamba | Q197: 02.Belén | R197: 03.Chalcos | S197: 04.Chilcayoc | T197: 05.Huacaña | U197: 06.Morcolla | V197: 07.Paico | W197: 08.San Pedro de Larcay | X197: 09.San Salvador de Quije | Y197: 10.Santiago de Paucaray | Z197: 11.Soras
B198: 021404 | C198: Ancash | D198: 02 | E198: 02.Ancash | F198: Ocros | G198: 14 | H198: 14.Ocros | I198: Carhuapampa | J198: 04 | K198: 04.Carhuapampa | M198: 03.Carabaya | O198: 10.Huari | P198: 01.Huari | Q198: 02.Anra | R198: 03.Cajay | S198: 04.Chavín de Huántar | T198: 05.Huacachi | U198: 06.Huacchis | V198: 07.Huachis | W198: 08.Huántar | X198: 09.Masín | Y198: 10.Paucas | Z198: 11.Ponto | AA198: 12.Rahuapampa | AB198: 13.Rapayan | AC198: 14.San Marcos | AD198: 15.San Pedro de Chana | AE198: 16.Uco
B199: 021405 | C199: Ancash | D199: 02 | E199: 02.Ancash | F199: Ocros | G199: 14 | H199: 14.Ocros | I199: Cochas | J199: 05 | K199: 05.Cochas | M199: 04.Chucuito | O199: 10.Lauricocha | P199: 01.Jesús | Q199: 02.Baños | R199: 03.Jivia | S199: 04.Queropalca | T199: 05.Rondos | U199: 06.San Francisco de Asís | V199: 07.San Miguel de Cauri
B200: 021406 | C200: Ancash | D200: =MID(B200,1,2) -> 02 | E200: 02.Ancash | F200: Ocros | G200: =MID(B200,3,2) -> 14 | H200: 14.Ocros | I200: Congas | J200: =MID(B200,5,2) -> 06 | K200: 06.Congas | M200: 05.El_Collao | O200: 10.Paruro | P200: 01.Paruro | Q200: 02.Accha | R200: 03.Ccapi | S200: 04.Colcha | T200: 05.Huanoquite | U200: 06.Omacha | V200: 07.Paccaritambo | W200: 08.Pillpinto | X200: 09.Yaurisque
B201: 021407 | C201: Ancash | D201: 02 | E201: 02.Ancash | F201: Ocros | G201: 14 | H201: 14.Ocros | I201: Llipa | J201: 07 | K201: 07.Llipa | M201: 06.Huancane | O201: 10.San_Antonio_De_Putina | P201: 01.Putina | Q201: 02.Ananea | R201: 03.Pedro Vilca Apaza | S201: 04.Quilcapuncu | T201: 05.Sina
B202: 021408 | C202: Ancash | D202: 02 | E202: 02.Ancash | F202: Ocros | G202: 14 | H202: 14.Ocros | I202: San Cristóbal de Raján | J202: 08 | K202: 08.San Cristóbal de Raján | M202: 07.Lampa | O202: 10.San_Marcos | P202: 01.Pedro Gálvez | Q202: 02.Chancay | R202: 03.Eduardo Villanueva | S202: 04.Gregorio Pita | T202: 05.Ichocan | U202: 06.José Manuel Quiroz | V202: 07.José Sabogal
B203: 021409 | C203: Ancash | D203: 02 | E203: 02.Ancash | F203: Ocros | G203: 14 | H203: 14.Ocros | I203: San Pedro | J203: 09 | K203: 09.San Pedro | M203: 08.Melgar | O203: 10.Santiago_De_Chuco | P203: 01.Santiago de Chuco | Q203: 02.Angasmarca | R203: 03.Cachicadan | S203: 04.Mollebamba | T203: 05.Mollepata | U203: 06.Quiruvilca | V203: 07.Santa Cruz de Chuca | W203: 08.Sitabamba
B204: 021410 | C204: Ancash | D204: 02 | E204: 02.Ancash | F204: Ocros | G204: 14 | H204: 14.Ocros | I204: Santiago de Chilcas | J204: 10 | K204: 10.Santiago de Chilcas | M204: 09.Moho | O204: 10.Tocache | P204: 01.Tocache | Q204: 02.Nuevo Progreso | R204: 03.Pólvora | S204: 04.Shunte | T204: 05.Uchiza
... 1676 more rows

Sheet 1. Información General
B1: INDICADORES INFORMACIÓN GENERAL
A5: NIVEL TERRITORIAL | B5: UBIGEO | C5: DEPARTAMENTO/ PROVINCIA/ DISTRITO | E5: CARACTERÍSTICAS DEL TERRITORIO | P5: POBLACIÓN CENSO 2017 | BI5: POBLACIÓN IDENTIFICADA 2021 - RENIEC | CC5: POBLACIÓN PROYECTADA - INEI | CJ5: POBREZA MONETARIA | CR5: RECURSOS PRESUPUESTALES 2021 | CZ5: Niños
E6: UBIGEO | F6: SUPERFICIE (km2) | G6: DENSIDAD | H6: ALTITUD (msnm) | I6: NÚMERO DE PROVINCIAS | J6: NÚMERO DE DISTRITOS | K6: NÚMERO DE CCPP | L6: FRONTERA | M6: PAÍS | N6: CAPITAL LEGAL | P6: UBIGEO | Q6: TOTAL | R6: URBANO | S6: RURAL | T6: MENORES DE 1 AÑO | U6: EN EDAD DE TRABAJAR | V6: MUJER | AO6: HOMBRE | BI6: UBIGEO | BJ6: TOTAL | BK6: MUJER | BL6: HOMBRE | BM6: DE 0 AÑOS | BN6: PET (>= 14 años) | BO6: POR EDADES (EDAD ESCOLAR) | CC6: UBIGEO | CD6: POBLACIÓN TOTAL | CJ6: UBIGEO | CK6: CIFRAS OFICIALES | CO6: MAPA DE POBREZA | CR6: UBIGEO | CS6: PRESUPUESTO TOTAL (S/) | CV6: PRESUPUESTO EJECUTADO (S/) | CZ6: UBIGEO | DA6: De 0 a 4 años
V7: 0-5 | W7: 6-10 | X7: 11-15 | Y7: 16-20 | Z7: 21-25 | AA7: 26-30 | AB7: 31-35 | AC7: 36-40 | AD7: 41-45 | AE7: 46-50 | AF7: 51-55 | AG7: 56-60 | AH7: 61-65 | AI7: 66-70 | AJ7: 70-75 | AK7: 76-80 | AL7: 80-85 | AM7: 86-90 | AN7: 90+ | AO7: 0-5 | AP7: 6-10 | AQ7: 11-15 | AR7: 16-20 | AS7: 21-25 | AT7: 26-30 | AU7: 31-35 | AV7: 36-40 | AW7: 41-45 | AX7: 46-50 | AY7: 51-55 | AZ7: 56-60 | BA7: 61-65 | BB7: 66-70 | BC7: 71-75 | BD7: 76-80 | BE7: 81-85 | BF7: 86-90 | BG7: 91+ | BJ7: Total | BK7: Mujer | BL7: Hombre | BM7: Total | BN7: Total | BO7: 5 | BP7: 6 | BQ7: 7 | BR7: 8 | BS7: 9 | BT7: 10 | BU7: 11 | BV7: 12 | BW7: 13 | BX7: 14 | BY7: 15 | BZ7: 16 | CA7: 17 a mas | CD7: 2018 | CE7: 2019 | CF7: 2020 | CG7: 2021 | CH7: 2022 | CK7: TOTAL (2020) | CL7: EXTREMA (2020) | CM7: TOTAL (2021) | CN7: EXTREMA (2021) | CO7: TOTAL (2018) | CP7: EXTREMA (2013) | CS7: TOTAL | CT7: ACTIVIDAD | CU7: PROYECTOS | CV7: TOTAL | CW7: ACTIVIDAD | CX7: PROYECTOS
A8: Departamento | B8: 000000 | C8: PERÚ | E8: 000000 | F8: 1280172.28 | G8: 24.40092259 | I8: 196 | J8: 1874 | K8: 94922 | L8: SÍ | M8: Ecu-Col-Bra-Bol-Chi | N8: Lima Metropolitana | P8: 000000 | Q8: 31237384.64 | R8: 25579026.92 | S8: 5658357.722 | T8: 493494.979 | U8: 23495640.52 | V8: 1600118.264 | W8: 1383097.242 | X8: 1345887.895 | Y8: 1293965.898 | Z8: 1373936.561 | AA8: 1288281.223 | AB8: 1206188.054 | AC8: 1124835.523 | AD8: 1025029.405 | AE8: 896744.4559 | AF8: 782734.0431 | AG8: 653239.0256 | AH8: 540026.8786 | AI8: 415118.5004 | AJ8: 316371.6002 | AK8: 230813.142 | AL8: 162138.9862 | AM8: 87392.99105 | AN8: 43519.50253 | AO8: 1654462.458 | AP8: 1417371.187 | AQ8: 1383555.893 | AR8: 1305363.963 | AS8: 1350027.211 | AT8: 1258202.827 | AU8: 1187125.939 | AV8: 1083707.649 | AW8: 983992.0422 | AX8: 846459.3508 | AY8: 749579.7985 | AZ8: 627852.4395 | BA8: 506503.3095 | BB8: 388928.1599 | BC8: 292265.5223 | BD8: 205067.0286 | BE8: 134022.9222 | BF8: 65889.78639 | BG8: 27568.03678 | BI8: 000000 | BJ8: 35848497 | BK8: 17933588 | BL8: 17914909 | BM8: 393487 | BN8: 26723920 | BO8: 577547 | BP8: 603511 | BQ8: 620791 | BR8: 620185 | BS8: 607186 | BT8: 602918 | BU8: 607176 | BV8: 621233 | BW8: 617277 | BX8: 576628 | BY8: 587298 | BZ8: 605335 | CA8: 24954657 | CC8: 000000 | CD8: 31562130 | CE8: 32131400 | CF8: 32625948 | CG8: 33035304 | CH8: 33396698 | CJ8: 000000 | CK8: 30.1 | CL8: 5.1 | CM8: 25.9 | CN8: 4.1 | CO8: - | CP8: - | CR8: 000000 | CS8: 227932192842 | CT8: 172433219431 | CU8: 55498973411 | CV8: 1.989493746e+11 | CW8: 1.605627073e+11 | CX8: 3.838666734e+10 | CZ8: 000000 | DA8: 2704475.647
A9: Departamento | B9: 010000 | C9: AMAZONAS | E9: 010000 | F9: 39249.13 | G9: 10.63373889 | H9: 2339 | I9: 7 | J9: 84 | K9: 3174 | L9: Sí | M9: Ecuador | N9: Chachapoyas | P9: 010000 | Q9: 417365.0022 | R9: 205976.3061 | S9: 211388.696 | T9: 8042.620816 | U9: 289649.1731 | V9: 26428.79664 | W9: 23132.48711 | X9: 21854.13818 | Y9: 17072.17383 | Z9: 16185.58576 | AA9: 15520.0664 | AB9: 14965.11216 | AC9: 13468.53142 | AD9: 11920.06356 | AE9: 10366.95828 | AF9: 8783.352653 | AG9: 6890.937049 | AH9: 5613.985393 | AI9: 4290.139457 | AJ9: 3443.090698 | AK9: 2674.746806 | AL9: 1901.552784 | AM9: 971.68039 | AN9: 442.9457439 | AO9: 26846.64871 | AP9: 23483.55123 | AQ9: 22477.06579 | AR9: 17394.31332 | AS9: 15175.00681 | AT9: 15395.05874 | AU9: 15229.80462 | AV9: 13985.2032 | AW9: 12558.41529 | AX9: 11173.79085 | AY9: 9788.838738 | AZ9: 7857.504349 | BA9: 6338.942968 | BB9: 4656.054756 | BC9: 3547.382096 | BD9: 2747.264017 | BE9: 1690.969365 | BF9: 733.9964973 | BG9: 358.849946 | BI9: 010000 | BJ9: 487866 | BK9: 237127 | BL9: 250739 | BM9: 6892 | BN9: 352910 | BO9: 9726 | BP9: 9926 | BQ9: 10167 | BR9: 10213 | BS9: 10247 | BT9: 10467 | BU9: 10597 | BV9: 10677 | BW9: 10231 | BX9: 9470 | BY9: 10078 | BZ9: 10186 | CA9: 323176 | CC9: 010000 | CD9: 419833 | CE9: 423863 | CF9: 426806 | CG9: 428512 | CH9: 429483 | CJ9: 010000 | CK9: 32.95 | CL9: 7.3 | CM9: 30.1 | CN9: 9 | CO9: - | CP9: - | CR9: 010000 | CS9: 3085635504 | CT9: 1959958842 | CU9: 1125676662 | CV9: 2756562777 | CW9: 1860957408 | CX9: 895605368.8 | CZ9: 010000 | DA9: 43929.55387
A10: Provincia | B10: 010100 | C10: CHACHAPOYAS | E10: 010100 | F10: 3312.37 | G10: 18.24041396 | H10: 2339 | I10: 1 | J10: 21 | K10: 745 | L10: No | M10: Ninguno | N10: Chachapoyas | P10: 010100 | Q10: 60419.00103 | R10: 48660.97713 | S10: 11758.0239 | T10: 981.2700316 | U10: 45857.32238 | V10: 2964.98123 | W10: 2635.237595 | X10: 2758.414864 | Y10: 2616.471485 | Z10: 2755.832635 | AA10: 2403.583103 | AB10: 2300.578614 | AC10: 2071.018134 | AD10: 1840.812936 | AE10: 1722.701425 | AF10: 1525.017906 | AG10: 1160.872578 | AH10: 945.4368443 | AI10: 803.0283655 | AJ10: 705.6811049 | AK10: 559.1975777 | AL10: 418.0978714 | AM10: 209.6922476 | AN10: 80.28705728 | AO10: 3005.172426 | AP10: 2621.429071 | AQ10: 2789.927062 | AR10: 2509.314577 | AS10: 2636.15282 | AT10: 2477.439473 | AU10: 2407.694177 | AV10: 2015.605439 | AW10: 1922.987052 | AX10: 1736.745108 | AY10: 1456.639859 | AZ10: 1200.015905 | BA10: 922.0478076 | BB10: 702.7219901 | BC10: 617.1738483 | BD10: 473.0959425 | BE10: 279.7605298 | BF10: 114.0109763 | BG10: 54.12351549 | BI10: 010100 | BJ10: 60383 | BK10: 30382 | BL10: 30001 | BM10: 831 | BN10: 45900 | BO10: 1089 | BP10: 1033 | BQ10: 1061 | BR10: 1108 | BS10: 1009 | BT10: 1061 | BU10: 1039 | BV10: 1021 | BW10: 1016 | BX10: 954 | BY10: 993 | BZ10: 1076 | CA10: 42877 | CC10: 010100 | CD10: 61078 | CE10: 62207 | CF10: 63188 | CG10: 63661 | CH10: 64058 | CJ10: 010100 | CK10: - | CL10: - | CM10: - | CN10: - | CO10: 22.021474 | CP10: 11.69852404 | CR10: 010100 | CS10: 1455342508 | CT10: 982235980 | CU10: 473106528 | CV10: 1323781086 | CW10: 938096775.5 | CX10: 385684310.2 | CZ10: 010100 | DA10: 4991.272362
A11: Distrito | B11: 010101 | C11: CHACHAPOYAS | E11: 010101 | F11: 153.78 | G11: 233.2422942 | H11: 2339 | I11: - | J11: - | K11: 27 | L11: No | M11: Ninguno | N11: Chachapoyas | P11: 010101 | Q11: 35867.99924 | R11: 35233.82227 | S11: 634.1769714 | T11: 587.921428 | U11: 27682.63266 | V11: 1740.719971 | W11: 1431.365444 | X11: 1572.3969 | Y11: 1820.939445 | Z11: 2023.406017 | AA11: 1657.338816 | AB11: 1483.836462 | AC11: 1266.072805 | AD11: 1145.094019 | AE11: 1040.359049 | AF11: 908.4186258 | AG11: 638.5906591 | AH11: 518.9155998 | AI11: 450.0825281 | AJ11: 381.8200998 | AK11: 272.8338361 | AL11: 205.4307241 | AM11: 105.5782218 | AN11: 46.2908783 | AO11: 1724.429626 | AP11: 1463.272182 | AQ11: 1542.534859 | AR11: 1583.74798 | AS11: 1818.346375 | AT11: 1524.209984 | AU11: 1411.797691 | AV11: 1101.131729 | AW11: 1072.623283 | AX11: 931.042078 | AY11: 754.0625639 | AZ11: 608.3423481 | BA11: 463.5776405 | BB11: 380.7032766 | BC11: 314.8458185 | BD11: 245.6127462 | BE11: 139.9994409 | BF11: 47.35533524 | BG11: 30.87392521 | BI11: 010101 | BJ11: 31055 | BK11: 15939 | BL11: 15116 | BM11: 541 | BN11: 22235 | BO11: 715 | BP11: 651 | BQ11: 642 | BR11: 678 | BS11: 583 | BT11: 571 | BU11: 545 | BV11: 532 | BW11: 534 | BX11: 482 | BY11: 492 | BZ11: 513 | CA11: 20748 | CC11: 010101 | CD11: 36602 | CE11: 37870 | CF11: 39051 | CG11: 39691 | CH11: 40274 | CJ11: 010101 | CK11: - | CL11: - | CM11: - | CN11: - | CO11: 9.034625 | CP11: 1.439875 | CR11: 010101 | CS11: 634815794 | CT11: 533173759 | CU11: 101642035 | CV11: 589017652.2 | CW11: 509048042.5 | CX11: 79969609.78 | CZ11: 010101 | DA11: 2936.786515
A12: Distrito | B12: 010102 | C12: ASUNCIÓN | E12: 010102 | F12: 25.71 | G12: 11.00739012 | H12: 2783 | I12: - | J12: - | K12: 9 | L12: No | M12: Ninguno | N12: Asunción | P12: 010102 | Q12: 283.0000496 | R12: 155.7131805 | S12: 127.286869 | T12: 6.531517506 | U12: 220.4810295 | V12: 13.07752275 | W12: 7.524528027 | X12: 7.478009701 | Y12: 5.385055542 | Z12: 5.370563507 | AA12: 4.30346787 | AB12: 9.58113718 | AC12: 20.39996338 | AD12: 6.364382029 | AE12: 9.726742268 | AF12: 3.229139566 | AG12: 6.494812489 | AH12: 6.368579626 | AI12: 8.518745422 | AJ12: 11.67175198 | AK12: 6.398916364 | AL12: 3.22147119 | AM12: 2.144039154 | AN12: 0 | AO12: 14.16752338 | AP12: 9.553750992 | AQ12: 17.11191177 | AR12: 7.499850512 | AS12: 14.40681553 | AT12: 5.449732661 | AU12: 9.0001297 | AV12: 16.48463678 | AW12: 15.25352812 | AX12: 8.7991395 | AY12: 7.733824253 | AZ12: 2.19738698 | BA12: 3.223086476 | BB12: 3.236845613 | BC12: 7.363186836 | BD12: 1.058848381 | BE12: 1.054739118 | BF12: 1.086570144 | BG12: 1.059717774 | BI12: 010102 | BJ12: 406 | BK12: 194 | BL12: 212 | BM12: 2 | BN12: 368 | BO12: 6 | BP12: 3 | BQ12: 2 | BR12: 4 | BS12: 4 | BT12: 3 | BU12: 2 | BV12: 2 | BW12: 2 | BX12: 5 | BY12: 9 | BZ12: 3 | CA12: 351 | CC12: 010102 | CD12: 283 | CE12: 281 | CF12: 278 | CG12: 277 | CH12: 276 | CJ12: 010102 | CK12: - | CL12: - | CM12: - | CN12: - | CO12: 36.519949 | CP12: 15.68075 | CR12: 010102 | CS12: 18105827 | CT12: 17742632 | CU12: 363195 | CV12: 17726082.26 | CW12: 17394770.29 | CX12: 331311.97 | CZ12: 010102 | DA12: 23.98926163
A13: Distrito | B13: 010103 | C13: BALSAS | E13: 010103 | F13: 357.09 | G13: 3.452911031 | H13: 849 | I13: - | J13: - | K13: 27 | L13: No | M13: Ninguno | N13: Balsas | P13: 010103 | Q13: 1232.999969 | R13: 371.5471802 | S13: 861.4527893 | T13: 22.90880322 | U13: 859.9441376 | V13: 78.96977043 | W13: 61.57234955 | X13: 61.56967831 | Y13: 35.34610367 | Z13: 39.78706074 | AA13: 39.88577938 | AB13: 37.35865402 | AC13: 38.30567169 | AD13: 28.70159149 | AE13: 34.34976959 | AF13: 34.30079556 | AG13: 29.84204674 | AH13: 17.16676903 | AI13: 17.34381866 | AJ13: 8.655514836 | AK13: 5.216308713 | AL13: 7.546313405 | AM13: 3.25161314 | AN13: 2.100865841 | AO13: 75.84448051 | AP13: 69.00632477 | AQ13: 66.2184782 | AR13: 48.79596329 | AS13: 38.54374027 | AT13: 44.45095634 | AU13: 42.66221428 | AV13: 28.434412 | AW13: 43.01586723 | AX13: 43.8876667 | AY13: 31.29765129 | AZ13: 41.97390985 | BA13: 28.15692711 | BB13: 19.42066383 | BC13: 9.649353266 | BD13: 10.67812896 | BE13: 5.465257645 | BF13: 3.144417763 | BG13: 1.083071828 | BI13: 010103 | BJ13: 1528 | BK13: 690 | BL13: 838 | BM13: 19 | BN13: 1194 | BO13: 24 | BP13: 20 | BQ13: 26 | BR13: 18 | BS13: 23 | BT13: 27 | BU13: 25 | BV13: 33 | BW13: 26 | BX13: 23 | BY13: 30 | BZ13: 42 | CA13: 1099 | CC13: 010103 | CD13: 1222 | CE13: 1202 | CF13: 1180 | CG13: 1169 | CH13: 1158 | CJ13: 010103 | CK13: - | CL13: - | CM13: - | CN13: - | CO13: 45.732962 | CP13: 15.42712 | CR13: 010103 | CS13: 1496217 | CT13: 826607 | CU13: 669610 | CV13: 1360446.04 | CW13: 772008.49 | CX13: 588437.55 | CZ13: 010103 | DA13: 121.8651516
A14: Distrito | B14: 010104 | C14: CHETO | E14: 010104 | F14: 56.97 | G14: 11.97121292 | H14: 2129 | I14: - | J14: - | K14: 13 | L14: No | M14: Ninguno | N14: Cheto | P14: 010104 | Q14: 681.9997864 | R14: 473.8284302 | S14: 208.1713562 | T14: 14.11290169 | U14: 521.814743 | V14: 25.86885166 | W14: 30.61792994 | X14: 47.30009556 | Y14: 26.38201475 | Z14: 19.26874113 | AA14: 16.97054434 | AB14: 30.45665359 | AC14: 27.07545877 | AD14: 24.11034489 | AE14: 20.00334835 | AF14: 15.79025793 | AG14: 8.44244957 | AH14: 11.58492899 | AI14: 8.369008064 | AJ14: 10.51465416 | AK14: 5.203714132 | AL14: 7.351336956 | AM14: 7.410885572 | AN14: 0 | AO14: 27.86004162 | AP14: 27.5311203 | AQ14: 30.53235722 | AR14: 27.81029224 | AS14: 24.18601513 | AT14: 17.53814411 | AU14: 22.80817127 | AV14: 20.21048069 | AW14: 28.98007202 | AX14: 27.82134819 | AY14: 16.19481754 | AZ14: 22.53560352 | BA14: 9.539889336 | BB14: 4.24944675 | BC14: 8.392760277 | BD14: 8.310844421 | BE14: 7.334068298 | BF14: 6.393656731 | BG14: 1.049427629 | BI14: 010104 | BJ14: 805 | BK14: 394 | BL14: 411 | BM14: 4 | BN14: 678 | BO14: 11 | BP14: 8 | BQ14: 9 | BR14: 9 | BS14: 8 | BT14: 11 | BU14: 14 | BV14: 13 | BW14: 14 | BX14: 7 | BY14: 9 | BZ14: 14 | CA14: 648 | CC14: 010104 | CD14: 687 | CE14: 696 | CF14: 702 | CG14: 705 | CH14: 707 | CJ14: 010104 | CK14: - | CL14: - | CM14: - | CN14: - | CO14: 39.169782 | CP14: 23.67841 | CR14: 010104 | CS14: 4857173 | CT14: 1062217 | CU14: 3794956 | CV14: 2565312.23 | CW14: 911478.64 | CX14: 1653833.59 | CZ14: 010104 | DA14: 47.39852548
A15: Distrito | B15: 010105 | C15: CHILIQUÍN | E15: 010105 | F15: 143.43 | G15: 4.378442446 | H15: 2617 | I15: - | J15: - | K15: 37 | L15: No | M15: Ninguno | N15: Chiliquín | P15: 010105 | Q15: 628.0002518 | R15: 200.2674789 | S15: 427.7327728 | T15: 8.745144844 | U15: 480.1198807 | V15: 32.34147358 | W15: 33.08991241 | X15: 13.77249718 | Y15: 18.08989334 | Z15: 27.72025013 | AA15: 19.22180128 | AB15: 17.89146042 | AC15: 21.05592918 | AD15: 11.51224518 | AE15: 24.58860159 | AF15: 17.03095388 | AG15: 9.450350761 | AH15: 15.93629313 | AI15: 12.71107864 | AJ15: 7.419935584 | AK15: 10.63217616 | AL15: 3.233737469 | AM15: 4.199112177 | AN15: 0 | AO15: 37.87120914 | AP15: 25.43757534 | AQ15: 17.07418728 | AR15: 9.767203331 | AS15: 26.40968227 | AT15: 25.36556435 | AU15: 29.05051804 | AV15: 20.38488865 | AW15: 24.80951023 | AX15: 22.65584278 | AY15: 19.66034174 | AZ15: 14.26190627 | BA15: 12.88266993 | BB15: 6.413419724 | BC15: 17.8957448 | BD15: 11.8237673 | BE15: 3.160883427 | BF15: 3.177646756 | BG15: 0 | BI15: 010105 | BJ15: 1201 | BK15: 544 | BL15: 657 | BM15: 12 | BN15: 1042 | BO15: 10 | BP15: 11 | BQ15: 16 | BR15: 16 | BS15: 17 | BT15: 11 | BU15: 16 | BV15: 14 | BW15: 8 | BX15: 12 | BY15: 12 | BZ15: 11 | CA15: 1007 | CC15: 010105 | CD15: 619 | CE15: 604 | CF15: 589 | CG15: 581 | CH15: 575 | CJ15: 010105 | CK15: - | CL15: - | CM15: - | CN15: - | CO15: 53.045662 | CP15: 36.39537 | CR15: 010105 | CS15: 1555011 | CT15: 1153990 | CU15: 401021 | CV15: 1380533.45 | CW15: 989995.45 | CX15: 390538 | CZ15: 010105 | DA15: 52.973562
A16: Distrito | B16: 010106 | C16: CHUQUIBAMBA | E16: 010106 | F16: 278.63 | G16: 7.102609195 | H16: 2815 | I16: - | J16: - | K16: 39 | L16: No | M16: Ninguno | N16: Chuquibamba | P16: 010106 | Q16: 1978.998474 | R16: 570.8934326 | S16: 1408.105042 | T16: 41.81200838 | U16: 1370.953033 | V16: 128.6376419 | W16: 104.9251022 | X16: 105.9571781 | Y16: 67.62939835 | Z16: 67.4879818 | AA16: 49.4035244 | AB16: 57.62549591 | AC16: 75.36362457 | AD16: 48.72836208 | AE16: 47.84077835 | AF16: 38.71722794 | AG16: 41.51488018 | AH16: 19.55910015 | AI16: 28.22346115 | AJ16: 18.11136341 | AK16: 20.57600689 | AL16: 19.45707607 | AM16: 11.86165977 | AN16: 3.255393505 | AO16: 130.7797737 | AP16: 103.8050861 | AQ16: 112.9723206 | AR16: 87.80866814 | AS16: 50.33683777 | AT16: 59.13616562 | AU16: 74.9617672 | AV16: 60.63714409 | AW16: 65.1213398 | AX16: 60.15350723 | AY16: 41.69282913 | AZ16: 48.11923218 | BA16: 36.36142635 | BB16: 30.61062217 | BC16: 20.48796558 | BD16: 16.29443026 | BE16: 17.36218452 | BF16: 3.178686142 | BG16: 4.303462267 | BI16: 010106 | BJ16: 2328 | BK16: 1110 | BL16: 1218 | BM16: 38 | BN16: 1799 | BO16: 32 | BP16: 31 | BQ16: 46 | BR16: 32 | BS16: 48 | BT16: 36 | BU16: 46 | BV16: 41 | BW16: 44 | BX16: 51 | BY16: 53 | BZ16: 44 | CA16: 1651 | CC16: 010106 | CD16: 1970 | CE16: 1955 | CF16: 1933 | CG16: 1922 | CH16: 1910 | CJ16: 010106 | CK16: - | CL16: - | CM16: - | CN16: - | CO16: 51.607832 | CP16: 43.78883 | CR16: 010106 | CS16: 8710647 | CT16: 1663686 | CU16: 7046961 | CV16: 7401124.9 | CW16: 1451585.85 | CX16: 5949539.05 | CZ16: 010106 | DA16: 207.9451391
A17: Distrito | B17: 010107 | C17: GRANADA | E17: 010107 | F17: 181.41 | G17: 2.855410396 | H17: 2935 | I17: - | J17: - | K17: 12 | L17: No | M17: Ninguno | N17: Granada | P17: 010107 | Q17: 517.9999924 | R17: 191.0099564 | S17: 326.990036 | T17: 10.85092616 | U17: 382.2588272 | V17: 15.16843319 | W17: 33.36608887 | X17: 26.76428318 | Y17: 11.82333136 | Z17: 9.751674652 | AA17: 18.20474815 | AB17: 21.19853115 | AC17: 18.09353542 | AD17: 19.10251617 | AE17: 17.16277957 | AF17: 8.564701915 | AG17: 15.90139818 | AH17: 10.61559534 | AI17: 6.415576339 | AJ17: 11.66888523 | AK17: 3.235251427 | AL17: 8.60025394 | AM17: 1.057428122 | AN17: 2.138887882 | AO17: 26.34152985 | AP17: 34.15485859 | AQ17: 16.05524397 | AR17: 19.52562189 | AS17: 16.51132011 | AT17: 15.53394079 | AU17: 23.15943909 | AV17: 27.31179428 | AW17: 18.44401789 | AX17: 13.17463017 | AY17: 13.06860065 | AZ17: 17.73154676 | BA17: 4.416415095 | BB17: 2.114060163 | BC17: 6.315060616 | BD17: 2.117979527 | BE17: 2.129513025 | BF17: 1.060513258 | BG17: 0 | BI17: 010107 | BJ17: 629 | BK17: 320 | BL17: 309 | BM17: 2 | BN17: 524 | BO17: 13 | BP17: 6 | BQ17: 4 | BR17: 3 | BS17: 7 | BT17: 8 | BU17: 9 | BV17: 8 | BW17: 18 | BX17: 11 | BY17: 10 | BZ17: 5 | CA17: 498 | CC17: 010107 | CD17: 523 | CE17: 532 | CF17: 539 | CG17: 541 | CH17: 543 | CJ17: 010107 | CK17: - | CL17: - | CM17: - | CN17: - | CO17: 43.865957 | CP17: 5.943345 | CR17: 010107 | CS17: 1736587 | CT17: 1116996 | CU17: 619591 | CV17: 1366421.08 | CW17: 862544.97 | CX17: 503876.11 | CZ17: 010107 | DA17: 33.86827385
A18: Distrito | B18: 010108 | C18: HUANCAS | E18: 010108 | F18: 48.79 | G18: 26.35786022 | H18: 2506 | I18: - | J18: - | K18: 5 | L18: No | M18: Ninguno | N18: Huancas | P18: 010108 | Q18: 1286.000111 | R18: 1239.349564 | S18: 46.65054703 | T18: 5.468948841 | U18: 1192.654888 | V18: 23.79694986 | W18: 15.0081768 | X18: 12.75951028 | Y18: 21.06134009 | Z18: 23.89930475 | AA18: 23.20392132 | AB18: 25.12746859 | AC18: 21.90100288 | AD18: 17.51460648 | AE18: 21.0305295 | AF18: 17.8087709 | AG18: 11.55544877 | AH18: 12.68397951 | AI18: 9.467144966 | AJ18: 4.237816811 | AK18: 8.45858252 | AL18: 3.176655293 | AM18: 1.080909014 | AN18: 3.23255837 | AO18: 17.36163902 | AP18: 14.87115049 | AQ18: 21.26697922 | AR18: 24.54987895 | AS18: 85.83531189 | AT18: 165.7317257 | AU18: 170.1456661 | AV18: 132.0763496 | AW18: 125.9350176 | AX18: 84.72624588 | AY18: 60.90866852 | AZ18: 41.88213348 | BA18: 26.38613605 | BB18: 15.37055588 | BC18: 7.254444599 | BD18: 7.253329039 | BE18: 4.263436317 | BF18: 3.176726103 | BG18: 0 | BI18: 010108 | BJ18: 793 | BK18: 425 | BL18: 368 | BM18: 8 | BN18: 713 | BO18: 5 | BP18: 7 | BQ18: 5 | BR18: 5 | BS18: 5 | BT18: 4 | BU18: 1 | BV18: 8 | BW18: 9 | BX18: 5 | BY18: 4 | BZ18: 6 | CA18: 698 | CC18: 010108 | CD18: 1334 | CE18: 1395 | CF18: 1456 | CG18: 1481 | CH18: 1500 | CJ18: 010108 | CK18: - | CL18: - | CM18: - | CN18: - | CO18: 31.977312 | CP18: 12.50203 | CR18: 010108 | CS18: 2965679 | CT18: 2533334 | CU18: 432345 | CV18: 2684033.57 | CW18: 2334889.26 | CX18: 349144.31 | CZ18: 010108 | DA18: 33.63440967
A19: Distrito | B19: 010109 | C19: LA JALCA | E19: 010109 | F19: 380.39 | G19: 11.18063041 | H19: 2795 | I19: - | J19: - | K19: 168 | L19: No | M19: Ninguno | N19: La Jalca | P19: 010109 | Q19: 4253.001282 | R19: 2521.934204 | S19: 1731.067078 | T19: 80.00185776 | U19: 2947.002319 | V19: 267.9460831 | W19: 257.9717178 | X19: 253.59832 | Y19: 183.5536118 | Z19: 154.2579308 | AA19: 145.3147774 | AB19: 145.9444427 | AC19: 122.6206512 | AD19: 122.2811241 | AE19: 98.66959381 | AF19: 84.68861771 | AG19: 65.19203949 | AH19: 73.18355942 | AI19: 47.62893677 | AJ19: 53.75192642 | AK19: 37.23474503 | AL19: 27.64696121 | AM19: 8.481791496 | AN19: 4.261570692 | AO19: 247.559433 | AP19: 237.8800583 | AQ19: 239.0469284 | AR19: 202.0065842 | AS19: 157.2207108 | AT19: 167.7325821 | AU19: 145.30336 | AV19: 125.8761787 | AW19: 112.2253227 | AX19: 96.49393082 | AY19: 113.7535057 | AZ19: 68.35544205 | BA19: 61.45579529 | BB19: 40.25766563 | BC19: 40.99008369 | BD19: 21.3738203 | BE19: 14.7171793 | BF19: 5.422102451 | BG19: 1.102233648 | BI19: 010109 | BJ19: 6115 | BK19: 3047 | BL19: 3068 | BM19: 83 | BN19: 4514 | BO19: 105 | BP19: 106 | BQ19: 116 | BR19: 133 | BS19: 122 | BT19: 148 | BU19: 132 | BV19: 146 | BW19: 137 | BX19: 135 | BY19: 134 | BZ19: 141 | CA19: 4104 | CC19: 010109 | CD19: 4187 | CE19: 4080 | CF19: 3966 | CG19: 3834 | CH19: 3697 | CJ19: 010109 | CK19: - | CL19: - | CM19: - | CN19: - | CO19: 47.947723 | CP19: 28.35085 | CR19: 010109 | CS19: 6285667 | CT19: 1917199 | CU19: 4368468 | CV19: 5749911.78 | CW19: 1775204.49 | CX19: 3974707.29 | CZ19: 010109 | DA19: 442.1702399
A20: Distrito | B20: 010110 | C20: LEIMEBAMBA | E20: 010110 | F20: 373.14 | G20: 10.37412231 | H20: 2158 | I20: - | J20: - | K20: 68 | L20: No | M20: Ninguno | N20: Leimebamba | P20: 010110 | Q20: 3871.001221 | R20: 2957.288208 | S20: 913.7130127 | T20: 56.34223938 | U20: 2819.9021 | V20: 190.1615677 | W20: 206.1171494 | X20: 219.1015205 | Y20: 136.1246071 | Z20: 101.0565643 | AA20: 123.1642342 | AB20: 147.3326149 | AC20: 121.4713459 | AD20: 109.9142132 | AE20: 113.3738251 | AF20: 92.14383507 | AG20: 71.40938377 | AH20: 70.54224777 | AI20: 51.78215504 | AJ20: 52.41294193 | AK20: 41.20272732 | AL20: 21.1776042 | AM20: 15.84748602 | AN20: 3.139756918 | AO20: 198.182003 | AP20: 197.9296646 | AQ20: 228.431179 | AR20: 158.763855 | AS20: 106.136261 | AT20: 111.1949272 | AU20: 128.1634655 | AV20: 135.3623695 | AW20: 124.3177357 | AX20: 111.2411346 | AY20: 102.7918282 | AZ20: 98.34022141 | BA20: 81.14118576 | BB20: 74.16809654 | BC20: 48.0428257 | BD20: 39.33684158 | BE20: 20.00273848 | BF20: 12.63647842 | BG20: 7.342792511 | BI20: 010110 | BJ20: 3821 | BK20: 1870 | BL20: 1951 | BM20: 36 | BN20: 2999 | BO20: 53 | BP20: 59 | BQ20: 64 | BR20: 58 | BS20: 56 | BT20: 74 | BU20: 64 | BV20: 63 | BW20: 68 | BX20: 68 | BY20: 66 | BZ20: 75 | CA20: 2790 | CC20: 010110 | CD20: 3862 | CE20: 3845 | CF20: 3815 | CG20: 3799 | CH20: 3781 | CJ20: 010110 | CK20: - | CL20: - | CM20: - | CN20: - | CO20: 25.741684 | CP20: 15.19174 | CR20: 010110 | CS20: 9846509 | CT20: 1895516 | CU20: 7950993 | CV20: 7701892.05 | CW20: 1474086.79 | CX20: 6227805.26 | CZ20: 010110 | DA20: 309.8587592
A21: Distrito | B21: 010111 | C21: LEVANTO | E21: 010111 | F21: 77.54 | G21: 10.80732525 | H21: 2651 | I21: - | J21: - | K21: 27 | L21: No | M21: Ninguno | N21: Levanto | P21: 010111 | Q21: 837.9999695 | R21: 482.9093323 | S21: 355.0906372 | T21: 14.85445607 | U21: 594.7292938 | V21: 44.67644882 | W21: 48.4272995 | X21: 38.79051399 | Y21: 22.02672195 | Z21: 23.13086414 | AA21: 27.359272 | AB21: 38.53413582 | AC21: 35.29310608 | AD21: 24.8957119 | AE21: 16.75476408 | AF21: 21.97580719 | AG21: 12.59487104 | AH21: 14.76284981 | AI21: 10.46323109 | AJ21: 7.257169008 | AK21: 15.75804043 | AL21: 6.299167633 | AM21: 6.281528473 | AN21: 2.098874092 | AO21: 48.69615936 | AP21: 40.78300858 | AQ21: 58.69861412 | AR21: 23.41677189 | AS21: 22.869627 | AT21: 24.12801552 | AU21: 31.60844612 | AV21: 29.90236568 | AW21: 24.2508297 | AX21: 28.55446243 | AY21: 21.43303394 | AZ21: 18.08034563 | BA21: 13.68153143 | BB21: 7.343386173 | BC21: 9.522078991 | BD21: 9.297241688 | BE21: 4.144615173 | BF21: 3.144094348 | BG21: 1.065059185 | BI21: 010111 | BJ21: 1121 | BK21: 560 | BL21: 561 | BM21: 4 | BN21: 958 | BO21: 8 | BP21: 13 | BQ21: 8 | BR21: 21 | BS21: 16 | BT21: 17 | BU21: 16 | BV21: 18 | BW21: 12 | BX21: 13 | BY21: 17 | BZ21: 30 | CA21: 898 | CC21: 010111 | CD21: 830 | CE21: 817 | CF21: 803 | CG21: 796 | CH21: 789 | CJ21: 010111 | CK21: - | CL21: - | CM21: - | CN21: - | CO21: 41.081444 | CP21: 24.37787 | CR21: 010111 | CS21: 2611221 | CT21: 1500126 | CU21: 1111095 | CV21: 1641404.73 | CW21: 1320533.98 | CX21: 320870.75 | CZ21: 010111 | DA21: 76.50308645
A22: Distrito | B22: 010112 | C22: MAGDALENA | E22: 010112 | F22: 135.47 | G22: 6.73949952 | H22: 1865 | I22: - | J22: - | K22: 37 | L22: No | M22: Ninguno | N22: Magdalena | P22: 010112 | Q22: 913.0000305 | R22: 746.2573853 | S22: 166.7426453 | T22: 18.32551384 | U22: 663.8629608 | V22: 52.9091754 | W22: 41.48684788 | X22: 41.36864376 | Y22: 25.59689951 | Z22: 40.8302784 | AA22: 27.53229809 | AB22: 31.54859149 | AC22: 20.00477839 | AD22: 28.28775787 | AE22: 25.72164917 | AF22: 25.4896307 | AG22: 20.21910191 | AH22: 15.00264549 | AI22: 14.7924366 | AJ22: 13.79696035 | AK22: 16.90798664 | AL22: 17.0929122 | AM22: 5.438121319 | AN22: 2.183904648 | AO22: 52.85087013 | AP22: 36.07969475 | AQ22: 54.07187462 | AR22: 29.82221901 | AS22: 21.04985428 | AT22: 37.92373848 | AU22: 25.29186869 | AV22: 21.54769289 | AW22: 21.39014649 | AX22: 28.04008198 | AY22: 33.10453033 | AZ22: 19.55241776 | BA22: 19.43443251 | BB22: 9.54113245 | BC22: 10.65972805 | BD22: 11.5669136 | BE22: 10.65372944 | BF22: 4.208456993 | BG22: 0 | BI22: 010112 | BJ22: 996 | BK22: 504 | BL22: 492 | BM22: 12 | BN22: 818 | BO22: 15 | BP22: 6 | BQ22: 15 | BR22: 11 | BS22: 11 | BT22: 13 | BU22: 16 | BV22: 12 | BW22: 11 | BX22: 12 | BY22: 18 | BZ22: 16 | CA22: 772 | CC22: 010112 | CD22: 913 | CE22: 913 | CF22: 911 | CG22: 910 | CH22: 906 | CJ22: 010112 | CK22: - | CL22: - | CM22: - | CN22: - | CO22: 30.634088 | CP22: 20.61026 | CR22: 010112 | CS22: 2316813 | CT22: 1503377 | CU22: 813436 | CV22: 2055923.49 | CW22: 1269562.58 | CX22: 786360.91 | CZ22: 010112 | DA22: 85.42554927
A23: Distrito | B23: 010113 | C23: MARISCAL CASTILLA | E23: 010113 | F23: 83.58 | G23: 17.39650634 | H23: 2288 | I23: - | J23: - | K23: 69 | L23: No | M23: Ninguno | N23: Duraznopampa | P23: 010113 | Q23: 1454.001099 | R23: 1033.46579 | S23: 420.5353088 | T23: 26.86273503 | U23: 1079.593948 | V23: 73.03039551 | W23: 53.19234848 | X23: 72.82771492 | Y23: 42.65479279 | Z23: 41.48067951 | AA23: 39.19948673 | AB23: 49.54522133 | AC23: 50.20178699 | AD23: 43.03254604 | AE23: 39.01461554 | AF23: 49.58610535 | AG23: 57.66180611 | AH23: 29.63931561 | AI23: 20.92897797 | AJ23: 22.01234627 | AK23: 7.376826763 | AL23: 19.01365805 | AM23: 7.366093278 | AN23: 3.161961317 | AO23: 89.97011757 | AP23: 74.90123367 | AQ23: 72.15847015 | AR23: 52.21523571 | AS23: 44.89620876 | AT23: 49.20184517 | AU23: 41.73203945 | AV23: 44.85308647 | AW23: 44.9771471 | AX23: 44.00295639 | AY23: 33.46705055 | AZ23: 26.91197872 | BA23: 41.48243713 | BB23: 23.13007736 | BC23: 20.91845894 | BD23: 15.78895235 | BE23: 9.358520746 | BF23: 2.061694622 | BG23: 1.046916008 | BI23: 010113 | BJ23: 1073 | BK23: 531 | BL23: 542 | BM23: 7 | BN23: 887 | BO23: 12 | BP23: 14 | BQ23: 8 | BR23: 19 | BS23: 22 | BT23: 16 | BU23: 25 | BV23: 13 | BW23: 12 | BX23: 16 | BY23: 17 | BZ23: 18 | CA23: 836 | CC23: 010113 | CD23: 1474 | CE23: 1507 | CF23: 1534 | CG23: 1561 | CH23: 1586 | CJ23: 010113 | CK23: - | CL23: - | CM23: - | CN23: - | CO23: 39.230882 | CP23: 18.90431 | CR23: 010113 | CS23: 3422670 | CT23: 1094894 | CU23: 2327776 | CV23: 2971834.69 | CW23: 960816.5 | CX23: 2011018.19 | CZ23: 010113 | DA23: 121.4327669
A24: Distrito | B24: 010114 | C24: MOLINOPAMPA | E24: 010114 | F24: 333.86 | G24: 6.99394956 | H24: 2421 | I24: - | J24: - | K24: 27 | L24: No | M24: Ninguno | N24: Molinopampa | P24: 010114 | Q24: 2334.999634 | R24: 694.0732422 | S24: 1640.926392 | T24: 27.09953392 | U24: 1704.644989 | V24: 95.57941055 | W24: 131.7289562 | X24: 139.1865082 | Y24: 76.93721962 | Z24: 62.26031685 | AA24: 79.05684471 | AB24: 78.37878227 | AC24: 85.4540844 | AD24: 88.53867531 | AE24: 84.2740612 | AF24: 62.4104805 | AG24: 59.08343124 | AH24: 32.03121567 | AI24: 23.37061024 | AJ24: 29.59362793 | AK24: 24.31279755 | AL24: 22.25275278 | AM24: 10.55563831 | AN24: 2.103974342 | AO24: 120.2045403 | AP24: 116.207756 | AQ24: 116.4070129 | AR24: 72.36173248 | AS24: 70.18642044 | AT24: 74.44459152 | AU24: 97.04579353 | AV24: 92.88773727 | AW24: 66.10799599 | AX24: 77.78252029 | AY24: 82.81009674 | AZ24: 52.31494808 | BA24: 32.08625412 | BB24: 29.68531227 | BC24: 21.97971249 | BD24: 15.90093803 | BE24: 7.382390618 | BF24: 1.046197176 | BG24: 1.048365712 | BI24: 010114 | BJ24: 2656 | BK24: 1349 | BL24: 1307 | BM24: 26 | BN24: 2146 | BO24: 28 | BP24: 32 | BQ24: 38 | BR24: 42 | BS24: 38 | BT24: 46 | BU24: 42 | BV24: 42 | BW24: 49 | BX24: 53 | BY24: 50 | BZ24: 64 | CA24: 1979 | CC24: 010114 | CD24: 2320 | CE24: 2296 | CF24: 2266 | CG24: 2251 | CH24: 2235 | CJ24: 010114 | CK24: - | CL24: - | CM24: - | CN24: - | CO24: 35.654304 | CP24: 25.45505 | CR24: 010114 | CS24: 9405357 | CT24: 1104350 | CU24: 8301007 | CV24: 7367141.12 | CW24: 767462.2 | CX24: 6599678.92 | CZ24: 010114 | DA24: 179.1923007
A25: Distrito | B25: 010115 | C25: MONTEVIDEO | E25: 010115 | F25: 119.01 | G25: 4.436601966 | H25: 2426 | I25: - | J25: - | K25: 17 | L25: No | M25: Ninguno | N25: Montevideo | P25: 010115 | Q25: 527.9999428 | R25: 488.3316193 | S25: 39.66832352 | T25: 13.89891863 | U25: 399.3794937 | V25: 24.70058131 | W25: 25.50730014 | X25: 21.0427506 | Y25: 9.558491707 | Z25: 12.7658987 | AA25: 14.89830971 | AB25: 18.96355772 | AC25: 13.65795243 | AD25: 11.51792693 | AE25: 25.43377686 | AF25: 12.71944618 | AG25: 21.93325996 | AH25: 14.7832787 | AI25: 8.380021095 | AJ25: 10.48562241 | AK25: 9.439805031 | AL25: 8.444677353 | AM25: 1.053882718 | AN25: 0 | AO25: 25.7063694 | AP25: 20.04131711 | AQ25: 25.46272731 | AR25: 11.86390471 | AS25: 13.22773349 | AT25: 19.81430817 | AU25: 17.4467392 | AV25: 20.44274557 | AW25: 9.691314459 | AX25: 25.64473522 | AY25: 11.99905205 | AZ25: 11.78119314 | BA25: 12.74702847 | BB25: 9.566048145 | BC25: 12.5634203 | BD25: 5.288732052 | BE25: 7.322415352 | BF25: 2.103627682 | BG25: 0 | BI25: 010115 | BJ25: 764 | BK25: 388 | BL25: 376 | BM25: - | BN25: 666 | BO25: 7 | BP25: 3 | BQ25: 3 | BR25: 6 | BS25: 8 | BT25: 9 | BU25: 10 | BV25: 9 | BW25: 15 | BX25: 12 | BY25: 18 | BZ25: 15 | CA25: 621 | CC25: 010115 | CD25: 519 | CE25: 503 | CF25: 487 | CG25: 479 | CH25: 472 | CJ25: 010115 | CK25: - | CL25: - | CM25: - | CN25: - | CO25: 38.644489 | CP25: 10.08896 | CR25: 010115 | CS25: 1930406 | CT25: 970348 | CU25: 960058 | CV25: 1782608.69 | CW25: 838985.27 | CX25: 943623.42 | CZ25: 010115 | DA25: 42.9538393
A26: Distrito | B26: 010116 | C26: OLLEROS | E26: 010116 | F26: 125.16 | G26: 3.347714925 | H26: 3143 | I26: - | J26: - | K26: 10 | L26: No | M26: Ninguno | N26: Olleros | P26: 010116 | Q26: 418.9999847 | R26: 147.7054901 | S26: 271.2944946 | T26: 2.325929642 | U26: 332.034668 | V26: 16.71384621 | W26: 13.2322526 | X26: 12.07018709 | Y26: 8.713456631 | Z26: 15.71284771 | AA26: 14.39276695 | AB26: 17.63478518 | AC26: 11.02686119 | AD26: 22.00215816 | AE26: 9.741967201 | AF26: 18.91233444 | AG26: 7.627666712 | AH26: 4.328651667 | AI26: 6.574115753 | AJ26: 7.693945885 | AK26: 12.21261644 | AL26: 0 | AM26: 3.317786932 | AN26: 0 | AO26: 22.71409559 | AP26: 16.53568316 | AQ26: 14.43514585 | AR26: 17.96831703 | AS26: 13.78482103 | AT26: 16.05475855 | AU26: 16.98721194 | AV26: 16.05013704 | AW26: 15.95867682 | AX26: 13.47104597 | AY26: 14.94602203 | AZ26: 14.67214823 | BA26: 7.925914049 | BB26: 5.560875773 | BC26: 7.785476685 | BD26: 2.241397858 | BE26: 0 | BF26: 0 | BG26: 0 | BI26: 010116 | BJ26: 469 | BK26: 244 | BL26: 225 | BM26: 2 | BN26: 397 | BO26: 7 | BP26: 7 | BQ26: 9 | BR26: 7 | BS26: 5 | BT26: 1 | BU26: 9 | BV26: 5 | BW26: 6 | BX26: 4 | BY26: 6 | BZ26: 7 | CA26: 380 | CC26: 010116 | CD26: 422 | CE26: 429 | CF26: 435 | CG26: 438 | CH26: 441 | CJ26: 010116 | CK26: - | CL26: - | CM26: - | CN26: - | CO26: 47.9082 | CP26: 2.628461 | CR26: 010116 | CS26: 2507413 | CT26: 520947 | CU26: 1986466 | CV26: 2338884.19 | CW26: 420604.38 | CX26: 1918279.81 | CZ26: 010116 | DA26: 32.63221788
A27: Distrito | B27: 010117 | C27: QUINJALCA | E27: 010117 | F27: 91.59 | G27: 9.040288241 | H27: 2800 | I27: - | J27: - | K27: 34 | L27: No | M27: Ninguno | N27: Quinjalca | P27: 010117 | Q27: 828.0000992 | R27: 106.6034927 | S27: 721.3966064 | T27: 11.97311306 | U27: 661.9628334 | V27: 33.79488945 | W27: 43.01981807 | X27: 24.52299953 | Y27: 21.43474245 | Z27: 28.96638393 | AA27: 22.404603 | AB27: 20.1947397 | AC27: 30.73847294 | AD27: 24.35125089 | AE27: 25.60959339 | AF27: 36.27079344 | AG27: 24.41830301 | AH27: 30.84456396 | AI27: 24.45774841 | AJ27: 15.81440735 | AK27: 17.96820927 | AL27: 15.00371051 | AM27: 3.179462194 | AN27: 1.035683155 | AO27: 30.56902599 | AP27: 32.10167933 | AQ27: 27.6332233 | AR27: 27.17370272 | AS27: 30.91451025 | AT27: 29.19617248 | AU27: 25.75594187 | AV27: 35.97614384 | AW27: 29.31374979 | AX27: 21.5456419 | AY27: 27.23838615 | AZ27: 20.78106785 | BA27: 15.0332551 | BB27: 9.585549831 | BC27: 11.6437006 | BD27: 4.267799973 | BE27: 3.159107924 | BF27: 1.051255465 | BG27: 1.029745102 | BI27: 010117 | BJ27: 1427 | BK27: 751 | BL27: 676 | BM27: 5 | BN27: 1266 | BO27: 6 | BP27: 17 | BQ27: 9 | BR27: 12 | BS27: 4 | BT27: 23 | BU27: 15 | BV27: 17 | BW27: 15 | BX27: 7 | BY27: 11 | BZ27: 13 | CA27: 1235 | CC27: 010117 | CD27: 819 | CE27: 807 | CF27: 792 | CG27: 785 | CH27: 778 | CJ27: 010117 | CK27: - | CL27: - | CM27: - | CN27: - | CO27: 47.119202 | CP27: 19.34588 | CR27: 010117 | CS27: 3384396 | CT27: 634022 | CU27: 2750374 | CV27: 2492903.08 | CW27: 577060.76 | CX27: 1915842.32 | CZ27: 010117 | DA27: 55.83561826
A28: Distrito | B28: 010118 | C28: SAN FRANCISCO DE DAGUAS | E28: 010118 | F28: 47.41 | G28: 6.770723476 | H28: 2280 | I28: - | J28: - | K28: 14 | L28: No | M28: Ninguno | N28: Daguas | P28: 010118 | Q28: 320.9999199 | R28: 242.6398315 | S28: 78.36008835 | T28: 2.256941795 | U28: 272.8583546 | V28: 11.27859831 | W28: 10.83567882 | X28: 12.98870027 | Y28: 10.96552289 | Z28: 4.404362917 | AA28: 6.596213341 | AB28: 7.540121675 | AC28: 10.6081295 | AD28: 8.520598888 | AE28: 8.984284401 | AF28: 11.81253147 | AG28: 17.029953 | AH28: 9.614355087 | AI28: 8.449792624 | AJ28: 5.315144062 | AK28: 8.588897228 | AL28: 2.12727356 | AM28: 1.064895153 | AN28: 0 | AO28: 6.729115248 | AP28: 10.77113891 | AQ28: 7.498468876 | AR28: 14.19072437 | AS28: 11.03062439 | AT28: 9.831839561 | AU28: 8.915315866 | AV28: 13.21489501 | AW28: 9.898535728 | AX28: 8.743983984 | AY28: 7.827699184 | AZ28: 13.23369765 | BA28: 14.19973564 | BB28: 8.716693878 | BC28: 8.62304306 | BD28: 5.386371136 | BE28: 3.325175524 | BF28: 2.137811184 | BG28: 0 | BI28: 010118 | BJ28: 414 | BK28: 215 | BL28: 199 | BM28: 2 | BN28: 373 | BO28: 4 | BP28: 3 | BQ28: 3 | BR28: 2 | BS28: 2 | BT28: 2 | BU28: 6 | BV28: 4 | BW28: - | BX28: 5 | BY28: 4 | BZ28: 2 | CA28: 362 | CC28: 010118 | CD28: 321 | CE28: 323 | CF28: 323 | CG28: 325 | CH28: 326 | CJ28: 010118 | CK28: - | CL28: - | CM28: - | CN28: - | CO28: 29.704094 | CP28: 7.683372 | CR28: 010118 | CS28: 1028468 | CT28: 601417 | CU28: 427051 | CV28: 527538.83 | CW28: 280162.61 | CX28: 247376.22 | CZ28: 010118 | DA28: 15.76170087
A29: Distrito | B29: 010119 | C29: SAN ISIDRO DE MAINO | E29: 010119 | F29: 101.67 | G29: 6.029310514 | H29: 2786 | I29: - | J29: - | K29: 81 | L29: No | M29: Ninguno | N29: Maino | P29: 010119 | Q29: 613.0000992 | R29: 451.8133698 | S29: 161.1867294 | T29: 11.74492502 | U29: 459.9735565 | V29: 26.57384729 | W29: 25.39652681 | X29: 21.99719191 | Y29: 17.9714756 | Z29: 11.58721721 | AA29: 25.21502113 | AB29: 22.94841623 | AC29: 22.90415859 | AD29: 16.57557392 | AE29: 7.322523594 | AF29: 19.87373257 | AG29: 14.63551331 | AH29: 7.304464579 | AI29: 9.393955469 | AJ29: 9.343848705 | AK29: 10.43937612 | AL29: 6.292359829 | AM29: 2.096541882 | AN29: 2.117707253 | AO29: 33.02607155 | AP29: 31.41331482 | AQ29: 36.68420935 | AR29: 23.35628223 | AS29: 23.97567654 | AT29: 27.35229588 | AU29: 23.07825851 | AV29: 27.6672821 | AW29: 22.30784321 | AX29: 16.06246376 | AY29: 11.74661827 | AZ29: 12.7210536 | BA29: 7.415590763 | BB29: 6.23971808 | BC29: 11.34841871 | BD29: 13.43550301 | BE29: 3.126389265 | BF29: 2.053689837 | BG29: 0 | BI29: 010119 | BJ29: 743 | BK29: 348 | BL29: 395 | BM29: 7 | BN29: 617 | BO29: 9 | BP29: 8 | BQ29: 12 | BR29: 6 | BS29: 9 | BT29: 14 | BU29: 14 | BV29: 7 | BW29: 9 | BX29: 13 | BY29: 10 | BZ29: 16 | CA29: 578 | CC29: 010119 | CD29: 608 | CE29: 599 | CF29: 590 | CG29: 585 | CH29: 581 | CJ29: 010119 | CK29: - | CL29: - | CM29: - | CN29: - | CO29: 43.370115 | CP29: 27.92597 | CR29: 010119 | CS29: 7510513 | CT29: 474714 | CU29: 7035799 | CV29: 7433945.34 | CW29: 436310.78 | CX29: 6997634.56 | CZ29: 010119 | DA29: 51.1827457
A30: Distrito | B30: 010120 | C30: SOLOCO | E30: 010120 | F30: 84.48 | G30: 15.4000947 | H30: 2434 | I30: - | J30: - | K30: 13 | L30: No | M30: Ninguno | N30: Soloco | P30: 010120 | Q30: 1300.999687 | R30: 240.6274643 | S30: 1060.372223 | T30: 16.12273979 | U30: 1008.718903 | V30: 53.66136837 | W30: 50.03782749 | X30: 40.04398251 | Y30: 40.2714839 | Z30: 35.06262994 | AA30: 38.01742649 | AB30: 33.6107502 | AC30: 48.11340427 | AD30: 29.16563272 | AE30: 47.38860893 | AF30: 36.69043732 | AG30: 24.10930037 | AH30: 26.25274563 | AI30: 33.53108215 | AJ30: 20.89180565 | AK30: 19.87357235 | AL30: 12.60673666 | AM30: 8.42515111 | AN30: 3.16504097 | AO30: 61.09712124 | AP30: 48.44965649 | AQ30: 77.05651665 | AR30: 53.48642254 | AS30: 38.41201973 | AT30: 47.49010754 | AU30: 53.79338169 | AV30: 36.42234421 | AW30: 35.20657444 | AX30: 60.88188934 | AY30: 44.30884123 | AZ30: 44.01858664 | BA30: 25.40148354 | BB30: 12.55124807 | BC30: 16.62356091 | BD30: 21.83418369 | BE30: 13.62433243 | BF30: 7.359228373 | BG30: 2.063097954 | BI30: 010120 | BJ30: 1612 | BK30: 754 | BL30: 858 | BM30: 16 | BN30: 1346 | BO30: 16 | BP30: 23 | BQ30: 20 | BR30: 19 | BS30: 17 | BT30: 20 | BU30: 30 | BV30: 26 | BW30: 22 | BX30: 18 | BY30: 21 | BZ30: 34 | CA30: 1273 | CC30: 010120 | CD30: 1293 | CE30: 1279 | CF30: 1261 | CG30: 1252 | CH30: 1243 | CJ30: 010120 | CK30: - | CL30: - | CM30: - | CN30: - | CO30: 41.062364 | CP30: 21.18722 | CR30: 010120 | CS30: 1062532 | CT30: 486170 | CU30: 576362 | CV30: 646502.18 | CW30: 452706.41 | CX30: 193795.77 | CZ30: 010120 | DA30: 93.45356798
A31: Distrito | B31: 010121 | C31: SONCHE | E31: 010121 | F31: 113.26 | G31: 2.366236977 | H31: 2086 | I31: - | J31: - | K31: 11 | L31: No | M31: Ninguno | N31: San Juan de Sonche | P31: 010121 | Q31: 268.0001907 | R31: 110.8962173 | S31: 157.1039734 | T31: 1.109449029 | U31: 201.7997589 | V31: 15.37440395 | W31: 10.81434011 | X31: 12.87767792 | Y31: 14.00587702 | Z31: 7.62506628 | AA31: 11.89924669 | AB31: 5.326592207 | AC31: 10.65541101 | AD31: 10.60169911 | AE31: 5.350563526 | AF31: 8.583680153 | AG31: 3.165902257 | AH31: 4.316105366 | AI31: 2.143940926 | AJ31: 3.21133709 | AK31: 5.327185273 | AL31: 2.122488976 | AM31: 0 | AN31: 0 | AO31: 13.21167946 | AP31: 10.70281649 | AQ31: 8.576354027 | AR31: 13.18336678 | AS31: 7.872254372 | AT31: 5.658077121 | AU31: 8.986757517 | AV31: 8.731025219 | AW31: 13.15854359 | AX31: 12.01980305 | AY31: 6.593897343 | AZ31: 2.208736658 | BA31: 5.498972893 | BB31: 4.257295132 | BC31: 4.269005656 | BD31: 4.22717309 | BE31: 2.174412251 | BF31: 2.212787628 | BG31: 1.05570066 | BI31: 010121 | BJ31: 427 | BK31: 205 | BL31: 222 | BM31: 5 | BN31: 360 | BO31: 3 | BP31: 5 | BQ31: 6 | BR31: 7 | BS31: 4 | BT31: 7 | BU31: 2 | BV31: 8 | BW31: 5 | BX31: 2 | BY31: 2 | BZ31: 7 | CA31: 349 | CC31: 010121 | CD31: 270 | CE31: 274 | CF31: 277 | CG31: 279 | CH31: 280 | CJ31: 010121 | CK31: - | CL31: - | CM31: - | CN31: - | CO31: 55.850202 | CP31: 52.77253 | CR31: 010121 | CS31: 3876019 | CT31: 979964 | CU31: 2896055 | CV31: 2918608.25 | CW31: 794409.49 | CX31: 2124198.76 | CZ31: 010121 | DA31: 26.40913117
A32: Provincia | B32: 010200 | C32: BAGUA | E32: 010200 | F32: 5652.72 | G32: 14.54043363 | H32: 421 | I32: 1 | J32: 6 | K32: 345 | L32: Sí | M32: Ecuador | N32: Bagua | P32: 010200 | Q32: 82192.99393 | R32: 41866.64441 | S32: 40326.34952 | T32: 1636.264273 | U32: 56235.45937 | V32: 5420.699593 | W32: 4680.834047 | X32: 4418.137762 | Y32: 3475.209585 | Z32: 3309.512426 | AA32: 3202.686857 | AB32: 3028.907835 | AC32: 2594.595847 | AD32: 2389.954906 | AE32: 2129.315736 | AF32: 1722.152966 | AG32: 1344.352407 | AH32: 1040.51598 | AI32: 705.7577114 | AJ32: 534.5940247 | AK32: 376.1714511 | AL32: 247.7759182 | AM32: 122.1395543 | AN32: 57.95032227 | AO32: 5443.699764 | AP32: 4769.031788 | AQ32: 4515.408539 | AR32: 3502.025658 | AS32: 2933.22434 | AT32: 2971.296343 | AU32: 2870.62915 | AV32: 2594.454441 | AW32: 2464.755932 | AX32: 2223.272764 | AY32: 1965.711042 | AZ32: 1535.241546 | BA32: 1204.005816 | BB32: 843.3483467 | BC32: 621.9100804 | BD32: 482.6322193 | BE32: 283.3337021 | BF32: 101.1801338 | BG32: 66.56764007 | BI32: 010200 | BJ32: 100999 | BK32: 48939 | BL32: 52060 | BM32: 1400 | BN32: 71703 | BO32: 2071 | BP32: 2264 | BQ32: 2207 | BR32: 2297 | BS32: 2187 | BT32: 2373 | BU32: 2382 | BV32: 2279 | BW32: 2184 | BX32: 2118 | BY32: 2174 | BZ32: 2193 | CA32: 65218 | CC32: 010200 | CD32: 82816 | CE32: 83850 | CF32: 84672 | CG32: 85375 | CH32: 85835 | CJ32: 010200 | CK32: - | CL32: - | CM32: - | CN32: - | CO32: 34.843027 | CP32: 23.06814018 | CR32: 010200 | CS32: 529435419 | CT32: 363615878 | CU32: 165819541 | CV32: 497983553.4 | CW32: 347497752.5 | CX32: 150485800.9 | CZ32: 010200 | DA32: 8949.352298
A33: Distrito | B33: 010201 | C33: BAGUA | E33: 010201 | F33: 150.99 | G33: 190.9795351 | H33: 421 | I33: - | J33: - | K33: 24 | L33: No | M33: Ninguno | N33: Bagua | P33: 010201 | Q33: 28835.99915 | R33: 26241.41016 | S33: 2594.588989 | T33: 442.0779085 | U33: 21750.7663 | V33: 1436.150665 | W33: 1248.952431 | X33: 1288.689041 | Y33: 1226.127296 | Z33: 1303.97155 | AA33: 1229.985344 | AB33: 1244.803711 | AC33: 1015.576614 | AD33: 1013.356148 | AE33: 973.2598419 | AF33: 795.6104927 | AG33: 619.1742172 | AH33: 406.4046898 | AI33: 270.7979431 | AJ33: 199.5341759 | AK33: 150.0408974 | AL33: 90.46510077 | AM33: 52.4793973 | AN33: 23.59018874 | AO33: 1513.10305 | AP33: 1253.406082 | AQ33: 1280.711319 | AR33: 1193.275406 | AS33: 1167.612328 | AT33: 1048.973869 | AU33: 1074.222862 | AV33: 960.1198044 | AW33: 948.1319275 | AX33: 895.7526321 | AY33: 845.0441437 | AZ33: 686.0873795 | BA33: 469.7669182 | BB33: 327.1750412 | BC33: 212.2190552 | BD33: 186.1432266 | BE33: 110.2569399 | BF33: 45.47531128 | BG33: 29.55365276 | BI33: 010201 | BJ33: 28586 | BK33: 14234 | BL33: 14352 | BM33: 485 | BN33: 21199 | BO33: 521 | BP33: 542 | BQ33: 520 | BR33: 580 | BS33: 531 | BT33: 554 | BU33: 525 | BV33: 510 | BW33: 486 | BX33: 450 | BY33: 527 | BZ33: 529 | CA33: 19693 | CC33: 010201 | CD33: 29096 | CE33: 29540 | CF33: 29905 | CG33: 30240 | CH33: 30479 | CJ33: 010201 | CK33: - | CL33: - | CM33: - | CN33: - | CO33: 16.212835 | CP33: 4.467983 | CR33: 010201 | CS33: 145820687 | CT33: 114046254 | CU33: 31774433 | CV33: 132789765.1 | CW33: 104617028.8 | CX33: 28172736.25 | CZ33: 010201 | DA33: 2419.055081
A34: Distrito | B34: 010202 | C34: ARAMANGO | E34: 010202 | F34: 809.07 | G34: 12.96179564 | H34: 531 | I34: - | J34: - | K34: 87 | L34: No | M34: Ninguno | N34: Aramango | P34: 010202 | Q34: 10486.99487 | R34: 2935.183594 | S34: 7551.811279 | T34: 195.5965691 | U34: 7279.066162 | V34: 628.8170013 | W34: 597.5669861 | X34: 508.3263702 | Y34: 430.138031 | Z34: 380.9371948 | AA34: 376.2185516 | AB34: 354.6921082 | AC34: 314.3780289 | AD34: 289.5983734 | AE34: 294.5635147 | AF34: 224.7884674 | AG34: 172.3105087 | AH34: 110.3882065 | AI34: 87.7232914 | AJ34: 83.86814117 | AK34: 72.44518089 | AL34: 35.31038475 | AM34: 15.88522863 | AN34: 10.77018261 | AO34: 675.56427 | AP34: 566.8577271 | AQ34: 641.5753326 | AR34: 454.8977966 | AS34: 359.0664673 | AT34: 410.0238113 | AU34: 376.0980988 | AV34: 326.7232056 | AW34: 307.2564316 | AX34: 344.7187119 | AY34: 292.4558334 | AZ34: 217.0408554 | BA34: 164.8771248 | BB34: 105.4068832 | BC34: 99.14503098 | BD34: 87.61103821 | BE34: 47.8839016 | BF34: 11.59413004 | BG34: 9.472590446 | BI34: 010202 | BJ34: 12836 | BK34: 6032 | BL34: 6804 | BM34: 163 | BN34: 9626 | BO34: 200 | BP34: 247 | BQ34: 234 | BR34: 247 | BS34: 245 | BT34: 275 | BU34: 266 | BV34: 250 | BW34: 243 | BX34: 256 | BY34: 259 | BZ34: 264 | CA34: 8847 | CC34: 010202 | CD34: 10422 | CE34: 10300 | CF34: 10149 | CG34: 10049 | CH34: 9919 | CJ34: 010202 | CK34: - | CL34: - | CM34: - | CN34: - | CO34: 38.525807 | CP34: 19.27075 | CR34: 010202 | CS34: 13776017 | CT34: 4748369 | CU34: 9027648 | CV34: 9538751.89 | CW34: 4503284.4 | CX34: 5035467.49 | CZ34: 010202 | DA34: 1082.56869
A35: Distrito | B35: 010203 | C35: COPALLÍN | E35: 010203 | F35: 99.05 | G35: 50.19687027 | H35: 700 | I35: - | J35: - | K35: 31 | L35: No | M35: Ninguno | N35: Copallín | P35: 010203 | Q35: 4971.999268 | R35: 2466.984741 | S35: 2505.014526 | T35: 69.02184868 | U35: 3783.605347 | V35: 221.4386673 | W35: 215.3229141 | X35: 234.9190216 | Y35: 163.263649 | Z35: 139.5015564 | AA35: 162.7494202 | AB35: 197.7899933 | AC35: 184.5931854 | AD35: 184.9824982 | AE35: 132.84095 | AF35: 127.9846153 | AG35: 108.5730782 | AH35: 106.5169029 | AI35: 74.04183197 | AJ35: 60.81073952 | AK35: 43.64512444 | AL35: 26.94019508 | AM35: 15.25959206 | AN35: 1.085615993 | AO35: 228.0729218 | AP35: 237.8405914 | AQ35: 228.221489 | AR35: 198.9051514 | AS35: 154.2948532 | AT35: 149.1033554 | AU35: 193.8264313 | AV35: 201.7168198 | AW35: 178.0688629 | AX35: 155.5072861 | AY35: 147.4774933 | AZ35: 118.2264137 | BA35: 104.4252739 | BB35: 102.1007462 | BC35: 69.40774918 | BD35: 54.85278702 | BE35: 28.3955555 | BF35: 12.75464439 | BG35: 6.541248679 | BI35: 010203 | BJ35: 5744 | BK35: 2733 | BL35: 3011 | BM35: 63 | BN35: 4620 | BO35: 77 | BP35: 88 | BQ35: 76 | BR35: 90 | BS35: 78 | BT35: 96 | BU35: 116 | BV35: 105 | BW35: 91 | BX35: 82 | BY35: 115 | BZ35: 101 | CA35: 4322 | CC35: 010203 | CD35: 4903 | CE35: 4787 | CF35: 4660 | CG35: 4563 | CH35: 4452 | CJ35: 010203 | CK35: - | CL35: - | CM35: - | CN35: - | CO35: 24.530258 | CP35: 11.24363 | CR35: 010203 | CS35: 45753332 | CT35: 2179609 | CU35: 43573723 | CV35: 44587982.51 | CW35: 1909269.93 | CX35: 42678712.58 | CZ35: 010203 | DA35: 373.2382735
A36: Distrito | B36: 010204 | C36: EL PARCO | E36: 010204 | F36: 18.48 | G36: 69.96753247 | H36: 597 | I36: - | J36: - | K36: 9 | L36: No | M36: Ninguno | N36: El Parco | P36: 010204 | Q36: 1292.999664 | R36: 671.3691406 | S36: 621.6305237 | T36: 18.24122334 | U36: 957.6635284 | V36: 55.86471558 | W36: 58.69532967 | X36: 63.62801933 | Y36: 49.74207115 | Z36: 51.43504906 | AA36: 46.9411068 | AB36: 36.03373528 | AC36: 41.79368496 | AD36: 38.64097977 | AE36: 19.04976368 | AF36: 31.28578568 | AG36: 33.68140984 | AH36: 24.23902512 | AI36: 13.71903038 | AJ36: 19.89349556 | AK36: 10.39442396 | AL36: 10.48805118 | AM36: 1.041763544 | AN36: 3.126269341 | AO36: 81.29683304 | AP36: 51.52701187 | AQ36: 74.07103729 | AR36: 46.21755219 | AS36: 44.89542198 | AT36: 46.74696541 | AU36: 44.60063934 | AV36: 43.72838211 | AW36: 37.36511612 | AX36: 32.56449699 | AY36: 42.47494316 | AZ36: 30.75423336 | BA36: 22.2810154 | BB36: 31.61970139 | BC36: 21.03333521 | BD36: 15.45205307 | BE36: 11.48409033 | BF36: 4.117610931 | BG36: 1.075491905 | BI36: 010204 | BJ36: 1807 | BK36: 866 | BL36: 941 | BM36: 19 | BN36: 1467 | BO36: 22 | BP36: 23 | BQ36: 32 | BR36: 24 | BS36: 34 | BT36: 23 | BU36: 29 | BV36: 25 | BW36: 28 | BX36: 17 | BY36: 29 | BZ36: 37 | CA36: 1384 | CC36: 010204 | CD36: 1294 | CE36: 1292 | CF36: 1287 | CG36: 1281 | CH36: 1273 | CJ36: 010204 | CK36: - | CL36: - | CM36: - | CN36: - | CO36: 35.249588 | CP36: 12.15905 | CR36: 010204 | CS36: 8319719 | CT36: 1539361 | CU36: 6780358 | CV36: 6576167.1 | CW36: 1397237.53 | CX36: 5178929.57 | CZ36: 010204 | DA36: 114.6344231
A37: Distrito | B37: 010205 | C37: IMAZA | E37: 010205 | F37: 4430.84 | G37: 6.737322946 | H37: 347 | I37: - | J37: - | K37: 159 | L37: Sí | M37: Ecuador | N37: Chiriaco | P37: 010205 | Q37: 29851.99927 | R37: 5376.742432 | S37: 24475.25684 | T37: 799.1401978 | U37: 17497.03601 | V37: 2724.475739 | W37: 2251.317047 | X37: 2034.610931 | Y37: 1361.962769 | Z37: 1220.918243 | AA37: 1145.724884 | AB37: 963.0826416 | AC37: 811.5769196 | AD37: 666.1229553 | AE37: 516.9949799 | AF37: 355.8336411 | AG37: 269.9211082 | AH37: 274.5533142 | AI37: 169.9333038 | AJ37: 94.57071495 | AK37: 40.28046036 | AL37: 26.75010967 | AM37: 11.84998226 | AN37: 10.88466167 | AO37: 2559.702026 | AP37: 2330.14978 | AQ37: 1930.991455 | AR37: 1343.044418 | AS37: 986.3803711 | AT37: 1080.265549 | AU37: 939.6566772 | AV37: 849.8874207 | AW37: 800.4635162 | AX37: 585.519989 | AY37: 428.0401077 | AZ37: 338.8030167 | BA37: 297.7438774 | BB37: 152.0061264 | BC37: 151.7308674 | BD37: 68.72153282 | BE37: 36.85861158 | BF37: 11.38152981 | BG37: 9.286435604 | BI37: 010205 | BJ37: 42415 | BK37: 20616 | BL37: 21799 | BM37: 574 | BN37: 26943 | BO37: 1169 | BP37: 1223 | BQ37: 1221 | BR37: 1230 | BS37: 1176 | BT37: 1282 | BU37: 1294 | BV37: 1225 | BW37: 1154 | BX37: 1146 | BY37: 1061 | BZ37: 1083 | CA37: 23653 | CC37: 010205 | CD37: 30392 | CE37: 31300 | CF37: 32136 | CG37: 32789 | CH37: 33338 | CJ37: 010205 | CK37: - | CL37: - | CM37: - | CN37: - | CO37: 53.94969 | CP37: 48.88884 | CR37: 010205 | CS37: 80053444 | CT37: 60618547 | CU37: 19434897 | CV37: 76426563.59 | CW37: 58451572.47 | CX37: 17974991.12 | CZ37: 010205 | DA37: 4350.056075
A38: Distrito | B38: 010206 | C38: LA PECA | E38: 010206 | F38: 144.29 | G38: 46.80158015 | H38: 900 | I38: - | J38: - | K38: 35 | L38: No | M38: Ninguno | N38: La Peca | P38: 010206 | Q38: 6753.001709 | R38: 4174.954346 | S38: 2578.047363 | T38: 112.1865253 | U38: 4967.322021 | V38: 353.9528046 | W38: 308.9793396 | X38: 287.9643784 | Y38: 243.975769 | Z38: 212.7488327 | AA38: 241.0675507 | AB38: 232.5056458 | AC38: 226.6774139 | AD38: 197.253952 | AE38: 192.6066856 | AF38: 186.6499634 | AG38: 140.6920853 | AH38: 118.4138412 | AI38: 89.54231071 | AJ38: 75.91675758 | AK38: 59.36536407 | AL38: 57.8220768 | AM38: 25.62359047 | AN38: 8.493403912 | AO38: 385.9606628 | AP38: 329.2505951 | AQ38: 359.8379059 | AR38: 265.6853333 | AS38: 220.9748993 | AT38: 236.1827927 | AU38: 242.2244415 | AV38: 212.2788086 | AW38: 193.4700775 | AX38: 209.2096481 | AY38: 210.2185211 | AZ38: 144.3296471 | BA38: 144.9116058 | BB38: 125.0398483 | BC38: 68.37404251 | BD38: 69.85158157 | BE38: 48.4546032 | BF38: 15.85690737 | BG38: 10.63822067 | BI38: 010206 | BJ38: 9611 | BK38: 4458 | BL38: 5153 | BM38: 96 | BN38: 7848 | BO38: 82 | BP38: 141 | BQ38: 124 | BR38: 126 | BS38: 123 | BT38: 143 | BU38: 152 | BV38: 164 | BW38: 182 | BX38: 167 | BY38: 183 | BZ38: 179 | CA38: 7319 | CC38: 010206 | CD38: 6709 | CE38: 6631 | CF38: 6535 | CG38: 6453 | CH38: 6374 | CJ38: 010206 | CK38: - | CL38: - | CM38: - | CN38: - | CO38: 34.761666 | CP38: 21.7995 | CR38: 010206 | CS38: 10420043 | CT38: 6925200 | CU38: 3494843 | CV38: 8886206.11 | CW38: 6803870.98 | CX38: 2082335.13 | CZ38: 010206 | DA38: 609.7997552
A39: Provincia | B39: 010300 | C39: BONGARÁ | E39: 010300 | F39: 2869.65 | G39: 9.438433258 | H39: 1991 | I39: 1 | J39: 12 | K39: 291 | L39: No | M39: Ninguno | N39: Jumbilla | P39: 010300 | Q39: 27085.00037 | R39: 16548.25271 | S39: 10536.74765 | T39: 396.8776032 | U39: 19924.36421 | V39: 1452.336632 | W39: 1284.125861 | X39: 1374.995401 | Y39: 965.1744406 | Z39: 974.0507081 | AA39: 1049.759621 | AB39: 957.2927542 | AC39: 928.1527058 | AD39: 907.323812 | AE39: 819.2835244 | AF39: 655.5038165 | AG39: 560.1844525 | AH39: 424.5150532 | AI39: 309.8529978 | AJ39: 296.4390137 | AK39: 208.9738139 | AL39: 165.8326536 | AM39: 90.70511997 | AN39: 39.93118298 | AO39: 1502.301868 | AP39: 1295.849961 | AQ39: 1327.326355 | AR39: 1075.532233 | AS39: 988.2284245 | AT39: 983.4713351 | AU39: 1001.958862 | AV39: 962.6555479 | AW39: 853.4041593 | AX39: 837.7652516 | AY39: 721.130931 | AZ39: 605.4361302 | BA39: 474.0837007 | BB39: 309.9885216 | BC39: 259.1297141 | BD39: 205.3145533 | BE39: 122.6272317 | BF39: 68.47652495 | BG39: 25.88618076 | BI39: 010300 | BJ39: 30055 | BK39: 14910 | BL39: 15145 | BM39: 359 | BN39: 23302 | BO39: 464 | BP39: 467 | BQ39: 532 | BR39: 509 | BS39: 571 | BT39: 533 | BU39: 546 | BV39: 553 | BW39: 525 | BX39: 489 | BY39: 532 | BZ39: 560 | CA39: 21721 | CC39: 010300 | CD39: 27042 | CE39: 26972 | CF39: 26830 | CG39: 26655 | CH39: 26449 | CJ39: 010300 | CK39: - | CL39: - | CM39: - | CN39: - | CO39: 33.240504 | CP39: 10.74024632 | CR39: 010300 | CS39: 74485482 | CT39: 28209006 | CU39: 46276476 | CV39: 55831883.75 | CW39: 25401396.61 | CX39: 30430487.14 | CZ39: 010300 | DA39: 2407.352339
A40: Distrito | B40: 010301 | C40: JUMBILLA | E40: 010301 | F40: 154.18 | G40: 8.983006875 | H40: 1991 | I40: - | J40: - | K40: 30 | L40: No | M40: Ninguno | N40: Jumbilla | P40: 010301 | Q40: 1384.999863 | R40: 1139.926086 | S40: 245.0737762 | T40: 16.81142306 | U40: 1078.784401 | V40: 58.97549248 | W40: 41.7318697 | X40: 63.20639038 | Y40: 47.40249109 | Z40: 45.59005165 | AA40: 35.31143856 | AB40: 45.23345137 | AC40: 37.01219225 | AD40: 65.46580982 | AE40: 53.672925 | AF40: 43.06227541 | AG40: 46.0094986 | AH40: 19.65197408 | AI40: 27.92266273 | AJ40: 19.55507278 | AK40: 13.41053808 | AL40: 12.45758581 | AM40: 6.23218441 | AN40: 1.034101963 | AO40: 73.36631012 | AP40: 63.95156097 | AQ40: 63.03633308 | AR40: 44.25022459 | AS40: 48.94939041 | AT40: 39.13492393 | AU40: 52.92775917 | AV40: 47.70536804 | AW40: 48.50234795 | AX40: 40.1433444 | AY40: 56.2635994 | AZ40: 46.69906521 | BA40: 26.90432596 | BB40: 15.43964481 | BC40: 15.31327009 | BD40: 10.20780659 | BE40: 5.132346153 | BF40: 4.134236932 | BG40: 0 | BI40: 010301 | BJ40: 1194 | BK40: 597 | BL40: 597 | BM40: 15 | BN40: 925 | BO40: 15 | BP40: 18 | BQ40: 18 | BR40: 20 | BS40: 34 | BT40: 26 | BU40: 20 | BV40: 16 | BW40: 27 | BX40: 21 | BY40: 26 | BZ40: 26 | CA40: 852 | CC40: 010301 | CD40: 1373 | CE40: 1354 | CF40: 1332 | CG40: 1309 | CH40: 1283 | CJ40: 010301 | CK40: - | CL40: - | CM40: - | CN40: - | CO40: 29.547678 | CP40: 5.12921 | CR40: 010301 | CS40: 6367666 | CT40: 2543633 | CU40: 3824033 | CV40: 5631442.61 | CW40: 2148948.12 | CX40: 3482494.49 | CZ40: 010301 | DA40: 98.94319081
A41: Distrito | B41: 010302 | C41: CHISQUILLA | E41: 010302 | F41: 174.96 | G41: 1.851851852 | H41: 2013 | I41: - | J41: - | K41: 35 | L41: No | M41: Ninguno | N41: Chisquilla | P41: 010302 | Q41: 324.0001183 | R41: 126.0009422 | S41: 197.999176 | T41: 6.464731216 | U41: 231.3896904 | V41: 16.28482628 | W41: 13.74692392 | X41: 6.365429282 | Y41: 10.59723568 | Z41: 11.66880274 | AA41: 12.66875124 | AB41: 5.252398014 | AC41: 13.69644165 | AD41: 9.398607731 | AE41: 8.4051826 | AF41: 8.35099411 | AG41: 8.267570019 | AH41: 1.059961557 | AI41: 6.273082733 | AJ41: 6.289911032 | AK41: 6.228080273 | AL41: 2.090678692 | AM41: 0 | AN41: 0 | AO41: 27.85761642 | AP41: 21.00194693 | AQ41: 14.74960232 | AR41: 8.445542336 | AS41: 9.731805801 | AT41: 12.00100136 | AU41: 9.783175945 | AV41: 7.45183444 | AW41: 9.531533241 | AX41: 11.54770136 | AY41: 11.69228888 | AZ41: 8.430617809 | BA41: 11.61821222 | BB41: 5.266996026 | BC41: 5.157592297 | BD41: 2.064808846 | BE41: 1.022961259 | BF41: 0 | BG41: 0 | BI41: 010302 | BJ41: 548 | BK41: 252 | BL41: 296 | BM41: 3 | BN41: 443 | BO41: 9 | BP41: 7 | BQ41: 8 | BR41: 6 | BS41: 12 | BT41: 6 | BU41: 9 | BV41: 7 | BW41: 6 | BX41: 8 | BY41: 4 | BZ41: 6 | CA41: 425 | CC41: 010302 | CD41: 323 | CE41: 321 | CF41: 319 | CG41: 317 | CH41: 313 | CJ41: 010302 | CK41: - | CL41: - | CM41: - | CN41: - | CO41: 42.24183 | CP41: 22.56179 | CR41: 010302 | CS41: 3797562 | CT41: 936392 | CU41: 2861170 | CV41: 2083982.34 | CW41: 765866.51 | CX41: 1318115.83 | CZ41: 010302 | DA41: 33.41669333
A42: Distrito | B42: 010303 | C42: CHURUJA | E42: 010303 | F42: 33.34 | G42: 8.908218356 | H42: 1383 | I42: - | J42: - | K42: 8 | L42: No | M42: Ninguno | N42: Churuja | P42: 010303 | Q42: 297.0000005 | R42: 286.5932465 | S42: 10.40675402 | T42: 3.129980803 | U42: 224.348155 | V42: 13.6183548 | W42: 15.57993412 | X42: 16.52132607 | Y42: 3.097674847 | Z42: 11.43398237 | AA42: 13.49298286 | AB42: 9.236907005 | AC42: 11.25309479 | AD42: 7.149996281 | AE42: 11.32816601 | AF42: 8.197745204 | AG42: 6.12912941 | AH42: 2.065797091 | AI42: 3.088972569 | AJ42: 5.124201775 | AK42: 3.07834816 | AL42: 2.061591625 | AM42: 2.061487675 | AN42: 1.034617186 | AO42: 15.61445427 | AP42: 10.29387474 | AQ42: 13.40022993 | AR42: 5.178029537 | AS42: 11.68632197 | AT42: 13.6475563 | AU42: 5.210568309 | AV42: 6.226742268 | AW42: 10.33351898 | AX42: 17.50815535 | AY42: 10.45432723 | AZ42: 6.248587608 | BA42: 6.240971565 | BB42: 4.107194901 | BC42: 6.103961945 | BD42: 1.014498472 | BE42: 5.10495913 | BF42: 2.045187473 | BG42: 1.026563287 | BI42: 010303 | BJ42: 433 | BK42: 201 | BL42: 232 | BM42: 7 | BN42: 373 | BO42: 3 | BP42: 4 | BQ42: 5 | BR42: 3 | BS42: 5 | BT42: 3 | BU42: 4 | BV42: 4 | BW42: 5 | BX42: 2 | BY42: 3 | BZ42: 5 | CA42: 363 | CC42: 010303 | CD42: 299 | CE42: 301 | CF42: 301 | CG42: 300 | CH42: 298 | CJ42: 010303 | CK42: - | CL42: - | CM42: - | CN42: - | CO42: 20.78695 | CP42: 1.867667 | CR42: 010303 | CS42: 1057909 | CT42: 434511 | CU42: 623398 | CV42: 1014253.16 | CW42: 408125.34 | CX42: 606127.82 | CZ42: 010303 | DA42: 24.06414759
A43: Distrito | B43: 010304 | C43: COROSHA | E43: 010304 | F43: 45.67 | G43: 17.62645062 | H43: 2180 | I43: - | J43: - | K43: 19 | L43: No | M43: Ninguno | N43: Corosha | P43: 010304 | Q43: 805.0000229 | R43: 79.76885223 | S43: 725.2311707 | T43: 15.87169552 | U43: 542.7605 | V43: 53.84764481 | W43: 34.46538734 | X43: 53.9221487 | Y43: 31.14154482 | Z43: 31.4441247 | AA43: 34.38032579 | AB43: 32.03434658 | AC43: 29.95928717 | AD43: 27.70523834 | AE43: 14.47829473 | AF43: 15.43177938 | AG43: 12.33576632 | AH43: 9.32657361 | AI43: 5.183344364 | AJ43: 6.178717613 | AK43: 4.134633541 | AL43: 1.035903811 | AM43: 1.029816389 | AN43: 1.043470502 | AO43: 64.23160696 | AP43: 36.20728946 | AQ43: 62.00098896 | AR43: 30.27729368 | AS43: 20.25143814 | AT43: 27.90688777 | AU43: 28.84349775 | AV43: 29.21008015 | AW43: 30.19284558 | AX43: 13.48366451 | AY43: 14.66160965 | AZ43: 16.69118738 | BA43: 11.45272541 | BB43: 8.225648046 | BC43: 0 | BD43: 7.138819695 | BE43: 1.030571818 | BF43: 3.081171513 | BG43: 1.034361362 | BI43: 010304 | BJ43: 1005 | BK43: 514 | BL43: 491 | BM43: 14 | BN43: 756 | BO43: 12 | BP43: 23 | BQ43: 22 | BR43: 22 | BS43: 26 | BT43: 20 | BU43: 15 | BV43: 15 | BW43: 12 | BX43: 11 | BY43: 22 | BZ43: 28 | CA43: 695 | CC43: 010304 | CD43: 810 | CE43: 819 | CF43: 825 | CG43: 831 | CH43: 835 | CJ43: 010304 | CK43: - | CL43: - | CM43: - | CN43: - | CO43: 54.796368 | CP43: 24.57763 | CR43: 010304 | CS43: 2500509 | CT43: 1266746 | CU43: 1233763 | CV43: 1568137.64 | CW43: 1194048.14 | CX43: 374089.5 | CZ43: 010304 | DA43: 100.3436038
A44: Distrito | B44: 010305 | C44: CUISPES | E44: 010305 | F44: 110.72 | G44: 6.394508671 | H44: 1937 | I44: - | J44: - | K44: 23 | L44: No | M44: Ninguno | N44: Cuispes | P44: 010305 | Q44: 707.9997406 | R44: 393.6222534 | S44: 314.3774872 | T44: 8.570147514 | U44: 537.8762283 | V44: 38.95079994 | W44: 34.07067871 | X44: 52.4499588 | Y44: 19.96029282 | Z44: 19.24503946 | AA44: 23.15619755 | AB44: 23.04462433 | AC44: 20.96861362 | AD44: 21.93908215 | AE44: 22.9612608 | AF44: 20.8013916 | AG44: 12.46366692 | AH44: 14.79565525 | AI44: 12.55050659 | AJ44: 13.60499001 | AK44: 13.60493183 | AL44: 4.177674294 | AM44: 2.11246109 | AN44: 1.093243957 | AO44: 22.47877026 | AP44: 30.48609066 | AQ44: 34.85871696 | AR44: 25.6006937 | AS44: 24.79813671 | AT44: 21.91197014 | AU44: 22.90883541 | AV44: 36.12553787 | AW44: 16.89906073 | AX44: 26.30057144 | AY44: 22.309412 | AZ44: 14.78490877 | BA44: 8.475171089 | BB44: 7.359714985 | BC44: 5.235630035 | BD44: 12.41029835 | BE44: 2.076785803 | BF44: 1.028360963 | BG44: 0 | BI44: 010305 | BJ44: 923 | BK44: 463 | BL44: 460 | BM44: 7 | BN44: 778 | BO44: 10 | BP44: 13 | BQ44: 13 | BR44: 6 | BS44: 11 | BT44: 13 | BU44: 11 | BV44: 8 | BW44: 15 | BX44: 17 | BY44: 17 | BZ44: 15 | CA44: 729 | CC44: 010305 | CD44: 702 | CE44: 694 | CF44: 684 | CG44: 673 | CH44: 662 | CJ44: 010305 | CK44: - | CL44: - | CM44: - | CN44: - | CO44: 45.831589 | CP44: 12.79052 | CR44: 010305 | CS44: 1632117 | CT44: 505066 | CU44: 1127051 | CV44: 1605032.58 | CW44: 484216.3 | CX44: 1120816.28 | CZ44: 010305 | DA44: 50.67153347
A45: Distrito | B45: 010306 | C45: FLORIDA | E45: 010306 | F45: 203.22 | G45: 31.46835941 | H45: 2225 | I45: - | J45: - | K45: 42 | L45: No | M45: Ninguno | N45: Florida (Pomacochas) | P45: 010306 | Q45: 6395.000122 | R45: 3868.938965 | S45: 2526.061157 | T45: 107.5347319 | U45: 4659.376343 | V45: 356.0505981 | W45: 310.3475189 | X45: 341.4944611 | Y45: 232.4382553 | Z45: 230.6779251 | AA45: 248.8883209 | AB45: 214.1830368 | AC45: 253.5697632 | AD45: 229.2866898 | AE45: 208.4227295 | AF45: 135.1526031 | AG45: 110.1635742 | AH45: 106.6236687 | AI45: 48.49495506 | AJ45: 65.87473869 | AK45: 34.1696043 | AL45: 35.64723206 | AM45: 19.06650639 | AN45: 9.306452751 | AO45: 369.7569275 | AP45: 311.3227997 | AQ45: 328.1595917 | AR45: 275.7138367 | AS45: 218.6841736 | AT45: 219.4135513 | AU45: 231.0455933 | AV45: 211.9849243 | AW45: 218.2989197 | AX45: 199.1315002 | AY45: 162.6395874 | AZ45: 129.870739 | BA45: 102.9514313 | BB45: 69.0014267 | BC45: 68.56400681 | BD45: 40.4032135 | BE45: 22.48103523 | BF45: 19.57674694 | BG45: 6.141841173 | BI45: 010306 | BJ45: 6625 | BK45: 3295 | BL45: 3330 | BM45: 74 | BN45: 5078 | BO45: 121 | BP45: 103 | BQ45: 110 | BR45: 105 | BS45: 127 | BT45: 138 | BU45: 124 | BV45: 131 | BW45: 118 | BX45: 111 | BY45: 130 | BZ45: 117 | CA45: 4720 | CC45: 010306 | CD45: 6400 | CE45: 6409 | CF45: 6397 | CG45: 6380 | CH45: 6353 | CJ45: 010306 | CK45: - | CL45: - | CM45: - | CN45: - | CO45: 33.682214 | CP45: 6.34247 | CR45: 010306 | CS45: 16822265 | CT45: 3474376 | CU45: 13347889 | CV45: 11186675.77 | CW45: 3081573.38 | CX45: 8105102.39 | CZ45: 010306 | DA45: 590.7221729
A46: Distrito | B46: 010307 | C46: JAZAN | E46: 010307 | F46: 88.83 | G46: 90.72385455 | H46: 1299 | I46: - | J46: - | K46: 26 | L46: No | M46: Ninguno | N46: Pedro Ruiz Gallo | P46: 010307 | Q46: 8058.999512 | R46: 6788.758789 | S46: 1270.240723 | T46: 99.35234737 | U46: 6130.553192 | V46: 388.2534676 | W46: 350.0983276 | X46: 361.6244431 | Y46: 283.1183815 | Z46: 278.1681023 | AA46: 287.8564339 | AB46: 306.5987511 | AC46: 287.3123093 | AD46: 269.6627502 | AE46: 250.863102 | AF46: 223.0427017 | AG46: 196.1773396 | AH46: 137.716692 | AI46: 111.365757 | AJ46: 82.78395176 | AK46: 65.62707329 | AL46: 51.93318653 | AM46: 29.84360313 | AN46: 19.16540742 | AO46: 392.533844 | AP46: 341.3036499 | AQ46: 394.7187729 | AR46: 340.5844269 | AS46: 315.0749702 | AT46: 271.2056694 | AU46: 308.289856 | AV46: 267.4192238 | AW46: 279.6116524 | AX46: 271.4708824 | AY46: 216.8091202 | AZ46: 191.742527 | BA46: 149.5311031 | BB46: 106.5010834 | BC46: 79.6556778 | BD46: 75.4309721 | BE46: 45.43769979 | BF46: 21.06826353 | BG46: 9.398889065 | BI46: 010307 | BJ46: 8312 | BK46: 4242 | BL46: 4070 | BM46: 101 | BN46: 6363 | BO46: 122 | BP46: 123 | BQ46: 168 | BR46: 153 | BS46: 161 | BT46: 158 | BU46: 163 | BV46: 171 | BW46: 138 | BX46: 136 | BY46: 144 | BZ46: 165 | CA46: 5918 | CC46: 010307 | CD46: 8035 | CE46: 7994 | CF46: 7931 | CG46: 7855 | CH46: 7774 | CJ46: 010307 | CK46: - | CL46: - | CM46: - | CN46: - | CO46: 22.712901 | CP46: 13.66821 | CR46: 010307 | CS46: 7397634 | CT46: 3647720 | CU46: 3749914 | CV46: 5822638.55 | CW46: 3070939.15 | CX46: 2751699.4 | CZ46: 010307 | DA46: 634.0854385
A47: Distrito | B47: 010308 | C47: RECTA | E47: 010308 | F47: 24.58 | G47: 8.991049634 | H47: 2140 | I47: - | J47: - | K47: 11 | L47: No | M47: Ninguno | N47: Recta | P47: 010308 | Q47: 221.0000324 | R47: 63.96369362 | S47: 157.0363388 | T47: 1.081572056 | U47: 179.4318142 | V47: 8.683696985 | W47: 7.320674658 | X47: 6.219418526 | Y47: 5.494530439 | Z47: 5.33248353 | AA47: 7.514935017 | AB47: 8.271439552 | AC47: 9.662806511 | AD47: 2.075597286 | AE47: 6.206504822 | AF47: 7.420270443 | AG47: 6.167137623 | AH47: 4.256507635 | AI47: 1.106106281 | AJ47: 6.334461689 | AK47: 7.399098396 | AL47: 4.208168268 | AM47: 2.072901726 | AN47: 0 | AO47: 15.22177315 | AP47: 2.074079871 | AQ47: 7.223787308 | AR47: 7.313031197 | AS47: 10.95027328 | AT47: 11.06986272 | AU47: 7.593271017 | AV47: 14.97901011 | AW47: 3.108832359 | AX47: 8.417721748 | AY47: 4.207840919 | AZ47: 5.357690454 | BA47: 8.361291885 | BB47: 1.047076344 | BC47: 1.021233797 | BD47: 3.151767015 | BE47: 4.154747725 | BF47: 0 | BG47: 0 | BI47: 010308 | BJ47: 386 | BK47: 182 | BL47: 204 | BM47: 2 | BN47: 345 | BO47: 2 | BP47: 5 | BQ47: 5 | BR47: 5 | BS47: 4 | BT47: 4 | BU47: 3 | BV47: 3 | BW47: 1 | BX47: 3 | BY47: 4 | BZ47: 1 | CA47: 337 | CC47: 010308 | CD47: 220 | CE47: 219 | CF47: 218 | CG47: 215 | CH47: 216 | CJ47: 010308 | CK47: - | CL47: - | CM47: - | CN47: - | CO47: 38.690705 | CP47: 15.61683 | CR47: 010308 | CS47: 1746929 | CT47: 1182104 | CU47: 564825 | CV47: 1308876.4 | CW47: 1008925.3 | CX47: 299951.1 | CZ47: 010308 | DA47: 18.55873322
A48: Distrito | B48: 010309 | C48: SAN CARLOS | E48: 010309 | F48: 100.76 | G48: 5.051607781 | H48: 1890 | I48: - | J48: - | K48: 18 | L48: No | M48: Ninguno | N48: San Carlos | P48: 010309 | Q48: 508.9999809 | R48: 368.9628754 | S48: 140.0371056 | T48: 4.199007511 | U48: 425.8120079 | V48: 13.68232012 | W48: 17.71454287 | X48: 22.77958202 | Y48: 16.59731865 | Z48: 19.84195805 | AA48: 14.53214931 | AB48: 14.4110446 | AC48: 13.3812356 | AD48: 16.38743782 | AE48: 19.73310065 | AF48: 15.42127562 | AG48: 16.48265076 | AH48: 14.5537076 | AI48: 6.216981411 | AJ48: 8.227025986 | AK48: 4.142831564 | AL48: 8.272298813 | AM48: 3.127288818 | AN48: 3.10071969 | AO48: 18.81811905 | AP48: 13.38781834 | AQ48: 16.49374962 | AR48: 16.6256628 | AS48: 20.26578712 | AT48: 21.42263937 | AU48: 26.73244095 | AV48: 10.40097523 | AW48: 21.83718967 | AX48: 30.03753567 | AY48: 26.17200756 | AZ48: 8.34317255 | BA48: 9.362907887 | BB48: 4.108747602 | BC48: 5.120405793 | BD48: 7.152355194 | BE48: 3.074182987 | BF48: 1.038802624 | BG48: 0 | BI48: 010309 | BJ48: 613 | BK48: 304 | BL48: 309 | BM48: 3 | BN48: 558 | BO48: 5 | BP48: 8 | BQ48: 2 | BR48: 3 | BS48: 4 | BT48: 4 | BU48: 4 | BV48: 2 | BW48: 4 | BX48: 6 | BY48: 1 | BZ48: 4 | CA48: 547 | CC48: 010309 | CD48: 519 | CE48: 535 | CF48: 551 | CG48: 565 | CH48: 579 | CJ48: 010309 | CK48: - | CL48: - | CM48: - | CN48: - | CO48: 28.9591 | CP48: 4.725558 | CR48: 010309 | CS48: 5939435 | CT48: 1432596 | CU48: 4506839 | CV48: 5810303.63 | CW48: 1303473.39 | CX48: 4506830.24 | CZ48: 010309 | DA48: 28.30363536
A49: Distrito | B49: 010310 | C49: SHIPASBAMBA | E49: 010310 | F49: 127.29 | G49: 12.67970775 | H49: 2083 | I49: - | J49: - | K49: 13 | L49: No | M49: Ninguno | N49: Shipasbamba | P49: 010310 | Q49: 1614.000061 | R49: 848.2796936 | S49: 765.7203674 | T49: 21.38626313 | U49: 1161.841766 | V49: 95.39226151 | W49: 85.24888992 | X49: 72.83963776 | Y49: 89.450737 | Z49: 55.52445412 | AA49: 61.8621788 | AB49: 59.1596489 | AC49: 40.50041008 | AD49: 55.63356972 | AE49: 46.8995285 | AF49: 33.04491615 | AG49: 22.69142628 | AH49: 13.6340251 | AI49: 19.8195076 | AJ49: 14.50812054 | AK49: 12.49791718 | AL49: 7.369847298 | AM49: 6.278294206 | AN49: 1.051131606 | AO49: 93.57314682 | AP49: 86.39826965 | AQ49: 67.72847176 | AR49: 77.99214363 | AS49: 63.96132278 | AT49: 52.61183167 | AU49: 54.02714157 | AV49: 68.34556961 | AW49: 45.87132072 | AX49: 41.54180908 | AY49: 41.22242165 | AZ49: 39.96483231 | BA49: 25.26057625 | BB49: 22.84794235 | BC49: 20.59156895 | BD49: 7.223976612 | BE49: 5.169614315 | BF49: 3.131735563 | BG49: 3.129811764 | BI49: 010310 | BJ49: 1923 | BK49: 875 | BL49: 1048 | BM49: 23 | BN49: 1530 | BO49: 35 | BP49: 24 | BQ49: 37 | BR49: 29 | BS49: 26 | BT49: 20 | BU49: 34 | BV49: 29 | BW49: 37 | BX49: 29 | BY49: 32 | BZ49: 25 | CA49: 1444 | CC49: 010310 | CD49: 1630 | CE49: 1656 | CF49: 1678 | CG49: 1698 | CH49: 1716 | CJ49: 010310 | CK49: - | CL49: - | CM49: - | CN49: - | CO49: 35.863148 | CP49: 13.36122 | CR49: 010310 | CS49: 5188650 | CT49: 862009 | CU49: 4326641 | CV49: 3878647.41 | CW49: 584037.69 | CX49: 3294609.72 | CZ49: 010310 | DA49: 156.5761812
A50: Distrito | B50: 010311 | C50: VALERA | E50: 010311 | F50: 90.14 | G50: 10.17306412 | H50: 1978 | I50: - | J50: - | K50: 16 | L50: No | M50: Ninguno | N50: Valera (San Pablo) | P50: 010311 | Q50: 916.999939 | R50: 300.1952515 | S50: 616.8046875 | T50: 13.85969627 | U50: 744.1210251 | V50: 43.80218601 | W50: 27.30631638 | X50: 41.67653275 | Y50: 29.42139626 | Z50: 36.89294147 | AA50: 41.98421288 | AB50: 31.094172 | AC50: 24.91838455 | AD50: 23.78008938 | AE50: 22.84159946 | AF50: 34.09641075 | AG50: 17.54703617 | AH50: 22.95574617 | AI50: 17.77169609 | AJ50: 13.40687466 | AK50: 8.329962492 | AL50: 14.6096282 | AM50: 9.394553661 | AN50: 1.041938663 | AO50: 39.40957928 | AP50: 22.82686234 | AQ50: 27.00804424 | AR50: 24.35060287 | AS50: 36.23472118 | AT50: 42.77850533 | AU50: 37.8026247 | AV50: 36.82926941 | AW50: 21.99660873 | AX50: 22.83833313 | AY50: 33.77450275 | AZ50: 29.35969448 | BA50: 29.34977722 | BB50: 13.56973505 | BC50: 10.25491166 | BD50: 10.24019289 | BE50: 9.317943573 | BF50: 4.14656651 | BG50: 2.039777756 | BI50: 010311 | BJ50: 1213 | BK50: 589 | BL50: 624 | BM50: 12 | BN50: 1031 | BO50: 11 | BP50: 10 | BQ50: 10 | BR50: 22 | BS50: 18 | BT50: 13 | BU50: 12 | BV50: 11 | BW50: 14 | BX50: 6 | BY50: 19 | BZ50: 15 | CA50: 991 | CC50: 010311 | CD50: 898 | CE50: 868 | CF50: 837 | CG50: 806 | CH50: 775 | CJ50: 010311 | CK50: - | CL50: - | CM50: - | CN50: - | CO50: 20.78695 | CP50: 8.484321 | CR50: 010311 | CS50: 1142600 | CT50: 520359 | CU50: 622241 | CV50: 973300.86 | CW50: 399126.61 | CX50: 574174.25 | CZ50: 010311 | DA50: 69.35855067
A51: Distrito | B51: 010312 | C51: YAMBRASBAMBA | E51: 010312 | F51: 1715.96 | G51: 3.409753141 | H51: 1995 | I51: - | J51: - | K51: 50 | L51: No | M51: Ninguno | N51: Yambrasbamba | P51: 010312 | Q51: 5851.000977 | R51: 2283.242065 | S51: 3567.758911 | T51: 98.61600685 | U51: 4008.069092 | V51: 364.7949829 | W51: 346.4947968 | X51: 335.8960724 | Y51: 196.4545822 | Z51: 228.2308426 | AA51: 268.1116943 | AB51: 208.772934 | AC51: 185.9181671 | AD51: 178.8389435 | AE51: 153.4711304 | AF51: 111.4814529 | AG51: 105.7496567 | AH51: 77.87474442 | AI51: 50.05942535 | AJ51: 54.55094719 | AK51: 36.35079479 | AL51: 21.96885824 | AM51: 9.486022472 | AN51: 2.060099244 | AO51: 369.4397202 | AP51: 356.5957184 | AQ51: 297.9480667 | AR51: 219.2007446 | AS51: 207.6400833 | AT51: 250.3669357 | AU51: 216.7940979 | AV51: 225.9770126 | AW51: 147.2203293 | AX51: 155.3440323 | AY51: 120.9242134 | AZ51: 107.9431076 | BA51: 84.57520676 | BB51: 52.51331139 | BC51: 42.11145496 | BD51: 28.875844 | BE51: 18.62438393 | BF51: 9.2254529 | BG51: 3.114936352 | BI51: 010312 | BJ51: 6880 | BK51: 3396 | BL51: 3484 | BM51: 98 | BN51: 5122 | BO51: 119 | BP51: 129 | BQ51: 134 | BR51: 135 | BS51: 143 | BT51: 128 | BU51: 147 | BV51: 156 | BW51: 148 | BX51: 139 | BY51: 130 | BZ51: 153 | CA51: 4700 | CC51: 010312 | CD51: 5833 | CE51: 5802 | CF51: 5757 | CG51: 5706 | CH51: 5645 | CJ51: 010312 | CK51: - | CL51: - | CM51: - | CN51: - | CO51: 43.859279 | CP51: 10.94429 | CR51: 010312 | CS51: 10598233 | CT51: 2812209 | CU51: 7786024 | CV51: 5030263.23 | CW51: 2736341.99 | CX51: 2293921.24 | CZ51: 010312 | DA51: 602.308458
A52: Provincia | B52: 010400 | C52: CONDORCANQUI | E52: 010400 | F52: 17975.39 | G52: 2.770454494 | H52: 222 | I52: 1 | J52: 3 | K52: 271 | L52: Sí | M52: Ecuador | N52: Santa María de Nieva | P52: 010400 | Q52: 49799.99957 | R52: 7833.447327 | S52: 41966.55225 | T52: 1413.825895 | U52: 27490.88571 | V52: 4887.77058 | W52: 4158.110283 | X52: 3261.834976 | Y52: 2275.232971 | Z52: 1998.339785 | AA52: 1828.859091 | AB52: 1607.382353 | AC52: 1386.674578 | AD52: 1103.570004 | AE52: 758.1988711 | AF52: 577.0428886 | AG52: 352.8221216 | AH52: 401.3734322 | AI52: 210.4663672 | AJ52: 77.94274807 | AK52: 48.58103943 | AL52: 21.6906085 | AM52: 4.576858163 | AN52: 4.799023509 | AO52: 4795.941658 | AP52: 4157.278091 | AQ52: 3284.68631 | AR52: 2027.713074 | AS52: 1522.823021 | AT52: 1811.096508 | AU52: 1533.101416 | AV52: 1433.248264 | AW52: 1168.063753 | AX52: 909.046629 | AY52: 750.8782625 | AZ52: 484.0556827 | BA52: 495.4403963 | BB52: 263.4089327 | BC52: 112.0915833 | BD52: 57.44958901 | BE52: 14.79987383 | BF52: 6.746210456 | BG52: 6.865018129 | BI52: 010400 | BJ52: 79238 | BK52: 38463 | BL52: 40775 | BM52: 1304 | BN52: 47681 | BO52: 2519 | BP52: 2468 | BQ52: 2411 | BR52: 2239 | BS52: 2305 | BT52: 2407 | BU52: 2412 | BV52: 2439 | BW52: 2276 | BX52: 2008 | BY52: 2180 | BZ52: 1961 | CA52: 41532 | CC52: 010400 | CD52: 50180 | CE52: 50827 | CF52: 51344 | CG52: 51787 | CH52: 52082 | CJ52: 010400 | CK52: - | CL52: - | CM52: - | CN52: - | CO52: 56.831603 | CP52: 38.14062934 | CR52: 010400 | CS52: 246106308 | CT52: 176435402 | CU52: 69670906 | CV52: 223998760.1 | CW52: 171733870.7 | CX52: 52264889.49 | CZ52: 010400 | DA52: 8051.18822
A53: Distrito | B53: 010401 | C53: NIEVA | E53: 010401 | F53: 4481.63 | G53: 4.758090248 | H53: 222 | I53: - | J53: - | K53: 131 | L53: No | M53: Ninguno | N53: Santa María de Nieva | P53: 010401 | Q53: 21323.99976 | R53: 4459.05835 | S53: 16864.94141 | T53: 617.6424332 | U53: 12292.47229 | V53: 2058.566254 | W53: 1630.365646 | X53: 1259.215668 | Y53: 920.9502411 | Z53: 841.4795685 | AA53: 844.5443115 | AB53: 738.0852814 | AC53: 660.841629 | AD53: 478.3090515 | AE53: 352.2100754 | AF53: 275.0774155 | AG53: 168.1282196 | AH53: 173.9646721 | AI53: 97.52611732 | AJ53: 42.41424942 | AK53: 24.58963966 | AL53: 12.50356436 | AM53: 2.273891926 | AN53: 1.20905149 | AO53: 1919.896423 | AP53: 1688.558502 | AQ53: 1350.957352 | AR53: 852.7431335 | AS53: 660.07341 | AT53: 845.4196014 | AU53: 690.4624329 | AV53: 665.6856842 | AW53: 543.7551727 | AX53: 452.1856079 | AY53: 351.0332565 | AZ53: 243.0429039 | BA53: 230.7517014 | BB53: 139.2709084 | BC53: 60.02867508 | BD53: 28.07236099 | BE53: 12.31442022 | BF53: 3.15139997 | BG53: 4.34365344 | BI53: 010401 | BJ53: 39498 | BK53: 19004 | BL53: 20494 | BM53: 664 | BN53: 23775 | BO53: 1304 | BP53: 1264 | BQ53: 1168 | BR53: 1052 | BS53: 1136 | BT53: 1158 | BU53: 1199 | BV53: 1208 | BW53: 1093 | BX53: 978 | BY53: 1065 | BZ53: 984 | CA53: 20748 | CC53: 010401 | CD53: 21231 | CE53: 21071 | CF53: 20847 | CG53: 20569 | CH53: 20264 | CJ53: 010401 | CK53: - | CL53: - | CM53: - | CN53: - | CO53: 51.406262 | CP53: 34.86494 | CR53: 010401 | CS53: 91116327 | CT53: 55851835 | CU53: 35264492 | CV53: 78190224.81 | CW53: 53329780.42 | CX53: 24860444.39 | CZ53: 010401 | DA53: 3321.499076
A54: Distrito | B54: 010402 | C54: EL CENEPA | E54: 010402 | F54: 5458.48 | G54: 2.135759406 | H54: 303 | I54: - | J54: - | K54: 72 | L54: Sí | M54: Ecuador | N54: Huampami | P54: 010402 | Q54: 11657.99701 | R54: 1090.615662 | S54: 10567.38135 | T54: 325.2746673 | U54: 6343.048187 | V54: 1097.092876 | W54: 1010.119499 | X54: 893.8887329 | Y54: 578.7733536 | Z54: 497.2947407 | AA54: 379.5650311 | AB54: 327.8433514 | AC54: 276.154398 | AD54: 263.981576 | AE54: 173.930347 | AF54: 97.35387039 | AG54: 74.84849834 | AH54: 140.4356747 | AI54: 42.92250013 | AJ54: 14.99246788 | AK54: 14.28922844 | AL54: 4.549867153 | AM54: 1.062701344 | AN54: 3.589972019 | AO54: 1141.20652 | AP54: 1015.998703 | AQ54: 810.1851807 | AR54: 532.2651443 | AS54: 337.2376785 | AT54: 389.7236824 | AU54: 316.3202038 | AV54: 316.6655083 | AW54: 228.5058994 | AX54: 181.0980778 | AY54: 165.402112 | AZ54: 100.4274383 | BA54: 129.1072111 | BB54: 60.87842417 | BC54: 15.67149162 | BD54: 18.46859717 | BE54: 2.485453606 | BF54: 2.367657661 | BG54: 1.294211864 | BI54: 010402 | BJ54: 18767 | BK54: 9096 | BL54: 9671 | BM54: 309 | BN54: 11488 | BO54: 585 | BP54: 526 | BQ54: 574 | BR54: 538 | BS54: 528 | BT54: 553 | BU54: 584 | BV54: 584 | BW54: 542 | BX54: 481 | BY54: 505 | BZ54: 486 | CA54: 10016 | CC54: 010402 | CD54: 11863 | CE54: 12213 | CF54: 12537 | CG54: 12854 | CH54: 13122 | CJ54: 010402 | CK54: - | CL54: - | CM54: - | CN54: - | CO54: 62.912381 | CP54: 60.02361 | CR54: 010402 | CS54: 32675552 | CT54: 17038759 | CU54: 15636793 | CV54: 28295955.37 | CW54: 16738906.23 | CX54: 11557049.14 | CZ54: 010402 | DA54: 1855.769316
A55: Distrito | B55: 010403 | C55: RÍO SANTIAGO | E55: 010403 | F55: 8035.28 | G55: 2.093019783 | H55: 192 | I55: - | J55: - | K55: 68 | L55: Sí | M55: Ecuador | N55: Puerto Galilea | P55: 010403 | Q55: 16818.00281 | R55: 2283.773315 | S55: 14534.22949 | T55: 470.9087944 | U55: 8855.365234 | V55: 1732.11145 | W55: 1517.625137 | X55: 1108.730576 | Y55: 775.5093765 | Z55: 659.5654755 | AA55: 604.7497482 | AB55: 541.4537201 | AC55: 449.6785507 | AD55: 361.279377 | AE55: 232.0584488 | AF55: 204.6116028 | AG55: 109.8454037 | AH55: 86.9730854 | AI55: 70.01774979 | AJ55: 20.53603077 | AK55: 9.702171326 | AL55: 4.637176991 | AM55: 1.240264893 | AN55: 0 | AO55: 1734.838715 | AP55: 1452.720886 | AQ55: 1123.543777 | AR55: 642.7047958 | AS55: 525.5119324 | AT55: 575.9532242 | AU55: 526.318779 | AV55: 450.8970718 | AW55: 395.802681 | AX55: 275.7629433 | AY55: 234.442894 | AZ55: 140.5853405 | BA55: 135.5814838 | BB55: 63.25960016 | BC55: 36.39141655 | BD55: 10.90863085 | BE55: 0 | BF55: 1.227152824 | BG55: 1.227152824 | BI55: 010403 | BJ55: 20973 | BK55: 10363 | BL55: 10610 | BM55: 331 | BN55: 12418 | BO55: 630 | BP55: 678 | BQ55: 669 | BR55: 649 | BS55: 641 | BT55: 696 | BU55: 629 | BV55: 647 | BW55: 641 | BX55: 549 | BY55: 610 | BZ55: 491 | CA55: 10768 | CC55: 010403 | CD55: 17086 | CE55: 17543 | CF55: 17960 | CG55: 18364 | CH55: 18696 | CJ55: 010403 | CK55: - | CL55: - | CM55: - | CN55: - | CO55: 59.872335 | CP55: 31.38112 | CR55: 010403 | CS55: 38456960 | CT55: 21387519 | CU55: 17069441 | CV55: 34952249.45 | CW55: 20787756.05 | CX55: 14164493.4 | CZ55: 010403 | DA55: 2873.919828
A56: Provincia | B56: 010500 | C56: LUYA | E56: 010500 | F56: 3236.68 | G56: 14.8732652 | H56: 2307 | I56: 1 | J56: 23 | K56: 681 | L56: No | M56: Ninguno | N56: Lámud | P56: 010500 | Q56: 48140.0022 | R56: 20759.71672 | S56: 27380.28548 | T56: 852.0946859 | U56: 34017.42548 | V56: 2844.42084 | W56: 2558.026937 | X56: 2529.143809 | Y56: 1679.202355 | Z56: 1473.101522 | AA56: 1596.177765 | AB56: 1537.33852 | AC56: 1461.863373 | AD56: 1255.343815 | AE56: 1228.980831 | AF56: 1083.301396 | AG56: 924.4523807 | AH56: 774.311558 | AI56: 652.027144 | AJ56: 576.1267799 | AK56: 519.3692605 | AL56: 423.5265901 | AM56: 228.5244077 | AN56: 113.141064 | AO56: 2927.755024 | AP56: 2590.081701 | AQ56: 2609.521852 | AR56: 1858.910004 | AS56: 1595.635062 | AT56: 1711.567583 | AU56: 1752.888481 | AV56: 1668.574929 | AW56: 1393.271459 | AX56: 1365.129263 | AY56: 1251.168095 | AZ56: 1061.306045 | BA56: 793.7956061 | BB56: 649.7903486 | BC56: 534.5469543 | BD56: 447.9311297 | BE56: 293.7128026 | BF56: 120.839509 | BG56: 55.19640052 | BI56: 010500 | BJ56: 52202 | BK56: 25287 | BL56: 26915 | BM56: 620 | BN56: 40252 | BO56: 826 | BP56: 804 | BQ56: 861 | BR56: 961 | BS56: 971 | BT56: 967 | BU56: 1002 | BV56: 1016 | BW56: 1023 | BX56: 963 | BY56: 1028 | BZ56: 1071 | CA56: 37190 | CC56: 010500 | CD56: 48110 | CE56: 48032 | CF56: 47827 | CG56: 47482 | CH56: 47081 | CJ56: 010500 | CK56: - | CL56: - | CM56: - | CN56: - | CO56: 48.148547 | CP56: 24.99788356 | CR56: 010500 | CS56: 196604884 | CT56: 67877330 | CU56: 128727554 | CV56: 165367034.5 | CW56: 63612592.49 | CX56: 101754442 | CZ56: 010500 | DA56: 4752.494401
A57: Distrito | B57: 010501 | C57: LÁMUD | E57: 010501 | F57: 69.49 | G57: 34.27831343 | H57: 2307 | I57: - | J57: - | K57: 29 | L57: No | M57: Ninguno | N57: Lámud | P57: 010501 | Q57: 2381.999336 | R57: 2128.005188 | S57: 253.9941483 | T57: 22.84921312 | U57: 1867.582687 | V57: 93.14267731 | W57: 89.90157032 | X57: 121.2066669 | Y57: 95.99959326 | Z57: 73.88370037 | AA57: 73.89505863 | AB57: 68.74303961 | AC57: 72.82331896 | AD57: 77.93692207 | AE57: 85.40287352 | AF57: 92.10672474 | AG57: 75.06606293 | AH57: 46.65813828 | AI57: 47.69392967 | AJ57: 44.2446661 | AK57: 53.8559258 | AL57: 38.10563135 | AM57: 24.48205996 | AN57: 19.07526207 | AO57: 109.1022377 | AP57: 88.42491436 | AQ57: 114.2852154 | AR57: 87.17355394 | AS57: 75.61995697 | AT57: 52.90361261 | AU57: 70.80590248 | AV57: 67.77246857 | AW57: 51.9464941 | AX57: 59.16061163 | AY57: 67.31278419 | AZ57: 53.10531664 | BA57: 40.48789597 | BB57: 41.31011677 | BC57: 32.55629587 | BD57: 37.81862354 | BE57: 18.00777388 | BF57: 12.61588037 | BG57: 7.365991116 | BI57: 010501 | BJ57: 2241 | BK57: 1175 | BL57: 1066 | BM57: 18 | BN57: 1819 | BO57: 26 | BP57: 24 | BQ57: 30 | BR57: 40 | BS57: 29 | BT57: 32 | BU57: 45 | BV57: 31 | BW57: 40 | BX57: 26 | BY57: 29 | BZ57: 40 | CA57: 1724 | CC57: 010501 | CD57: 2379 | CE57: 2381 | CF57: 2375 | CG57: 2363 | CH57: 2345 | CJ57: 010501 | CK57: - | CL57: - | CM57: - | CN57: - | CO57: 30.951386 | CP57: 5.603407 | CR57: 010501 | CS57: 22773642 | CT57: 5578775 | CU57: 17194867 | CV57: 16998767.34 | CW57: 5022836.5 | CX57: 11975930.84 | CZ57: 010501 | DA57: 159.2699137
A58: Distrito | B58: 010502 | C58: CAMPORREDONDO | E58: 010502 | F58: 376.01 | G58: 19.24682854 | H58: 1767 | I58: - | J58: - | K58: 38 | L58: No | M58: Ninguno | N58: Camporredondo | P58: 010502 | Q58: 7237.002319 | R58: 4534.84375 | S58: 2702.158569 | T58: 135.2293777 | U58: 4877.075867 | V58: 514.9836273 | W58: 389.6983337 | X58: 381.1849823 | Y58: 256.0804825 | Z58: 246.5346756 | AA58: 267.8595657 | AB58: 260.4430923 | AC58: 221.1314087 | AD58: 193.4236832 | AE58: 160.9600983 | AF58: 132.7300758 | AG58: 107.7838173 | AH58: 83.08020401 | AI58: 60.74478722 | AJ58: 46.45995712 | AK58: 31.47370625 | AL58: 28.58823967 | AM58: 18.71422005 | AN58: 6.428173542 | AO58: 507.5212402 | AP58: 459.4478302 | AQ58: 396.5735779 | AR58: 284.7495117 | AS58: 234.1046295 | AT58: 305.6092529 | AU58: 274.413681 | AV58: 278.8693619 | AW58: 248.3707809 | AX58: 193.6540298 | AY58: 177.9796371 | AZ58: 150.315918 | BA58: 89.21541595 | BB58: 72.53211212 | BC58: 63.64806557 | BD58: 44.53348351 | BE58: 32.94910622 | BF58: 8.727704525 | BG58: 5.484222412 | BI58: 010502 | BJ58: 7014 | BK58: 3388 | BL58: 3626 | BM58: 86 | BN58: 5071 | BO58: 142 | BP58: 155 | BQ58: 137 | BR58: 203 | BS58: 160 | BT58: 152 | BU58: 166 | BV58: 154 | BW58: 154 | BX58: 144 | BY58: 153 | BZ58: 132 | CA58: 4642 | CC58: 010502 | CD58: 7313 | CE58: 7422 | CF58: 7515 | CG58: 7584 | CH58: 7644 | CJ58: 010502 | CK58: - | CL58: - | CM58: - | CN58: - | CO58: 50.206718 | CP58: 10.98376 | CR58: 010502 | CS58: 23031304 | CT58: 7656582 | CU58: 15374722 | CV58: 15808871.56 | CW58: 7276839.31 | CX58: 8532032.25 | CZ58: 010502 | DA58: 852.5921221
A59: Distrito | B59: 010503 | C59: COCABAMBA | E59: 010503 | F59: 355.85 | G59: 5.88731207 | H59: 2576 | I59: - | J59: - | K59: 83 | L59: No | M59: Ninguno | N59: Cocabamba | P59: 010503 | Q59: 2094.999527 | R59: 377.3732452 | S59: 1717.626282 | T59: 48.42130947 | U59: 1405.293915 | V59: 134.7613773 | W59: 126.4277029 | X59: 90.43571091 | Y59: 61.4049139 | Z59: 74.08330822 | AA59: 75.79968262 | AB59: 84.50209045 | AC59: 74.42575645 | AD59: 46.27506638 | AE59: 38.51573086 | AF59: 39.02302361 | AG59: 32.67781448 | AH59: 27.15573454 | AI59: 28.53917742 | AJ59: 16.21853065 | AK59: 13.10170734 | AL59: 5.57434988 | AM59: 4.241240025 | AN59: 2.123602867 | AO59: 173.5567875 | AP59: 138.1485023 | AQ59: 102.864912 | AR59: 77.13607597 | AS59: 68.69270325 | AT59: 83.43441582 | AU59: 86.34070301 | AV59: 93.18782139 | AW59: 49.74466753 | AX59: 60.55205441 | AY59: 44.18157959 | AZ59: 48.60501957 | BA59: 18.73660183 | BB59: 23.10542107 | BC59: 21.9282167 | BD59: 21.8178606 | BE59: 4.456483841 | BF59: 2.161015034 | BG59: 1.062147975 | BI59: 010503 | BJ59: 2383 | BK59: 1121 | BL59: 1262 | BM59: 34 | BN59: 1695 | BO59: 50 | BP59: 43 | BQ59: 60 | BR59: 58 | BS59: 62 | BT59: 66 | BU59: 58 | BV59: 48 | BW59: 51 | BX59: 51 | BY59: 43 | BZ59: 51 | CA59: 1550 | CC59: 010503 | CD59: 2087 | CE59: 2068 | CF59: 2045 | CG59: 2015 | CH59: 1983 | CJ59: 010503 | CK59: - | CL59: - | CM59: - | CN59: - | CO59: 55.979223 | CP59: 35.50347 | CR59: 010503 | CS59: 6541205 | CT59: 4340253 | CU59: 2200952 | CV59: 6222601.02 | CW59: 4196973.66 | CX59: 2025627.36 | CZ59: 010503 | DA59: 257.7634214
A60: Distrito | B60: 010504 | C60: COLCAMAR | E60: 010504 | F60: 106.6 | G60: 19.09005629 | H60: 3217 | I60: - | J60: - | K60: 16 | L60: No | M60: Ninguno | N60: Colcamar | P60: 010504 | Q60: 2035.000946 | R60: 1314.977051 | S60: 720.0238953 | T60: 25.60146999 | U60: 1540.724121 | V60: 95.19965744 | W60: 94.10362625 | X60: 95.96167183 | Y60: 72.34336853 | Z60: 65.52509117 | AA60: 54.45076561 | AB60: 57.05722809 | AC60: 53.13532066 | AD60: 54.62286568 | AE60: 62.66108322 | AF60: 66.2616787 | AG60: 49.86609364 | AH60: 55.07611656 | AI60: 41.11535931 | AJ60: 45.32251263 | AK60: 45.40832043 | AL60: 24.97123909 | AM60: 9.796318054 | AN60: 4.433943272 | AO60: 110.1815109 | AP60: 78.28268814 | AQ60: 88.6942749 | AR60: 73.80900574 | AS60: 56.55947113 | AT60: 63.49481773 | AU60: 76.53791809 | AV60: 59.6238327 | AW60: 56.32737541 | AX60: 62.52058792 | AY60: 53.83918571 | AZ60: 53.52079964 | BA60: 47.20837402 | BB60: 28.09987068 | BC60: 35.74639416 | BD60: 19.43071127 | BE60: 19.48033237 | BF60: 2.204034686 | BG60: 2.127292395 | BI60: 010504 | BJ60: 2317 | BK60: 1172 | BL60: 1145 | BM60: 22 | BN60: 1896 | BO60: 28 | BP60: 35 | BQ60: 28 | BR60: 37 | BS60: 33 | BT60: 36 | BU60: 32 | BV60: 37 | BW60: 36 | BX60: 34 | BY60: 42 | BZ60: 41 | CA60: 1779 | CC60: 010504 | CD60: 2011 | CE60: 1975 | CF60: 1933 | CG60: 1887 | CH60: 1838 | CJ60: 010504 | CK60: - | CL60: - | CM60: - | CN60: - | CO60: 42.320492 | CP60: 29.24272 | CR60: 010504 | CS60: 7214719 | CT60: 1359340 | CU60: 5855379 | CV60: 6370728.32 | CW60: 1129630.22 | CX60: 5241098.1 | CZ60: 010504 | DA60: 175.7521154
A61: Distrito | B61: 010505 | C61: CONILA | E61: 010505 | F61: 256.17 | G61: 7.639458172 | H61: 3158 | I61: - | J61: - | K61: 21 | L61: No | M61: Ninguno | N61: Cohechan | P61: 010505 | Q61: 1956.999664 | R61: 1121.459961 | S61: 835.5397034 | T61: 38.69616985 | U61: 1454.450378 | V61: 104.9617386 | W61: 91.66827393 | X61: 103.8080902 | Y61: 89.42112732 | Z61: 70.62148666 | AA61: 60.30979729 | AB61: 54.49887848 | AC61: 65.10668278 | AD61: 47.88440228 | AE61: 52.94659805 | AF61: 50.77381325 | AG61: 37.69274712 | AH61: 27.39240932 | AI61: 27.38234138 | AJ61: 20.92910576 | AK61: 21.08293438 | AL61: 30.83615398 | AM61: 6.372828007 | AN61: 8.379587173 | AO61: 99.3649292 | AP61: 96.43071365 | AQ61: 78.64113235 | AR61: 89.23352432 | AS61: 71.08465576 | AT61: 76.66433334 | AU61: 69.25763702 | AV61: 60.79302788 | AW61: 59.62064743 | AX61: 69.45532036 | AY61: 49.9378891 | AZ61: 46.33875275 | BA61: 36.21063042 | BB61: 30.58862019 | BC61: 17.78888416 | BD61: 14.58862257 | BE61: 12.57552052 | BF61: 5.270899296 | BG61: 1.085002899 | BI61: 010505 | BJ61: 2130 | BK61: 1051 | BL61: 1079 | BM61: 30 | BN61: 1680 | BO61: 25 | BP61: 42 | BQ61: 44 | BR61: 24 | BS61: 31 | BT61: 35 | BU61: 41 | BV61: 42 | BW61: 26 | BX61: 52 | BY61: 30 | BZ61: 27 | CA61: 1571 | CC61: 010505 | CD61: 1950 | CE61: 1939 | CF61: 1923 | CG61: 1899 | CH61: 1875 | CJ61: 010505 | CK61: - | CL61: - | CM61: - | CN61: - | CO61: 49.642272 | CP61: 35.13756 | CR61: 010505 | CS61: 2639195 | CT61: 1817365 | CU61: 821830 | CV61: 2412103.57 | CW61: 1693427.3 | CX61: 718676.27 | CZ61: 010505 | DA61: 177.4474082
A62: Distrito | B62: 010506 | C62: INGUILPATA | E62: 010506 | F62: 118.04 | G62: 4.456116571 | H62: 2395 | I62: - | J62: - | K62: 20 | L62: No | M62: Ninguno | N62: Inguilpata | P62: 010506 | Q62: 526.0000534 | R62: 360.5432434 | S62: 165.45681 | T62: 4.209667206 | U62: 441.3776169 | V62: 11.76451349 | W62: 14.85976124 | X62: 21.0767293 | Y62: 11.41997814 | Z62: 14.62600994 | AA62: 12.67891264 | AB62: 15.60473967 | AC62: 15.67512441 | AD62: 14.62538433 | AE62: 14.63717711 | AF62: 19.79815769 | AG62: 12.48165655 | AH62: 13.64694643 | AI62: 18.12314415 | AJ62: 18.83444309 | AK62: 8.518129349 | AL62: 8.488091707 | AM62: 7.391686916 | AN62: 5.263529062 | AO62: 18.07907748 | AP62: 14.65832663 | AQ62: 25.44173241 | AR62: 16.99773169 | AS62: 19.3679285 | AT62: 11.77732468 | AU62: 9.748421431 | AV62: 14.87334442 | AW62: 23.55780315 | AX62: 11.73936987 | AY62: 18.0621748 | AZ62: 24.35135937 | BA62: 11.65632248 | BB62: 11.60096359 | BC62: 17.78510284 | BD62: 6.269126892 | BE62: 4.250050545 | BF62: 3.125757694 | BG62: 3.14400363 | BI62: 010506 | BJ62: 621 | BK62: 293 | BL62: 328 | BM62: 3 | BN62: 556 | BO62: 1 | BP62: 3 | BQ62: 3 | BR62: 6 | BS62: 8 | BT62: 6 | BU62: 5 | BV62: 6 | BW62: 7 | BX62: 6 | BY62: 10 | BZ62: 11 | CA62: 529 | CC62: 010506 | CD62: 517 | CE62: 502 | CF62: 486 | CG62: 469 | CH62: 451 | CJ62: 010506 | CK62: - | CL62: - | CM62: - | CN62: - | CO62: 40.196248 | CP62: 16.60086 | CR62: 010506 | CS62: 2016879 | CT62: 1364490 | CU62: 652389 | CV62: 1183631.24 | CW62: 1043685.67 | CX62: 139945.57 | CZ62: 010506 | DA62: 21.29202259
A63: Distrito | B63: 010507 | C63: LONGUITA | E63: 010507 | F63: 57.91 | G63: 15.55862545 | H63: 2800 | I63: - | J63: - | K63: 14 | L63: No | M63: Ninguno | N63: Longuita | P63: 010507 | Q63: 900.9999695 | R63: 220.6132812 | S63: 680.3866882 | T63: 18.41333961 | U63: 609.7887802 | V63: 49.74112701 | W63: 56.71838856 | X63: 47.85764122 | Y63: 12.89906454 | Z63: 27.76183605 | AA63: 31.8998127 | AB63: 36.9271636 | AC63: 25.44167471 | AD63: 25.42164326 | AE63: 19.07503939 | AF63: 14.83936691 | AG63: 12.52919197 | AH63: 16.03317404 | AI63: 12.82388115 | AJ63: 9.582638741 | AK63: 5.24857831 | AL63: 11.85535145 | AM63: 4.194498777 | AN63: 1.051809311 | AO63: 66.94914627 | AP63: 56.26598358 | AQ63: 51.17433453 | AR63: 32.37933254 | AS63: 24.3742609 | AT63: 31.30418873 | AU63: 34.28746891 | AV63: 42.07926655 | AW63: 32.48612595 | AX63: 14.21623993 | AY63: 24.28649187 | AZ63: 12.96614695 | BA63: 19.15145969 | BB63: 14.8353653 | BC63: 11.80264235 | BD63: 2.080938458 | BE63: 5.289393187 | BF63: 2.143083453 | BG63: 1.026300073 | BI63: 010507 | BJ63: 1081 | BK63: 510 | BL63: 571 | BM63: 9 | BN63: 842 | BO63: 16 | BP63: 17 | BQ63: 14 | BR63: 16 | BS63: 23 | BT63: 24 | BU63: 25 | BV63: 33 | BW63: 17 | BX63: 19 | BY63: 22 | BZ63: 25 | CA63: 776 | CC63: 010507 | CD63: 898 | CE63: 892 | CF63: 883 | CG63: 873 | CH63: 860 | CJ63: 010507 | CK63: - | CL63: - | CM63: - | CN63: - | CO63: 56.751291 | CP63: 39.73001 | CR63: 010507 | CS63: 12080335 | CT63: 2158212 | CU63: 9922123 | CV63: 7759002.14 | CW63: 2005898.63 | CX63: 5753103.51 | CZ63: 010507 | DA63: 95.29574537
A64: Distrito | B64: 010508 | C64: LONYA CHICO | E64: 010508 | F64: 83.82 | G64: 10.7372942 | H64: 2306 | I64: - | J64: - | K64: 10 | L64: No | M64: Ninguno | N64: Lonya Chico | P64: 010508 | Q64: 900.0000153 | R64: 365.5312958 | S64: 534.4687195 | T64: 11.86576319 | U64: 685.8605347 | V64: 39.99641418 | W64: 37.58969307 | X64: 39.1171875 | Y64: 45.77065086 | Z64: 16.01048756 | AA64: 17.21600103 | AB64: 17.89041138 | AC64: 38.94274044 | AD64: 19.85800171 | AE64: 24.35169411 | AF64: 24.27436543 | AG64: 21.21105766 | AH64: 24.32087231 | AI64: 16.88340855 | AJ64: 15.66904736 | AK64: 15.65398502 | AL64: 6.350538254 | AM64: 11.65463209 | AN64: 4.231993675 | AO64: 36.74325752 | AP64: 43.61035347 | AQ64: 46.82257652 | AR64: 42.89834785 | AS64: 33.40708351 | AT64: 24.60195494 | AU64: 19.85114384 | AV64: 22.62411022 | AW64: 28.79811954 | AX64: 30.30261421 | AY64: 29.38111591 | AZ64: 18.35085678 | BA64: 15.02114677 | BB64: 22.39783764 | BC64: 13.68625975 | BD64: 15.67087173 | BE64: 11.51807499 | BF64: 4.171663523 | BG64: 3.149477482 | BI64: 010508 | BJ64: 1060 | BK64: 511 | BL64: 549 | BM64: 14 | BN64: 903 | BO64: 9 | BP64: 16 | BQ64: 13 | BR64: 11 | BS64: 7 | BT64: 17 | BU64: 9 | BV64: 17 | BW64: 18 | BX64: 12 | BY64: 19 | BZ64: 23 | CA64: 849 | CC64: 010508 | CD64: 891 | CE64: 876 | CF64: 858 | CG64: 838 | CH64: 817 | CJ64: 010508 | CK64: - | CL64: - | CM64: - | CN64: - | CO64: 46.699525 | CP64: 39.43642 | CR64: 010508 | CS64: 3042086 | CT64: 964521 | CU64: 2077565 | CV64: 2893431.71 | CW64: 913498.94 | CX64: 1979932.77 | CZ64: 010508 | DA64: 67.04629147
A65: Distrito | B65: 010509 | C65: LUYA | E65: 010509 | F65: 91.21 | G65: 45.56517926 | H65: 2339 | I65: - | J65: - | K65: 16 | L65: No | M65: Ninguno | N65: Luya | P65: 010509 | Q65: 4155.999573 | R65: 2446.545166 | S65: 1709.454407 | T65: 65.56258583 | U65: 3055.032715 | V65: 225.5771637 | W65: 203.5747223 | X65: 237.9303055 | Y65: 148.0674362 | Z65: 128.2477646 | AA65: 162.1343842 | AB65: 133.9096603 | AC65: 138.7594147 | AD65: 136.8647652 | AE65: 123.9515381 | AF65: 95.16752434 | AG65: 85.46610451 | AH65: 80.14556313 | AI65: 59.28937912 | AJ65: 59.89438248 | AK65: 57.09736252 | AL65: 44.90528679 | AM65: 31.27374268 | AN65: 18.71022987 | AO65: 209.4144363 | AP65: 170.1989975 | AQ65: 229.0118484 | AR65: 157.191349 | AS65: 160.7527542 | AT65: 142.4468384 | AU65: 145.2710953 | AV65: 118.9639626 | AW65: 101.4515743 | AX65: 124.2784157 | AY65: 102.2698555 | AZ65: 91.96079254 | BA65: 60.51673603 | BB65: 47.70726013 | BC65: 40.06381226 | BD65: 40.13346672 | BE65: 28.92169762 | BF65: 11.3600018 | BG65: 3.117748976 | BI65: 010509 | BJ65: 4234 | BK65: 2204 | BL65: 2030 | BM65: 57 | BN65: 3302 | BO65: 75 | BP65: 52 | BQ65: 68 | BR65: 66 | BS65: 65 | BT65: 71 | BU65: 63 | BV65: 61 | BW65: 76 | BX65: 75 | BY65: 80 | BZ65: 103 | CA65: 3044 | CC65: 010509 | CD65: 4147 | CE65: 4139 | CF65: 4118 | CG65: 4086 | CH65: 4047 | CJ65: 010509 | CK65: - | CL65: - | CM65: - | CN65: - | CO65: 30.284501 | CP65: 10.04575 | CR65: 010509 | CS65: 3908426 | CT65: 2551410 | CU65: 1357016 | CV65: 3563395.14 | CW65: 2387986 | CX65: 1175409.14 | CZ65: 010509 | DA65: 353.7049699
A66: Distrito | B66: 010510 | C66: LUYA VIEJO | E66: 010510 | F66: 73.87 | G66: 5.536753757 | H66: 2761 | I66: - | J66: - | K66: 1 | L66: No | M66: Ninguno | N66: Luya Viejo | P66: 010510 | Q66: 409 | R66: 409 | S66: 0 | T66: 8.499483824 | U66: 277.2133331 | V66: 26.58714104 | W66: 25.28854942 | X66: 24.06422997 | Y66: 16.83242035 | Z66: 10.59399605 | AA66: 18.90970993 | AB66: 10.41525078 | AC66: 11.38983536 | AD66: 11.35350895 | AE66: 13.62725353 | AF66: 6.282059669 | AG66: 4.151837349 | AH66: 4.165784836 | AI66: 3.139913797 | AJ66: 7.288537025 | AK66: 8.334850311 | AL66: 5.245686531 | AM66: 0 | AN66: 1.043939471 | AO66: 31.84318161 | AP66: 18.81102371 | AQ66: 23.01170349 | AR66: 14.79484558 | AS66: 17.21308517 | AT66: 11.91646385 | AU66: 11.94023037 | AV66: 15.8297863 | AW66: 9.521906853 | AX66: 9.467630386 | AY66: 14.96800232 | AZ66: 8.485794067 | BA66: 3.130431652 | BB66: 1.037859321 | BC66: 3.112994194 | BD66: 3.105545044 | BE66: 1.047892094 | BF66: 1.047084808 | BG66: 0 | BI66: 010510 | BJ66: 544 | BK66: 271 | BL66: 273 | BM66: 8 | BN66: 422 | BO66: 6 | BP66: 8 | BQ66: 9 | BR66: 12 | BS66: 11 | BT66: 8 | BU66: 13 | BV66: 10 | BW66: 6 | BX66: 8 | BY66: 11 | BZ66: 9 | CA66: 394 | CC66: 010510 | CD66: 408 | CE66: 407 | CF66: 405 | CG66: 401 | CH66: 398 | CJ66: 010510 | CK66: - | CL66: - | CM66: - | CN66: - | CO66: 54.438368 | CP66: 32.77698 | CR66: 010510 | CS66: 2085302 | CT66: 1232381 | CU66: 852921 | CV66: 1845592.71 | CW66: 1163946.74 | CX66: 681645.97 | CZ66: 010510 | DA66: 47.84797657
A67: Distrito | B67: 010511 | C67: MARÍA | E67: 010511 | F67: 80.27 | G67: 9.916531705 | H67: 3420 | I67: - | J67: - | K67: 18 | L67: No | M67: Ninguno | N67: María | P67: 010511 | Q67: 796.0001984 | R67: 400.3238068 | S67: 395.6763916 | T67: 10.76729703 | U67: 579.9202576 | V67: 35.79840088 | W67: 39.53637695 | X67: 42.43124199 | Y67: 26.63129139 | Z67: 20.37527752 | AA67: 29.74187756 | AB67: 20.02572823 | AC67: 19.95447636 | AD67: 25.17392635 | AE67: 20.09298801 | AF67: 24.14894104 | AG67: 17.91084385 | AH67: 12.7040298 | AI67: 9.585787773 | AJ67: 13.58358335 | AK67: 3.194883704 | AL67: 9.566702843 | AM67: 1.072021842 | AN67: 1.057805538 | AO67: 46.35883522 | AP67: 40.27482605 | AQ67: 40.37608624 | AR67: 26.73931694 | AS67: 32.8849144 | AT67: 32.38247967 | AU67: 29.68710995 | AV67: 26.8213501 | AW67: 23.60293579 | AX67: 24.71302891 | AY67: 28.30455971 | AZ67: 20.56536722 | BA67: 13.85671616 | BB67: 12.66808462 | BC67: 10.53267896 | BD67: 3.11792028 | BE67: 5.240892768 | BF67: 2.088012695 | BG67: 3.198947906 | BI67: 010511 | BJ67: 1031 | BK67: 482 | BL67: 549 | BM67: 10 | BN67: 836 | BO67: 8 | BP67: 17 | BQ67: 11 | BR67: 7 | BS67: 18 | BT67: 16 | BU67: 21 | BV67: 18 | BW67: 17 | BX67: 15 | BY67: 18 | BZ67: 21 | CA67: 782 | CC67: 010511 | CD67: 792 | CE67: 785 | CF67: 776 | CG67: 764 | CH67: 752 | CJ67: 010511 | CK67: - | CL67: - | CM67: - | CN67: - | CO67: 51.870194 | CP67: 22.63015 | CR67: 010511 | CS67: 5677263 | CT67: 1056174 | CU67: 4621089 | CV67: 4218284.4 | CW67: 926092.21 | CX67: 3292192.19 | CZ67: 010511 | DA67: 67.16650951
A68: Distrito | B68: 010512 | C68: OCALLI | E68: 010512 | F68: 177.39 | G68: 21.99673037 | H68: 1774 | I68: - | J68: - | K68: 54 | L68: No | M68: Ninguno | N68: Ocalli | P68: 010512 | Q68: 3901.999817 | R68: 1638.543518 | S68: 2263.456299 | T68: 75.24980354 | U68: 2784.168213 | V68: 233.2880096 | W68: 208.7147675 | X68: 190.4440079 | Y68: 131.5806847 | Z68: 112.0445366 | AA68: 123.5677757 | AB68: 126.1392822 | AC68: 129.9842072 | AD68: 107.752037 | AE68: 98.84467316 | AF68: 75.699049 | AG68: 82.55700684 | AH68: 63.29584312 | AI68: 47.40699959 | AJ68: 41.47605515 | AK68: 28.92136097 | AL68: 23.7780962 | AM68: 12.02973461 | AN68: 5.318150401 | AO68: 229.6612473 | AP68: 186.5693359 | AQ68: 205.934906 | AR68: 154.86689 | AS68: 135.2482872 | AT68: 135.6014519 | AU68: 153.3595963 | AV68: 142.5810471 | AW68: 121.193409 | AX68: 132.6787415 | AY68: 105.0267334 | AZ68: 96.12409592 | BA68: 75.42560959 | BB68: 65.24424362 | BC68: 49.54450035 | BD68: 29.03903103 | BE68: 22.60850143 | BF68: 11.98492289 | BG68: 6.464962959 | BI68: 010512 | BJ68: 3626 | BK68: 1709 | BL68: 1917 | BM68: 52 | BN68: 2782 | BO68: 54 | BP68: 57 | BQ68: 54 | BR68: 64 | BS68: 78 | BT68: 54 | BU68: 76 | BV68: 60 | BW68: 66 | BX68: 57 | BY68: 64 | BZ68: 88 | CA68: 2573 | CC68: 010512 | CD68: 3919 | CE68: 3939 | CF68: 3950 | CG68: 3953 | CH68: 3957 | CJ68: 010512 | CK68: - | CL68: - | CM68: - | CN68: - | CO68: 45.39658 | CP68: 3.817944 | CR68: 010512 | CS68: 3548511 | CT68: 1933478 | CU68: 1615033 | CV68: 2946656.92 | CW68: 1685945.29 | CX68: 1260711.63 | CZ68: 010512 | DA68: 379.0740246
A69: Distrito | B69: 010513 | C69: OCUMAL | E69: 010513 | F69: 235.86 | G69: 15.88230306 | H69: 1802 | I69: - | J69: - | K69: 32 | L69: No | M69: Ninguno | N69: Collonce | P69: 010513 | Q69: 3746.000397 | R69: 552.6061096 | S69: 3193.394287 | T69: 53.87588775 | U69: 2600.49147 | V69: 220.7204418 | W69: 208.8391399 | X69: 209.5686607 | Y69: 152.7139435 | Z69: 77.1389389 | AA69: 102.8588276 | AB69: 114.4313021 | AC69: 127.7900963 | AD69: 79.61927986 | AE69: 79.46217346 | AF69: 72.47355175 | AG69: 55.45025349 | AH69: 59.96073151 | AI69: 51.06137943 | AJ69: 45.43406296 | AK69: 28.84464645 | AL69: 34.39932442 | AM69: 9.560001731 | AN69: 5.307474136 | AO69: 213.7797775 | AP69: 223.4573727 | AQ69: 255.1261292 | AR69: 166.3398514 | AS69: 123.7701187 | AT69: 134.3128757 | AU69: 146.7159233 | AV69: 137.0847301 | AW69: 98.46142197 | AX69: 113.9101734 | AY69: 82.36786461 | AZ69: 91.27330303 | BA69: 60.52023315 | BB69: 49.62244892 | BC69: 37.17765617 | BD69: 46.65695286 | BE69: 21.27827978 | BF69: 5.33311069 | BG69: 3.177939892 | BI69: 010513 | BJ69: 4015 | BK69: 1849 | BL69: 2166 | BM69: 44 | BN69: 3091 | BO69: 62 | BP69: 61 | BQ69: 83 | BR69: 66 | BS69: 71 | BT69: 75 | BU69: 82 | BV69: 92 | BW69: 89 | BX69: 75 | BY69: 91 | BZ69: 94 | CA69: 2831 | CC69: 010513 | CD69: 3744 | CE69: 3734 | CF69: 3712 | CG69: 3679 | CH69: 3641 | CJ69: 010513 | CK69: - | CL69: - | CM69: - | CN69: - | CO69: 52.242779 | CP69: 16.89763 | CR69: 010513 | CS69: 10347469 | CT69: 2036281 | CU69: 8311188 | CV69: 9075243.49 | CW69: 1913782.89 | CX69: 7161460.6 | CZ69: 010513 | DA69: 363.4571365
A70: Distrito | B70: 010514 | C70: PISUQUIA | E70: 010514 | F70: 306.5 | G70: 16.88417618 | H70: 2671 | I70: - | J70: - | K70: 83 | L70: No | M70: Ninguno | N70: Yomblon | P70: 010514 | Q70: 5175.00087 | R70: 411.0284576 | S70: 4763.972412 | T70: 92.13688087 | U70: 3466.103027 | V70: 339.6796093 | W70: 307.2894421 | X70: 289.4711123 | Y70: 164.7687931 | Z70: 139.8173056 | AA70: 160.5275545 | AB70: 160.1369963 | AC70: 134.2792997 | AD70: 141.3474045 | AE70: 124.328331 | AF70: 86.36881447 | AG70: 86.21857929 | AH70: 73.78511143 | AI70: 54.22035933 | AJ70: 42.52246642 | AK70: 29.79459572 | AL70: 27.88569021 | AM70: 18.02213192 | AN70: 4.277171135 | AO70: 352.7750511 | AP70: 344.2127581 | AQ70: 326.4115982 | AR70: 202.2271881 | AS70: 160.7376623 | AT70: 189.7111607 | AU70: 206.2709656 | AV70: 195.5903082 | AW70: 157.0136871 | AX70: 147.7627878 | AY70: 127.3448057 | AZ70: 107.671401 | BA70: 81.2767067 | BB70: 56.48363495 | BC70: 48.77975941 | BD70: 37.09745121 | BE70: 31.89430714 | BF70: 13.83405459 | BG70: 3.164747596 | BI70: 010514 | BJ70: 5862 | BK70: 2722 | BL70: 3140 | BM70: 73 | BN70: 4334 | BO70: 104 | BP70: 85 | BQ70: 112 | BR70: 130 | BS70: 132 | BT70: 138 | BU70: 145 | BV70: 137 | BW70: 143 | BX70: 116 | BY70: 134 | BZ70: 141 | CA70: 3943 | CC70: 010514 | CD70: 5160 | CE70: 5125 | CF70: 5075 | CG70: 5012 | CH70: 4940 | CJ70: 010514 | CK70: - | CL70: - | CM70: - | CN70: - | CO70: 58.528572 | CP70: 54.72109 | CR70: 010514 | CS70: 20072447 | CT70: 4649107 | CU70: 15423340 | CV70: 16906663.26 | CW70: 4463636.68 | CX70: 12443026.58 | CZ70: 010514 | DA70: 543.8848296
A71: Distrito | B71: 010515 | C71: PROVIDENCIA | E71: 010515 | F71: 71.22 | G71: 19.7697276 | H71: 2379 | I71: - | J71: - | K71: 17 | L71: No | M71: Ninguno | N71: Providencia | P71: 010515 | Q71: 1407.99958 | R71: 275.4216385 | S71: 1132.577942 | T71: 26.13397884 | U71: 954.3246994 | V71: 69.62717009 | W71: 86.62685204 | X71: 99.07425404 | Y71: 37.18308544 | Z71: 26.82554293 | AA71: 40.529881 | AB71: 45.44627666 | AC71: 46.35709 | AD71: 33.58195639 | AE71: 30.67510033 | AF71: 29.50240135 | AG71: 25.1451273 | AH71: 17.83975554 | AI71: 15.87527752 | AJ71: 14.72253692 | AK71: 6.279270172 | AL71: 11.63314927 | AM71: 9.440028191 | AN71: 2.085084438 | AO71: 89.96786785 | AP71: 90.51378536 | AQ71: 90.56733704 | AR71: 55.76486015 | AS71: 43.80066299 | AT71: 38.48399734 | AU71: 47.76595306 | AV71: 53.00847054 | AW71: 46.30282974 | AX71: 52.34899139 | AY71: 31.38688898 | AZ71: 24.66958904 | BA71: 35.24626493 | BB71: 21.01216984 | BC71: 16.71207643 | BD71: 10.49162674 | BE71: 8.375488997 | BF71: 3.130721927 | BG71: 0 | BI71: 010515 | BJ71: 1766 | BK71: 812 | BL71: 954 | BM71: 17 | BN71: 1357 | BO71: 28 | BP71: 25 | BQ71: 29 | BR71: 26 | BS71: 35 | BT71: 45 | BU71: 29 | BV71: 33 | BW71: 33 | BX71: 30 | BY71: 45 | BZ71: 39 | CA71: 1243 | CC71: 010515 | CD71: 1406 | CE71: 1399 | CF71: 1389 | CG71: 1374 | CH71: 1356 | CJ71: 010515 | CK71: - | CL71: - | CM71: - | CN71: - | CO71: 54.733542 | CP71: 29.42918 | CR71: 010515 | CS71: 4117991 | CT71: 1480139 | CU71: 2637852 | CV71: 3826061.99 | CW71: 1300696.72 | CX71: 2525365.27 | CZ71: 010515 | DA71: 131.6239852
A72: Distrito | B72: 010516 | C72: SAN CRISTÓBAL | E72: 010516 | F72: 33.36 | G72: 17.5059952 | H72: 2552 | I72: - | J72: - | K72: 4 | L72: No | M72: Ninguno | N72: Olto | P72: 010516 | Q72: 583.9999619 | R72: 466.1000061 | S72: 117.8999557 | T72: 15.12934637 | U72: 420.467392 | V72: 31.30950975 | W72: 34.07572031 | X72: 25.44773436 | Y72: 29.8877964 | Z72: 13.87130451 | AA72: 23.54312611 | AB72: 17.9436245 | AC72: 11.58884048 | AD72: 15.75890255 | AE72: 14.93532228 | AF72: 21.1116128 | AG72: 19.09631443 | AH72: 13.7933197 | AI72: 4.221491814 | AJ72: 9.505419016 | AK72: 13.72255468 | AL72: 13.8245182 | AM72: 7.497750282 | AN72: 1.051645279 | AO72: 33.53033924 | AP72: 22.24220753 | AQ72: 38.21868706 | AR72: 20.5468998 | AS72: 9.93718195 | AT72: 10.08429551 | AU72: 21.02879524 | AV72: 17.2123301 | AW72: 7.500659943 | AX72: 15.13066196 | AY72: 15.27219582 | AZ72: 17.28469181 | BA72: 5.334792137 | BB72: 8.461170912 | BC72: 6.283928394 | BD72: 4.212196827 | BE72: 5.301072359 | BF72: 3.179028273 | BG72: 1.052297354 | BI72: 010516 | BJ72: 739 | BK72: 378 | BL72: 361 | BM72: 9 | BN72: 607 | BO72: 9 | BP72: 6 | BQ72: 11 | BR72: 8 | BS72: 13 | BT72: 5 | BU72: 5 | BV72: 18 | BW72: 11 | BX72: 13 | BY72: 12 | BZ72: 14 | CA72: 568 | CC72: 010516 | CD72: 576 | CE72: 563 | CF72: 550 | CG72: 535 | CH72: 520 | CJ72: 010516 | CK72: - | CL72: - | CM72: - | CN72: - | CO72: 52.75641 | CP72: 32.97493 | CR72: 010516 | CS72: 2236110 | CT72: 1561202 | CU72: 674908 | CV72: 1756568.73 | CW72: 1237175.52 | CX72: 519393.21 | CZ72: 010516 | DA72: 51.87865865
A73: Distrito | B73: 010517 | C73: SAN FRANCISCO DEL YESO | E73: 010517 | F73: 113.94 | G73: 6.564858698 | H73: 2379 | I73: - | J73: - | K73: 22 | L73: No | M73: Ninguno | N73: San Francisco del Yeso | P73: 010517 | Q73: 748.0003204 | R73: 388.5776062 | S73: 359.4227142 | T73: 16.29543161 | U73: 540.9260406 | V73: 35.94929123 | W73: 40.80938721 | X73: 33.11738682 | Y73: 15.05783653 | Z73: 25.92758751 | AA73: 27.82282257 | AB73: 18.02220535 | AC73: 24.35067844 | AD73: 24.17816162 | AE73: 15.95089006 | AF73: 14.88828754 | AG73: 14.76651335 | AH73: 18.03724957 | AI73: 8.477039576 | AJ73: 13.58492756 | AK73: 9.536884308 | AL73: 10.58889782 | AM73: 1.065930605 | AN73: 3.174414158 | AO73: 54.31273842 | AP73: 31.11045265 | AQ73: 33.20158672 | AR73: 25.01427078 | AS73: 21.04034615 | AT73: 19.01948547 | AU73: 25.63030624 | AV73: 30.26168346 | AW73: 22.9227047 | AX73: 25.97113228 | AY73: 22.95285702 | AZ73: 21.80042601 | BA73: 13.94607496 | BB73: 14.89088821 | BC73: 8.424850941 | BD73: 10.5835824 | BE73: 8.439174652 | BF73: 2.131100535 | BG73: 1.040245652 | BI73: 010517 | BJ73: 821 | BK73: 395 | BL73: 426 | BM73: 10 | BN73: 652 | BO73: 20 | BP73: 18 | BQ73: 4 | BR73: 11 | BS73: 9 | BT73: 18 | BU73: 10 | BV73: 14 | BW73: 13 | BX73: 10 | BY73: 15 | BZ73: 6 | CA73: 621 | CC73: 010517 | CD73: 745 | CE73: 739 | CF73: 732 | CG73: 722 | CH73: 711 | CJ73: 010517 | CK73: - | CL73: - | CM73: - | CN73: - | CO73: 49.096061 | CP73: 19.26484 | CR73: 010517 | CS73: 1394016 | CT73: 758143 | CU73: 635873 | CV73: 1158403.93 | CW73: 614844.7 | CX73: 543559.23 | CZ73: 010517 | DA73: 76.32911527
A74: Distrito | B74: 010518 | C74: SAN JERÓNIMO | E74: 010518 | F74: 214.66 | G74: 3.177117302 | H74: 2239 | I74: - | J74: - | K74: 26 | L74: No | M74: Ninguno | N74: Paclas | P74: 010518 | Q74: 681.9996872 | R74: 227.3051529 | S74: 454.6945343 | T74: 10.93846345 | U74: 548.6100693 | V74: 38.35902119 | W74: 25.98434019 | X74: 19.41154194 | Y74: 13.76469421 | Z74: 27.67695332 | AA74: 19.27346134 | AB74: 16.94751072 | AC74: 16.07447338 | AD74: 14.73124218 | AE74: 19.31947565 | AF74: 24.45125532 | AG74: 18.07573986 | AH74: 12.69697428 | AI74: 11.65247059 | AJ74: 16.91886234 | AK74: 22.43069458 | AL74: 9.623943329 | AM74: 5.313158989 | AN74: 2.148516178 | AO74: 19.56916285 | AP74: 30.19717884 | AQ74: 11.78852654 | AR74: 11.86569977 | AS74: 20.65380287 | AT74: 23.31645298 | AU74: 26.58832359 | AV74: 34.46709251 | AW74: 23.64588737 | AX74: 25.13731241 | AY74: 23.38616848 | AZ74: 23.88183737 | BA74: 16.31207228 | BB74: 17.06629753 | BC74: 15.83822203 | BD74: 11.64187527 | BE74: 7.517151594 | BF74: 4.27231276 | BG74: 0 | BI74: 010518 | BJ74: 1056 | BK74: 502 | BL74: 554 | BM74: 14 | BN74: 898 | BO74: 9 | BP74: 3 | BQ74: 13 | BR74: 15 | BS74: 12 | BT74: 13 | BU74: 13 | BV74: 17 | BW74: 18 | BX74: 12 | BY74: 12 | BZ74: 10 | CA74: 864 | CC74: 010518 | CD74: 668 | CE74: 645 | CF74: 621 | CG74: 597 | CH74: 571 | CJ74: 010518 | CK74: - | CL74: - | CM74: - | CN74: - | CO74: 47.147578 | CP74: 46.58563 | CR74: 010518 | CS74: 2599753 | CT74: 1919453 | CU74: 680300 | CV74: 2380589 | CW74: 1819513.2 | CX74: 561075.8 | CZ74: 010518 | DA74: 47.11372793
A75: Distrito | B75: 010519 | C75: SAN JUAN DE LOPECANCHA | E75: 010519 | F75: 88.02 | G75: 5.214723926 | H75: 2920 | I75: - | J75: - | K75: 48 | L75: No | M75: Ninguno | N75: San Juan de Lopecancha | P75: 010519 | Q75: 458.9999657 | R75: 73.63012314 | S75: 385.3698425 | T75: 6.624930859 | U75: 327.9416218 | V75: 25.39465475 | W75: 20.66349554 | X75: 24.7571497 | Y75: 16.31314754 | Z75: 13.10322762 | AA75: 14.08238578 | AB75: 14.01983976 | AC75: 8.725697517 | AD75: 14.12519169 | AE75: 11.88445592 | AF75: 10.79404175 | AG75: 7.551875591 | AH75: 6.427323818 | AI75: 6.435826778 | AJ75: 8.6305089 | AK75: 9.767409325 | AL75: 5.340135574 | AM75: 4.266207337 | AN75: 1.093959332 | AO75: 27.73484468 | AP75: 19.48692608 | AQ75: 30.27051926 | AR75: 26.88240671 | AS75: 15.88061666 | AT75: 11.43112993 | AU75: 11.40517092 | AV75: 7.785859466 | AW75: 10.0915159 | AX75: 17.82362223 | AY75: 12.26919711 | AZ75: 5.601368427 | BA75: 6.469382048 | BB75: 6.405383825 | BC75: 6.554950714 | BD75: 9.784965277 | BE75: 7.602065086 | BF75: 2.143535852 | BG75: 0 | BI75: 010519 | BJ75: 672 | BK75: 338 | BL75: 334 | BM75: 7 | BN75: 552 | BO75: 7 | BP75: 11 | BQ75: 11 | BR75: 8 | BS75: 8 | BT75: 5 | BU75: 13 | BV75: 12 | BW75: 12 | BX75: 15 | BY75: 15 | BZ75: 19 | CA75: 503 | CC75: 010519 | CD75: 453 | CE75: 445 | CF75: 434 | CG75: 423 | CH75: 411 | CJ75: 010519 | CK75: - | CL75: - | CM75: - | CN75: - | CO75: 55.646778 | CP75: 11.25014 | CR75: 010519 | CS75: 3016410 | CT75: 2641501 | CU75: 374909 | CV75: 2932555.47 | CW75: 2582361.31 | CX75: 350194.16 | CZ75: 010519 | DA75: 48.75098765
A76: Distrito | B76: 010520 | C76: SANTA CATALINA | E76: 010520 | F76: 126.21 | G76: 16.2982331 | H76: 2665 | I76: - | J76: - | K76: 10 | L76: No | M76: Ninguno | N76: Santa Catalina | P76: 010520 | Q76: 2056.999756 | R76: 435.5183716 | S76: 1621.481384 | T76: 53.8843379 | U76: 1322.924957 | V76: 161.8253365 | W76: 137.1621971 | X76: 110.6532459 | Y76: 94.3965826 | Z76: 83.41169739 | AA76: 87.30539322 | AB76: 65.21015549 | AC76: 43.72893906 | AD76: 39.26375008 | AE76: 45.03228378 | AF76: 45.01130486 | AG76: 28.75449276 | AH76: 24.59274435 | AI76: 19.18069029 | AJ76: 12.77415562 | AK76: 15.97900105 | AL76: 9.55459094 | AM76: 8.422690392 | AN76: 1.055490613 | AO76: 149.4135189 | AP76: 129.6160545 | AQ76: 104.6361771 | AR76: 76.16089916 | AS76: 81.06138802 | AT76: 93.80609894 | AU76: 80.93190765 | AV76: 60.2656498 | AW76: 44.87700844 | AX76: 42.88693237 | AY76: 41.05326653 | AZ76: 28.46423912 | BA76: 31.43989658 | BB76: 23.65720558 | BC76: 12.87040925 | BD76: 14.98036289 | BE76: 2.160714865 | BF76: 3.209054947 | BG76: 2.194338799 | BI76: 010520 | BJ76: 2271 | BK76: 1086 | BL76: 1185 | BM76: 33 | BN76: 1660 | BO76: 42 | BP76: 37 | BQ76: 33 | BR76: 49 | BS76: 52 | BT76: 53 | BU76: 40 | BV76: 50 | BW76: 48 | BX76: 51 | BY76: 50 | BZ76: 57 | CA76: 1502 | CC76: 010520 | CD76: 2078 | CE76: 2114 | CF76: 2145 | CG76: 2168 | CH76: 2189 | CJ76: 010520 | CK76: - | CL76: - | CM76: - | CN76: - | CO76: 60.302966 | CP76: 50.36441 | CR76: 010520 | CS76: 8877133 | CT76: 4066778 | CU76: 4810355 | CV76: 7540202.61 | CW76: 3908617.65 | CX76: 3631584.96 | CZ76: 010520 | DA76: 256.3038881
A77: Distrito | B77: 010521 | C77: SANTO TOMÁS | E77: 010521 | F77: 84.93 | G77: 37.76050865 | H77: 2595 | I77: - | J77: - | K77: 89 | L77: No | M77: Ninguno | N77: Santo Tomás | P77: 010521 | Q77: 3207.000458 | R77: 936.6747742 | S77: 2270.325684 | T77: 56.0545001 | U77: 2274.015289 | V77: 189.5953903 | W77: 176.3709908 | X77: 182.634037 | Y77: 94.67256165 | Z77: 102.3098392 | AA77: 92.45753479 | AB77: 94.38936234 | AC77: 100.4967842 | AD77: 54.17173958 | AE77: 93.99053192 | AF77: 72.440979 | AG77: 84.91944122 | AH77: 53.75343132 | AI77: 68.22633362 | AJ77: 42.8955307 | AK77: 50.41177559 | AL77: 34.95495892 | AM77: 24.2399559 | AN77: 11.61139703 | AO77: 179.6042976 | AP77: 168.9685822 | AQ77: 163.232048 | AR77: 106.0905418 | AS77: 90.99662781 | AT77: 104.8535156 | AU77: 93.88795662 | AV77: 94.10965729 | AW77: 97.11051559 | AX77: 69.74574089 | AY77: 110.340416 | AZ77: 69.7668457 | BA77: 68.9914093 | BB77: 50.55900764 | BC77: 33.46495008 | BD77: 38.73990917 | BE77: 28.4597168 | BF77: 8.319731236 | BG77: 5.216572046 | BI77: 010521 | BJ77: 3689 | BK77: 1822 | BL77: 1867 | BM77: 33 | BN77: 2892 | BO77: 61 | BP77: 47 | BQ77: 53 | BR77: 58 | BS77: 65 | BT77: 59 | BU77: 61 | BV77: 69 | BW77: 77 | BX77: 80 | BY77: 80 | BZ77: 64 | CA77: 2668 | CC77: 010521 | CD77: 3176 | CE77: 3127 | CF77: 3070 | CG77: 3004 | CH77: 2935 | CJ77: 010521 | CK77: - | CL77: - | CM77: - | CN77: - | CO77: 46.979229 | CP77: 33.57183 | CR77: 010521 | CS77: 6537033 | CT77: 3914566 | CU77: 2622467 | CV77: 6175702.5 | CW77: 3780563.81 | CX77: 2395138.69 | CZ77: 010521 | DA77: 304.2087586
A78: Distrito | B78: 010522 | C78: TINGO | E78: 010522 | F78: 102.67 | G78: 13.12944385 | H78: 1811 | I78: - | J78: - | K78: 23 | L78: No | M78: Ninguno | N78: Tingo | P78: 010522 | Q78: 1347.999664 | R78: 781.6486206 | S78: 566.3510437 | T78: 23.54717302 | U78: 977.6659851 | V78: 78.46472931 | W78: 64.66614914 | X78: 61.42964935 | Y78: 50.75263977 | Z78: 61.43140411 | AA78: 53.71885681 | AB78: 40.88840866 | AC78: 36.82858086 | AD78: 37.78688431 | AE78: 38.21806145 | AF78: 37.9983902 | AG78: 26.24906349 | AH78: 17.70381832 | AI78: 14.80884886 | AJ78: 15.9153533 | AK78: 17.69638872 | AL78: 15.75215006 | AM78: 6.304748535 | AN78: 1.040057659 | AO78: 86.92847824 | AP78: 62.15450859 | AQ78: 71.07683182 | AR78: 53.55635834 | AS78: 48.27871704 | AT78: 58.50299644 | AU78: 48.16263962 | AV78: 40.53247833 | AW78: 36.27604198 | AX78: 30.9076376 | AY78: 39.26429176 | AZ78: 22.72903347 | BA78: 25.63939476 | BB78: 14.81092501 | BC78: 13.56574821 | BD78: 9.49631834 | BE78: 2.140534997 | BF78: 4.198414803 | BG78: 2.124161363 | BI78: 010522 | BJ78: 1552 | BK78: 750 | BL78: 802 | BM78: 19 | BN78: 1254 | BO78: 23 | BP78: 14 | BQ78: 25 | BR78: 23 | BS78: 25 | BT78: 23 | BU78: 20 | BV78: 28 | BW78: 27 | BX78: 24 | BY78: 20 | BZ78: 22 | CA78: 1188 | CC78: 010522 | CD78: 1355 | CE78: 1367 | CF78: 1375 | CG78: 1378 | CH78: 1381 | CJ78: 010522 | CK78: - | CL78: - | CM78: - | CN78: - | CO78: 40.0163 | CP78: 11.15524 | CR78: 010522 | CS78: 7263344 | CT78: 1542380 | CU78: 5720964 | CV78: 6209992.35 | CW78: 1422560.82 | CX78: 4787431.53 | CZ78: 010522 | DA78: 132.2019492
A79: Distrito | B79: 010523 | C79: TRITA | E79: 010523 | F79: 12.68 | G79: 112.7760252 | H79: 2728 | I79: - | J79: - | K79: 7 | L79: No | M79: Ninguno | N79: Trita | P79: 010523 | Q79: 1430.000122 | R79: 893.4463501 | S79: 536.553772 | T79: 32.1082747 | U79: 1005.466507 | V79: 87.69383812 | W79: 77.45745659 | X79: 78.06057167 | Y79: 41.24026299 | Z79: 41.27955055 | AA79: 45.59457779 | AB79: 63.74627304 | AC79: 44.87293243 | AD79: 39.58709621 | AE79: 40.11745739 | AF79: 27.15597725 | AG79: 18.8307457 | AH79: 22.04628181 | AI79: 25.13931704 | AJ79: 13.71949673 | AK79: 23.01429558 | AL79: 11.70386362 | AM79: 3.168820858 | AN79: 3.177827835 | AO79: 81.36306 | AP79: 76.99837875 | AQ79: 82.16011047 | AR79: 56.49154282 | AS79: 50.16820717 | AT79: 55.90843964 | AU79: 62.99963188 | AV79: 54.23728943 | AW79: 42.44734573 | AX79: 30.76562595 | AY79: 29.98013401 | AZ79: 23.47309017 | BA79: 18.00203872 | BB79: 15.69346118 | BC79: 16.67855549 | BD79: 16.63968706 | BE79: 4.198576927 | BF79: 4.188382626 | BG79: 0 | BI79: 010523 | BJ79: 1477 | BK79: 746 | BL79: 731 | BM79: 18 | BN79: 1151 | BO79: 21 | BP79: 28 | BQ79: 16 | BR79: 23 | BS79: 24 | BT79: 16 | BU79: 30 | BV79: 29 | BW79: 38 | BX79: 38 | BY79: 33 | BZ79: 34 | CA79: 1046 | CC79: 010523 | CD79: 1437 | CE79: 1449 | CF79: 1457 | CG79: 1458 | CH79: 1459 | CJ79: 010523 | CK79: - | CL79: - | CM79: - | CN79: - | CO79: 50.058289 | CP79: 16.37895 | CR79: 010523 | CS79: 2658665 | CT79: 1908678 | CU79: 749987 | CV79: 2316480.67 | CW79: 1784081.62 | CX79: 532399.05 | CZ79: 010523 | DA79: 142.4888433
A80: Provincia | B80: 010600 | C80: RODRÍGUEZ DE MENDOZA | E80: 010600 | F80: 2359.39 | G80: 13.61792667 | H80: 1584 | I80: 1 | J80: 12 | K80: 317 | L80: No | M80: Ninguno | N80: Mendoza | P80: 010600 | Q80: 32129.99782 | R80: 10384.85068 | S80: 21745.14714 | T80: 567.2455386 | U80: 22759.26887 | V80: 1890.545635 | W80: 1681.022497 | X80: 1593.271242 | Y80: 1006.005288 | Z80: 1076.752041 | AA80: 1076.351575 | AB80: 1126.754641 | AC80: 1024.919067 | AD80: 906.7972897 | AE80: 809.2301515 | AF80: 794.2563961 | AG80: 568.2476056 | AH80: 443.6424654 | AI80: 370.702969 | AJ80: 312.8049413 | AK80: 314.1503408 | AL80: 222.7211167 | AM80: 114.0523798 | AN80: 57.23579383 | AO80: 1951.000966 | AP80: 1772.875061 | AQ80: 1703.802818 | AR80: 1084.519558 | AS80: 998.4944053 | AT80: 1163.821594 | AU80: 1299.766973 | AV80: 1149.274268 | AW80: 1022.146411 | AX80: 985.1239974 | AY80: 863.4149052 | AZ80: 797.7841631 | BA80: 576.3503449 | BB80: 461.7798172 | BC80: 317.6988634 | BD80: 284.0727542 | BE80: 166.8017286 | BF80: 101.9453799 | BG80: 39.86127722 | BI80: 010600 | BJ80: 34720 | BK80: 16388 | BL80: 18332 | BM80: 408 | BN80: 26482 | BO80: 553 | BP80: 567 | BQ80: 662 | BR80: 695 | BS80: 698 | BT80: 664 | BU80: 692 | BV80: 666 | BW80: 639 | BX80: 627 | BY80: 650 | BZ80: 667 | CA80: 24538 | CC80: 010600 | CD80: 32513 | CE80: 33122 | CF80: 33651 | CG80: 33895 | CH80: 34099 | CJ80: 010600 | CK80: - | CL80: - | CM80: - | CN80: - | CO80: 33.212151 | CP80: 13.32771677 | CR80: 010600 | CS80: 131095382 | CT80: 32674823 | CU80: 98420559 | CV80: 102494479.4 | CW80: 28354197.23 | CX80: 74140282.2 | CZ80: 010600 | DA80: 3141.976721
A81: Distrito | B81: 010601 | C81: SAN NICOLÁS | E81: 010601 | F81: 206.01 | G81: 30.11504296 | H81: 1584 | I81: - | J81: - | K81: 27 | L81: No | M81: Ninguno | N81: Mendoza | P81: 010601 | Q81: 6203.999939 | R81: 5130.153076 | S81: 1073.846863 | T81: 93.455688 | U81: 4551.045197 | V81: 312.7074547 | W81: 313.0393333 | X81: 335.151989 | Y81: 232.1556892 | Z81: 208.3518925 | AA81: 220.0241776 | AB81: 227.431076 | AC81: 192.3742332 | AD81: 222.4733696 | AE81: 156.3492393 | AF81: 155.0528717 | AG81: 98.01424599 | AH81: 100.964489 | AI81: 78.97930336 | AJ81: 64.23724556 | AK81: 60.04700565 | AL81: 60.26237106 | AM81: 34.98649502 | AN81: 15.4486742 | AO81: 283.5830612 | AP81: 333.8938675 | AQ81: 362.5065269 | AR81: 224.5329285 | AS81: 177.0552979 | AT81: 212.3267784 | AU81: 243.9440041 | AV81: 205.4177361 | AW81: 175.5065155 | AX81: 202.7340736 | AY81: 165.085701 | AZ81: 150.7509594 | BA81: 88.80753326 | BB81: 100.8432217 | BC81: 60.69446278 | BD81: 61.86182594 | BE81: 36.66267967 | BF81: 21.58947086 | BG81: 8.151656389 | BI81: 010601 | BJ81: 5478 | BK81: 2679 | BL81: 2799 | BM81: 70 | BN81: 4217 | BO81: 75 | BP81: 88 | BQ81: 91 | BR81: 102 | BS81: 108 | BT81: 104 | BU81: 109 | BV81: 104 | BW81: 78 | BX81: 108 | BY81: 97 | BZ81: 103 | CA81: 3909 | CC81: 010601 | CD81: 6278 | CE81: 6399 | CF81: 6499 | CG81: 6551 | CH81: 6594 | CJ81: 010601 | CK81: - | CL81: - | CM81: - | CN81: - | CO81: 20.821354 | CP81: 2.983966 | CR81: 010601 | CS81: 44388755 | CT81: 11834986 | CU81: 32553769 | CV81: 37942905.74 | CW81: 9244643.57 | CX81: 28698262.17 | CZ81: 010601 | DA81: 484.1937829
A82: Distrito | B82: 010602 | C82: CHIRIMOTO | E82: 010602 | F82: 153 | G82: 17.37908497 | H82: 2040 | I82: - | J82: - | K82: 38 | L82: No | M82: Ninguno | N82: Chirimoto | P82: 010602 | Q82: 2658.999249 | R82: 65.58481979 | S82: 2593.414429 | T82: 61.61751437 | U82: 1768.318407 | V82: 210.0212731 | W82: 149.4608765 | X82: 117.0893569 | Y82: 82.92815697 | Z82: 117.2798948 | AA82: 108.9471653 | AB82: 84.33064985 | AC82: 61.00829268 | AD82: 62.77880561 | AE82: 64.97305584 | AF82: 38.96131968 | AG82: 38.96926641 | AH82: 24.2624259 | AI82: 15.72747707 | AJ82: 16.78095067 | AK82: 9.374666214 | AL82: 10.67051053 | AM82: 3.12784481 | AN82: 2.267784238 | AO82: 190.1612117 | AP82: 170.4582872 | AQ82: 152.9075308 | AR82: 102.2833955 | AS82: 113.3406982 | AT82: 125.3913879 | AU82: 113.7972937 | AV82: 100.966177 | AW82: 72.17961574 | AX82: 66.23077726 | AY82: 48.59897614 | AZ82: 57.64502382 | BA82: 42.11764145 | BB82: 30.60274696 | BC82: 15.53293574 | BD82: 14.78574562 | BE82: 11.61873639 | BF82: 9.326411247 | BG82: 2.095117569 | BI82: 010602 | BJ82: 2966 | BK82: 1372 | BL82: 1594 | BM82: 44 | BN82: 2107 | BO82: 59 | BP82: 56 | BQ82: 60 | BR82: 66 | BS82: 82 | BT82: 63 | BU82: 67 | BV82: 66 | BW82: 69 | BX82: 64 | BY82: 60 | BZ82: 64 | CA82: 1919 | CC82: 010602 | CD82: 2713 | CE82: 2799 | CF82: 2877 | CG82: 2914 | CH82: 2946 | CJ82: 010602 | CK82: - | CL82: - | CM82: - | CN82: - | CO82: 38.449165 | CP82: 12.30337 | CR82: 010602 | CS82: 2025996 | CT82: 1456285 | CU82: 569711 | CV82: 1822843.7 | CW82: 1354214.22 | CX82: 468629.48 | CZ82: 010602 | DA82: 329.6198572
A83: Distrito | B83: 010603 | C83: COCHAMAL | E83: 010603 | F83: 199.44 | G83: 3.128760529 | H83: 1697 | I83: - | J83: - | K83: 12 | L83: No | M83: Ninguno | N83: Cochamal | P83: 010603 | Q83: 623.999794 | R83: 540.8346863 | S83: 83.16510773 | T83: 9.499979734 | U83: 467.5284615 | V83: 33.8882885 | W83: 21.93700278 | X83: 20.81415176 | Y83: 17.73079443 | Z83: 13.59524822 | AA83: 18.80184007 | AB83: 27.86570323 | AC83: 23.75270617 | AD83: 10.45521307 | AE83: 21.79007423 | AF83: 22.68675804 | AG83: 10.62603331 | AH83: 10.42106676 | AI83: 8.519042969 | AJ83: 7.385759115 | AK83: 7.422546387 | AL83: 2.076519966 | AM83: 3.122545719 | AN83: 0 | AO83: 26.12857687 | AP83: 32.03783464 | AQ83: 34.14505839 | AR83: 19.82268 | AS83: 22.75059462 | AT83: 26.90896225 | AU83: 32.29722261 | AV83: 25.1844523 | AW83: 20.83389139 | AX83: 18.73040652 | AY83: 19.08563089 | AZ83: 14.62973416 | BA83: 13.80508041 | BB83: 9.496616364 | BC83: 4.109816551 | BD83: 10.3016839 | BE83: 6.736552 | BF83: 3.079423189 | BG83: 1.024295092 | BI83: 010603 | BJ83: 957 | BK83: 447 | BL83: 510 | BM83: 6 | BN83: 814 | BO83: 8 | BP83: 6 | BQ83: 12 | BR83: 16 | BS83: 9 | BT83: 9 | BU83: 19 | BV83: 11 | BW83: 13 | BX83: 12 | BY83: 24 | BZ83: 13 | CA83: 765 | CC83: 010603 | CD83: 628 | CE83: 633 | CF83: 636 | CG83: 638 | CH83: 639 | CJ83: 010603 | CK83: - | CL83: - | CM83: - | CN83: - | CO83: 33.428571 | CP83: 7.082071 | CR83: 010603 | CS83: 2723670 | CT83: 577215 | CU83: 2146455 | CV83: 1124000.46 | CW83: 575252.88 | CX83: 548747.58 | CZ83: 010603 | DA83: 52.7520231
A84: Distrito | B84: 010604 | C84: HUAMBO | E84: 010604 | F84: 99.56 | G84: 28.13378867 | H84: 1684 | I84: - | J84: - | K84: 35 | L84: No | M84: Ninguno | N84: Huambo | P84: 010604 | Q84: 2801.000061 | R84: 807.9470215 | S84: 1993.05304 | T84: 29.43185306 | U84: 2315.703339 | V84: 84.38135719 | W84: 89.18585205 | X84: 106.6566544 | Y84: 74.5057888 | Z84: 67.69296074 | AA84: 65.95593452 | AB84: 61.99416161 | AC84: 87.67658234 | AD84: 83.53514862 | AE84: 97.72941589 | AF84: 116.7409554 | AG84: 105.8119984 | AH84: 59.7609024 | AI84: 61.80870247 | AJ84: 49.54899311 | AK84: 72.71039104 | AL84: 43.62270927 | AM84: 26.57105255 | AN84: 11.06395435 | AO84: 99.48786163 | AP84: 91.43008614 | AQ84: 105.6524696 | AR84: 60.7546072 | AS84: 57.85086441 | AT84: 81.70993805 | AU84: 80.27883911 | AV84: 92.45251656 | AW84: 93.14341354 | AX84: 119.9077759 | AY84: 114.9412346 | AZ84: 129.6226234 | BA84: 83.65473938 | BB84: 73.65013409 | BC84: 58.64894867 | BD84: 47.01380157 | BE84: 22.78598785 | BF84: 13.56073618 | BG84: 7.49990797 | BI84: 010604 | BJ84: 2912 | BK84: 1384 | BL84: 1528 | BM84: 22 | BN84: 2489 | BO84: 26 | BP84: 27 | BQ84: 28 | BR84: 32 | BS84: 35 | BT84: 34 | BU84: 49 | BV84: 30 | BW84: 43 | BX84: 36 | BY84: 29 | BZ84: 45 | CA84: 2379 | CC84: 010604 | CD84: 2772 | CE84: 2722 | CF84: 2664 | CG84: 2590 | CH84: 2515 | CJ84: 010604 | CK84: - | CL84: - | CM84: - | CN84: - | CO84: 22.971 | CP84: 7.376823 | CR84: 010604 | CS84: 13837825 | CT84: 812994 | CU84: 13024831 | CV84: 11935255.02 | CW84: 766044.2 | CX84: 11169210.82 | CZ84: 010604 | DA84: 147.6204458
A85: Distrito | B85: 010605 | C85: LIMABAMBA | E85: 010605 | F85: 317.88 | G85: 7.87718636 | H85: 1656 | I85: - | J85: - | K85: 49 | L85: No | M85: Ninguno | N85: Limabamba | P85: 010605 | Q85: 2503.999802 | R85: 447.9884491 | S85: 2056.011353 | T85: 28.26072907 | U85: 1827.105392 | V85: 130.3291664 | W85: 117.6803837 | X85: 123.1485348 | Y85: 77.67040062 | Z85: 70.3439064 | AA85: 73.95154381 | AB85: 87.73970985 | AC85: 81.43760109 | AD85: 90.83822727 | AE85: 59.97689247 | AF85: 65.65830994 | AG85: 53.45832825 | AH85: 43.23755741 | AI85: 28.72193527 | AJ85: 26.64275646 | AK85: 23.17229605 | AL85: 22.26193237 | AM85: 6.294710875 | AN85: 4.168666363 | AO85: 144.9103622 | AP85: 135.3764572 | AQ85: 119.3982849 | AR85: 76.16209984 | AS85: 76.09674549 | AT85: 83.8061552 | AU85: 94.48440456 | AV85: 91.49062538 | AW85: 82.24182701 | AX85: 87.30754471 | AY85: 76.44397926 | AZ85: 79.6663456 | BA85: 54.77999496 | BB85: 33.0467205 | BC85: 32.33146667 | BD85: 23.11517954 | BE85: 15.90479422 | BF85: 6.360272646 | BG85: 4.343751431 | BI85: 010605 | BJ85: 1834 | BK85: 863 | BL85: 971 | BM85: 21 | BN85: 1475 | BO85: 29 | BP85: 20 | BQ85: 33 | BR85: 29 | BS85: 34 | BT85: 38 | BU85: 24 | BV85: 27 | BW85: 29 | BX85: 24 | BY85: 26 | BZ85: 31 | CA85: 1394 | CC85: 010605 | CD85: 2491 | CE85: 2465 | CF85: 2431 | CG85: 2385 | CH85: 2338 | CJ85: 010605 | CK85: - | CL85: - | CM85: - | CN85: - | CO85: 37.433423 | CP85: 11.21742 | CR85: 010605 | CS85: 8844011 | CT85: 974843 | CU85: 7869168 | CV85: 7905984.26 | CW85: 879643.9 | CX85: 7026340.36 | CZ85: 010605 | DA85: 212.5844533
A86: Distrito | B86: 010606 | C86: LONGAR | E86: 010606 | F86: 66.24 | G86: 25.81521739 | H86: 1584 | I86: - | J86: - | K86: 25 | L86: No | M86: Ninguno | N86: Longar | P86: 010606 | Q86: 1710.000153 | R86: 909.2137756 | S86: 800.786377 | T86: 23.62434721 | U86: 1356.447998 | V86: 65.10416031 | W86: 47.49142265 | X86: 64.95833778 | Y86: 55.40923119 | Z86: 43.07885742 | AA86: 58.82382011 | AB86: 50.00211143 | AC86: 69.55984688 | AD86: 45.3589859 | AE86: 57.293396 | AF86: 55.87344742 | AG86: 36.20340729 | AH86: 37.56485558 | AI86: 33.30153942 | AJ86: 25.94065475 | AK86: 32.17510605 | AL86: 19.74660873 | AM86: 10.43661785 | AN86: 6.253997326 | AO86: 83.33020401 | AP86: 72.91025734 | AQ86: 72.11440086 | AR86: 51.37091446 | AS86: 55.66666794 | AT86: 51.66074181 | AU86: 59.22047424 | AV86: 56.65213966 | AW86: 61.77325439 | AX86: 68.8829689 | AY86: 60.12880898 | AZ86: 52.57143974 | BA86: 37.73311615 | BB86: 28.98963118 | BC86: 23.63147259 | BD86: 25.65837383 | BE86: 22.78785801 | BF86: 7.20018959 | BG86: 3.140964389 | BI86: 010606 | BJ86: 1894 | BK86: 906 | BL86: 988 | BM86: 12 | BN86: 1603 | BO86: 17 | BP86: 25 | BQ86: 26 | BR86: 21 | BS86: 24 | BT86: 25 | BU86: 17 | BV86: 33 | BW86: 22 | BX86: 24 | BY86: 31 | BZ86: 34 | CA86: 1514 | CC86: 010606 | CD86: 1704 | CE86: 1691 | CF86: 1673 | CG86: 1647 | CH86: 1621 | CJ86: 010606 | CK86: - | CL86: - | CM86: - | CN86: - | CO86: 25.822 | CP86: 5.72598 | CR86: 010606 | CS86: 816623 | CT86: 633780 | CU86: 182843 | CV86: 812373.22 | CW86: 629948.87 | CX86: 182424.35 | CZ86: 010606 | DA86: 130.4691004
A87: Distrito | B87: 010607 | C87: MARISCAL BENAVIDES | E87: 010607 | F87: 176.18 | G87: 8.899988648 | H87: 1580 | I87: - | J87: - | K87: 9 | L87: No | M87: Ninguno | N87: Mariscal Benavides | P87: 010607 | Q87: 1567.999207 | R87: 1050.461731 | S87: 517.5374756 | T87: 26.41435349 | U87: 1221.744034 | V87: 65.29031944 | W87: 52.27015114 | X87: 70.43933487 | Y87: 42.62771702 | Z87: 53.29341125 | AA87: 56.18501663 | AB87: 57.74290466 | AC87: 45.41334724 | AD87: 44.21007442 | AE87: 47.62608433 | AF87: 53.45090771 | AG87: 45.39216423 | AH87: 23.88442421 | AI87: 31.04385567 | AJ87: 25.81798172 | AK87: 19.6089797 | AL87: 18.69726181 | AM87: 8.307202816 | AN87: 4.15294683 | AO87: 83.02074051 | AP87: 61.96297073 | AQ87: 70.2385273 | AR87: 46.83957672 | AS87: 38.49291801 | AT87: 52.50305176 | AU87: 75.82890511 | AV87: 58.30063248 | AW87: 47.79454899 | AX87: 44.57187748 | AY87: 41.92363739 | AZ87: 48.05222893 | BA87: 32.39131927 | BB87: 39.15178394 | BC87: 16.35003948 | BD87: 28.60348129 | BE87: 8.314378262 | BF87: 6.147797585 | BG87: 2.056809425 | BI87: 010607 | BJ87: 2048 | BK87: 974 | BL87: 1074 | BM87: 24 | BN87: 1705 | BO87: 23 | BP87: 23 | BQ87: 30 | BR87: 19 | BS87: 24 | BT87: 30 | BU87: 30 | BV87: 27 | BW87: 18 | BX87: 18 | BY87: 27 | BZ87: 27 | CA87: 1633 | CC87: 010607 | CD87: 1568 | CE87: 1566 | CF87: 1559 | CG87: 1539 | CH87: 1519 | CJ87: 010607 | CK87: - | CL87: - | CM87: - | CN87: - | CO87: 22.117973 | CP87: 3.42374 | CR87: 010607 | CS87: 921969 | CT87: 666960 | CU87: 255009 | CV87: 898435.42 | CW87: 644190.68 | CX87: 254244.74 | CZ87: 010607 | DA87: 122.2333316
A88: Distrito | B88: 010608 | C88: MILPUC | E88: 010608 | F88: 26.8 | G88: 17.5 | H88: 1675 | I88: - | J88: - | K88: 6 | L88: No | M88: Ninguno | N88: Milpuc | P88: 010608 | Q88: 468.9999466 | R88: 265.4252701 | S88: 203.5746765 | T88: 2.084958911 | U88: 366.4423218 | V88: 18.82820892 | W88: 20.7671051 | X88: 21.65102196 | Y88: 7.239282608 | Z88: 11.42718363 | AA88: 11.41542101 | AB88: 15.42634344 | AC88: 12.28773308 | AD88: 4.105690002 | AE88: 22.68105316 | AF88: 18.43512917 | AG88: 6.134241343 | AH88: 14.48022556 | AI88: 7.215668917 | AJ88: 7.179996252 | AK88: 7.202436209 | AL88: 7.222952843 | AM88: 1.036960006 | AN88: 3.101002455 | AO88: 20.78831291 | AP88: 15.41798258 | AQ88: 22.62491512 | AR88: 11.39221573 | AS88: 10.61915779 | AT88: 10.67580247 | AU88: 17.05474567 | AV88: 18.66295338 | AW88: 10.32592249 | AX88: 13.44902182 | AY88: 19.83686924 | AZ88: 18.70492744 | BA88: 19.74591064 | BB88: 10.26394939 | BC88: 13.24147034 | BD88: 6.100449562 | BE88: 6.131996393 | BF88: 5.105540037 | BG88: 1.020150185 | BI88: 010608 | BJ88: 812 | BK88: 375 | BL88: 437 | BM88: 5 | BN88: 687 | BO88: 3 | BP88: 10 | BQ88: 9 | BR88: 20 | BS88: 9 | BT88: 11 | BU88: 11 | BV88: 16 | BW88: 6 | BX88: 8 | BY88: 13 | BZ88: 15 | CA88: 651 | CC88: 010608 | CD88: 458 | CE88: 439 | CF88: 419 | CG88: 411 | CH88: 405 | CJ88: 010608 | CK88: - | CL88: - | CM88: - | CN88: - | CO88: 31.604121 | CP88: 5.592042 | CR88: 010608 | CS88: 786052 | CT88: 649377 | CU88: 136675 | CV88: 735010.36 | CW88: 631028.59 | CX88: 103981.77 | CZ88: 010608 | DA88: 31.31890094
A89: Distrito | B89: 010609 | C89: OMIA | E89: 010609 | F89: 175.13 | G89: 54.00559584 | H89: 1367 | I89: - | J89: - | K89: 72 | L89: No | M89: Ninguno | N89: Omia | P89: 010609 | Q89: 9457.999695 | R89: 582.5704956 | S89: 8875.429199 | T89: 207.5863357 | U89: 6193.297104 | V89: 672.6563606 | W89: 592.302639 | X89: 515.1720295 | Y89: 282.4480953 | Z89: 338.6131058 | AA89: 322.6988716 | AB89: 374.2699566 | AC89: 315.7132149 | AD89: 244.5344257 | AE89: 198.938591 | AF89: 178.0555172 | AG89: 127.4743338 | AH89: 91.33111858 | AI89: 71.47376013 | AJ89: 58.04864025 | AK89: 48.35712624 | AL89: 26.48165607 | AM89: 8.560139418 | AN89: 2.117972851 | AO89: 693.7800369 | AP89: 611.2913017 | AQ89: 535.1432247 | AR89: 348.8048611 | AS89: 321.5920033 | AT89: 361.4677277 | AU89: 405.1917572 | AV89: 366.6074276 | AW89: 322.2509289 | AX89: 247.8309231 | AY89: 224.9430561 | AZ89: 174.7322407 | BA89: 133.8038635 | BB89: 90.01450491 | BC89: 63.03033686 | BD89: 44.3171854 | BE89: 25.16199636 | BF89: 13.58877468 | BG89: 5.200620174 | BI89: 010609 | BJ89: 11166 | BK89: 5199 | BL89: 5967 | BM89: 141 | BN89: 8006 | BO89: 221 | BP89: 208 | BQ89: 270 | BR89: 283 | BS89: 280 | BT89: 252 | BU89: 258 | BV89: 254 | BW89: 267 | BX89: 241 | BY89: 255 | BZ89: 240 | CA89: 7270 | CC89: 010609 | CD89: 9603 | CE89: 9830 | CF89: 10028 | CG89: 10127 | CH89: 10206 | CJ89: 010609 | CK89: - | CL89: - | CM89: - | CN89: - | CO89: 39.50835 | CP89: 23.20612 | CR89: 010609 | CS89: 13811491 | CT89: 3788897 | CU89: 10022594 | CV89: 10791768.8 | CW89: 3505172.47 | CX89: 7286596.33 | CZ89: 010609 | DA89: 1110.145498
A90: Distrito | B90: 010610 | C90: SANTA ROSA | E90: 010610 | F90: 34.11 | G90: 15.80181765 | H90: 1756 | I90: - | J90: - | K90: 13 | L90: No | M90: Ninguno | N90: Santa Rosa de Huayabamba | P90: 010610 | Q90: 539 | R90: 159.4387512 | S90: 379.5612488 | T90: 8.594134212 | U90: 417.1881599 | V90: 27.82081127 | W90: 21.09057045 | X90: 17.80376625 | Y90: 8.417727947 | Z90: 13.67471361 | AA90: 14.79478884 | AB90: 18.84249401 | AC90: 22.97271156 | AD90: 13.45241785 | AE90: 11.61657095 | AF90: 12.43143463 | AG90: 9.273809433 | AH90: 10.48817921 | AI90: 11.49378276 | AJ90: 15.63256264 | AK90: 16.62414598 | AL90: 7.328098297 | AM90: 7.331318855 | AN90: 5.390089035 | AO90: 27.90363884 | AP90: 18.88965607 | AQ90: 21.91536617 | AR90: 8.471543789 | AS90: 10.74427128 | AT90: 11.97681212 | AU90: 17.55507183 | AV90: 17.92267799 | AW90: 21.09149647 | AX90: 26.16728497 | AY90: 14.93902373 | AZ90: 13.69362974 | BA90: 13.61097884 | BB90: 13.49433017 | BC90: 10.31122923 | BD90: 10.36090827 | BE90: 5.179047585 | BF90: 6.207009792 | BG90: 2.086000562 | BI90: 010610 | BJ90: 708 | BK90: 358 | BL90: 350 | BM90: 5 | BN90: 587 | BO90: 7 | BP90: 10 | BQ90: 7 | BR90: 8 | BS90: 13 | BT90: 8 | BU90: 8 | BV90: 11 | BW90: 8 | BX90: 10 | BY90: 7 | BZ90: 10 | CA90: 560 | CC90: 010610 | CD90: 538 | CE90: 534 | CF90: 529 | CG90: 527 | CH90: 526 | CJ90: 010610 | CK90: - | CL90: - | CM90: - | CN90: - | CO90: 24.453776 | CP90: 9.304521 | CR90: 010610 | CS90: 2182968 | CT90: 549346 | CU90: 1633622 | CV90: 1894567.76 | CW90: 468262.84 | CX90: 1426304.92 | CZ90: 010610 | DA90: 39.83694196
A91: Distrito | B91: 010611 | C91: TOTORA | E91: 010611 | F91: 6.02 | G91: 49.00332226 | H91: 1672 | I91: - | J91: - | K91: 6 | L91: No | M91: Ninguno | N91: Totora | P91: 010611 | Q91: 294.9999619 | R91: 65.70365906 | S91: 229.2963028 | T91: 1.057739735 | U91: 236.4383888 | V91: 13.78500366 | W91: 6.26105845 | X91: 11.45422745 | Y91: 3.177317023 | Z91: 4.193469048 | AA91: 7.340341568 | AB91: 8.246853828 | AC91: 10.404917 | AD91: 8.254706383 | AE91: 16.63631821 | AF91: 12.43574047 | AG91: 9.332840919 | AH91: 5.228210449 | AI91: 5.20969522 | AJ91: 5.161664486 | AK91: 8.360745907 | AL91: 3.151697278 | AM91: 1.04355824 | AN91: 2.071907759 | AO91: 7.36757803 | AP91: 10.43016267 | AQ91: 17.58323669 | AR91: 6.243556023 | AS91: 3.316943645 | AT91: 12.91495728 | AU91: 11.89310169 | AV91: 6.26610744 | AW91: 9.45994091 | AX91: 13.5278101 | AY91: 4.207063079 | AZ91: 14.69487143 | BA91: 8.419122219 | BB91: 7.23810184 | BC91: 6.183604479 | BD91: 3.083576918 | BE91: 3.145452976 | BF91: 5.218642712 | BG91: 2.055879593 | BI91: 010611 | BJ91: 581 | BK91: 252 | BL91: 329 | BM91: 2 | BN91: 518 | BO91: 1 | BP91: 6 | BQ91: 2 | BR91: 6 | BS91: 6 | BT91: 7 | BU91: 6 | BV91: 9 | BW91: 8 | BX91: 5 | BY91: 6 | BZ91: 10 | CA91: 497 | CC91: 010611 | CD91: 293 | CE91: 290 | CF91: 288 | CG91: 289 | CH91: 286 | CJ91: 010611 | CK91: - | CL91: - | CM91: - | CN91: - | CO91: 22.971 | CP91: 6.589066 | CR91: 010611 | CS91: 9225108 | CT91: 501454 | CU91: 8723654 | CV91: 2517967.29 | CW91: 465973.04 | CX91: 2051994.25 | CZ91: 010611 | DA91: 17.98359787
A92: Distrito | B92: 010612 | C92: VISTA ALEGRE | E92: 010612 | F92: 899.02 | G92: 3.669551289 | H92: 1515 | I92: - | J92: - | K92: 25 | L92: No | M92: Ninguno | N92: Vista Alegre | P92: 010612 | Q92: 3299.000015 | R92: 359.5289459 | S92: 2939.471069 | T92: 75.61790514 | U92: 2038.010063 | V92: 255.7332306 | W92: 249.5361023 | X92: 188.9318371 | Y92: 121.6950865 | Z92: 135.2073975 | AA92: 117.4126539 | AB92: 112.8626766 | AC92: 102.3178806 | AD92: 76.80022526 | AE92: 53.61946011 | AF92: 64.47400475 | AG92: 27.55693626 | AH92: 22.01901031 | AI92: 17.2082057 | AJ92: 10.42773628 | AK92: 9.094895363 | AL92: 1.198798418 | AM92: 3.233933687 | AN92: 1.198798418 | AO92: 290.539381 | AP92: 218.7761974 | AQ92: 189.5732765 | AR92: 127.8411789 | AS92: 110.9682426 | AT92: 132.4792786 | AU92: 148.2211533 | AV92: 109.3508224 | AW92: 105.5450554 | AX92: 75.7835331 | AY92: 73.2809248 | AZ92: 43.02013874 | BA92: 47.48104477 | BB92: 24.98807621 | BC92: 13.63308001 | BD92: 8.870542347 | BE92: 2.372248888 | BF92: 4.561111331 | BG92: 1.186124444 | BI92: 010612 | BJ92: 3364 | BK92: 1579 | BL92: 1785 | BM92: 56 | BN92: 2274 | BO92: 84 | BP92: 88 | BQ92: 94 | BR92: 93 | BS92: 74 | BT92: 83 | BU92: 94 | BV92: 78 | BW92: 78 | BX92: 77 | BY92: 75 | BZ92: 75 | CA92: 2047 | CC92: 010612 | CD92: 3467 | CE92: 3754 | CF92: 4048 | CG92: 4277 | CH92: 4504 | CJ92: 010612 | CK92: - | CL92: - | CM92: - | CN92: - | CO92: 51.237772 | CP92: 18.66729 | CR92: 010612 | CS92: 10049192 | CT92: 2464004 | CU92: 7585188 | CV92: 4687117.8 | CW92: 2308642.22 | CX92: 2378475.58 | CZ92: 010612 | DA92: 463.2187877
A93: Provincia | B93: 010700 | C93: UTCUBAMBA | E93: 010700 | F93: 3842.93 | G93: 30.60112987 | H93: 446 | I93: 1 | J93: 7 | K93: 524 | L93: No | M93: Ninguno | N93: Bagua Grande | P93: 010700 | Q93: 117598.0072 | R93: 59922.41714 | S93: 57675.59009 | T93: 2195.042789 | U93: 83364.44704 | V93: 6968.042133 | W93: 6135.129887 | X93: 5918.340126 | Y93: 5054.877703 | Z93: 4597.996641 | AA93: 4362.648384 | AB93: 4406.857439 | AC93: 4001.307713 | AD93: 3516.260799 | AE93: 2899.247742 | AF93: 2426.077284 | AG93: 1980.005503 | AH93: 1584.190061 | AI93: 1238.303902 | AJ93: 939.5020857 | AK93: 648.3033228 | AL93: 401.9080259 | AM93: 201.9898224 | AN93: 89.6013 | AO93: 7220.777008 | AP93: 6277.005556 | AQ93: 6246.392855 | AR93: 5336.298218 | AS93: 4500.448738 | AT93: 4276.365902 | AU93: 4363.765564 | AV93: 4161.39031 | AW93: 3733.786528 | AX93: 3116.707836 | AY93: 2779.895643 | AZ93: 2173.664878 | BA93: 1873.219297 | BB93: 1425.016799 | BC93: 1084.831052 | BD93: 796.7678287 | BE93: 529.9334967 | BF93: 220.7977629 | BG93: 110.3499138 | BI93: 010700 | BJ93: 130269 | BK93: 62758 | BL93: 67511 | BM93: 1970 | BN93: 97590 | BO93: 2204 | BP93: 2323 | BQ93: 2433 | BR93: 2404 | BS93: 2506 | BT93: 2462 | BU93: 2524 | BV93: 2703 | BW93: 2568 | BX93: 2311 | BY93: 2521 | BZ93: 2658 | CA93: 90100 | CC93: 010700 | CD93: 118094 | CE93: 118853 | CF93: 119294 | CG93: 119657 | CH93: 119879 | CJ93: 010700 | CK93: - | CL93: - | CM93: - | CN93: - | CO93: 29.898639 | CP93: 12.19683771 | CR93: 010700 | CS93: 452565521 | CT93: 308910423 | CU93: 143655098 | CV93: 387105979.9 | CW93: 286260823 | CX93: 100845156.9 | CZ93: 010700 | DA93: 11635.91753
A94: Distrito | B94: 010701 | C94: BAGUA GRANDE | E94: 010701 | F94: 746.64 | G94: 74.68659595 | H94: 446 | I94: - | J94: - | K94: 119 | L94: No | M94: Ninguno | N94: Bagua Grande | P94: 010701 | Q94: 55764.00977 | R94: 39006.84961 | S94: 16757.16016 | T94: 1032.952759 | U94: 40070.50732 | V94: 3230.953003 | W94: 2792.78363 | X94: 2761.293213 | Y94: 2765.630188 | Z94: 2380.697205 | AA94: 2226.309692 | AB94: 2247.735413 | AC94: 1899.644165 | AD94: 1729.446533 | AE94: 1377.711487 | AF94: 1171.3526 | AG94: 958.0812683 | AH94: 736.5892792 | AI94: 526.8296661 | AJ94: 416.1981812 | AK94: 285.0593719 | AL94: 165.6445351 | AM94: 94.79689407 | AN94: 43.59967518 | AO94: 3384.243408 | AP94: 2819.412354 | AQ94: 2810.191833 | AR94: 2550.87561 | AS94: 2296.730408 | AT94: 2077.062805 | AU94: 2087.438721 | AV94: 1938.276367 | AW94: 1674.026276 | AX94: 1409.958282 | AY94: 1275.916962 | AZ94: 987.8300171 | BA94: 818.7450409 | BB94: 629.5152435 | BC94: 482.8540039 | BD94: 348.6181488 | BE94: 230.7338104 | BF94: 85.98999023 | BG94: 45.23250389 | BI94: 010701 | BJ94: 59619 | BK94: 29045 | BL94: 30574 | BM94: 952 | BN94: 44285 | BO94: 1076 | BP94: 1123 | BQ94: 1115 | BR94: 1066 | BS94: 1133 | BT94: 1137 | BU94: 1124 | BV94: 1155 | BW94: 1174 | BX94: 1060 | BY94: 1164 | BZ94: 1191 | CA94: 40870 | CC94: 010701 | CD94: 56257 | CE94: 57076 | CF94: 57746 | CG94: 58380 | CH94: 58947 | CJ94: 010701 | CK94: - | CL94: - | CM94: - | CN94: - | CO94: 24.502994 | CP94: 9.396441 | CR94: 010701 | CS94: 165608988 | CT94: 107310633 | CU94: 58298355 | CV94: 149611599.7 | CW94: 94868463.7 | CX94: 54743135.98 | CZ94: 010701 | DA94: 5452.801991
A95: Distrito | B95: 010702 | C95: CAJARURO | E95: 010702 | F95: 1746.23 | G95: 14.37611311 | H95: 455 | I95: - | J95: - | K95: 135 | L95: No | M95: Ninguno | N95: Cajaruro | P95: 010702 | Q95: 25103.99854 | R95: 8494.915527 | S95: 16609.08301 | T95: 446.3448639 | U95: 17722.0647 | V95: 1416.919861 | W95: 1334.245209 | X95: 1352.718323 | Y95: 924.9611511 | Z95: 854.3002319 | AA95: 863.6097717 | AB95: 891.8566284 | AC95: 906.1946106 | AD95: 740.2663269 | AE95: 638.7716675 | AF95: 529.9908752 | AG95: 437.7440796 | AH95: 353.8358612 | AI95: 322.3462753 | AJ95: 223.6670532 | AK95: 144.8602829 | AL95: 84.07528114 | AM95: 48.65367889 | AN95: 21.32828999 | AO95: 1506.346344 | AP95: 1335.5336 | AQ95: 1497.393005 | AR95: 1094.39444 | AS95: 792.6430054 | AT95: 829.0493164 | AU95: 887.8138733 | AV95: 915.9782715 | AW95: 846.8849792 | AX95: 688.094635 | AY95: 637.3709717 | AZ95: 501.4524841 | BA95: 467.4407654 | BB95: 347.9450912 | BC95: 256.6454697 | BD95: 204.8601761 | BE95: 114.9469528 | BF95: 61.02060795 | BG95: 27.83994293 | BI95: 010702 | BJ95: 30345 | BK95: 14500 | BL95: 15845 | BM95: 410 | BN95: 23141 | BO95: 467 | BP95: 492 | BQ95: 545 | BR95: 537 | BS95: 600 | BT95: 567 | BU95: 577 | BV95: 665 | BW95: 589 | BX95: 555 | BY95: 624 | BZ95: 683 | CA95: 21279 | CC95: 010702 | CD95: 24996 | CE95: 24794 | CF95: 24525 | CG95: 24236 | CH95: 23916 | CJ95: 010702 | CK95: - | CL95: - | CM95: - | CN95: - | CO95: 35.929618 | CP95: 18.77501 | CR95: 010702 | CS95: 34256745 | CT95: 10961265 | CU95: 23295480 | CV95: 27683591.17 | CW95: 9939506.63 | CX95: 17744084.54 | CZ95: 010702 | DA95: 2356.740344
A96: Distrito | B96: 010703 | C96: CUMBA | E96: 010703 | F96: 292.66 | G96: 30.30137361 | H96: 456 | I96: - | J96: - | K96: 72 | L96: No | M96: Ninguno | N96: Cumba | P96: 010703 | Q96: 8867.999268 | R96: 3309.294678 | S96: 5558.70459 | T96: 168.3682137 | U96: 6140.107666 | V96: 541.0721893 | W96: 512.7848663 | X96: 433.7299194 | Y96: 327.1517868 | Z96: 307.7563095 | AA96: 311.2358398 | AB96: 309.3035583 | AC96: 290.8860779 | AD96: 256.5318222 | AE96: 229.0705643 | AF96: 204.5708618 | AG96: 145.8191605 | AH96: 122.6260719 | AI96: 96.18703461 | AJ96: 74.26608658 | AK96: 74.76755142 | AL96: 36.23098946 | AM96: 22.60292816 | AN96: 9.139428139 | AO96: 568.3113251 | AP96: 529.0219116 | AQ96: 487.6623993 | AR96: 385.9668579 | AS96: 287.3462067 | AT96: 306.3959732 | AU96: 322.2964783 | AV96: 323.7498703 | AW96: 257.9215698 | AX96: 230.1238251 | AY96: 206.7851868 | AZ96: 182.1049042 | BA96: 144.6350327 | BB96: 110.3362427 | BC96: 86.8907814 | BD96: 55.84068489 | BE96: 43.07071686 | BF96: 21.00949049 | BG96: 12.79719281 | BI96: 010703 | BJ96: 10071 | BK96: 4826 | BL96: 5245 | BM96: 130 | BN96: 7542 | BO96: 159 | BP96: 167 | BQ96: 200 | BR96: 211 | BS96: 184 | BT96: 188 | BU96: 220 | BV96: 206 | BW96: 209 | BX96: 200 | BY96: 174 | BZ96: 174 | CA96: 6994 | CC96: 010703 | CD96: 8852 | CE96: 8819 | CF96: 8760 | CG96: 8695 | CH96: 8620 | CJ96: 010703 | CK96: - | CL96: - | CM96: - | CN96: - | CO96: 37.445098 | CP96: 14.35234 | CR96: 010703 | CS96: 9523390 | CT96: 4236017 | CU96: 5287373 | CV96: 8776597.81 | CW96: 4083236.35 | CX96: 4693361.46 | CZ96: 010703 | DA96: 929.5447328
A97: Distrito | B97: 010704 | C97: EL MILAGRO | E97: 010704 | F97: 313.89 | G97: 20.34470674 | H97: 391 | I97: - | J97: - | K97: 26 | L97: No | M97: Ninguno | N97: El Milagro | P97: 010704 | Q97: 6385.998657 | R97: 3097.374634 | S97: 3288.624023 | T97: 131.79673 | U97: 4502.846191 | V97: 419.6538544 | W97: 344.8459473 | X97: 294.5656281 | Y97: 240.3777618 | Z97: 266.979126 | AA97: 208.2080688 | AB97: 207.444664 | AC97: 194.4663086 | AD97: 182.3620453 | AE97: 130.4775925 | AF97: 104.2093697 | AG97: 107.1072159 | AH97: 79.82421875 | AI97: 74.11813354 | AJ97: 46.03325558 | AK97: 39.3464756 | AL97: 15.36159229 | AM97: 3.430434227 | AN97: 0 | AO97: 380.0572968 | AP97: 342.5802765 | AQ97: 344.7463226 | AR97: 367.4924011 | AS97: 291.8466949 | AT97: 262.805191 | AU97: 209.7193985 | AV97: 195.5747757 | AW97: 244.1168137 | AX97: 186.4490204 | AY97: 132.2903976 | AZ97: 106.1752663 | BA97: 113.4411812 | BB97: 89.2943306 | BC97: 67.64084244 | BD97: 38.78035736 | BE97: 33.64350414 | BF97: 10.91185522 | BG97: 9.621096134 | BI97: 010704 | BJ97: 6763 | BK97: 3187 | BL97: 3576 | BM97: 118 | BN97: 5084 | BO97: 123 | BP97: 126 | BQ97: 108 | BR97: 133 | BS97: 117 | BT97: 127 | BU97: 127 | BV97: 154 | BW97: 129 | BX97: 96 | BY97: 115 | BZ97: 135 | CA97: 4738 | CC97: 010704 | CD97: 6422 | CE97: 6471 | CF97: 6503 | CG97: 6531 | CH97: 6551 | CJ97: 010704 | CK97: - | CL97: - | CM97: - | CN97: - | CO97: 26.712135 | CP97: 7.604293 | CR97: 010704 | CS97: 11352667 | CT97: 4436079 | CU97: 6916588 | CV97: 8827863.48 | CW97: 3510163.1 | CX97: 5317700.38 | CZ97: 010704 | DA97: 669.0098675
A98: Distrito | B98: 010705 | C98: JAMALCA | E98: 010705 | F98: 357.98 | G98: 20.44527627 | H98: 1620 | I98: - | J98: - | K98: 56 | L98: No | M98: Ninguno | N98: Jamalca | P98: 010705 | Q98: 7318.998962 | R98: 1404.672058 | S98: 5914.326904 | T98: 135.1881628 | U98: 4994.767487 | V98: 464.2525177 | W98: 430.0856628 | X98: 382.80233 | Y98: 293.8181152 | Z98: 286.4771996 | AA98: 251.2720909 | AB98: 232.4156342 | AC98: 245.2736397 | AD98: 185.7419205 | AE98: 168.7476463 | AF98: 147.9748878 | AG98: 103.8452053 | AH98: 104.3015461 | AI98: 77.15457916 | AJ98: 67.85083866 | AK98: 30.99153137 | AL98: 37.20881367 | AM98: 12.0962348 | AN98: 7.907663107 | AO98: 471.9769287 | AP98: 448.7611313 | AQ98: 394.4454231 | AR98: 321.0355759 | AS98: 280.0569611 | AT98: 246.7985229 | AU98: 253.777832 | AV98: 227.3253174 | AW98: 264.5583916 | AX98: 173.5422211 | AY98: 176.6657257 | AZ98: 118.6116123 | BA98: 112.5298195 | BB98: 90.13315773 | BC98: 80.60498428 | BD98: 61.29001904 | BE98: 44.75799465 | BF98: 15.52371979 | BG98: 6.384652138 | BI98: 010705 | BJ98: 8305 | BK98: 4034 | BL98: 4271 | BM98: 139 | BN98: 6164 | BO98: 136 | BP98: 138 | BQ98: 170 | BR98: 158 | BS98: 158 | BT98: 169 | BU98: 192 | BV98: 184 | BW98: 184 | BX98: 135 | BY98: 171 | BZ98: 173 | CA98: 5685 | CC98: 010705 | CD98: 7303 | CE98: 7269 | CF98: 7215 | CG98: 7156 | CH98: 7087 | CJ98: 010705 | CK98: - | CL98: - | CM98: - | CN98: - | CO98: 35.474788 | CP98: 12.48479 | CR98: 010705 | CS98: 27323136 | CT98: 4604822 | CU98: 22718314 | CV98: 10347558.74 | CW98: 3738243.13 | CX98: 6609315.61 | CZ98: 010705 | DA98: 770.6041327
A99: Distrito | B99: 010706 | C99: LONYA GRANDE | E99: 010706 | F99: 327.92 | G99: 33.35264699 | H99: 1222 | I99: - | J99: - | K99: 76 | L99: No | M99: Ninguno | N99: Lonya Grande | P99: 010706 | Q99: 10937.00159 | R99: 4016.954468 | S99: 6920.047119 | T99: 219.4634743 | U99: 7643.766846 | V99: 709.4144592 | W99: 558.8636169 | X99: 522.2442322 | Y99: 387.4291534 | Z99: 386.3984528 | AA99: 400.2827454 | AB99: 413.0227051 | AC99: 362.2664337 | AD99: 321.0817032 | AE99: 281.3897018 | AF99: 208.5435867 | AG99: 168.7778015 | AH99: 138.2153053 | AI99: 110.1606522 | AJ99: 88.30135727 | AK99: 53.06698418 | AL99: 44.93028831 | AM99: 13.94172525 | AN99: 7.626243591 | AO99: 702.6329803 | AP99: 621.7126007 | AQ99: 565.9793396 | AR99: 452.3502197 | AS99: 434.5990753 | AT99: 415.4709473 | AU99: 473.4850616 | AV99: 438.1449127 | AW99: 341.8434525 | AX99: 325.7372055 | AY99: 273.1031113 | AZ99: 209.7246323 | BA99: 165.4501152 | BB99: 120.8460236 | BC99: 80.0896492 | BD99: 65.53436661 | BE99: 46.76858521 | BF99: 21.15101433 | BG99: 6.420654058 | BI99: 010706 | BJ99: 11047 | BK99: 5294 | BL99: 5753 | BM99: 150 | BN99: 8128 | BO99: 190 | BP99: 227 | BQ99: 221 | BR99: 236 | BS99: 242 | BT99: 206 | BU99: 217 | BV99: 258 | BW99: 227 | BX99: 207 | BY99: 205 | BZ99: 234 | CA99: 7482 | CC99: 010706 | CD99: 11034 | CE99: 11182 | CF99: 11300 | CG99: 11412 | CH99: 11509 | CJ99: 010706 | CK99: - | CL99: - | CM99: - | CN99: - | CO99: 32.328096 | CP99: 11.55903 | CR99: 010706 | CS99: 19194367 | CT99: 3673181 | CU99: 15521186 | CV99: 10025657.75 | CW99: 3579398.66 | CX99: 6446259.09 | CZ99: 010706 | DA99: 1149.190105
A100: Distrito | B100: 010707 | C100: YAMÓN | E100: 010707 | F100: 57.61 | G100: 55.89307412 | H100: 950 | I100: - | J100: - | K100: 40 | L100: No | M100: Ninguno | N100: Yamón | P100: 010707 | Q100: 3220.000458 | R100: 592.3561707 | S100: 2627.644287 | T100: 60.92858601 | U100: 2290.386826 | V100: 185.7762489 | W100: 161.5209541 | X100: 170.9864807 | Y100: 115.5095463 | Z100: 115.3881168 | AA100: 101.730175 | AB100: 105.0788364 | AC100: 102.5764771 | AD100: 100.8304482 | AE100: 73.07908249 | AF100: 59.43510246 | AG100: 58.63077164 | AH100: 48.79777813 | AI100: 31.50756073 | AJ100: 23.18531322 | AK100: 20.21112537 | AL100: 18.45652592 | AM100: 6.467926979 | AN100: 0 | AO100: 207.208725 | AP100: 179.9836826 | AQ100: 145.9745312 | AR100: 164.1831131 | AS100: 117.226387 | AT100: 138.7831459 | AU100: 129.2341995 | AV100: 122.3407955 | AW100: 104.4350452 | AX100: 102.8026466 | AY100: 77.7632885 | AZ100: 67.76596165 | BA100: 50.97734261 | BB100: 36.94670963 | BC100: 30.10532093 | BD100: 21.84407592 | BE100: 16.01193261 | BF100: 5.191084862 | BG100: 2.05387187 | BI100: 010707 | BJ100: 4119 | BK100: 1872 | BL100: 2247 | BM100: 71 | BN100: 3246 | BO100: 53 | BP100: 50 | BQ100: 74 | BR100: 63 | BS100: 72 | BT100: 68 | BU100: 67 | BV100: 81 | BW100: 56 | BX100: 58 | BY100: 68 | BZ100: 68 | CA100: 3052 | CC100: 010707 | CD100: 3230 | CE100: 3242 | CF100: 3245 | CG100: 3247 | CH100: 3249 | CJ100: 010707 | CK100: - | CL100: - | CM100: - | CN100: - | CO100: 38.391761 | CP100: 4.701998 | CR100: 010707 | CS100: 4616403 | CT100: 1228632 | CU100: 3387771 | CV100: 2595056.05 | CW100: 1001952.55 | CX100: 1593103.5 | CZ100: 010707 | DA100: 308.0263532
A101: Departamento | B101: 020000 | C101: ÁNCASH | E101: 020000 | F101: 35881.3 | G101: 31.74676224 | H101: 3038 | I101: 20 | J101: 166 | K101: 7411 | L101: No | M101: Ninguno | N101: Huaraz | P101: 020000 | Q101: 1139115.169 | R101: 806064.8155 | S101: 333050.354 | T101: 18027.99091 | U101: 850835.688 | V101: 58730.107 | W101: 52010.70051 | X101: 50701.91812 | Y101: 45689.26457 | Z101: 44926.90199 | AA101: 42798.7338 | AB101: 41253.91003 | AC101: 38828.37497 | AD101: 36429.78804 | AE101: 33069.15952 | AF101: 29006.16974 | AG101: 24421.90485 | AH101: 20276.43056 | AI101: 17107.53287 | AJ101: 14115.89636 | AK101: 11229.88968 | AL101: 7623.187086 | AM101: 3790.277942 | AN101: 1926.465335 | AO101: 60419.09383 | AP101: 52949.33551 | AQ101: 52615.24227 | AR101: 46488.43808 | AS101: 44480.92175 | AT101: 41602.00541 | AU101: 40727.18491 | AV101: 38320.42742 | AW101: 35646.66173 | AX101: 32346.2485 | AY101: 28251.90226 | AZ101: 23405.48772 | BA101: 18834.1488 | BB101: 15972.87157 | BC101: 13121.06057 | BD101: 9739.459914 | BE101: 6398.666926 | BF101: 2751.370621 | BG101: 1108.022169 | BI101: 020000 | BJ101: 1272642 | BK101: 637253 | BL101: 635389 | BM101: 14559 | BN101: 990108 | BO101: 19830 | BP101: 20657 | BQ101: 21772 | BR101: 21737 | BS101: 21351 | BT101: 21200 | BU101: 22184 | BV101: 22402 | BW101: 22242 | BX101: 21385 | BY101: 21629 | BZ101: 22936 | CA101: 924158 | CC101: 020000 | CD101: 1155451 | CE101: 1169522 | CF101: 1180638 | CG101: 1188391 | CH101: 1194156 | CJ101: 020000 | CK101: 32.95 | CL101: 3.05 | CM101: 21.9 | CN101: 3.2 | CO101: - | CP101: - | CR101: 020000 | CS101: 9411519332 | CT101: 4935136697 | CU101: 4476382635 | CV101: 7091152516 | CW101: 4429140820 | CX101: 2662011696 | CZ101: 020000 | DA101: 99242.7251
A102: Provincia | B102: 020100 | C102: HUARAZ | E102: 020100 | F102: 2492.91 | G102: 70.01215447 | H102: 3038 | I102: 1 | J102: 12 | K102: 946 | L102: No | M102: Ninguno | N102: Huaraz | P102: 020100 | Q102: 174534.0092 | R102: 137303.7764 | S102: 37230.23278 | T102: 2890.312025 | U102: 132615.1599 | V102: 8995.205746 | W102: 7337.364364 | X102: 7170.576688 | Y102: 7570.127217 | Z102: 7814.597689 | AA102: 7257.941125 | AB102: 7048.541167 | AC102: 6438.577232 | AD102: 5784.613902 | AE102: 4817.471186 | AF102: 4139.670685 | AG102: 3408.102089 | AH102: 2994.414506 | AI102: 2345.165828 | AJ102: 1878.12361 | AK102: 1500.389271 | AL102: 1080.473546 | AM102: 561.1842189 | AN102: 309.6371325 | AO102: 9318.118558 | AP102: 7440.305905 | AQ102: 7288.590525 | AR102: 7869.272028 | AS102: 7717.910084 | AT102: 6993.642823 | AU102: 6712.504854 | AV102: 6137.505405 | AW102: 5501.183036 | AX102: 4592.771879 | AY102: 3947.370608 | AZ102: 3311.90712 | BA102: 2709.029358 | BB102: 2243.260245 | BC102: 1669.635994 | BD102: 1202.924635 | BE102: 871.2813185 | BF102: 395.5183504 | BG102: 159.1023124 | BI102: 020100 | BJ102: 181111 | BK102: 90884 | BL102: 90227 | BM102: 2373 | BN102: 136986 | BO102: 3293 | BP102: 3365 | BQ102: 3634 | BR102: 3370 | BS102: 3284 | BT102: 3165 | BU102: 3283 | BV102: 3193 | BW102: 3065 | BX102: 3004 | BY102: 3013 | BZ102: 3095 | CA102: 127874 | CC102: 020100 | CD102: 178027 | CE102: 181866 | CF102: 185276 | CG102: 188106 | CH102: 190612 | CJ102: 020100 | CK102: - | CL102: - | CM102: - | CN102: - | CO102: 14.512266 | CP102: 3.122435865 | CR102: 020100 | CS102: 2408351365 | CT102: 2106167355 | CU102: 302184010 | CV102: 2120983250 | CW102: 1947231477 | CX102: 173751773 | CZ102: 020100 | DA102: 15303.50468
A103: Distrito | B103: 020101 | C103: HUARAZ | E103: 020101 | F103: 432.99 | G103: 150.130488 | H103: 3038 | I103: - | J103: - | K103: 154 | L103: No | M103: Ninguno | N103: Huaraz | P103: 020101 | Q103: 65004.99902 | R103: 59338.15234 | S103: 5666.84668 | T103: 1071.571262 | U103: 50192.66919 | V103: 3127.820404 | W103: 2551.108887 | X103: 2493.912415 | Y103: 2683.203384 | Z103: 2889.650284 | AA103: 2722.02829 | AB103: 2679.817108 | AC103: 2569.595993 | AD103: 2178.608932 | AE103: 1809.250244 | AF103: 1608.111031 | AG103: 1269.716309 | AH103: 1108.07901 | AI103: 901.072998 | AJ103: 720.6878586 | AK103: 545.7447052 | AL103: 413.2025337 | AM103: 207.0262928 | AN103: 120.5954208 | AO103: 3444.761108 | AP103: 2631.693741 | AQ103: 2562.234497 | AR103: 2860.42485 | AS103: 2874.70108 | AT103: 2706.588593 | AU103: 2655.112442 | AV103: 2480.349258 | AW103: 2172.983368 | AX103: 1769.75975 | AY103: 1590.781647 | AZ103: 1269.820183 | BA103: 982.625061 | BB103: 843.4461365 | BC103: 633.9981995 | BD103: 424.4030228 | BE103: 312.4928322 | BF103: 134.2351665 | BG103: 55.35717487 | BI103: 020101 | BJ103: 71076 | BK103: 35434 | BL103: 35642 | BM103: 873 | BN103: 53202 | BO103: 1261 | BP103: 1371 | BQ103: 1433 | BR103: 1370 | BS103: 1403 | BT103: 1354 | BU103: 1375 | BV103: 1338 | BW103: 1312 | BX103: 1220 | BY103: 1229 | BZ103: 1307 | CA103: 49446 | CC103: 020101 | CD103: 66195 | CE103: 67418 | CF103: 68466 | CG103: 69249 | CH103: 69882 | CJ103: 020101 | CK103: - | CL103: - | CM103: - | CN103: - | CO103: 10.242455 | CP103: 0.599588 | CR103: 020101 | CS103: 649335433 | CT103: 611766359 | CU103: 37569074 | CV103: 597262742.2 | CW103: 576175796.4 | CX103: 21086945.85 | CZ103: 020101 | DA103: 5497.645919
A104: Distrito | B104: 020102 | C104: COCHABAMBA | E104: 020102 | F104: 135.65 | G104: 12.8639882 | H104: 2213 | I104: - | J104: - | K104: 91 | L104: No | M104: Ninguno | N104: Cochabamba | P104: 020102 | Q104: 1744.999969 | R104: 475.1949768 | S104: 1269.804993 | T104: 26.85434675 | U104: 1215.768661 | V104: 111.1244431 | W104: 91.74647141 | X104: 79.2878933 | Y104: 41.10504532 | Z104: 51.13697624 | AA104: 48.70745373 | AB104: 35.70501614 | AC104: 49.17703629 | AD104: 44.62028885 | AE104: 64.30198479 | AF104: 37.84314251 | AG104: 40.94116783 | AH104: 26.39431381 | AI104: 31.76480865 | AJ104: 31.52426815 | AK104: 28.52657986 | AL104: 21.07226515 | AM104: 7.44713378 | AN104: 6.294498682 | AO104: 105.7846527 | AP104: 103.9083729 | AQ104: 87.45442581 | AR104: 59.10869217 | AS104: 47.77116013 | AT104: 51.97553539 | AU104: 49.33585358 | AV104: 50.314744 | AW104: 49.84546852 | AX104: 63.17581081 | AY104: 42.93260574 | AZ104: 28.02213192 | BA104: 37.01266193 | BB104: 31.61126709 | BC104: 30.26771975 | BD104: 30.46271515 | BE104: 19.98158264 | BF104: 5.250700951 | BG104: 2.063008547 | BI104: 020102 | BJ104: 2253 | BK104: 1047 | BL104: 1206 | BM104: 24 | BN104: 1754 | BO104: 31 | BP104: 37 | BQ104: 27 | BR104: 50 | BS104: 52 | BT104: 37 | BU104: 51 | BV104: 41 | BW104: 44 | BX104: 50 | BY104: 57 | BZ104: 47 | CA104: 1600 | CC104: 020102 | CD104: 1745 | CE104: 1723 | CF104: 1698 | CG104: 1682 | CH104: 1669 | CJ104: 020102 | CK104: - | CL104: - | CM104: - | CN104: - | CO104: 51.041382 | CP104: 25.33511 | CR104: 020102 | CS104: 10533284 | CT104: 5129693 | CU104: 5403591 | CV104: 10193491.77 | CW104: 5041322.85 | CX104: 5152168.92 | CZ104: 020102 | DA104: 177.1505648
A105: Distrito | B105: 020103 | C105: COLCABAMBA | E105: 020103 | F105: 50.65 | G105: 6.396841066 | H105: 3150 | I105: - | J105: - | K105: 18 | L105: No | M105: Ninguno | N105: Colcabamba | P105: 020103 | Q105: 324.0000076 | R105: 142.8453827 | S105: 181.1546249 | T105: 10.19154942 | U105: 250.5221558 | V105: 20.31234217 | W105: 13.20086241 | X105: 8.807644248 | Y105: 7.866661549 | Z105: 13.27599382 | AA105: 14.26457405 | AB105: 6.379515648 | AC105: 5.494922519 | AD105: 6.537318945 | AE105: 3.163485289 | AF105: 8.563151836 | AG105: 13.89978218 | AH105: 7.500898838 | AI105: 1.060392499 | AJ105: 4.159499645 | AK105: 6.416787505 | AL105: 4.323685646 | AM105: 3.329447746 | AN105: 2.151494026 | AO105: 15.77751541 | AP105: 7.678886414 | AQ105: 11.04766512 | AR105: 6.656335115 | AS105: 11.324265 | AT105: 24.70330524 | AU105: 9.79974699 | AV105: 8.786096573 | AW105: 11.26436973 | AX105: 5.4211061 | AY105: 12.31536198 | AZ105: 12.26202488 | BA105: 12.22307396 | BB105: 6.565116405 | BC105: 4.311994553 | BD105: 6.459717989 | BE105: 4.427600265 | BF105: 0 | BG105: 2.267364025 | BI105: 020103 | BJ105: 380 | BK105: 197 | BL105: 183 | BM105: 6 | BN105: 316 | BO105: 1 | BP105: 7 | BQ105: 6 | BR105: 2 | BS105: 2 | BT105: 4 | BU105: 4 | BV105: 5 | BW105: 3 | BX105: 3 | BY105: - | BZ105: 6 | CA105: 307 | CC105: 020103 | CD105: 314 | CE105: 293 | CF105: 274 | CG105: 262 | CH105: 252 | CJ105: 020103 | CK105: - | CL105: - | CM105: - | CN105: - | CO105: 40.32822 | CP105: 6.118961 | CR105: 020103 | CS105: 10210765 | CT105: 2796440 | CU105: 7414325 | CV105: 8097972.09 | CW105: 2717146.63 | CX105: 5380825.46 | CZ105: 020103 | DA105: 32.70215726
A106: Distrito | B106: 020104 | C106: HUANCHAY | E106: 020104 | F106: 209.34 | G106: 8.297506449 | H106: 2592 | I106: - | J106: - | K106: 112 | L106: No | M106: Ninguno | N106: Huanchay | P106: 020104 | Q106: 1737.000504 | R106: 310.0442047 | S106: 1426.956299 | T106: 16.35689235 | U106: 1300.786201 | V106: 78.71458817 | W106: 77.65182781 | X106: 85.6608181 | Y106: 48.66928673 | Z106: 29.79801321 | AA106: 32.63285398 | AB106: 60.27880287 | AC106: 40.66321564 | AD106: 62.87849426 | AE106: 43.06229877 | AF106: 42.0072484 | AG106: 56.06856632 | AH106: 45.39130497 | AI106: 29.86640263 | AJ106: 30.75239944 | AK106: 29.86755276 | AL106: 18.22048521 | AM106: 16.1231885 | AN106: 9.794997215 | AO106: 65.96065807 | AP106: 82.84282017 | AQ106: 113.3042488 | AR106: 54.61502075 | AS106: 34.25155258 | AT106: 36.22046733 | AU106: 40.88368416 | AV106: 49.19451523 | AW106: 51.52939987 | AX106: 60.1249094 | AY106: 58.30701828 | AZ106: 43.09057236 | BA106: 62.35775614 | BB106: 39.02960157 | BC106: 20.21854687 | BD106: 34.22577381 | BE106: 30.26055193 | BF106: 14.96187258 | BG106: 7.519171238 | BI106: 020104 | BJ106: 2290 | BK106: 1116 | BL106: 1174 | BM106: 15 | BN106: 1985 | BO106: 17 | BP106: 18 | BQ106: 31 | BR106: 23 | BS106: 28 | BT106: 25 | BU106: 30 | BV106: 21 | BW106: 33 | BX106: 36 | BY106: 46 | BZ106: 49 | CA106: 1854 | CC106: 020104 | CD106: 1726 | CE106: 1689 | CF106: 1652 | CG106: 1627 | CH106: 1608 | CJ106: 020104 | CK106: - | CL106: - | CM106: - | CN106: - | CO106: 33.213594 | CP106: 22.44553 | CR106: 020104 | CS106: 5885259 | CT106: 1974409 | CU106: 3910850 | CV106: 4829406.37 | CW106: 1802203.19 | CX106: 3027203.18 | CZ106: 020104 | DA106: 116.2783601
A107: Distrito | B107: 020105 | C107: INDEPENDENCIA | E107: 020105 | F107: 342.95 | G107: 235.0488409 | H107: 3023 | I107: - | J107: - | K107: 136 | L107: No | M107: Ninguno | N107: Centenario | P107: 020105 | Q107: 80610.0083 | R107: 67943.75391 | S107: 12666.25439 | T107: 1362.575218 | U107: 60972.63672 | V107: 4315.008911 | W107: 3429.44043 | X107: 3340.229187 | Y107: 3737.158691 | Z107: 3863.769958 | AA107: 3528.202759 | AB107: 3369.996979 | AC107: 3058.57782 | AD107: 2782.455383 | AE107: 2192.31189 | AF107: 1861.726166 | AG107: 1533.199738 | AH107: 1330.289795 | AI107: 953.943985 | AJ107: 745.8643188 | AK107: 586.2599487 | AL107: 411.0453186 | AM107: 241.953167 | AN107: 109.0559273 | AO107: 4363.46875 | AP107: 3452.9776 | AQ107: 3327.018066 | AR107: 3835.113464 | AS107: 3800.72522 | AT107: 3223.77005 | AU107: 3048.086731 | AV107: 2757.905212 | AW107: 2466.951904 | AX107: 2027.67691 | AY107: 1666.665192 | AZ107: 1447.169296 | BA107: 1145.706696 | BB107: 972.8796692 | BC107: 648.3028717 | BD107: 478.3613281 | BE107: 333.8647385 | BF107: 158.422451 | BG107: 64.45304775 | BI107: 020105 | BJ107: 75123 | BK107: 38143 | BL107: 36980 | BM107: 1101 | BN107: 55800 | BO107: 1546 | BP107: 1485 | BQ107: 1699 | BR107: 1492 | BS107: 1363 | BT107: 1276 | BU107: 1312 | BV107: 1322 | BW107: 1208 | BX107: 1204 | BY107: 1243 | BZ107: 1185 | CA107: 52168 | CC107: 020105 | CD107: 82563 | CE107: 84931 | CF107: 87112 | CG107: 88989 | CH107: 90711 | CJ107: 020105 | CK107: - | CL107: - | CM107: - | CN107: - | CO107: 11.537697 | CP107: 0.628832 | CR107: 020105 | CS107: 332544617 | CT107: 199788228 | CU107: 132756389 | CV107: 194013077 | CW107: 133616720.9 | CX107: 60396356.09 | CZ107: 020105 | DA107: 7261.735696
A108: Distrito | B108: 020106 | C108: JANGAS | E108: 020106 | F108: 59.84 | G108: 83.07152406 | H108: 2809 | I108: - | J108: - | K108: 34 | L108: No | M108: Ninguno | N108: Jangas | P108: 020106 | Q108: 4971.000366 | R108: 2628.567627 | S108: 2342.432739 | T108: 92.24909306 | U108: 3780.26355 | V108: 226.9903564 | W108: 206.7432251 | X108: 212.8794403 | Y108: 237.7365417 | Z108: 195.2241058 | AA108: 194.570549 | AB108: 182.1641464 | AC108: 147.6244507 | AD108: 153.9816895 | AE108: 141.8631859 | AF108: 102.524292 | AG108: 91.79056168 | AH108: 107.478672 | AI108: 86.79370117 | AJ108: 45.44399834 | AK108: 54.30247307 | AL108: 24.99697781 | AM108: 12.34662819 | AN108: 4.035333395 | AO108: 273.7339706 | AP108: 214.6858673 | AQ108: 221.0282593 | AR108: 197.2029419 | AS108: 209.5793076 | AT108: 203.726265 | AU108: 221.7837067 | AV108: 181.0568542 | AW108: 188.3627548 | AX108: 128.2551117 | AY108: 110.8889961 | AZ108: 96.86704254 | BA108: 76.022686 | BB108: 77.04420853 | BC108: 69.99394035 | BD108: 39.08828735 | BE108: 20.81805229 | BF108: 7.209721088 | BG108: 4.162034512 | BI108: 020106 | BJ108: 5702 | BK108: 2841 | BL108: 2861 | BM108: 62 | BN108: 4533 | BO108: 87 | BP108: 92 | BQ108: 84 | BR108: 73 | BS108: 85 | BT108: 92 | BU108: 93 | BV108: 75 | BW108: 81 | BX108: 94 | BY108: 81 | BZ108: 99 | CA108: 4259 | CC108: 020106 | CD108: 5056 | CE108: 5138 | CF108: 5206 | CG108: 5254 | CH108: 5292 | CJ108: 020106 | CK108: - | CL108: - | CM108: - | CN108: - | CO108: 23.373813 | CP108: 8.470116 | CR108: 020106 | CS108: 26288923 | CT108: 4292190 | CU108: 21996733 | CV108: 12445941.31 | CW108: 2784288.16 | CX108: 9661653.15 | CZ108: 020106 | DA108: 427.8283104
A109: Distrito | B109: 020107 | C109: LA LIBERTAD | E109: 020107 | F109: 164.26 | G109: 6.885425545 | H109: 3350 | I109: - | J109: - | K109: 85 | L109: No | M109: Ninguno | N109: Cajamarquilla | P109: 020107 | Q109: 1130.999619 | R109: 299.5767059 | S109: 831.4229126 | T109: 20.13773894 | U109: 785.7466812 | V109: 83.47228241 | W109: 65.6371994 | X109: 66.37795639 | Y109: 55.73378563 | Z109: 31.88102055 | AA109: 31.84697962 | AB109: 37.87911606 | AC109: 24.98651314 | AD109: 32.35512638 | AE109: 27.54000902 | AF109: 32.4892416 | AG109: 20.98933983 | AH109: 24.14400482 | AI109: 12.54870296 | AJ109: 20.86461544 | AK109: 11.58919191 | AL109: 11.72593737 | AM109: 6.332259655 | AN109: 4.188592672 | AO109: 63.13990402 | AP109: 53.88570213 | AQ109: 62.29861641 | AR109: 53.36906147 | AS109: 34.81245995 | AT109: 29.50650501 | AU109: 28.46617699 | AV109: 21.3810873 | AW109: 26.81472588 | AX109: 23.48144341 | AY109: 26.89669418 | AZ109: 24.64628506 | BA109: 16.8848176 | BB109: 14.72080517 | BC109: 17.74877548 | BD109: 12.52321005 | BE109: 7.349869728 | BF109: 7.362051725 | BG109: 3.129588127 | BI109: 020107 | BJ109: 1723 | BK109: 870 | BL109: 853 | BM109: 23 | BN109: 1387 | BO109: 19 | BP109: 35 | BQ109: 29 | BR109: 29 | BS109: 18 | BT109: 19 | BU109: 26 | BV109: 31 | BW109: 27 | BX109: 36 | BY109: 23 | BZ109: 21 | CA109: 1307 | CC109: 020107 | CD109: 1132 | CE109: 1122 | CF109: 1110 | CG109: 1102 | CH109: 1095 | CJ109: 020107 | CK109: - | CL109: - | CM109: - | CN109: - | CO109: 40.451562 | CP109: 15.84168 | CR109: 020107 | CS109: 11700046 | CT109: 1462293 | CU109: 10237753 | CV109: 11387690.56 | CW109: 1414008.93 | CX109: 9973681.63 | CZ109: 020107 | DA109: 131.730634
A110: Distrito | B110: 020108 | C110: OLLEROS | E110: 020108 | F110: 222.91 | G110: 11.19734422 | H110: 3457 | I110: - | J110: - | K110: 32 | L110: No | M110: Ninguno | N110: Olleros | P110: 020108 | Q110: 2496.000183 | R110: 1271.460754 | S110: 1224.539429 | T110: 37.30839443 | U110: 1936.74939 | V110: 131.627861 | W110: 90.14279556 | X110: 101.0793152 | Y110: 98.58193588 | Z110: 94.63502121 | AA110: 76.14002991 | AB110: 69.33795547 | AC110: 61.82378578 | AD110: 65.69410324 | AE110: 70.97630119 | AF110: 60.84836197 | AG110: 53.38118172 | AH110: 69.44327354 | AI110: 56.59390831 | AJ110: 61.80038643 | AK110: 50.58211708 | AL110: 59.34942245 | AM110: 15.83267879 | AN110: 11.58064222 | AO110: 117.3978844 | AP110: 97.9632988 | AQ110: 103.3935738 | AR110: 100.4917336 | AS110: 98.32944107 | AT110: 72.33922195 | AU110: 69.15209007 | AV110: 66.61798096 | AW110: 56.46489906 | AX110: 69.40541077 | AY110: 52.97291183 | AZ110: 43.04994202 | BA110: 59.3470192 | BB110: 52.71443367 | BC110: 50.02499771 | BD110: 38.79357338 | BE110: 25.0293541 | BF110: 17.8547802 | BG110: 5.206656933 | BI110: 020108 | BJ110: 3339 | BK110: 1724 | BL110: 1615 | BM110: 46 | BN110: 2792 | BO110: 30 | BP110: 41 | BQ110: 43 | BR110: 44 | BS110: 37 | BT110: 46 | BU110: 44 | BV110: 36 | BW110: 30 | BX110: 47 | BY110: 31 | BZ110: 42 | CA110: 2672 | CC110: 020108 | CD110: 2513 | CE110: 2514 | CF110: 2507 | CG110: 2503 | CH110: 2498 | CJ110: 020108 | CK110: - | CL110: - | CM110: - | CN110: - | CO110: 27.58076 | CP110: 8.872901 | CR110: 020108 | CS110: 17586598 | CT110: 1389898 | CU110: 16196700 | CV110: 11588931.95 | CW110: 1067783.01 | CX110: 10521148.94 | CZ110: 020108 | DA110: 201.2253982
A111: Distrito | B111: 020109 | C111: PAMPAS GRANDE | E111: 020109 | F111: 357.81 | G111: 2.917749644 | H111: 3642 | I111: - | J111: - | K111: 120 | L111: No | M111: Ninguno | N111: Pampas Grande | P111: 020109 | Q111: 1044.00061 | R111: 356.0968933 | S111: 687.903717 | T111: 17.56583357 | U111: 801.5744781 | V111: 51.6142025 | W111: 46.64050388 | X111: 43.05498981 | Y111: 35.82084274 | Z111: 18.6650095 | AA111: 27.34335136 | AB111: 27.02757168 | AC111: 26.94066381 | AD111: 26.59998322 | AE111: 30.49346161 | AF111: 24.94196749 | AG111: 30.38672543 | AH111: 23.70171547 | AI111: 22.59533119 | AJ111: 23.72921848 | AK111: 24.64629936 | AL111: 17.26271057 | AM111: 11.96032906 | AN111: 5.44990766 | AO111: 40.70407677 | AP111: 41.13250732 | AQ111: 62.3891983 | AR111: 40.46459198 | AS111: 21.46474648 | AT111: 30.01130533 | AU111: 20.26168442 | AV111: 21.05835128 | AW111: 25.2030344 | AX111: 32.31715965 | AY111: 38.06542206 | AZ111: 37.95575809 | BA111: 23.2552495 | BB111: 15.22158933 | BC111: 18.20127583 | BD111: 22.87486553 | BE111: 21.68954372 | BF111: 9.734437943 | BG111: 3.120936513 | BI111: 020109 | BJ111: 1440 | BK111: 677 | BL111: 763 | BM111: 6 | BN111: 1222 | BO111: 15 | BP111: 25 | BQ111: 16 | BR111: 10 | BS111: 11 | BT111: 14 | BU111: 20 | BV111: 20 | BW111: 22 | BX111: 22 | BY111: 15 | BZ111: 25 | CA111: 1160 | CC111: 020109 | CD111: 1040 | CE111: 1020 | CF111: 998 | CG111: 984 | CH111: 973 | CJ111: 020109 | CK111: - | CL111: - | CM111: - | CN111: - | CO111: 46.279289 | CP111: 8.4222 | CR111: 020109 | CS111: 7769433 | CT111: 1520414 | CU111: 6249019 | CV111: 4592262.65 | CW111: 1444754.55 | CX111: 3147508.1 | CZ111: 020109 | DA111: 80.20740283
